Workbook

Sheet FCOA Codes (hidden)
A1: 21-180: | B1: Planning Board
A2: 21-181 | B2: "User Defined" Land Use
A3: 21-182 | B3: "User Defined" Land Use
A4: 21-183 | B4: "User Defined" Land Use
A5: 21-184 | B5: "User Defined" Land Use
A6: 21-185 | B6: Zoning Board of Adjustment
A7: 21-190 | B7: Council on Affordable Housing (COAH) (Inside CAPS)
A8: 21-191 | B8: Council on Affordable Housing (COAH) (Outside CAPS)

Sheet Instructions
A1: General Instructions to Complete the Municipal Budget Workbook
A3: a) | B3: This workbook shall be used for completing the Municipal Introduced and Adopted Budgets.
A4: b) | B4: It is designed to automatically calculate amounts linked from various data entry points.
A5: c) | B5: The individual tabs containing formulas are locked to protect the formulas.
A6: d) | B6: Fill in only the gray sections of the worksheet.
A7: e) | B7: Begin by navigating to the "Key Inputs" tab.
A8: f) | B8: Select the Municipality and County by clicking the dropdown menu. This will populate the Municipality, County, and dates throughout the workbook. Continue to complete each of the fields in order to populate throughout the workbook. Enter the exact number of utilities and the utility types. Do not skip sets of utility pages.
A9: g) | B9: In all applicable signature lines, insert the email address of the applicable official.
A10: h) | B10: The completed Budget document must be saved as a Macro-Enabled Workbook.
A11: i) | B11: Once approved by the Governing Body, the completed Introduced Budget must be submitted to the Division via the FAST "Introduced Budget" record portal and it must be named as: <municode>_introbudget_20xx (all 4 digits municode must be included).
A12: j) | B12: Once approved by the Governing Body, the completed Adopted Budget must be submitted to the Division via the FAST "Adopted Budget" record portal and it must be named as: <municode>_adoptbudget_20xx (all 4 digits municode must be included).
A13: k) | B13: Only the Chief Financial Officer has access to the "Submit for Review" tab within the FAST portal.
A14: l) | B14: If copying data from a prior workbook, copy and use Paste Values to preserve formatting.
A15: m) | B15: On the Key Inputs tab, users can select "Standard" or "Expanded" for a variety of sections to reduce the number of unused pages throughout the document. The following sheets can be adjusted: Grant Revenues (9), Other Special Items of Revenue (10), General Appropriations (15), Grant Appropriations (24), and Capital Budget (40b, 40c, and 40d). All sections are preset to "Standard" and should only be switched to "Expanded" if more pages are needed.
A16: n) | B16: Please review the additional instructions "Quick Guide for completing the Municipal Budget" link below:
B17: https://www.nj.gov/dca/divisions/dlgs/pdf/Budget_Document_Instructions.pdf
A19: **Instructions to Complete the 2024 "Data Rollover" Process**
A20: a) | B20: Download from FAST or have saved on your computer the 2023 adopted budget workbook.
A21: b) | B21: On the 2024 budget, navigate to the "Key Inputs" tab.
B22: **IMPORTANT: Macros must be enabled in excel in order for the data rollover process to run successfully.**
A23: c) | B23: On "Key Inputs", there will be two "data migration" buttons; one for current fund and one for utilities.
A24: d) | B24: First, click the button for current fund. It will prompt you to select your 2023 adopted excel budget from your computer.
A25: e) | B25: Once the 2023 adopted budget is selected, the function runs automatically. The functionality may cause the screen to briefly flash rapidly.
A26: f) | B26: Once all current fund data has been copied, follow the same process for the utilities, if applicable. The utility process is the same as the current fund process.
A27: g) | B27: Once complete, review the 2024 template to ensure information has successfully copied from the 2023 adopted budget.
B28: PLEASE NOTE:
B29: If an incorrect version of the budget template was used in 2023, the budget data may not migrate properly to the 2024 budget template.
B30: While every effort was made to ensure the integrity of data for both the current fund and utility fund, it is the responsibility of the municipality to ensure accuracy.
B31: Prior year appropriations will reflect amounts from the 2023 adopted budget. Therefore, prior year appropriation amounts may need to be manually adjusted after the data migration is complete in order to reflect any amendments, transfers, cancellations, and emergencies that took place throughout the year. The columns to the right of each appropriation sheet should continue to be utilized for these functions.

Sheet Key Inputs
C2: Information Required for | E2: Municipal Budget Version 2024.1
C3: Municipal Budget Document: | E3: Responses and Data
C4: Name and County of Municipality | E4: 457 | AG4: Version | AH4: 2020-03-02
C5: Full Name of Municipality | E5: =UPPER(VLOOKUP($E$4,Info!A1:K568,8,FALSE)&" Of "&VLOOKUP($E$4,Info!A1:K568,7,FALSE)) -> TOWNSHIP OF SHREWSBURY
B6: DLGS | C6: County of Municipality | E6: =UPPER(VLOOKUP($E$4,Info!A1:K567,4,FALSE)) -> MONMOUTH | L6: DLGS
C7: Name of Municipality | E7: =UPPER(VLOOKUP($E$4,Info!A1:K567,7,FALSE)) -> SHREWSBURY
C8: Type | E8: =UPPER(VLOOKUP($E$4,Info!A1:K567,8,FALSE)) -> TOWNSHIP
C9: Governing Body Type | E9: =UPPER(VLOOKUP($E$4,Info!A1:K567,9,FALSE)) -> COMMITTEEPERSONS
C10: Location | E10: TOWNSHIP OF SHREWSBURY
C11: Address | E11: 1979 CRAWFORD STREET
C12: Address | E12: SHREWSBURY TOWNSHIP, NJ 07724
C13: Phone | E13: 732-542-0572
C14: Fax | E14: 732-935-1348
G15: Cert # | H15: Date of Original Appt.
C16: Clerk | E16: Katrina Thornton
C17: Tax Collector | E17: Jason Sutton | G17: T-8442
C18: Chief Financial Officer | E18: Catherine D. LaPorta | G18: N-1667
C19: Registered Municipal Accountant | E19: Charles J. Fallon | G19: RMA-506
C20: Municipal Attorney | E20: Gene Anthony
C22: Newspaper
E24: Day | F24: Month
C25: Date of Introduction | E25: 21 | F25: May
C26: Date of Advertisement | E26: 8 | F26: June
C27: Date of Public Hearing | E27: 18 | F27: June
C29: Time of Public Hearing
C31: Net Valuation Taxable Current | F31: 103,655,800
C32: Net Valuation Taxable Prior | F32: 94,220,134
F33: =+F31-F32 -> 9,435,666
C34: Budget Year | E34: 2024 | F34: Budget Year Type: | G34: Calendar Year | H34: Calendar or State Fiscal
C36: Municipal Code | E36: =VLOOKUP($E$4,Info!A1:K567,2,FALSE) -> 1346
C38: How many utilities does municipality have? | E38: 0 | F38: Select "0" if you do not have any utilities.
C39: Utility # | E39: Utility Type | G39: Capital Improvement Program
C40: Utility 1 | G40: # of Years | H40: 6
C41: Utility 2 | G41: Beginning Year | H41: =+E34 -> 2024
C42: Utility 3 | G42: Ending Year | H42: =+H41+H40-1 -> 2029
C43: Utility 4
C44: Utility 5
C45: Utility 6
C47: Utility Assessment (Tab 37)
C48: Utility Assessment (Tab 38)
C50: Page Count - Standard or Expanded: | F50: Start with "Standard" and move to "Expanded" only as needed.
C51: Grant Revenues (Sheet 9) | E51: Standard | F51: "Standard" will provide two (2) sheets for Grant Revenues.
C52: Other Special Item Revenues (Sheet 10) | E52: Standard | F52: "Standard" will provide two (2) sheets for Other Special Items of Revenue.
C53: General Appropriations (Sheet 15) | E53: Standard | F53: "Standard" will provide nine (9) sheets for General Appropriations.
C54: Grant Appropriations (Sheet 24) | E54: Standard | F54: "Standard" will provide three (3) sheets for Grant Appropriations.
C55: Capital Improvements (Sheets 40b, 40c, 40d) | E55: Standard | F55: "Standard" will provide three (3) sheets per section.
C57: Hide/Unhide "Summary" Tabs:
C58: Summary Data, Budget Summary, Tax Summary | E58: Unhidden

Sheet Info (hidden)
B1: Muncode | C1: Town | D1: County | E1: Town Name | F1: Name of Municipality | G1: Muniname | H1: Type of Government | I1: Governing Body Members | J1: Governing Body Type | K1: 2010 Census Population
A2: 1 | B2: 0000 | C2: MUNICIPALITY | D2: COUNTY | E2: PLEASE SELECT A MUNICIPALITY | F2: MUNICIPALITY | G2: MUNICIPALITY
A3: 2 | B3: 1330 | C3: Aberdeen Township | D3: Monmouth | E3: Aberdeen Township, Monmouth County | F3: Aberdeen Township | G3: Aberdeen | H3: Township | I3: Council Members | J3: Mayor-6 Council Members | K3: 18,210
A4: =A3+1 -> 3 | B4: 0101 | C4: Absecon City | D4: Atlantic | E4: Absecon City, Atlantic County | F4: Absecon | G4: Absecon | H4: City | I4: Council Members | J4: Mayor-7 Council Members | K4: 8,411
A5: =A4+1 -> 4 | B5: 1001 | C5: Alexandria Township | D5: Hunterdon | E5: =C5&", "&D5&" County" -> Alexandria Township, Hunterdon County | F5: Alexandria Township | G5: Alexandria | H5: Township | I5: Committeepersons | J5: 3 Committee Members | K5: 4,938
A6: 5 | B6: 2101 | C6: Allamuchy Township | D6: Warren | E6: =C6&", "&D6&" County" -> Allamuchy Township, Warren County | F6: Allamuchy Township | G6: Allamuchy | H6: Township | I6: Council Members | J6: Mayor-4 Council Members | K6: 4,323
A7: 6 | B7: 0201 | C7: Allendale Borough | D7: Bergen | E7: Allendale Borough, Bergen County | F7: Allendale | G7: Allendale | H7: Borough | I7: Council Members | J7: Mayor-6 Council Members | K7: 6,505
A8: 7 | B8: 1301 | C8: Allenhurst Borough | D8: Monmouth | E8: Allenhurst Borough, Monmouth County | F8: Allenhurst | G8: Allenhurst | H8: Borough | I8: Commissioners | J8: 3 Commissioners | K8: 496
A9: 8 | B9: 1302 | C9: Allentown Borough | D9: Monmouth | E9: Allentown Borough, Monmouth County | F9: Allentown | G9: Allentown | H9: Borough | I9: Council Members | J9: Mayor-6 Council Members | K9: 1,828
A10: 9 | B10: 1701 | C10: Alloway Township | D10: Salem | E10: Alloway Township, Salem County | F10: Alloway Township | G10: Alloway | H10: Township | I10: Committeepersons | J10: 3 Committee Members | K10: 3,467
A11: 10 | B11: 2102 | C11: Alpha Borough | D11: Warren | E11: Alpha Borough, Warren County | F11: Alpha | G11: Alpha | H11: Borough | I11: Council Members | J11: Mayor-6 Council Members | K11: 2,369
A12: 11 | B12: 0202 | C12: Alpine Borough | D12: Bergen | E12: Alpine Borough, Bergen County | F12: Alpine | G12: Alpine | H12: Borough | I12: Council Members | J12: Mayor-6 Council Members | K12: 1,849
A13: 12 | B13: 1901 | C13: Andover Borough | D13: Sussex | E13: Andover Borough, Sussex County | F13: Andover | G13: Andover | H13: Borough | I13: Council Members | J13: Mayor-6 Council Members | K13: 606
A14: 13 | B14: 1902 | C14: Andover Township | D14: Sussex | E14: Andover Township, Sussex County | F14: Andover Township | G14: Andover | H14: Township | I14: Committeepersons | J14: 5 Committee Members | K14: 6,319
A15: 14 | B15: 1303 | C15: Asbury Park City | D15: Monmouth | E15: Asbury Park City, Monmouth County | F15: Asbury Park | G15: Asbury Park | H15: City | I15: Council Members | J15: 5 Council Members | K15: 16,116
A16: 15 | B16: 0102 | C16: Atlantic City City | D16: Atlantic | E16: Atlantic City City, Atlantic County | F16: Atlantic City | G16: Atlantic City | H16: City | I16: Council Members | J16: Mayor-9 Council Members | K16: 39,558
A17: 16 | B17: 1304 | C17: Atlantic Highlands Borough | D17: Monmouth | E17: Atlantic Highlands Borough, Monmouth County | F17: Atlantic Highlands | G17: Atlantic Highlands | H17: Borough | I17: Council Members | J17: Mayor-6 Council Members | K17: 4,385
A18: 17 | B18: 0401 | C18: Audubon Borough | D18: Camden | E18: Audubon Borough, Camden County | F18: Audubon | G18: Audubon | H18: Borough | I18: Commissioners | J18: 3 Commissioners | K18: 8,819
A19: 18 | B19: 0402 | C19: Audubon Park Borough | D19: Camden | E19: Audubon Park Borough, Camden County | F19: Audubon Park | G19: Audubon Park | H19: Borough | I19: Council Members | J19: Mayor-6 Council Members | K19: 1,023
A20: 19 | B20: 0501 | C20: Avalon Borough | D20: Cape May | E20: Avalon Borough, Cape May County | F20: Avalon | G20: Avalon | H20: Borough | I20: Council Members | J20: Mayor-5 Council Members | K20: 1,334
A21: 20 | B21: 1305 | C21: Avon-by-the-Sea Borough | D21: Monmouth | E21: Avon-by-the-Sea Borough, Monmouth County | F21: Avon-by-the-Sea | G21: Avon-by-the-Sea | H21: Borough | I21: Commissioners | J21: 3 Commissioners | K21: 1,901
A22: 21 | B22: 1501 | C22: Barnegat Light Borough | D22: Ocean | E22: Barnegat Light Borough, Ocean County | F22: Barnegat Light | G22: Barnegat Light | H22: Borough | I22: Council Members | J22: Mayor-6 Council Members | K22: 574
A23: 22 | B23: 1533 | C23: Barnegat Township | D23: Ocean | E23: Barnegat Township, Ocean County | F23: Barnegat Township | G23: Barnegat | H23: Township | I23: Committeepersons | J23: 5 Committee Members | K23: 20,936
A24: 23 | B24: 0403 | C24: Barrington Borough | D24: Camden | E24: Barrington Borough, Camden County | F24: Barrington | G24: Barrington | H24: Borough | I24: Council Members | J24: Mayor-6 Council Members | K24: 6,983
A25: 24 | B25: 0301 | C25: Bass River Township | D25: Burlington | E25: Bass River Township, Burlington County | F25: Bass River Township | G25: Bass River | H25: Township | I25: Commissioners | J25: 3 Commissioners | K25: 1,443
A26: 25 | B26: 1502 | C26: Bay Head Borough | D26: Ocean | E26: Bay Head Borough, Ocean County | F26: Bay Head | G26: Bay Head | H26: Borough | I26: Council Members | J26: Mayor-6 Council Members | K26: 968
A27: 26 | B27: 0901 | C27: Bayonne City | D27: Hudson | E27: Bayonne City, Hudson County | F27: Bayonne | G27: Bayonne | H27: City | I27: Council Members | J27: Mayor-5 Council Members | K27: 63,024
A28: 27 | B28: 1503 | C28: Beach Haven Borough | D28: Ocean | E28: Beach Haven Borough, Ocean County | F28: Beach Haven | G28: Beach Haven | H28: Borough | I28: Council Members | J28: 5 Council Members | K28: 1,170
A29: 28 | B29: 1504 | C29: Beachwood Borough | D29: Ocean | E29: Beachwood Borough, Ocean County | F29: Beachwood | G29: Beachwood | H29: Borough | I29: Council Members | J29: Mayor-6 Council Members | K29: 11,045
A30: 29 | B30: 1801 | C30: Bedminster Township | D30: Somerset | E30: Bedminster Township, Somerset County | F30: Bedminster Township | G30: Bedminster | H30: Township | I30: Committeepersons | J30: 5 Committee Members | K30: 8,165
A31: 30 | B31: 0701 | C31: Belleville Township | D31: Essex | E31: Belleville Township, Essex County | F31: Belleville Township | G31: Belleville | H31: Township | I31: Council Members | J31: 7 Council Members | K31: 35,926
A32: 31 | B32: 0404 | C32: Bellmawr Borough | D32: Camden | E32: Bellmawr Borough, Camden County | F32: Bellmawr | G32: Bellmawr | H32: Borough | I32: Council Members | J32: Mayor-6 Council Members | K32: 11,583
A33: 32 | B33: 1306 | C33: Belmar Borough | D33: Monmouth | E33: Belmar Borough, Monmouth County | F33: Belmar | G33: Belmar | H33: Borough | I33: Council Members | J33: Mayor-4 Council Members | K33: 5,794
A34: 33 | B34: 2103 | C34: Belvidere Town | D34: Warren | E34: Belvidere Town, Warren County | F34: Belvidere | G34: Belvidere | H34: Town | I34: Council Members | J34: Mayor-6 Council Members | K34: 2,681
A35: 34 | B35: 0203 | C35: Bergenfield Borough | D35: Bergen | E35: Bergenfield Borough, Bergen County | F35: Bergenfield | G35: Bergenfield | H35: Borough | I35: Council Members | J35: Mayor-6 Council Members | K35: 26,764
A36: 35 | B36: 2001 | C36: Berkeley Heights Township | D36: Union | E36: Berkeley Heights Township, Union County | F36: Berkeley Heights Township | G36: Berkeley Heights | H36: Township | I36: Council Members | J36: Mayor-6 Council Members | K36: 13,183
A37: 36 | B37: 1505 | C37: Berkeley Township | D37: Ocean | E37: Berkeley Township, Ocean County | F37: Berkeley Township | G37: Berkeley | H37: Township | I37: Council Members | J37: Mayor-7 Council Members | K37: 41,255
A38: 37 | B38: 0405 | C38: Berlin Borough | D38: Camden | E38: Berlin Borough, Camden County | F38: Berlin | G38: Berlin | H38: Borough | I38: Council Members | J38: Mayor-6 Council Members | K38: 7,588
A39: 38 | B39: 0406 | C39: Berlin Township | D39: Camden | E39: Berlin Township, Camden County | F39: Berlin Township | G39: Berlin | H39: Township | I39: Council Members | J39: Mayor-4 Council Members | K39: 5,357
A40: 39 | B40: 1802 | C40: Bernards Township | D40: Somerset | E40: Bernards Township, Somerset County | F40: Bernards Township | G40: Bernards | H40: Township | I40: Committeepersons | J40: 5 Committee Members | K40: 26,652
A41: 40 | B41: 1803 | C41: Bernardsville Borough | D41: Somerset | E41: Bernardsville Borough, Somerset County | F41: Bernardsville | G41: Bernardsville | H41: Borough | I41: Council Members | J41: Mayor-6 Council Members | K41: 7,707
A42: 41 | B42: 1002 | C42: Bethlehem Township | D42: Hunterdon | E42: Bethlehem Township, Hunterdon County | F42: Bethlehem Township | G42: Bethlehem | H42: Township | I42: Committeepersons | J42: 5 Committee Members | K42: 3,979
A43: 42 | B43: 0302 | C43: Beverly City | D43: Burlington | E43: Beverly City, Burlington County | F43: Beverly | G43: Beverly | H43: City | I43: Council Members | J43: Mayor-9 Council Members | K43: 2,577
A44: 43 | B44: 2104 | C44: Blairstown Township | D44: Warren | E44: Blairstown Township, Warren County | F44: Blairstown Township | G44: Blairstown | H44: Township | I44: Committeepersons | J44: 5 Committee Members | K44: 5,967
A45: 44 | B45: 0702 | C45: Bloomfield Township | D45: Essex | E45: Bloomfield Township, Essex County | F45: Bloomfield Township | G45: Bloomfield | H45: Township | I45: Council Members | J45: Mayor-6 Council Members | K45: 47,315
A46: 45 | B46: 1601 | C46: Bloomingdale Borough | D46: Passaic | E46: Bloomingdale Borough, Passaic County | F46: Bloomingdale | G46: Bloomingdale | H46: Borough | I46: Council Members | J46: Mayor-6 Council Members | K46: 7,656
A47: 46 | B47: 1003 | C47: Bloomsbury Borough | D47: Hunterdon | E47: Bloomsbury Borough, Hunterdon County | F47: Bloomsbury | G47: Bloomsbury | H47: Borough | I47: Council Members | J47: Mayor-6 Council Members | K47: 870
A48: 47 | B48: 0204 | C48: Bogota Borough | D48: Bergen | E48: Bogota Borough, Bergen County | F48: Bogota | G48: Bogota | H48: Borough | I48: Council Members | J48: Mayor-6 Council Members | K48: 8,187
A49: 48 | B49: 1401 | C49: Boonton Town | D49: Morris | E49: Boonton Town, Morris County | F49: Boonton | G49: Boonton | H49: Town | I49: Alderpersons | J49: Mayor-8 Alder Persons | K49: 8,347
A50: 49 | B50: 1402 | C50: Boonton Township | D50: Morris | E50: Boonton Township, Morris County | F50: Boonton Township | G50: Boonton | H50: Township | I50: Committeepersons | J50: 5 Committee Members | K50: 4,263
A51: 50 | B51: 0303 | C51: Bordentown City | D51: Burlington | E51: Bordentown City, Burlington County | F51: Bordentown | G51: Bordentown | H51: City | I51: Commissioners | J51: 3 Commissioners | K51: 3,924
A52: 51 | B52: 0304 | C52: Bordentown Township | D52: Burlington | E52: Bordentown Township, Burlington County | F52: Bordentown Township | G52: Bordentown | H52: Township | I52: Committeepersons | J52: 5 Committee Members | K52: 11,367
A53: 52 | B53: 1804 | C53: Bound Brook Borough | D53: Somerset | E53: Bound Brook Borough, Somerset County | F53: Bound Brook | G53: Bound Brook | H53: Borough | I53: Council Members | J53: Mayor-6 Council Members | K53: 10,402
A54: 53 | B54: 1307 | C54: Bradley Beach Borough | D54: Monmouth | E54: Bradley Beach Borough, Monmouth County | F54: Bradley Beach | G54: Bradley Beach | H54: Borough | I54: Council Members | J54: Mayor-4 Council Members | K54: 4,298
A55: 54 | B55: 1805 | C55: Branchburg Township | D55: Somerset | E55: Branchburg Township, Somerset County | F55: Branchburg Township | G55: Branchburg | H55: Township | I55: Committeepersons | J55: 5 Committee Members | K55: 14,459
A56: 55 | B56: 1903 | C56: Branchville Borough | D56: Sussex | E56: Branchville Borough, Sussex County | F56: Branchville | G56: Branchville | H56: Borough | I56: Council Members | J56: Mayor-6 Council Members | K56: 841
A57: 56 | B57: 1506 | C57: Brick Township | D57: Ocean | E57: Brick Township, Ocean County | F57: Brick Township | G57: Brick | H57: Township | I57: Council Members | J57: Mayor-7 Council Members | K57: 75,072
A58: 57 | B58: 0601 | C58: Bridgeton City | D58: Cumberland | E58: Bridgeton City, Cumberland County | F58: Bridgeton | G58: Bridgeton | H58: City | I58: Council Members | J58: Mayor-5 Council Members | K58: 25,349
A59: 58 | B59: 1806 | C59: Bridgewater Township | D59: Somerset | E59: Bridgewater Township, Somerset County | F59: Bridgewater Township | G59: Bridgewater | H59: Township | I59: Council Members | J59: Mayor-5 Council Members | K59: 44,464
A60: 59 | B60: 1308 | C60: Brielle Borough | D60: Monmouth | E60: Brielle Borough, Monmouth County | F60: Brielle | G60: Brielle | H60: Borough | I60: Council Members | J60: Mayor-6 Council Members | K60: 4,774
A61: 60 | B61: 0103 | C61: Brigantine City | D61: Atlantic | E61: Brigantine City, Atlantic County | F61: Brigantine | G61: Brigantine | H61: City | I61: Council Members | J61: 7 Council Members | K61: 9,450
A62: 61 | B62: 0407 | C62: Brooklawn Borough | D62: Camden | E62: Brooklawn Borough, Camden County | F62: Brooklawn | G62: Brooklawn | H62: Borough | I62: Council Members | J62: Mayor-6 Council Members | K62: 1,955
A63: 62 | B63: 0104 | C63: Buena Borough | D63: Atlantic | E63: Buena Borough, Atlantic County | F63: Buena | G63: Buena | H63: Borough | I63: Council Members | J63: Mayor-6 Council Members | K63: 4,603
A64: 63 | B64: 0105 | C64: Buena Vista Township | D64: Atlantic | E64: Buena Vista Township, Atlantic County | F64: Buena Vista Township | G64: Buena Vista | H64: Township | I64: Committeepersons | J64: 5 Committee Members | K64: 7,570
A65: 64 | B65: 0305 | C65: Burlington City | D65: Burlington | E65: Burlington City, Burlington County | F65: Burlington | G65: Burlington | H65: City | I65: Council Members | J65: Mayor-7 Council Members | K65: 9,920
A66: 65 | B66: 0306 | C66: Burlington Township | D66: Burlington | E66: Burlington Township, Burlington County | F66: Burlington Township | G66: Burlington | H66: Township | I66: Council Members | J66: Mayor-7 Council Members | K66: 22,594
A67: 66 | B67: 1403 | C67: Butler Borough | D67: Morris | E67: Butler Borough, Morris County | F67: Butler | G67: Butler | H67: Borough | I67: Council Members | J67: Mayor-6 Council Members | K67: 7,539
A68: 67 | B68: 1904 | C68: Byram Township | D68: Sussex | E68: Byram Township, Sussex County | F68: Byram Township | G68: Byram | H68: Township | I68: Council Members | J68: Mayor-4 Council Members | K68: 8,350
A69: =A68+1 -> 68 | B69: 0703 | C69: Caldwell Borough | D69: Essex | E69: Caldwell Borough, Essex County | F69: Caldwell Borough | G69: Caldwell | H69: Borough | I69: Council Members | J69: Mayor-6 Council Members | K69: 7,822
A70: 69 | B70: 1004 | C70: Califon Borough | D70: Hunterdon | E70: Califon Borough, Hunterdon County | F70: Califon | G70: Califon | H70: Borough | I70: Council Members | J70: Mayor-6 Council Members | K70: 1,076
A71: 70 | B71: 0408 | C71: Camden City | D71: Camden | E71: Camden City, Camden County | F71: Camden | G71: Camden | H71: City | I71: Council Members | J71: Mayor-7 Council Members | K71: 77,344
A72: 71 | B72: 0502 | C72: Cape May City | D72: Cape May | E72: Cape May City, Cape May County | F72: Cape May | G72: Cape May | H72: City | I72: Council Members | J72: 5 Council Members | K72: 3,607
A73: 72 | B73: 0503 | C73: Cape May Point Borough | D73: Cape May | E73: Cape May Point Borough, Cape May County | F73: Cape May Point | G73: Cape May Point | H73: Borough | I73: Commissioners | J73: 3 Commissioners | K73: 291
A74: 73 | B74: 0205 | C74: Carlstadt Borough | D74: Bergen | E74: Carlstadt Borough, Bergen County | F74: Carlstadt | G74: Carlstadt | H74: Borough | I74: Council Members | J74: Mayor-6 Council Members | K74: 6,127
A75: 74 | B75: 1713 | C75: Carneys Point Township | D75: Salem | E75: Carneys Point Township, Salem County | F75: Carneys Point Township | G75: Carneys Point | H75: Township | I75: Committeepersons | J75: 5 Committee Members | K75: 8,049
A76: 75 | B76: 1201 | C76: Carteret Borough | D76: Middlesex | E76: Carteret Borough, Middlesex County | F76: Carteret | G76: Carteret | H76: Borough | I76: Council Members | J76: Mayor-6 Council Members | K76: 22,844
A77: 76 | B77: 0704 | C77: Cedar Grove Township | D77: Essex | E77: Cedar Grove Township, Essex County | F77: Cedar Grove Township | G77: Cedar Grove | H77: Township | I77: Council Members | J77: 5 Council Members | K77: 12,411
A78: 77 | B78: 1404 | C78: Chatham Borough | D78: Morris | E78: Chatham Borough, Morris County | F78: Chatham | G78: Chatham | H78: Borough | I78: Council Members | J78: Mayor-6 Council Members | K78: 8,962
A79: 78 | B79: 1405 | C79: Chatham Township | D79: Morris | E79: Chatham Township, Morris County | F79: Chatham Township | G79: Chatham | H79: Township | I79: Committeepersons | J79: 5 Committee Members | K79: 10,452
A80: 79 | B80: 0409 | C80: Cherry Hill Township | D80: Camden | E80: Cherry Hill Township, Camden County | F80: Cherry Hill Township | G80: Cherry Hill | H80: Township | I80: Council Members | J80: Mayor-7 Council Members | K80: 71,045
A81: 80 | B81: 0410 | C81: Chesilhurst Borough | D81: Camden | E81: Chesilhurst Borough, Camden County | F81: Chesilhurst | G81: Chesilhurst | H81: Borough | I81: Council Members | J81: Mayor-6 Council Members | K81: 1,634
A82: 81 | B82: 1406 | C82: Chester Borough | D82: Morris | E82: Chester Borough, Morris County | F82: Chester | G82: Chester | H82: Borough | I82: Council Members | J82: Mayor-6 Council Members | K82: 1,649
A83: 82 | B83: 1407 | C83: Chester Township | D83: Morris | E83: Chester Township, Morris County | F83: Chester Township | G83: Chester | H83: Township | I83: Council Members | J83: Mayor-4 Council Members | K83: 7,838
A84: 83 | B84: 0307 | C84: Chesterfield Township | D84: Burlington | E84: Chesterfield Township, Burlington County | F84: Chesterfield Township | G84: Chesterfield | H84: Township | I84: Committeepersons | J84: 3 Committee Members | K84: 7,699
A85: 84 | B85: 0308 | C85: Cinnaminson Township | D85: Burlington | E85: Cinnaminson Township, Burlington County | F85: Cinnaminson Township | G85: Cinnaminson | H85: Township | I85: Committeepersons | J85: 5 Committee Members | K85: 15,569
A86: 85 | B86: 2002 | C86: Clark Township | D86: Union | E86: Clark Township, Union County | F86: Clark Township | G86: Clark | H86: Township | I86: Council Members | J86: Mayor-6 Council Members | K86: 14,756
A87: 86 | B87: 0801 | C87: Clayton Borough | D87: Gloucester | E87: Clayton Borough, Gloucester County | F87: Clayton | G87: Clayton | H87: Borough | I87: Council Members | J87: Mayor-6 Council Members | K87: 8,179
A88: 87 | B88: 0411 | C88: Clementon Borough | D88: Camden | E88: Clementon Borough, Camden County | F88: Clementon | G88: Clementon | H88: Borough | I88: Council Members | J88: Mayor-6 Council Members | K88: 5,000
A89: 88 | B89: 0206 | C89: Cliffside Park Borough | D89: Bergen | E89: Cliffside Park Borough, Bergen County | F89: Cliffside Park | G89: Cliffside Park | H89: Borough | I89: Council Members | J89: Mayor-6 Council Members | K89: 23,594
A90: 89 | B90: 1602 | C90: Clifton City | D90: Passaic | E90: Clifton City, Passaic County | F90: Clifton | G90: Clifton | H90: City | I90: Council Members | J90: 7 Council Members | K90: 84,136
A91: 90 | B91: 1005 | C91: Clinton Town | D91: Hunterdon | E91: Clinton Town, Hunterdon County | F91: Clinton | G91: Clinton | H91: Town | I91: Council Members | J91: Mayor-6 Council Members | K91: 2,719
A92: 91 | B92: 1006 | C92: Clinton Township | D92: Hunterdon | E92: Clinton Township, Hunterdon County | F92: Clinton Township | G92: Clinton | H92: Township | I92: Council Members | J92: Mayor-4 Council Members | K92: 13,478
A93: 92 | B93: 0207 | C93: Closter Borough | D93: Bergen | E93: Closter Borough, Bergen County | F93: Closter | G93: Closter | H93: Borough | I93: Council Members | J93: Mayor-6 Council Members | K93: 8,373
A94: 93 | B94: 0412 | C94: Collingswood Borough | D94: Camden | E94: Collingswood Borough, Camden County | F94: Collingswood | G94: Collingswood | H94: Borough | I94: Commissioners | J94: 3 Commissioners | K94: 13,926
A95: 94 | B95: 1309 | C95: Colts Neck Township | D95: Monmouth | E95: Colts Neck Township, Monmouth County | F95: Colts Neck Township | G95: Colts Neck | H95: Township | I95: Committeepersons | J95: 5 Committee Members | K95: 10,142
A96: 95 | B96: 0602 | C96: Commercial Township | D96: Cumberland | E96: Commercial Township, Cumberland County | F96: Commercial Township | G96: Commercial | H96: Township | I96: Committeepersons | J96: 3 Committee Members | K96: 5,178
A97: 96 | B97: 0106 | C97: Corbin City | D97: Atlantic | E97: Corbin City, Atlantic County | F97: Corbin City | G97: Corbin City | H97: City | I97: Council Members | J97: Mayor-3 Council Members | K97: 492
A98: 97 | B98: 1202 | C98: Cranbury Township | D98: Middlesex | E98: Cranbury Township, Middlesex County | F98: Cranbury Township | G98: Cranbury | H98: Township | I98: Committeepersons | J98: 5 Committee Members | K98: 3,857
A99: 98 | B99: 2003 | C99: Cranford Township | D99: Union | E99: Cranford Township, Union County | F99: Cranford Township | G99: Cranford | H99: Township | I99: Committeepersons | J99: 5 Committee Members | K99: 22,625
A100: 99 | B100: 0208 | C100: Cresskill Borough | D100: Bergen | E100: Cresskill Borough, Bergen County | F100: Cresskill | G100: Cresskill | H100: Borough | I100: Council Members | J100: Mayor-6 Council Members | K100: 8,573
A101: 100 | B101: 1310 | C101: Deal Borough | D101: Monmouth | E101: Deal Borough, Monmouth County | F101: Deal | G101: Deal | H101: Borough | I101: Commissioners | J101: 3 Commissioners | K101: 750
A102: 101 | B102: 0603 | C102: Deerfield Township | D102: Cumberland | E102: Deerfield Township, Cumberland County | F102: Deerfield Township | G102: Deerfield | H102: Township | I102: Committeepersons | J102: 5 Committee Members | K102: 3,119
A103: 102 | B103: 0309 | C103: Delanco Township | D103: Burlington | E103: Delanco Township, Burlington County | F103: Delanco Township | G103: Delanco | H103: Township | I103: Committeepersons | J103: 5 Committee Members | K103: 4,283
A104: 103 | B104: 1007 | C104: Delaware Township | D104: Hunterdon | E104: Delaware Township, Hunterdon County | F104: Delaware Township | G104: Delaware | H104: Township | I104: Committeepersons | J104: 5 Committee Members | K104: 4,563
A105: 104 | B105: 0310 | C105: Delran Township | D105: Burlington | E105: Delran Township, Burlington County | F105: Delran Township | G105: Delran | H105: Township | I105: Council Members | J105: Mayor-5 Council Members | K105: 16,896
A106: 105 | B106: 0209 | C106: Demarest Borough | D106: Bergen | E106: Demarest Borough, Bergen County | F106: Demarest | G106: Demarest | H106: Borough | I106: Council Members | J106: Mayor-6 Council Members | K106: 4,881
A107: 106 | B107: 0504 | C107: Dennis Township | D107: Cape May | E107: Dennis Township, Cape May County | F107: Dennis Township | G107: Dennis | H107: Township | I107: Committeepersons | J107: 5 Committee Members | K107: 6,467
A108: 107 | B108: 1408 | C108: Denville Township | D108: Morris | E108: Denville Township, Morris County | F108: Denville Township | G108: Denville | H108: Township | I108: Council Members | J108: Mayor-7 Council Members | K108: 16,635
A109: 108 | B109: 0802 | C109: Deptford Township | D109: Gloucester | E109: Deptford Township, Gloucester County | F109: Deptford Township | G109: Deptford | H109: Township | I109: Council Members | J109: 7 Council Members | K109: 30,561
A110: 109 | B110: 1409 | C110: Dover Town | D110: Morris | E110: Dover Town, Morris County | F110: Dover | G110: Dover | H110: Town | I110: Alderpersons | J110: Mayor-8 Alder Persons | K110: 18,157
A111: 110 | B111: 0604 | C111: Downe Township | D111: Cumberland | E111: Downe Township, Cumberland County | F111: Downe Township | G111: Downe | H111: Township | I111: Committeepersons | J111: 3 Committee Members | K111: 1,585
A112: 111 | B112: 0210 | C112: Dumont Borough | D112: Bergen | E112: Dumont Borough, Bergen County | F112: Dumont | G112: Dumont | H112: Borough | I112: Council Members | J112: Mayor-6 Council Members | K112: 17,479
A113: 112 | B113: 1203 | C113: Dunellen Borough | D113: Middlesex | E113: Dunellen Borough, Middlesex County | F113: Dunellen | G113: Dunellen | H113: Borough | I113: Council Members | J113: Mayor-6 Council Members | K113: 7,227
A114: 113 | B114: 1508 | C114: Eagleswood Township | D114: Ocean | E114: Eagleswood Township, Ocean County | F114: Eagleswood Township | G114: Eagleswood | H114: Township | I114: Committeepersons | J114: 3 Committee Members | K114: 1,603
A115: 114 | B115: 1008 | C115: East Amwell Township | D115: Hunterdon | E115: East Amwell Township, Hunterdon County | F115: East Amwell Township | G115: East Amwell | H115: Township | I115: Committeepersons | J115: 5 Committee Members | K115: 4,013
A116: 115 | B116: 1204 | C116: East Brunswick Township | D116: Middlesex | E116: East Brunswick Township, Middlesex County | F116: East Brunswick Township | G116: East Brunswick | H116: Township | I116: Council Members | J116: Mayor-5 Council Members | K116: 47,512
A117: 116 | B117: 0803 | C117: East Greenwich Township | D117: Gloucester | E117: East Greenwich Township, Gloucester County | F117: East Greenwich Township | G117: East Greenwich | H117: Township | I117: Committeepersons | J117: 5 Committee Members | K117: 9,555
A118: 117 | B118: 1410 | C118: East Hanover Township | D118: Morris | E118: East Hanover Township, Morris County | F118: East Hanover Township | G118: East Hanover | H118: Township | I118: Council Members | J118: Mayor-4 Council Members | K118: 11,157
A119: 118 | B119: 0902 | C119: East Newark Borough | D119: Hudson | E119: East Newark Borough, Hudson County | F119: East Newark | G119: East Newark | H119: Borough | I119: Council Members | J119: Mayor-6 Council Members | K119: 2,406
A120: 119 | B120: 0705 | C120: East Orange City | D120: Essex | E120: East Orange City, Essex County | F120: East Orange | G120: East Orange | H120: City | I120: Council Members | J120: Mayor-10 Council Members | K120: 64,270
A121: 120 | B121: 0212 | C121: East Rutherford Borough | D121: Bergen | E121: East Rutherford Borough, Bergen County | F121: East Rutherford | G121: East Rutherford | H121: Borough | I121: Council Members | J121: Mayor-6 Council Members | K121: 8,913
A122: 121 | B122: 1101 | C122: East Windsor Township | D122: Mercer | E122: East Windsor Township, Mercer County | F122: East Windsor Township | G122: East Windsor | H122: Township | I122: Council Members | J122: 7 Council Members | K122: 27,190
A123: 122 | B123: 0311 | C123: Eastampton Township | D123: Burlington | E123: Eastampton Township, Burlington County | F123: Eastampton Township | G123: Eastampton | H123: Township | I123: Council Members | J123: 5 Council Members | K123: 6,069
A124: 123 | B124: 1311 | C124: Eatontown Borough | D124: Monmouth | E124: Eatontown Borough, Monmouth County | F124: Eatontown | G124: Eatontown | H124: Borough | I124: Council Members | J124: Mayor-6 Council Members | K124: 12,709
A125: 124 | B125: 0213 | C125: Edgewater Borough | D125: Bergen | E125: Edgewater Borough, Bergen County | F125: Edgewater | G125: Edgewater | H125: Borough | I125: Council Members | J125: Mayor-6 Council Members | K125: 11,513
A126: 125 | B126: 0312 | C126: Edgewater Park Township | D126: Burlington | E126: Edgewater Park Township, Burlington County | F126: Edgewater Park Township | G126: Edgewater Park | H126: Township | I126: Committeepersons | J126: 5 Committee Members | K126: 8,881
A127: 126 | B127: 1205 | C127: Edison Township | D127: Middlesex | E127: Edison Township, Middlesex County | F127: Edison Township | G127: Edison | H127: Township | I127: Council Members | J127: Mayor-7 Council Members | K127: 99,967
A128: 127 | B128: 0107 | C128: Egg Harbor City | D128: Atlantic | E128: Egg Harbor City, Atlantic County | F128: Egg Harbor City | G128: Egg Harbor City | H128: City | I128: Council Members | J128: Mayor-9 Council Members | K128: 4,243
A129: 128 | B129: 0108 | C129: Egg Harbor Township | D129: Atlantic | E129: Egg Harbor Township, Atlantic County | F129: Egg Harbor Township | G129: Egg Harbor | H129: Township | I129: Committeepersons | J129: 5 Committee Members | K129: 43,323
A130: 129 | B130: 2004 | C130: Elizabeth City | D130: Union | E130: Elizabeth City, Union County | F130: Elizabeth | G130: Elizabeth | H130: City | I130: Council Members | J130: Mayor-9 Council Members | K130: 124,969
A131: 130 | B131: 0804 | C131: Elk Township | D131: Gloucester | E131: Elk Township, Gloucester County | F131: Elk Township | G131: Elk | H131: Township | I131: Committeepersons | J131: 5 Committee Members | K131: 4,216
A132: 131 | B132: 1702 | C132: Elmer Borough | D132: Salem | E132: Elmer Borough, Salem County | F132: Elmer | G132: Elmer | H132: Borough | I132: Council Members | J132: Mayor-6 Council Members | K132: 1,395
A133: =A132+1 -> 132 | B133: 0211 | C133: Elmwood Park Borough | D133: Bergen | E133: Elmwood Park Borough, Bergen County | F133: Elmwood Park | G133: Elmwood Park | H133: Borough | I133: Council Members | J133: Mayor-6 Council Members | K133: 19,403
A134: 133 | B134: 1703 | C134: Elsinboro Township | D134: Salem | E134: Elsinboro Township, Salem County | F134: Elsinboro Township | G134: Elsinboro | H134: Township | I134: Committeepersons | J134: 3 Committee Members | K134: 1,036
A135: 134 | B135: 0214 | C135: Emerson Borough | D135: Bergen | E135: Emerson Borough, Bergen County | F135: Emerson | G135: Emerson | H135: Borough | I135: Council Members | J135: Mayor-6 Council Members | K135: 7,401
A136: 135 | B136: 0215 | C136: Englewood City | D136: Bergen | E136: Englewood City, Bergen County | F136: Englewood | G136: Englewood | H136: City | I136: Council Members | J136: Mayor-5 Council Members | K136: 27,147
A137: 136 | B137: 0216 | C137: Englewood Cliffs Borough | D137: Bergen | E137: Englewood Cliffs Borough, Bergen County | F137: Englewood Cliffs | G137: Englewood Cliffs | H137: Borough | I137: Council Members | J137: Mayor-6 Council Members | K137: 5,281
A138: 137 | B138: 1312 | C138: Englishtown Borough | D138: Monmouth | E138: Englishtown Borough, Monmouth County | F138: Englishtown | G138: Englishtown | H138: Borough | I138: Council Members | J138: Mayor-6 Council Members | K138: 1,847
A139: 138 | B139: 0706 | C139: Essex Fells Township | D139: Essex | E139: Essex Fells Township, Essex County | F139: Essex Fells Township | G139: Essex Fells | H139: Township | I139: Council Members | J139: Mayor-6 Council Members | K139: 2,113
A140: 139 | B140: 0109 | C140: Estell Manor City | D140: Atlantic | E140: Estell Manor City, Atlantic County | F140: Estell Manor | G140: Estell Manor | H140: City | I140: Council Members | J140: 5 Council Members | K140: 1,735
A141: 140 | B141: 0313 | C141: Evesham Township | D141: Burlington | E141: Evesham Township, Burlington County | F141: Evesham Township | G141: Evesham | H141: Township | I141: Council Members | J141: Mayor-4 Council Members | K141: 45,538
A142: 141 | B142: 1102 | C142: Ewing Township | D142: Mercer | E142: Ewing Township, Mercer County | F142: Ewing Township | G142: Ewing | H142: Township | I142: Council Members | J142: Mayor-5 Council Members | K142: 35,790
A143: 142 | B143: 1313 | C143: Fair Haven Borough | D143: Monmouth | E143: Fair Haven Borough, Monmouth County | F143: Fair Haven | G143: Fair Haven | H143: Borough | I143: Council Members | J143: Mayor-6 Council Members | K143: 6,121
A144: 143 | B144: 0217 | C144: Fair Lawn Borough | D144: Bergen | E144: Fair Lawn Borough, Bergen County | F144: Fair Lawn | G144: Fair Lawn | H144: Borough | I144: Council Members | J144: 5 Council Members | K144: 32,457
A145: 144 | B145: 0605 | C145: Fairfield Township | D145: Cumberland | E145: Fairfield Township, Cumberland County | F145: Fairfield Township | G145: Fairfield | H145: Township | I145: Committeepersons | J145: 5 Committee Members | K145: 6,295
A146: 145 | B146: 0707 | C146: Fairfield Township | D146: Essex | E146: Fairfield Township, Essex County | F146: Fairfield Township | G146: Fairfield | H146: Township | I146: Council Members | J146: Mayor-4 Council Members | K146: 7,466
A147: 146 | B147: 0218 | C147: Fairview Borough | D147: Bergen | E147: Fairview Borough, Bergen County | F147: Fairview | G147: Fairview | H147: Borough | I147: Council Members | J147: Mayor-6 Council Members | K147: 13,835
A148: 147 | B148: 2005 | C148: Fanwood Borough | D148: Union | E148: Fanwood Borough, Union County | F148: Fanwood | G148: Fanwood | H148: Borough | I148: Council Members | J148: Mayor-6 Council Members | K148: 7,318
A149: 148 | B149: 1807 | C149: Far Hills Borough | D149: Somerset | E149: Far Hills Borough, Somerset County | F149: Far Hills | G149: Far Hills | H149: Borough | I149: Council Members | J149: Mayor-6 Council Members | K149: 919
A150: 149 | B150: 1314 | C150: Farmingdale Borough | D150: Monmouth | E150: Farmingdale Borough, Monmouth County | F150: Farmingdale | G150: Farmingdale | H150: Borough | I150: Council Members | J150: Mayor-6 Council Members | K150: 1,329
A151: 150 | B151: 0314 | C151: Fieldsboro Borough | D151: Burlington | E151: Fieldsboro Borough, Burlington County | F151: Fieldsboro | G151: Fieldsboro | H151: Borough | I151: Council Members | J151: Mayor-6 Council Members | K151: 540
A152: 151 | B152: 1009 | C152: Flemington Borough | D152: Hunterdon | E152: Flemington Borough, Hunterdon County | F152: Flemington | G152: Flemington | H152: Borough | I152: Council Members | J152: Mayor-6 Council Members | K152: 4,581
A153: 152 | B153: 0315 | C153: Florence Township | D153: Burlington | E153: Florence Township, Burlington County | F153: Florence Township | G153: Florence | H153: Township | I153: Council Members | J153: Mayor-5 Council Members | K153: 12,109
A154: 153 | B154: 1411 | C154: Florham Park Borough | D154: Morris | E154: Florham Park Borough, Morris County | F154: Florham Park | G154: Florham Park | H154: Borough | I154: Council Members | J154: Mayor-6 Council Members | K154: 11,696
A155: 154 | B155: 0110 | C155: Folsom Borough | D155: Atlantic | E155: Folsom Borough, Atlantic County | F155: Folsom | G155: Folsom | H155: Borough | I155: Council Members | J155: Mayor-6 Council Members | K155: 1,885
A156: 155 | B156: 0219 | C156: Fort Lee Borough | D156: Bergen | E156: Fort Lee Borough, Bergen County | F156: Fort Lee | G156: Fort Lee | H156: Borough | I156: Council Members | J156: Mayor-6 Council Members | K156: 35,345
A157: 156 | B157: 1905 | C157: Frankford Township | D157: Sussex | E157: Frankford Township, Sussex County | F157: Frankford Township | G157: Frankford | H157: Township | I157: Committeepersons | J157: 3 Committee Members | K157: 5,565
A158: 157 | B158: 1906 | C158: Franklin Borough | D158: Sussex | E158: Franklin Borough, Sussex County | F158: Franklin | G158: Franklin | H158: Borough | I158: Council Members | J158: Mayor-6 Council Members | K158: 5,045
A159: 158 | B159: 0220 | C159: Franklin Lakes Borough | D159: Bergen | E159: Franklin Lakes Borough, Bergen County | F159: Franklin Lakes | G159: Franklin Lakes | H159: Borough | I159: Council Members | J159: Mayor-6 Council Members | K159: 10,590
A160: 159 | B160: 0805 | C160: Franklin Township | D160: Gloucester | E160: Franklin Township, Gloucester County | F160: Franklin Township | G160: Franklin | H160: Township | I160: Committeepersons | J160: 5 Committee Members | K160: 16,820
A161: 160 | B161: 1010 | C161: Franklin Township | D161: Hunterdon | E161: Franklin Township, Hunterdon County | F161: Franklin Township | G161: Franklin | H161: Township | I161: Committeepersons | J161: 5 Committee Members | K161: 3,195
A162: 161 | B162: 1808 | C162: Franklin Township | D162: Somerset | E162: Franklin Township, Somerset County | F162: Franklin Township | G162: Franklin | H162: Township | I162: Council Members | J162: Mayor-8 Council Members | K162: 62,300
A163: 162 | B163: 2105 | C163: Franklin Township | D163: Warren | E163: Franklin Township, Warren County | F163: Franklin Township | G163: Franklin | H163: Township | I163: Committeepersons | J163: 5 Committee Members | K163: 3,176
A164: 163 | B164: 1907 | C164: Fredon Township | D164: Sussex | E164: Fredon Township, Sussex County | F164: Fredon Township | G164: Fredon | H164: Township | I164: Committeepersons | J164: 5 Committee Members | K164: 3,437
A165: 164 | B165: 1315 | C165: Freehold Borough | D165: Monmouth | E165: Freehold Borough, Monmouth County | F165: Freehold | G165: Freehold | H165: Borough | I165: Council Members | J165: Mayor-6 Council Members | K165: 12,052
A166: 165 | B166: 1316 | C166: Freehold Township | D166: Monmouth | E166: Freehold Township, Monmouth County | F166: Freehold Township | G166: Freehold | H166: Township | I166: Committeepersons | J166: 5 Committee Members | K166: 36,184
A167: 166 | B167: 2106 | C167: Frelinghuysen Township | D167: Warren | E167: Frelinghuysen Township, Warren County | F167: Frelinghuysen Township | G167: Frelinghuysen | H167: Township | I167: Committeepersons | J167: 3 Committee Members | K167: 2,230
A168: 167 | B168: 1011 | C168: Frenchtown Borough | D168: Hunterdon | E168: Frenchtown Borough, Hunterdon County | F168: Frenchtown | G168: Frenchtown | H168: Borough | I168: Council Members | J168: Mayor-6 Council Members | K168: 1,373
A169: 168 | B169: 0111 | C169: Galloway Township | D169: Atlantic | E169: Galloway Township, Atlantic County | F169: Galloway Township | G169: Galloway | H169: Township | I169: Council Members | J169: 7 Council Members | K169: 37,349
A170: 169 | B170: 0221 | C170: Garfield City | D170: Bergen | E170: Garfield City, Bergen County | F170: Garfield | G170: Garfield | H170: City | I170: Council Members | J170: 5 Council Members | K170: 30,487
A171: 170 | B171: 2006 | C171: Garwood Borough | D171: Union | E171: Garwood Borough, Union County | F171: Garwood | G171: Garwood | H171: Borough | I171: Council Members | J171: Mayor-6 Council Members | K171: 4,226
A172: 171 | B172: 0413 | C172: Gibbsboro Borough | D172: Camden | E172: Gibbsboro Borough, Camden County | F172: Gibbsboro | G172: Gibbsboro | H172: Borough | I172: Council Members | J172: Mayor-6 Council Members | K172: 2,274
A173: 172 | B173: 0806 | C173: Glassboro Borough | D173: Gloucester | E173: Glassboro Borough, Gloucester County | F173: Glassboro | G173: Glassboro | H173: Borough | I173: Council Members | J173: Mayor-6 Council Members | K173: 18,579
A174: 173 | B174: 1012 | C174: Glen Gardner Borough | D174: Hunterdon | E174: Glen Gardner Borough, Hunterdon County | F174: Glen Gardner | G174: Glen Gardner | H174: Borough | I174: Council Members | J174: Mayor-6 Council Members | K174: 1,704
A175: 174 | B175: 0708 | C175: Glen Ridge Borough | D175: Essex | E175: Glen Ridge Borough, Essex County | F175: Glen Ridge | G175: Glen Ridge | H175: Borough | I175: Council Members | J175: Mayor-6 Council Members | K175: 7,527
A176: 175 | B176: 0222 | C176: Glen Rock Borough | D176: Bergen | E176: Glen Rock Borough, Bergen County | F176: Glen Rock | G176: Glen Rock | H176: Borough | I176: Council Members | J176: Mayor-6 Council Members | K176: 11,601
A177: 176 | B177: 0414 | C177: Gloucester City City | D177: Camden | E177: Gloucester City City, Camden County | F177: Gloucester City | G177: Gloucester City | H177: City | I177: Council Members | J177: Mayor-6 Council Members | K177: 11,456
A178: 177 | B178: 0415 | C178: Gloucester Township | D178: Camden | E178: Gloucester Township, Camden County | F178: Gloucester Township | G178: Gloucester | H178: Township | I178: Council Members | J178: Mayor-7 Council Members | K178: 64,634
A179: 178 | B179: 1809 | C179: Green Brook Township | D179: Somerset | E179: Green Brook Township, Somerset County | F179: Green Brook Township | G179: Green Brook | H179: Township | I179: Committeepersons | J179: 5 Committee Members | K179: 7,203
A180: 179 | B180: 1908 | C180: Green Township | D180: Sussex | E180: Green Township, Sussex County | F180: Green Township | G180: Green | H180: Township | I180: Committeepersons | J180: 5 Committee Members | K180: 3,601
A181: 180 | B181: 0606 | C181: Greenwich Township | D181: Cumberland | E181: Greenwich Township, Cumberland County | F181: Greenwich Township | G181: Greenwich | H181: Township | I181: Committeepersons | J181: 3 Committee Members | K181: 804
A182: 181 | B182: 0807 | C182: Greenwich Township | D182: Gloucester | E182: Greenwich Township, Gloucester County | F182: Greenwich Township | G182: Greenwich | H182: Township | I182: Council Members | J182: Mayor-4 Council Members | K182: 4,899
A183: 182 | B183: 2107 | C183: Greenwich Township | D183: Warren | E183: Greenwich Township, Warren County | F183: Greenwich Township | G183: Greenwich | H183: Township | I183: Committeepersons | J183: 5 Committee Members | K183: 5,712
A184: 183 | B184: 0903 | C184: Guttenberg Town | D184: Hudson | E184: Guttenberg Town, Hudson County | F184: Guttenberg | G184: Guttenberg | H184: Town | I184: Council Members | J184: Mayor-5 Council Members | K184: 11,176
A185: 184 | B185: 0223 | C185: Hackensack City | D185: Bergen | E185: Hackensack City, Bergen County | F185: Hackensack | G185: Hackensack | H185: City | I185: Council Members | J185: 5 Council Members | K185: 43,010
A186: 185 | B186: 2108 | C186: Hackettstown Town | D186: Warren | E186: Hackettstown Town, Warren County | F186: Hackettstown | G186: Hackettstown | H186: Town | I186: Council Members | J186: Mayor-6 Council Members | K186: 9,724
A187: 186 | B187: 0418 | C187: Haddon Heights Borough | D187: Camden | E187: Haddon Heights Borough, Camden County | F187: Haddon Heights | G187: Haddon Heights | H187: Borough | I187: Council Members | J187: Mayor-6 Council Members | K187: 7,473
A188: 187 | B188: 0416 | C188: Haddon Township | D188: Camden | E188: Haddon Township, Camden County | F188: Haddon Township | G188: Haddon | H188: Township | I188: Commissioners | J188: 3 Commissioners | K188: 14,707
A189: 188 | B189: 0417 | C189: Haddonfield Borough | D189: Camden | E189: Haddonfield Borough, Camden County | F189: Haddonfield | G189: Haddonfield | H189: Borough | I189: Commissioners | J189: 3 Commissioners | K189: 11,593
A190: 189 | B190: 0316 | C190: Hainesport Township | D190: Burlington | E190: Hainesport Township, Burlington County | F190: Hainesport Township | G190: Hainesport | H190: Township | I190: Committeepersons | J190: 5 Committee Members | K190: 6,110
A191: 190 | B191: 1603 | C191: Haledon Borough | D191: Passaic | E191: Haledon Borough, Passaic County | F191: Haledon | G191: Haledon | H191: Borough | I191: Council Members | J191: Mayor-6 Council Members | K191: 8,318
A192: 191 | B192: 1909 | C192: Hamburg Borough | D192: Sussex | E192: Hamburg Borough, Sussex County | F192: Hamburg | G192: Hamburg | H192: Borough | I192: Council Members | J192: Mayor-6 Council Members | K192: 3,277
A193: 192 | B193: 0112 | C193: Hamilton Township | D193: Atlantic | E193: Hamilton Township, Atlantic County | F193: Hamilton Township | G193: Hamilton | H193: Township | I193: Committeepersons | J193: 5 Committee Members | K193: 26,503
A194: 193 | B194: 1103 | C194: Hamilton Township | D194: Mercer | E194: Hamilton Township, Mercer County | F194: Hamilton Township | G194: Hamilton | H194: Township | I194: Council Members | J194: Mayor-5 Council Members | K194: 88,464
A195: 194 | B195: 0113 | C195: Hammonton Township | D195: Atlantic | E195: Hammonton Township, Atlantic County | F195: Hammonton Township | G195: Hammonton | H195: Township | I195: Council Members | J195: Mayor-6 Council Members | K195: 14,791
A196: 195 | B196: 1013 | C196: Hampton Borough | D196: Hunterdon | E196: Hampton Borough, Hunterdon County | F196: Hampton | G196: Hampton | H196: Borough | I196: Council Members | J196: Mayor-6 Council Members | K196: 1,401
A197: =A196+1 -> 196 | B197: 1910 | C197: Hampton Township | D197: Sussex | E197: Hampton Township, Sussex County | F197: Hampton Township | G197: Hampton | H197: Township | I197: Committeepersons | J197: 5 Committee Members | K197: 5,196
A198: 197 | B198: 1412 | C198: Hanover Township | D198: Morris | E198: Hanover Township, Morris County | F198: Hanover Township | G198: Hanover | H198: Township | I198: Committeepersons | J198: 5 Committee Members | K198: 13,712
A199: 198 | B199: 1413 | C199: Harding Township | D199: Morris | E199: Harding Township, Morris County | F199: Harding Township | G199: Harding | H199: Township | I199: Committeepersons | J199: 5 Committee Members | K199: 3,838
A200: 199 | B200: 2109 | C200: Hardwick Township | D200: Warren | E200: Hardwick Township, Warren County | F200: Hardwick Township | G200: Hardwick | H200: Township | I200: Committeepersons | J200: 3 Committee Members | K200: 1,696
... 367 more rows

Sheet Revenue Codes (hidden)
A1: Tabs 4, 4a, 4b, 4c | B1: Tab 5 | C1: Tab 6 | D1: Tab 7, 7a, 7b | E1: Tab 8 | F1: Tabs 10 through 10n
A2: 08-103 | B2: 09-203 | C2: 08-160 | D2: 11-102 | E2: 08-100 | F2: 08-100
A3: 08-104 | B3: 09-204 | C3: 08-161 | D3: 11-103 | E3: 08-103 | F3: 08-103
A4: 08-105 | B4: 09-206 | C4: 08-162 | D4: 11-104 | E4: 08-104 | F4: 08-104
A5: 08-107 | B5: 09-207 | D5: 11-105 | E5: 08-105 | F5: 08-105
A6: 08-108 | B6: 09-208 | D6: 11-106 | E6: 08-106 | F6: 08-106
A7: 08-109 | B7: 09-209 | D7: 11-107 | E7: 08-107 | F7: 08-107
A8: 08-110 | B8: 09-210 | D8: 11-108 | E8: 08-108 | F8: 08-108
A9: 08-111 | B9: 09-213 | D9: 11-109 | E9: 08-109 | F9: 08-109
A10: 08-112 | B10: 09-214 | D10: 11-110 | E10: 08-110 | F10: 08-110
A11: 08-113 | B11: 09-215 | D11: 11-111 | E11: 08-111 | F11: 08-111
A12: 08-114 | B12: 09-221 | D12: 11-112 | E12: 08-112 | F12: 08-112
A13: 08-115 | D13: 11-113 | E13: 08-113 | F13: 08-113
A14: 08-118 | D14: 11-114 | E14: 08-114 | F14: 08-114
A15: 08-120 | D15: 11-115 | E15: 08-115 | F15: 08-115
A16: 08-123 | D16: 11-116 | E16: 08-116 | F16: 08-116
A17: 08-125 | D17: 11-117 | E17: 08-117 | F17: 08-117
A18: 08-129 | D18: 11-118 | E18: 08-118 | F18: 08-118
A19: 08-134 | D19: 11-119 | E19: 08-120 | F19: 08-120
A20: 08-135 | D20: 11-120 | E20: 08-122 | F20: 08-122
A21: 08-146 | D21: 11-121 | E21: 08-123 | F21: 08-123
A22: 08-210 | D22: 11-122 | E22: 08-124 | F22: 08-124
A23: 08-229 | D23: 11-123 | E23: 08-125 | F23: 08-125
A24: 08-230 | D24: 11-124 | E24: 08-126 | F24: 08-126
A25: 08-231 | D25: 11-125 | E25: 08-129 | F25: 08-129
A26: 08-232 | E26: 08-130 | F26: 08-130
A27: 08-233 | E27: 08-132 | F27: 08-132
A28: 08-234 | E28: 08-133 | F28: 08-133
A29: 08-235 | E29: 08-134 | F29: 08-134
A30: 08-236 | E30: 08-135 | F30: 08-135
A31: 08-237 | E31: 08-146 | F31: 08-146
A32: 08-238 | E32: 08-210 | F32: 08-210
A33: 08-239 | E33: 08-225 | F33: 08-225
E34: 08-227 | F34: 08-227
E35: 08-228 | F35: 08-228
E36: 08-240 | F36: 08-240
E37: 08-241 | F37: 08-241
E38: 08-242 | F38: 08-242
E39: 08-243 | F39: 08-243
E40: 08-244 | F40: 08-244
E41: 08-245 | F41: 08-245
E42: 08-246 | F42: 08-246
E43: 08-247 | F43: 08-247
E44: 08-248 | F44: 08-248
E45: 08-249 | F45: 08-249
E46: 08-250 | F46: 08-250

Sheet Appropriation Codes (hidden)
A1: Tabs 12 through 15n | B1: Tabs 16, 16a | C1: Tabs 17 and 17a | D1: Tabs 18 and 18a | E1: Tab 19 | F1: Tabs 20 and 20a | G1: Tab 21 | H1: Tabs 22, 22a, 22b | I1: Tab 23 | J1: Tabs 26 and 26a | K1: Tabs 27 and 27a | L1: Tab 28
A2: 20-100 | B2: 22-196 | C2: 30-411 | D2: 30-410 | E2: 36-473 | F2: 20-150 | G2: 22-900 | H2: 42-102 | I2: 20-100 | J2: 44-903 | K2: 45-940 | L2: 46-855
A3: 20-101 | B3: 22-197 | C3: 30-412 | D3: 46-855 | E3: 36-476 | F3: 21-191 | H3: 42-103 | I3: 20-101 | J3: 44-904 | K3: 45-941 | L3: 46-870
A4: 20-102 | B4: 22-198 | C4: 30-413 | D4: 46-860 | F4: 23-210 | H4: 42-104 | I4: 20-102 | J4: 44-905 | K4: 45-942 | L4: 46-875
A5: 20-103 | B5: 22-199 | C5: 30-414 | D5: 46-861 | F5: 23-215 | H5: 42-105 | I5: 20-103 | K5: 45-943 | L5: 46-880
A6: 20-104 | B6: 22-200 | C6: 30-415 | D6: 46-862 | F6: 23-221 | H6: 42-106 | I6: 20-104 | K6: 45-944 | L6: 46-892
A7: 20-105 | B7: 22-201 | C7: 30-420 | D7: 46-863 | F7: 25-251 | H7: 42-107 | I7: 20-105 | L7: 46-896
A8: 20-110 | B8: 22-202 | C8: 30-425 | D8: 46-864 | F8: 25-286 | H8: 42-108 | I8: 20-110
A9: 20-120 | B9: 22-203 | C9: 30-429 | D9: 46-861 | F9: 26-298 | H9: 42-109 | I9: 20-120
A10: 20-130 | B10: 22-204 | C10: 31-430 | D10: 46-894 | F10: 26-305 | H10: 42-110 | I10: 20-130
A11: 20-135 | B11: 22-205 | C11: 31-435 | D11: 46-895 | F11: 29-390 | H11: 42-111 | I11: 20-135
A12: 20-140 | B12: 22-206 | C12: 31-440 | F12: 29-391 | H12: 42-112 | I12: 20-140
A13: 20-145 | B13: 22-207 | C13: 31-445 | F13: 29-393 | H13: 42-113 | I13: 20-145
A14: 20-150 | B14: 22-208 | C14: 31-446 | F14: 29-394 | H14: 42-114 | I14: 20-150
A15: 20-155 | B15: 22-209 | C15: 31-447 | F15: 30-426 | H15: 42-115 | I15: 20-155
A16: 20-160 | B16: 31-430 | C16: 31-450 | F16: 30-427 | H16: 42-116 | I16: 20-160
A17: 20-165 | B17: 31-435 | C17: 31-455 | F17: 30-428 | H17: 42-117 | I17: 20-165
A18: 20-170 | B18: 31-440 | C18: 31-460 | F18: 30-430 | H18: 42-118 | I18: 20-170
A19: 20-175 | B19: 31-445 | C19: 32-465 | F19: 31-456 | H19: 42-119 | I19: 20-175
A20: 21-180 | B20: 31-446 | F20: 31-460 | H20: 42-120 | I20: 21-180
A21: 21-181 | B21: 31-447 | F21: 32-465 | H21: 42-121 | I21: 21-181
A22: 21-182 | B22: 31-450 | F22: 36-471 | H22: 42-122 | I22: 21-182
A23: 21-183 | B23: 31-455 | F23: 36-475 | H23: 42-123 | I23: 21-183
A24: 21-184 | B24: 31-460 | F24: 43-490 | H24: 42-124 | I24: 21-184
A25: 21-185 | B25: 32-465 | H25: 42-125 | I25: 21-185
A26: 21-190 | I26: 21-190
A27: 22-196 | I27: 22-196
A28: 22-197 | I28: 22-197
A29: 22-198 | I29: 22-198
A30: 22-199 | I30: 22-199
A31: 22-200 | I31: 22-200
A32: 22-201 | I32: 22-201
A33: 22-202 | I33: 22-202
A34: 22-203 | I34: 22-203
A35: 22-204 | I35: 22-204
A36: 22-205 | I36: 22-205
A37: 22-206 | I37: 22-206
A38: 22-207 | I38: 22-207
A39: 22-208 | I39: 22-208
A40: 22-209 | I40: 22-209
A41: 23-210 | I41: 23-210
A42: 23-211 | I42: 23-211
A43: 23-215 | I43: 23-215
A44: 23-220 | I44: 23-220
A45: 23-222 | I45: 23-222
A46: 23-225 | I46: 23-225
A47: 25-240 | I47: 25-240
A48: 25-241 | I48: 25-241
A49: 25-242 | I49: 25-242
A50: 25-243 | I50: 25-243
A51: 25-244 | I51: 25-244
A52: 25-245 | I52: 25-245
A53: 25-250 | I53: 25-250
A54: 25-252 | I54: 25-252
A55: 25-255 | I55: 25-255
A56: 25-260 | I56: 25-260
A57: 25-261 | I57: 25-261
A58: 25-265 | I58: 25-265
A59: 25-275 | I59: 25-275
A60: 25-280 | I60: 25-280
A61: 25-280 | I61: 25-280
A62: 26-290 | I62: 26-290
A63: 26-291 | I63: 26-291
A64: 26-292 | I64: 26-292
A65: 26-293 | I65: 26-293
A66: 26-294 | I66: 26-294
A67: 26-295 | I67: 26-295
A68: 26-297 | I68: 26-297
A69: 26-300 | I69: 26-300
A70: 26-305 | I70: 26-305
A71: 26-310 | I71: 26-310
A72: 26-315 | I72: 26-315
A73: 26-320 | I73: 26-320
A74: 26-325 | I74: 26-325
A75: 27-330 | I75: 27-330
A76: 27-331 | I76: 27-331
A77: 27-332 | I77: 27-332
A78: 27-333 | I78: 27-333
A79: 27-334 | I79: 27-334
A80: 27-335 | I80: 27-335
A81: 27-340 | I81: 27-340
A82: 27-365 | I82: 27-365
A83: 28-370 | I83: 28-370
A84: 28-371 | I84: 28-371
A85: 28-372 | I85: 28-372
A86: 28-373 | I86: 28-373
A87: 28-374 | I87: 28-374
A88: 28-375 | I88: 28-375
A89: 28-380 | I89: 28-380
A90: 29-392 | I90: 29-392
A91: 31-430 | I91: 31-430
A92: 31-435 | I92: 31-435
A93: 31-440 | I93: 31-440
A94: 31-445 | I94: 31-445
A95: 31-446 | I95: 31-446
A96: 31-447 | I96: 31-447
A97: 31-450 | I97: 31-450
A98: 31-455 | I98: 31-455
A99: 31-460 | I99: 31-460
A100: 32-465 | I100: 32-465
A101: 43-490 | I101: 43-490
A102: 43-495 | I102: 43-495

Sheet Other Codes (hidden)
A1: Grants | B1: All 9 | C1: all 24,25 | D1: Utility | E1: Revenues | F1: 31 | G1: 31 (20-24) | H1: Appropriations | I1: 32, 32a | J1: 32b | K1: 33 | L1: Open Space | M1: 43 (Rev) | N1: 43 (App) | O1: Arts | P1: 44 | Q1: 44
B2: 10-501 | C2: 40-501 | F2: 08-504 | G2: 08-520 | I2: 55-501 | J2: 55-501 | K2: 55-543 | M2: 54-114 | N2: 54-940 | P2: 56-102 | Q2: 56-901
B3: 10-502 | C3: 40-502 | F3: 08-506 | I3: 55-502 | J3: 55-502 | K3: 55-544 | M3: 54-124 | N3: 54-945 | P3: 56-103 | Q3: 56-902
B4: 10-503 | C4: 40-503 | F4: 08-507 | I4: 55-503 | J4: 55-503 | K4: 55-550 | M4: 54-176 | P4: 56-104 | Q4: 56-903
B5: 10-504 | C5: 40-504 | F5: 08-508 | I5: 55-504 | J5: 55-504 | M5: 54-211 | P5: 56-105 | Q5: 56-904
B6: 10-505 | C6: 40-505 | F6: 08-509 | I6: 55-505 | J6: 55-505 | P6: 56-106 | Q6: 56-905
B7: 10-506 | C7: 40-506 | F7: 08-510 | J7: 55-513 | P7: 56-107 | Q7: 56-906
B8: 10-507 | C8: 40-507 | F8: 08-511 | J8: 55-514 | P8: 56-108 | Q8: 56-907
B9: 10-508 | C9: 40-508 | F9: 08-512 | J9: 55-515 | P9: 56-109 | Q9: 56-908
B10: 10-509 | C10: 40-509 | F10: 08-515 | J10: 55-524 | P10: 56-110 | Q10: 56-909
B11: 10-510 | C11: 40-510 | F11: 08-740 | J11: 55-525 | P11: 56-111 | Q11: 56-910
B12: 10-511 | C12: 40-511 | P12: 56-112 | Q12: 56-911
B13: 10-512 | C13: 40-512 | Q13: 56-912
B14: 10-513 | C14: 40-513 | Q14: 56-913
B15: 10-514 | C15: 40-514 | Q15: 56-914
B16: 10-515 | C16: 40-515 | Q16: 56-915
B17: 10-516 | C17: 40-516 | Q17: 56-916
B18: 10-517 | C18: 40-517 | Q18: 56-917
B19: 10-518 | C19: 40-518 | Q19: 56-918
B20: 10-519 | C20: 40-519 | Q20: 56-919
B21: 10-520 | C21: 40-520 | Q21: 56-920
B22: 10-521 | C22: 40-521
B23: 10-522 | C23: 40-522
B24: 10-523 | C24: 40-523
B25: 10-524 | C25: 40-524
B26: 10-525 | C26: 40-525
B27: 10-526 | C27: 40-526
B28: 10-527 | C28: 40-527
B29: 10-528 | C29: 40-528
B30: 10-529 | C30: 40-529
B31: 10-530 | C31: 40-530
B32: 10-531 | C32: 40-531
B33: 10-532 | C33: 40-532
B34: 10-533 | C34: 40-533
B35: 10-534 | C35: 40-534
B36: 10-535 | C36: 40-535
B37: 10-536 | C37: 40-536
B38: 10-537 | C38: 40-537
B39: 10-538 | C39: 40-538
B40: 10-539 | C40: 40-539
B41: 10-540 | C41: 40-540
B42: 10-541 | C42: 40-541
B43: 10-542 | C43: 40-542
B44: 10-543 | C44: 40-543
B45: 10-544 | C45: 40-544
B46: 10-545 | C46: 40-545
B47: 10-546 | C47: 40-546
B48: 10-547 | C48: 40-547
B49: 10-548 | C49: 40-548
B50: 10-549 | C50: 40-549
B51: 10-550 | C51: 40-550
B52: 10-551 | C52: 40-551
B53: 10-552 | C53: 40-552
B54: 10-553 | C54: 40-553
B55: 10-554 | C55: 40-554
B56: 10-555 | C56: 40-555
B57: 10-556 | C57: 40-556
B58: 10-557 | C58: 40-557
B59: 10-558 | C59: 40-558
B60: 10-559 | C60: 40-559
B61: 10-560 | C61: 40-560
B62: 10-561 | C62: 40-561
B63: 10-562 | C63: 40-562
B64: 10-563 | C64: 40-563
B65: 10-564 | C65: 40-564
B66: 10-565 | C66: 40-565
B67: 10-566 | C67: 40-566
B68: 10-567 | C68: 40-567
B69: 10-568 | C69: 40-568
B70: 10-569 | C70: 40-569
B71: 10-570 | C71: 40-570
B72: 10-571 | C72: 40-571
B73: 10-572 | C73: 40-572
B74: 10-573 | C74: 40-573
B75: 10-574 | C75: 40-574
B76: 10-575 | C76: 40-575
B77: 10-576 | C77: 40-576
B78: 10-577 | C78: 40-577
B79: 10-578 | C79: 40-578
B80: 10-579 | C80: 40-579
B81: 10-580 | C81: 40-580
B82: 10-581 | C82: 40-581
B83: 10-582 | C83: 40-582
B84: 10-583 | C84: 40-583
B85: 10-584 | C85: 40-584
B86: 10-585 | C86: 40-585
B87: 10-586 | C87: 40-586
B88: 10-587 | C88: 40-587
B89: 10-588 | C89: 40-588
B90: 10-589 | C90: 40-589
B91: 10-590 | C91: 40-590
B92: 10-591 | C92: 40-591
B93: 10-592 | C93: 40-592
B94: 10-593 | C94: 40-593
B95: 10-594 | C95: 40-594
B96: 10-595 | C96: 40-595
B97: 10-596 | C97: 40-596
B98: 10-597 | C98: 40-597
B99: 10-598 | C99: 40-598
B100: 10-599 | C100: 40-599
B101: 10-600 | C101: 40-600
B102: 10-601 | C102: 40-601
B103: 10-602 | C103: 40-602
B104: 10-603 | C104: 40-603
B105: 10-604 | C105: 40-604
B106: 10-605 | C106: 40-605
B107: 10-606 | C107: 40-606
B108: 10-607 | C108: 40-607
B109: 10-608 | C109: 40-608
B110: 10-609 | C110: 40-609
B111: 10-610 | C111: 40-610
B112: 10-611 | C112: 40-611
B113: 10-612 | C113: 40-612
B114: 10-613 | C114: 40-613
B115: 10-614 | C115: 40-614
B116: 10-615 | C116: 40-615
B117: 10-616 | C117: 40-616
B118: 10-617 | C118: 40-617
B119: 10-618 | C119: 40-618
B120: 10-619 | C120: 40-619
B121: 10-620 | C121: 40-620
B122: 10-621 | C122: 40-621
B123: 10-622 | C123: 40-622
B124: 10-623 | C124: 40-623
B125: 10-624 | C125: 40-624
B126: 10-625 | C126: 40-625
B127: 10-626 | C127: 40-626
B128: 10-627 | C128: 40-627
B129: 10-628 | C129: 40-628
B130: 10-629 | C130: 40-629
B131: 10-630 | C131: 40-630
B132: 10-631 | C132: 40-631
B133: 10-632 | C133: 40-632
B134: 10-633 | C134: 40-633
B135: 10-634 | C135: 40-634
B136: 10-635 | C136: 40-635
B137: 10-636 | C137: 40-636
B138: 10-637 | C138: 40-637
B139: 10-638 | C139: 40-638
B140: 10-639 | C140: 40-639
B141: 10-640 | C141: 40-640
B142: 10-641 | C142: 40-641
B143: 10-642 | C143: 40-642
B144: 10-643 | C144: 40-643
B145: 10-644 | C145: 40-644
B146: 10-645 | C146: 40-645
B147: 10-646 | C147: 40-646
B148: 10-647 | C148: 40-647
B149: 10-648 | C149: 40-648
B150: 10-649 | C150: 40-649
B151: 10-650 | C151: 40-650
B152: 10-651 | C152: 40-651
B153: 10-652 | C153: 40-652
B154: 10-653 | C154: 40-653
B155: 10-654 | C155: 40-654
B156: 10-655 | C156: 40-655
B157: 10-656 | C157: 40-656
B158: 10-657 | C158: 40-657
B159: 10-658 | C159: 40-658
B160: 10-659 | C160: 40-659
B161: 10-660 | C161: 40-660
B162: 10-661 | C162: 40-661
B163: 10-662 | C163: 40-662
B164: 10-663 | C164: 40-663
B165: 10-664 | C165: 40-664
B166: 10-665 | C166: 40-665
B167: 10-666 | C167: 40-666
B168: 10-667 | C168: 40-667
B169: 10-668 | C169: 40-668
B170: 10-669 | C170: 40-669
B171: 10-670 | C171: 40-670
B172: 10-671 | C172: 40-671
B173: 10-672 | C173: 40-672
B174: 10-673 | C174: 40-673
B175: 10-674 | C175: 40-674
B176: 10-675 | C176: 40-675
B177: 10-676 | C177: 40-676
B178: 10-677 | C178: 40-677
B179: 10-678 | C179: 40-678
B180: 10-679 | C180: 40-679
B181: 10-680 | C181: 40-680
B182: 10-681 | C182: 40-681
B183: 10-682 | C183: 40-682
B184: 10-683 | C184: 40-683
B185: 10-684 | C185: 40-684
B186: 10-685 | C186: 40-685
B187: 10-686 | C187: 40-686
B188: 10-687 | C188: 40-687
B189: 10-688 | C189: 40-688
B190: 10-689 | C190: 40-689
B191: 10-690 | C191: 40-690
B192: 10-691 | C192: 40-691
B193: 10-692 | C193: 40-692
B194: 10-693 | C194: 40-693
B195: 10-694 | C195: 40-694
B196: 10-695 | C196: 40-695
B197: 10-696 | C197: 40-696
B198: 10-697 | C198: 40-697
B199: 10-698 | C199: 40-698
B200: 10-699 | C200: 40-699
... 582 more rows

Sheet Ranges (hidden)
A1: SeventeenA | B1: Twenty-Five
A2: 12 | B2: 20
A3: 13 | B3: 20a
A4: 14 | B4: 21
A5: 15 | B5: 22
A6: 15a | B6: 22a
A7: 15b | B7: 22b
A8: 15c | B8: 23
A9: 15d | B9: 24
A10: 15e | B10: 24a
A11: 15f | B11: 24b
A12: 15g | B12: 24c
A13: 15h | B13: 24d
A14: 15i | B14: 24e
A15: 15j | B15: 24f
A16: 15k | B16: 24g
A17: 15l | B17: 24h
A18: 15m | B18: 24i
A19: 15n
A20: 16
A21: 16a

Sheet Key Metrics (hidden)
B1: Municipality | C1: County | D1: Municode | S1: Total $$ in Row
B2: ='Key Inputs'!E5 -> TOWNSHIP OF SHREWSBURY | C2: ='Key Inputs'!E6 -> MONMOUTH | D2: ='Key Inputs'!E36 -> 1346
B4: Key Metrics and Revenues Header | C4: ='Key Inputs'!E34-1&" Realized" -> 2023 Realized | D4: ='Key Inputs'!E34&" Budgeted" -> 2024 Budgeted
B5: Appropriations Header | C5: =C4 -> 2023 Realized | G5: =D4 -> 2024 Budgeted
C6: Salaries & Wages | D6: Other Expenses | E6: Unclassified | F6: TOTAL | G6: Salaries & Wages | H6: Other Expenses | I6: Unclassified | J6: TOTAL
A7: Key Metrics | E7: Check - Sum of Key Metrics totals vs. totals on summary tabs | I7: Difference
B8: Total General Budget Revenues | C8: ='11'!K26 -> 307,558 | D8: =IFERROR('11'!I26,"0") -> 1,272,563 | E8: =D162 -> 1,272,563 | F8: ="All "&D4&" Revenues Entered Correctly?" -> All 2024 Budgeted Revenues Entered Correctly? | H8: =IF(E8-D8<>0,"No","Yes") -> Yes | I8: =E8-D8 -> 0
B10: Total General Appropriations | C10: ='30'!N24 -> 1,003,367 | D10: =IFERROR('30'!J24,"0") -> 1,272,563 | E10: =J452 -> 1,272,563 | F10: ="All "&D4&" Expenditures Entered Correctly?" -> All 2024 Budgeted Expenditures Entered Correctly? | H10: =IF(E10-D10<>0,"No","Yes") -> Yes | I10: =E10-D10 -> 0
B12: Public and Private Programs Offset by Revenues | C12: ='25'!N21 -> 0 | D12: ='25'!J21 -> 0
B14: Capital Improvements | C14: ='30'!N16 -> 25,000 | D14: ='30'!J16 -> 85,000
B16: Municipal Debt Service | C16: ='30'!N17 -> 119,462 | D16: ='30'!J17 -> 120,163
B18: Utility Surplus (General Budget) | C18: ='33-Utility1'!H24+'33-Utility2'!H24+'33-Utility3'!H24+'33-Utility4'!H24+'33-Utility5'!H24+'33-Utility6'!H24 -> 0 | D18: ='33-Utility1'!H24+'33-Utility2'!H24+'33-Utility3'!H24+'33-Utility4'!H24+'33-Utility5'!H24+'33-Utility6'!H24 -> 0
A20: Line Item Revenues
C21: =C4 -> 2023 Realized | D21: =D4 -> 2024 Budgeted
A22: Surplus Anticipated
A23: 08-101 | B23: Surplus Anticipated | C23: ='11'!K8 -> 193,500 | D23: ='11'!I8 -> 193,500 | S23: =SUM(C23:J23) -> 387000
A24: 08-102 | B24: Surplus Anticipated with Prior Written Consent of Dir of Local Gov. Services | C24: ='11'!K9 -> 0 | D24: ='11'!I9 -> 0 | S24: =SUM(C24:J24) -> 0
B25: ="Total- "&A22 -> Total- Surplus Anticipated | C25: =SUM(C23:C24) -> 193,500 | D25: =SUM(D23:D24) -> 193,500
A27: Municipal Taxes
B28: Municipal Tax Levy | C28: ='11'!K25 -> 0 | D28: =IFERROR('11'!I25,0) -> 909,486 | S28: 909485.73
B29: Receipts from Delinquent Taxes | C29: ='11'!K19 -> 5,676 | D29: ='11'!I19 -> 5,000 | S29: 10675.98
B30: ="Total- "&A27 -> Total- Municipal Taxes | C30: =SUM(C28:C29) -> 5,676 | D30: =SUM(D28:D29) -> 914,486
A32: Local Revenues
A33: 08-103 | B33: Licenses: Alcoholic Beverages | C33: =SUMIF('4'!H$5:H$100,$A33,'4'!$K$5:$K$100)+SUMIF('4a'!H$5:H$100,$A33,'4a'!$K$5:$K$100)+SUMIF('4b'!H$5:H$100,$A33,'4b'!$K$5:$K$100)+SUMIF('4c'!H$5:H$100,$A33,'4c'!$K$5:$K$100)+SUMIF('5'!H$5:H$100,$A33,'5'!$K$5:$K$100)+SUMIF('6'!H$5:H$100,$A33,'6'!$K$5:$K$100)+SUMIF('7'!H$5:H$100,$A33,'7'!$K$5:$K$100)+SUMIF('7a'!H$5:H$100,$A33,'7a'!$K$5:$K$100)+SUMIF('7b'!H$5:H$100,$A33,'7b'!$K$5:$K$100)+SUMIF('8'!H$5:H$100,$A33,'8'!$K$5:$K$100)+SUMIF('9'!H$5:H$100,$A33,'9'!$K$5:$K$100)+SUMIF('9a'!H$5:H$100,$A33,'9a'!$K$5:$K$100)+SUMIF('9b'!H$5:H$100,$A33,'9b'!$K$5:$K$100)+SUMIF('9c'!H$5:H$100,$A33,'9c'!$K$5:$K$100)+SUMIF('9d'!H$5:H$100,$A33,'9d'!$K$5:$K$100)+SUMIF('9e'!H$5:H$100,$A33,'9e'!$K$5:$K$100)+SUMIF('9f'!H$5:H$100,$A33,'9f'!$K$5:$K$100)+SUMIF('9g'!H$5:H$100,$A33,'9g'!$K$5:$K$100)+SUMIF('9h'!H$5:H$100,$A33,'9h'!$K$5:$K$100)+SUMIF('9 TOTAL'!H$5:H$100,$A33,'9 TOTAL'!$K$5:$K$100) +SUMIF('10'!H$5:H$100,$A33,'10'!$K$5:$K$100)+SUMIF('10a'!H$5:H$100,$A33,'10a'!$K$5:$K$100)+SUMIF('10b'!H$5:H$100,$A33,'10b'!$K$5:$K$100)+SUMIF('10c'!H$5:H$100,$A33,'10c'!$K$5:$K$100)+SUMIF('10d'!H$5:H$100,$A33,'10d'!$K$5:$K$100)+SUMIF('10e'!H$5:H$100,$A33,'10e'!$K$5:$K$100)+SUMIF('10f'!H$5:H$100,$A33,'10f'!$K$5:$K$100)+SUMIF('10g'!H$5:H$100,$A33,'10g'!$K$5:$K$100)+SUMIF('10h'!H$5:H$100,$A33,'10h'!$K$5:$K$100)+SUMIF('10i'!H$5:H$100,$A33,'10i'!$K$5:$K$100)+SUMIF('10j'!H$5:H$100,$A33,'10j'!$K$5:$K$100)+SUMIF('10k'!H$5:H$100,$A33,'10k'!$K$5:$K$100)+SUMIF('10l'!H$5:H$100,$A33,'10l'!$K$5:$K$100)+SUMIF('10m'!H$5:H$100,$A33,'10m'!$K$5:$K$100)+SUMIF('10 TOTAL'!H$5:H$100,$A33,'10 TOTAL'!$K$5:$K$100) -> 996 | D33: =SUMIF('4'!H$5:H$100,$A33,'4'!$I$5:$I$100)+SUMIF('4a'!H$5:H$100,$A33,'4a'!$I$5:$I$100)+SUMIF('4b'!H$5:H$100,$A33,'4b'!$I$5:$I$100)+SUMIF('4c'!H$5:H$100,$A33,'4c'!$I$5:$I$100)+SUMIF('5'!H$5:H$100,$A33,'5'!$I$5:$I$100)+SUMIF('6'!H$5:H$100,$A33,'6'!$I$5:$I$100)+SUMIF('7'!H$5:H$100,$A33,'7'!$I$5:$I$100)+SUMIF('7a'!H$5:H$100,$A33,'7a'!$I$5:$I$100)+SUMIF('7b'!H$5:H$100,$A33,'7b'!$I$5:$I$100)+SUMIF('8'!H$5:H$100,$A33,'8'!$I$5:$I$100)+SUMIF('9'!H$5:H$100,$A33,'9'!$I$5:$I$100)+SUMIF('9a'!H$5:H$100,$A33,'9a'!$I$5:$I$100)+SUMIF('9b'!H$5:H$100,$A33,'9b'!$I$5:$I$100)+SUMIF('9c'!H$5:H$100,$A33,'9c'!$I$5:$I$100)+SUMIF('9d'!H$5:H$100,$A33,'9d'!$I$5:$I$100)+SUMIF('9e'!H$5:H$100,$A33,'9e'!$I$5:$I$100)+SUMIF('9f'!H$5:H$100,$A33,'9f'!$I$5:$I$100)+SUMIF('9g'!H$5:H$100,$A33,'9g'!$I$5:$I$100)+SUMIF('9h'!H$5:H$100,$A33,'9h'!$I$5:$I$100)+SUMIF('9 TOTAL'!H$5:H$100,$A33,'9 TOTAL'!$I$5:$I$100) +SUMIF('10'!H$5:H$100,$A33,'10'!$I$5:$I$100)+SUMIF('10a'!H$5:H$100,$A33,'10a'!$I$5:$I$100)+SUMIF('10b'!H$5:H$100,$A33,'10b'!$I$5:$I$100)+SUMIF('10c'!H$5:H$100,$A33,'10c'!$I$5:$I$100)+SUMIF('10d'!H$5:H$100,$A33,'10d'!$I$5:$I$100)+SUMIF('10e'!H$5:H$100,$A33,'10e'!$I$5:$I$100)+SUMIF('10f'!H$5:H$100,$A33,'10f'!$I$5:$I$100)+SUMIF('10g'!H$5:H$100,$A33,'10g'!$I$5:$I$100)+SUMIF('10h'!H$5:H$100,$A33,'10h'!$I$5:$I$100)+SUMIF('10i'!H$5:H$100,$A33,'10i'!$I$5:$I$100)+SUMIF('10j'!H$5:H$100,$A33,'10j'!$I$5:$I$100)+SUMIF('10k'!H$5:H$100,$A33,'10k'!$I$5:$I$100)+SUMIF('10l'!H$5:H$100,$A33,'10l'!$I$5:$I$100)+SUMIF('10m'!H$5:H$100,$A33,'10m'!$I$5:$I$100)+SUMIF('10 TOTAL'!H$5:H$100,$A33,'10 TOTAL'!$I$5:$I$100) -> 950 | S33: 1946
A34: 08-104 | B34: Licenses: Other | C34: =SUMIF('4'!H$5:H$100,$A34,'4'!$K$5:$K$100)+SUMIF('4a'!H$5:H$100,$A34,'4a'!$K$5:$K$100)+SUMIF('4b'!H$5:H$100,$A34,'4b'!$K$5:$K$100)+SUMIF('4c'!H$5:H$100,$A34,'4c'!$K$5:$K$100)+SUMIF('5'!H$5:H$100,$A34,'5'!$K$5:$K$100)+SUMIF('6'!H$5:H$100,$A34,'6'!$K$5:$K$100)+SUMIF('7'!H$5:H$100,$A34,'7'!$K$5:$K$100)+SUMIF('7a'!H$5:H$100,$A34,'7a'!$K$5:$K$100)+SUMIF('7b'!H$5:H$100,$A34,'7b'!$K$5:$K$100)+SUMIF('8'!H$5:H$100,$A34,'8'!$K$5:$K$100)+SUMIF('9'!H$5:H$100,$A34,'9'!$K$5:$K$100)+SUMIF('9a'!H$5:H$100,$A34,'9a'!$K$5:$K$100)+SUMIF('9b'!H$5:H$100,$A34,'9b'!$K$5:$K$100)+SUMIF('9c'!H$5:H$100,$A34,'9c'!$K$5:$K$100)+SUMIF('9d'!H$5:H$100,$A34,'9d'!$K$5:$K$100)+SUMIF('9e'!H$5:H$100,$A34,'9e'!$K$5:$K$100)+SUMIF('9f'!H$5:H$100,$A34,'9f'!$K$5:$K$100)+SUMIF('9g'!H$5:H$100,$A34,'9g'!$K$5:$K$100)+SUMIF('9h'!H$5:H$100,$A34,'9h'!$K$5:$K$100)+SUMIF('9 TOTAL'!H$5:H$100,$A34,'9 TOTAL'!$K$5:$K$100) +SUMIF('10'!H$5:H$100,$A34,'10'!$K$5:$K$100)+SUMIF('10a'!H$5:H$100,$A34,'10a'!$K$5:$K$100)+SUMIF('10b'!H$5:H$100,$A34,'10b'!$K$5:$K$100)+SUMIF('10c'!H$5:H$100,$A34,'10c'!$K$5:$K$100)+SUMIF('10d'!H$5:H$100,$A34,'10d'!$K$5:$K$100)+SUMIF('10e'!H$5:H$100,$A34,'10e'!$K$5:$K$100)+SUMIF('10f'!H$5:H$100,$A34,'10f'!$K$5:$K$100)+SUMIF('10g'!H$5:H$100,$A34,'10g'!$K$5:$K$100)+SUMIF('10h'!H$5:H$100,$A34,'10h'!$K$5:$K$100)+SUMIF('10i'!H$5:H$100,$A34,'10i'!$K$5:$K$100)+SUMIF('10j'!H$5:H$100,$A34,'10j'!$K$5:$K$100)+SUMIF('10k'!H$5:H$100,$A34,'10k'!$K$5:$K$100)+SUMIF('10l'!H$5:H$100,$A34,'10l'!$K$5:$K$100)+SUMIF('10m'!H$5:H$100,$A34,'10m'!$K$5:$K$100)+SUMIF('10 TOTAL'!H$5:H$100,$A34,'10 TOTAL'!$K$5:$K$100) -> 0 | D34: =SUMIF('4'!H$5:H$100,$A34,'4'!$I$5:$I$100)+SUMIF('4a'!H$5:H$100,$A34,'4a'!$I$5:$I$100)+SUMIF('4b'!H$5:H$100,$A34,'4b'!$I$5:$I$100)+SUMIF('4c'!H$5:H$100,$A34,'4c'!$I$5:$I$100)+SUMIF('5'!H$5:H$100,$A34,'5'!$I$5:$I$100)+SUMIF('6'!H$5:H$100,$A34,'6'!$I$5:$I$100)+SUMIF('7'!H$5:H$100,$A34,'7'!$I$5:$I$100)+SUMIF('7a'!H$5:H$100,$A34,'7a'!$I$5:$I$100)+SUMIF('7b'!H$5:H$100,$A34,'7b'!$I$5:$I$100)+SUMIF('8'!H$5:H$100,$A34,'8'!$I$5:$I$100)+SUMIF('9'!H$5:H$100,$A34,'9'!$I$5:$I$100)+SUMIF('9a'!H$5:H$100,$A34,'9a'!$I$5:$I$100)+SUMIF('9b'!H$5:H$100,$A34,'9b'!$I$5:$I$100)+SUMIF('9c'!H$5:H$100,$A34,'9c'!$I$5:$I$100)+SUMIF('9d'!H$5:H$100,$A34,'9d'!$I$5:$I$100)+SUMIF('9e'!H$5:H$100,$A34,'9e'!$I$5:$I$100)+SUMIF('9f'!H$5:H$100,$A34,'9f'!$I$5:$I$100)+SUMIF('9g'!H$5:H$100,$A34,'9g'!$I$5:$I$100)+SUMIF('9h'!H$5:H$100,$A34,'9h'!$I$5:$I$100)+SUMIF('9 TOTAL'!H$5:H$100,$A34,'9 TOTAL'!$I$5:$I$100) +SUMIF('10'!H$5:H$100,$A34,'10'!$I$5:$I$100)+SUMIF('10a'!H$5:H$100,$A34,'10a'!$I$5:$I$100)+SUMIF('10b'!H$5:H$100,$A34,'10b'!$I$5:$I$100)+SUMIF('10c'!H$5:H$100,$A34,'10c'!$I$5:$I$100)+SUMIF('10d'!H$5:H$100,$A34,'10d'!$I$5:$I$100)+SUMIF('10e'!H$5:H$100,$A34,'10e'!$I$5:$I$100)+SUMIF('10f'!H$5:H$100,$A34,'10f'!$I$5:$I$100)+SUMIF('10g'!H$5:H$100,$A34,'10g'!$I$5:$I$100)+SUMIF('10h'!H$5:H$100,$A34,'10h'!$I$5:$I$100)+SUMIF('10i'!H$5:H$100,$A34,'10i'!$I$5:$I$100)+SUMIF('10j'!H$5:H$100,$A34,'10j'!$I$5:$I$100)+SUMIF('10k'!H$5:H$100,$A34,'10k'!$I$5:$I$100)+SUMIF('10l'!H$5:H$100,$A34,'10l'!$I$5:$I$100)+SUMIF('10m'!H$5:H$100,$A34,'10m'!$I$5:$I$100)+SUMIF('10 TOTAL'!H$5:H$100,$A34,'10 TOTAL'!$I$5:$I$100) -> 0 | S34: 0
A35: 08-105 | B35: County Clerk, Sheriff, Surrogate, and Other Fees and Permits | C35: =SUMIF('4'!H$5:H$100,$A35,'4'!$K$5:$K$100)+SUMIF('4a'!H$5:H$100,$A35,'4a'!$K$5:$K$100)+SUMIF('4b'!H$5:H$100,$A35,'4b'!$K$5:$K$100)+SUMIF('4c'!H$5:H$100,$A35,'4c'!$K$5:$K$100)+SUMIF('5'!H$5:H$100,$A35,'5'!$K$5:$K$100)+SUMIF('6'!H$5:H$100,$A35,'6'!$K$5:$K$100)+SUMIF('7'!H$5:H$100,$A35,'7'!$K$5:$K$100)+SUMIF('7a'!H$5:H$100,$A35,'7a'!$K$5:$K$100)+SUMIF('7b'!H$5:H$100,$A35,'7b'!$K$5:$K$100)+SUMIF('8'!H$5:H$100,$A35,'8'!$K$5:$K$100)+SUMIF('9'!H$5:H$100,$A35,'9'!$K$5:$K$100)+SUMIF('9a'!H$5:H$100,$A35,'9a'!$K$5:$K$100)+SUMIF('9b'!H$5:H$100,$A35,'9b'!$K$5:$K$100)+SUMIF('9c'!H$5:H$100,$A35,'9c'!$K$5:$K$100)+SUMIF('9d'!H$5:H$100,$A35,'9d'!$K$5:$K$100)+SUMIF('9e'!H$5:H$100,$A35,'9e'!$K$5:$K$100)+SUMIF('9f'!H$5:H$100,$A35,'9f'!$K$5:$K$100)+SUMIF('9g'!H$5:H$100,$A35,'9g'!$K$5:$K$100)+SUMIF('9h'!H$5:H$100,$A35,'9h'!$K$5:$K$100)+SUMIF('9 TOTAL'!H$5:H$100,$A35,'9 TOTAL'!$K$5:$K$100) +SUMIF('10'!H$5:H$100,$A35,'10'!$K$5:$K$100)+SUMIF('10a'!H$5:H$100,$A35,'10a'!$K$5:$K$100)+SUMIF('10b'!H$5:H$100,$A35,'10b'!$K$5:$K$100)+SUMIF('10c'!H$5:H$100,$A35,'10c'!$K$5:$K$100)+SUMIF('10d'!H$5:H$100,$A35,'10d'!$K$5:$K$100)+SUMIF('10e'!H$5:H$100,$A35,'10e'!$K$5:$K$100)+SUMIF('10f'!H$5:H$100,$A35,'10f'!$K$5:$K$100)+SUMIF('10g'!H$5:H$100,$A35,'10g'!$K$5:$K$100)+SUMIF('10h'!H$5:H$100,$A35,'10h'!$K$5:$K$100)+SUMIF('10i'!H$5:H$100,$A35,'10i'!$K$5:$K$100)+SUMIF('10j'!H$5:H$100,$A35,'10j'!$K$5:$K$100)+SUMIF('10k'!H$5:H$100,$A35,'10k'!$K$5:$K$100)+SUMIF('10l'!H$5:H$100,$A35,'10l'!$K$5:$K$100)+SUMIF('10m'!H$5:H$100,$A35,'10m'!$K$5:$K$100)+SUMIF('10 TOTAL'!H$5:H$100,$A35,'10 TOTAL'!$K$5:$K$100) -> 8,200 | D35: =SUMIF('4'!H$5:H$100,$A35,'4'!$I$5:$I$100)+SUMIF('4a'!H$5:H$100,$A35,'4a'!$I$5:$I$100)+SUMIF('4b'!H$5:H$100,$A35,'4b'!$I$5:$I$100)+SUMIF('4c'!H$5:H$100,$A35,'4c'!$I$5:$I$100)+SUMIF('5'!H$5:H$100,$A35,'5'!$I$5:$I$100)+SUMIF('6'!H$5:H$100,$A35,'6'!$I$5:$I$100)+SUMIF('7'!H$5:H$100,$A35,'7'!$I$5:$I$100)+SUMIF('7a'!H$5:H$100,$A35,'7a'!$I$5:$I$100)+SUMIF('7b'!H$5:H$100,$A35,'7b'!$I$5:$I$100)+SUMIF('8'!H$5:H$100,$A35,'8'!$I$5:$I$100)+SUMIF('9'!H$5:H$100,$A35,'9'!$I$5:$I$100)+SUMIF('9a'!H$5:H$100,$A35,'9a'!$I$5:$I$100)+SUMIF('9b'!H$5:H$100,$A35,'9b'!$I$5:$I$100)+SUMIF('9c'!H$5:H$100,$A35,'9c'!$I$5:$I$100)+SUMIF('9d'!H$5:H$100,$A35,'9d'!$I$5:$I$100)+SUMIF('9e'!H$5:H$100,$A35,'9e'!$I$5:$I$100)+SUMIF('9f'!H$5:H$100,$A35,'9f'!$I$5:$I$100)+SUMIF('9g'!H$5:H$100,$A35,'9g'!$I$5:$I$100)+SUMIF('9h'!H$5:H$100,$A35,'9h'!$I$5:$I$100)+SUMIF('9 TOTAL'!H$5:H$100,$A35,'9 TOTAL'!$I$5:$I$100) +SUMIF('10'!H$5:H$100,$A35,'10'!$I$5:$I$100)+SUMIF('10a'!H$5:H$100,$A35,'10a'!$I$5:$I$100)+SUMIF('10b'!H$5:H$100,$A35,'10b'!$I$5:$I$100)+SUMIF('10c'!H$5:H$100,$A35,'10c'!$I$5:$I$100)+SUMIF('10d'!H$5:H$100,$A35,'10d'!$I$5:$I$100)+SUMIF('10e'!H$5:H$100,$A35,'10e'!$I$5:$I$100)+SUMIF('10f'!H$5:H$100,$A35,'10f'!$I$5:$I$100)+SUMIF('10g'!H$5:H$100,$A35,'10g'!$I$5:$I$100)+SUMIF('10h'!H$5:H$100,$A35,'10h'!$I$5:$I$100)+SUMIF('10i'!H$5:H$100,$A35,'10i'!$I$5:$I$100)+SUMIF('10j'!H$5:H$100,$A35,'10j'!$I$5:$I$100)+SUMIF('10k'!H$5:H$100,$A35,'10k'!$I$5:$I$100)+SUMIF('10l'!H$5:H$100,$A35,'10l'!$I$5:$I$100)+SUMIF('10m'!H$5:H$100,$A35,'10m'!$I$5:$I$100)+SUMIF('10 TOTAL'!H$5:H$100,$A35,'10 TOTAL'!$I$5:$I$100) -> 8,200 | S35: 16400
A36: 08-107 | B36: Hotel Occupancy Tax (Section A & G) | C36: =SUMIF('4'!H$5:H$100,$A36,'4'!$K$5:$K$100)+SUMIF('4a'!H$5:H$100,$A36,'4a'!$K$5:$K$100)+SUMIF('4b'!H$5:H$100,$A36,'4b'!$K$5:$K$100)+SUMIF('4c'!H$5:H$100,$A36,'4c'!$K$5:$K$100)+SUMIF('5'!H$5:H$100,$A36,'5'!$K$5:$K$100)+SUMIF('6'!H$5:H$100,$A36,'6'!$K$5:$K$100)+SUMIF('7'!H$5:H$100,$A36,'7'!$K$5:$K$100)+SUMIF('7a'!H$5:H$100,$A36,'7a'!$K$5:$K$100)+SUMIF('7b'!H$5:H$100,$A36,'7b'!$K$5:$K$100)+SUMIF('8'!H$5:H$100,$A36,'8'!$K$5:$K$100)+SUMIF('9'!H$5:H$100,$A36,'9'!$K$5:$K$100)+SUMIF('9a'!H$5:H$100,$A36,'9a'!$K$5:$K$100)+SUMIF('9b'!H$5:H$100,$A36,'9b'!$K$5:$K$100)+SUMIF('9c'!H$5:H$100,$A36,'9c'!$K$5:$K$100)+SUMIF('9d'!H$5:H$100,$A36,'9d'!$K$5:$K$100)+SUMIF('9e'!H$5:H$100,$A36,'9e'!$K$5:$K$100)+SUMIF('9f'!H$5:H$100,$A36,'9f'!$K$5:$K$100)+SUMIF('9g'!H$5:H$100,$A36,'9g'!$K$5:$K$100)+SUMIF('9h'!H$5:H$100,$A36,'9h'!$K$5:$K$100)+SUMIF('9 TOTAL'!H$5:H$100,$A36,'9 TOTAL'!$K$5:$K$100) +SUMIF('10'!H$5:H$100,$A36,'10'!$K$5:$K$100)+SUMIF('10a'!H$5:H$100,$A36,'10a'!$K$5:$K$100)+SUMIF('10b'!H$5:H$100,$A36,'10b'!$K$5:$K$100)+SUMIF('10c'!H$5:H$100,$A36,'10c'!$K$5:$K$100)+SUMIF('10d'!H$5:H$100,$A36,'10d'!$K$5:$K$100)+SUMIF('10e'!H$5:H$100,$A36,'10e'!$K$5:$K$100)+SUMIF('10f'!H$5:H$100,$A36,'10f'!$K$5:$K$100)+SUMIF('10g'!H$5:H$100,$A36,'10g'!$K$5:$K$100)+SUMIF('10h'!H$5:H$100,$A36,'10h'!$K$5:$K$100)+SUMIF('10i'!H$5:H$100,$A36,'10i'!$K$5:$K$100)+SUMIF('10j'!H$5:H$100,$A36,'10j'!$K$5:$K$100)+SUMIF('10k'!H$5:H$100,$A36,'10k'!$K$5:$K$100)+SUMIF('10l'!H$5:H$100,$A36,'10l'!$K$5:$K$100)+SUMIF('10m'!H$5:H$100,$A36,'10m'!$K$5:$K$100)+SUMIF('10 TOTAL'!H$5:H$100,$A36,'10 TOTAL'!$K$5:$K$100) -> 0 | D36: =SUMIF('4'!H$5:H$100,$A36,'4'!$I$5:$I$100)+SUMIF('4a'!H$5:H$100,$A36,'4a'!$I$5:$I$100)+SUMIF('4b'!H$5:H$100,$A36,'4b'!$I$5:$I$100)+SUMIF('4c'!H$5:H$100,$A36,'4c'!$I$5:$I$100)+SUMIF('5'!H$5:H$100,$A36,'5'!$I$5:$I$100)+SUMIF('6'!H$5:H$100,$A36,'6'!$I$5:$I$100)+SUMIF('7'!H$5:H$100,$A36,'7'!$I$5:$I$100)+SUMIF('7a'!H$5:H$100,$A36,'7a'!$I$5:$I$100)+SUMIF('7b'!H$5:H$100,$A36,'7b'!$I$5:$I$100)+SUMIF('8'!H$5:H$100,$A36,'8'!$I$5:$I$100)+SUMIF('9'!H$5:H$100,$A36,'9'!$I$5:$I$100)+SUMIF('9a'!H$5:H$100,$A36,'9a'!$I$5:$I$100)+SUMIF('9b'!H$5:H$100,$A36,'9b'!$I$5:$I$100)+SUMIF('9c'!H$5:H$100,$A36,'9c'!$I$5:$I$100)+SUMIF('9d'!H$5:H$100,$A36,'9d'!$I$5:$I$100)+SUMIF('9e'!H$5:H$100,$A36,'9e'!$I$5:$I$100)+SUMIF('9f'!H$5:H$100,$A36,'9f'!$I$5:$I$100)+SUMIF('9g'!H$5:H$100,$A36,'9g'!$I$5:$I$100)+SUMIF('9h'!H$5:H$100,$A36,'9h'!$I$5:$I$100)+SUMIF('9 TOTAL'!H$5:H$100,$A36,'9 TOTAL'!$I$5:$I$100) +SUMIF('10'!H$5:H$100,$A36,'10'!$I$5:$I$100)+SUMIF('10a'!H$5:H$100,$A36,'10a'!$I$5:$I$100)+SUMIF('10b'!H$5:H$100,$A36,'10b'!$I$5:$I$100)+SUMIF('10c'!H$5:H$100,$A36,'10c'!$I$5:$I$100)+SUMIF('10d'!H$5:H$100,$A36,'10d'!$I$5:$I$100)+SUMIF('10e'!H$5:H$100,$A36,'10e'!$I$5:$I$100)+SUMIF('10f'!H$5:H$100,$A36,'10f'!$I$5:$I$100)+SUMIF('10g'!H$5:H$100,$A36,'10g'!$I$5:$I$100)+SUMIF('10h'!H$5:H$100,$A36,'10h'!$I$5:$I$100)+SUMIF('10i'!H$5:H$100,$A36,'10i'!$I$5:$I$100)+SUMIF('10j'!H$5:H$100,$A36,'10j'!$I$5:$I$100)+SUMIF('10k'!H$5:H$100,$A36,'10k'!$I$5:$I$100)+SUMIF('10l'!H$5:H$100,$A36,'10l'!$I$5:$I$100)+SUMIF('10m'!H$5:H$100,$A36,'10m'!$I$5:$I$100)+SUMIF('10 TOTAL'!H$5:H$100,$A36,'10 TOTAL'!$I$5:$I$100) -> 0 | S36: 0
A37: 08-108 | B37: Beach Fees | C37: =SUMIF('4'!H$5:H$100,$A37,'4'!$K$5:$K$100)+SUMIF('4a'!H$5:H$100,$A37,'4a'!$K$5:$K$100)+SUMIF('4b'!H$5:H$100,$A37,'4b'!$K$5:$K$100)+SUMIF('4c'!H$5:H$100,$A37,'4c'!$K$5:$K$100)+SUMIF('5'!H$5:H$100,$A37,'5'!$K$5:$K$100)+SUMIF('6'!H$5:H$100,$A37,'6'!$K$5:$K$100)+SUMIF('7'!H$5:H$100,$A37,'7'!$K$5:$K$100)+SUMIF('7a'!H$5:H$100,$A37,'7a'!$K$5:$K$100)+SUMIF('7b'!H$5:H$100,$A37,'7b'!$K$5:$K$100)+SUMIF('8'!H$5:H$100,$A37,'8'!$K$5:$K$100)+SUMIF('9'!H$5:H$100,$A37,'9'!$K$5:$K$100)+SUMIF('9a'!H$5:H$100,$A37,'9a'!$K$5:$K$100)+SUMIF('9b'!H$5:H$100,$A37,'9b'!$K$5:$K$100)+SUMIF('9c'!H$5:H$100,$A37,'9c'!$K$5:$K$100)+SUMIF('9d'!H$5:H$100,$A37,'9d'!$K$5:$K$100)+SUMIF('9e'!H$5:H$100,$A37,'9e'!$K$5:$K$100)+SUMIF('9f'!H$5:H$100,$A37,'9f'!$K$5:$K$100)+SUMIF('9g'!H$5:H$100,$A37,'9g'!$K$5:$K$100)+SUMIF('9h'!H$5:H$100,$A37,'9h'!$K$5:$K$100)+SUMIF('9 TOTAL'!H$5:H$100,$A37,'9 TOTAL'!$K$5:$K$100) +SUMIF('10'!H$5:H$100,$A37,'10'!$K$5:$K$100)+SUMIF('10a'!H$5:H$100,$A37,'10a'!$K$5:$K$100)+SUMIF('10b'!H$5:H$100,$A37,'10b'!$K$5:$K$100)+SUMIF('10c'!H$5:H$100,$A37,'10c'!$K$5:$K$100)+SUMIF('10d'!H$5:H$100,$A37,'10d'!$K$5:$K$100)+SUMIF('10e'!H$5:H$100,$A37,'10e'!$K$5:$K$100)+SUMIF('10f'!H$5:H$100,$A37,'10f'!$K$5:$K$100)+SUMIF('10g'!H$5:H$100,$A37,'10g'!$K$5:$K$100)+SUMIF('10h'!H$5:H$100,$A37,'10h'!$K$5:$K$100)+SUMIF('10i'!H$5:H$100,$A37,'10i'!$K$5:$K$100)+SUMIF('10j'!H$5:H$100,$A37,'10j'!$K$5:$K$100)+SUMIF('10k'!H$5:H$100,$A37,'10k'!$K$5:$K$100)+SUMIF('10l'!H$5:H$100,$A37,'10l'!$K$5:$K$100)+SUMIF('10m'!H$5:H$100,$A37,'10m'!$K$5:$K$100)+SUMIF('10 TOTAL'!H$5:H$100,$A37,'10 TOTAL'!$K$5:$K$100) -> 0 | D37: =SUMIF('4'!H$5:H$100,$A37,'4'!$I$5:$I$100)+SUMIF('4a'!H$5:H$100,$A37,'4a'!$I$5:$I$100)+SUMIF('4b'!H$5:H$100,$A37,'4b'!$I$5:$I$100)+SUMIF('4c'!H$5:H$100,$A37,'4c'!$I$5:$I$100)+SUMIF('5'!H$5:H$100,$A37,'5'!$I$5:$I$100)+SUMIF('6'!H$5:H$100,$A37,'6'!$I$5:$I$100)+SUMIF('7'!H$5:H$100,$A37,'7'!$I$5:$I$100)+SUMIF('7a'!H$5:H$100,$A37,'7a'!$I$5:$I$100)+SUMIF('7b'!H$5:H$100,$A37,'7b'!$I$5:$I$100)+SUMIF('8'!H$5:H$100,$A37,'8'!$I$5:$I$100)+SUMIF('9'!H$5:H$100,$A37,'9'!$I$5:$I$100)+SUMIF('9a'!H$5:H$100,$A37,'9a'!$I$5:$I$100)+SUMIF('9b'!H$5:H$100,$A37,'9b'!$I$5:$I$100)+SUMIF('9c'!H$5:H$100,$A37,'9c'!$I$5:$I$100)+SUMIF('9d'!H$5:H$100,$A37,'9d'!$I$5:$I$100)+SUMIF('9e'!H$5:H$100,$A37,'9e'!$I$5:$I$100)+SUMIF('9f'!H$5:H$100,$A37,'9f'!$I$5:$I$100)+SUMIF('9g'!H$5:H$100,$A37,'9g'!$I$5:$I$100)+SUMIF('9h'!H$5:H$100,$A37,'9h'!$I$5:$I$100)+SUMIF('9 TOTAL'!H$5:H$100,$A37,'9 TOTAL'!$I$5:$I$100) +SUMIF('10'!H$5:H$100,$A37,'10'!$I$5:$I$100)+SUMIF('10a'!H$5:H$100,$A37,'10a'!$I$5:$I$100)+SUMIF('10b'!H$5:H$100,$A37,'10b'!$I$5:$I$100)+SUMIF('10c'!H$5:H$100,$A37,'10c'!$I$5:$I$100)+SUMIF('10d'!H$5:H$100,$A37,'10d'!$I$5:$I$100)+SUMIF('10e'!H$5:H$100,$A37,'10e'!$I$5:$I$100)+SUMIF('10f'!H$5:H$100,$A37,'10f'!$I$5:$I$100)+SUMIF('10g'!H$5:H$100,$A37,'10g'!$I$5:$I$100)+SUMIF('10h'!H$5:H$100,$A37,'10h'!$I$5:$I$100)+SUMIF('10i'!H$5:H$100,$A37,'10i'!$I$5:$I$100)+SUMIF('10j'!H$5:H$100,$A37,'10j'!$I$5:$I$100)+SUMIF('10k'!H$5:H$100,$A37,'10k'!$I$5:$I$100)+SUMIF('10l'!H$5:H$100,$A37,'10l'!$I$5:$I$100)+SUMIF('10m'!H$5:H$100,$A37,'10m'!$I$5:$I$100)+SUMIF('10 TOTAL'!H$5:H$100,$A37,'10 TOTAL'!$I$5:$I$100) -> 0 | S37: 0
A38: 08-109 | B38: Other Fines and Costs | C38: =SUMIF('4'!H$5:H$100,$A38,'4'!$K$5:$K$100)+SUMIF('4a'!H$5:H$100,$A38,'4a'!$K$5:$K$100)+SUMIF('4b'!H$5:H$100,$A38,'4b'!$K$5:$K$100)+SUMIF('4c'!H$5:H$100,$A38,'4c'!$K$5:$K$100)+SUMIF('5'!H$5:H$100,$A38,'5'!$K$5:$K$100)+SUMIF('6'!H$5:H$100,$A38,'6'!$K$5:$K$100)+SUMIF('7'!H$5:H$100,$A38,'7'!$K$5:$K$100)+SUMIF('7a'!H$5:H$100,$A38,'7a'!$K$5:$K$100)+SUMIF('7b'!H$5:H$100,$A38,'7b'!$K$5:$K$100)+SUMIF('8'!H$5:H$100,$A38,'8'!$K$5:$K$100)+SUMIF('9'!H$5:H$100,$A38,'9'!$K$5:$K$100)+SUMIF('9a'!H$5:H$100,$A38,'9a'!$K$5:$K$100)+SUMIF('9b'!H$5:H$100,$A38,'9b'!$K$5:$K$100)+SUMIF('9c'!H$5:H$100,$A38,'9c'!$K$5:$K$100)+SUMIF('9d'!H$5:H$100,$A38,'9d'!$K$5:$K$100)+SUMIF('9e'!H$5:H$100,$A38,'9e'!$K$5:$K$100)+SUMIF('9f'!H$5:H$100,$A38,'9f'!$K$5:$K$100)+SUMIF('9g'!H$5:H$100,$A38,'9g'!$K$5:$K$100)+SUMIF('9h'!H$5:H$100,$A38,'9h'!$K$5:$K$100)+SUMIF('9 TOTAL'!H$5:H$100,$A38,'9 TOTAL'!$K$5:$K$100) +SUMIF('10'!H$5:H$100,$A38,'10'!$K$5:$K$100)+SUMIF('10a'!H$5:H$100,$A38,'10a'!$K$5:$K$100)+SUMIF('10b'!H$5:H$100,$A38,'10b'!$K$5:$K$100)+SUMIF('10c'!H$5:H$100,$A38,'10c'!$K$5:$K$100)+SUMIF('10d'!H$5:H$100,$A38,'10d'!$K$5:$K$100)+SUMIF('10e'!H$5:H$100,$A38,'10e'!$K$5:$K$100)+SUMIF('10f'!H$5:H$100,$A38,'10f'!$K$5:$K$100)+SUMIF('10g'!H$5:H$100,$A38,'10g'!$K$5:$K$100)+SUMIF('10h'!H$5:H$100,$A38,'10h'!$K$5:$K$100)+SUMIF('10i'!H$5:H$100,$A38,'10i'!$K$5:$K$100)+SUMIF('10j'!H$5:H$100,$A38,'10j'!$K$5:$K$100)+SUMIF('10k'!H$5:H$100,$A38,'10k'!$K$5:$K$100)+SUMIF('10l'!H$5:H$100,$A38,'10l'!$K$5:$K$100)+SUMIF('10m'!H$5:H$100,$A38,'10m'!$K$5:$K$100)+SUMIF('10 TOTAL'!H$5:H$100,$A38,'10 TOTAL'!$K$5:$K$100) -> 0 | D38: =SUMIF('4'!H$5:H$100,$A38,'4'!$I$5:$I$100)+SUMIF('4a'!H$5:H$100,$A38,'4a'!$I$5:$I$100)+SUMIF('4b'!H$5:H$100,$A38,'4b'!$I$5:$I$100)+SUMIF('4c'!H$5:H$100,$A38,'4c'!$I$5:$I$100)+SUMIF('5'!H$5:H$100,$A38,'5'!$I$5:$I$100)+SUMIF('6'!H$5:H$100,$A38,'6'!$I$5:$I$100)+SUMIF('7'!H$5:H$100,$A38,'7'!$I$5:$I$100)+SUMIF('7a'!H$5:H$100,$A38,'7a'!$I$5:$I$100)+SUMIF('7b'!H$5:H$100,$A38,'7b'!$I$5:$I$100)+SUMIF('8'!H$5:H$100,$A38,'8'!$I$5:$I$100)+SUMIF('9'!H$5:H$100,$A38,'9'!$I$5:$I$100)+SUMIF('9a'!H$5:H$100,$A38,'9a'!$I$5:$I$100)+SUMIF('9b'!H$5:H$100,$A38,'9b'!$I$5:$I$100)+SUMIF('9c'!H$5:H$100,$A38,'9c'!$I$5:$I$100)+SUMIF('9d'!H$5:H$100,$A38,'9d'!$I$5:$I$100)+SUMIF('9e'!H$5:H$100,$A38,'9e'!$I$5:$I$100)+SUMIF('9f'!H$5:H$100,$A38,'9f'!$I$5:$I$100)+SUMIF('9g'!H$5:H$100,$A38,'9g'!$I$5:$I$100)+SUMIF('9h'!H$5:H$100,$A38,'9h'!$I$5:$I$100)+SUMIF('9 TOTAL'!H$5:H$100,$A38,'9 TOTAL'!$I$5:$I$100) +SUMIF('10'!H$5:H$100,$A38,'10'!$I$5:$I$100)+SUMIF('10a'!H$5:H$100,$A38,'10a'!$I$5:$I$100)+SUMIF('10b'!H$5:H$100,$A38,'10b'!$I$5:$I$100)+SUMIF('10c'!H$5:H$100,$A38,'10c'!$I$5:$I$100)+SUMIF('10d'!H$5:H$100,$A38,'10d'!$I$5:$I$100)+SUMIF('10e'!H$5:H$100,$A38,'10e'!$I$5:$I$100)+SUMIF('10f'!H$5:H$100,$A38,'10f'!$I$5:$I$100)+SUMIF('10g'!H$5:H$100,$A38,'10g'!$I$5:$I$100)+SUMIF('10h'!H$5:H$100,$A38,'10h'!$I$5:$I$100)+SUMIF('10i'!H$5:H$100,$A38,'10i'!$I$5:$I$100)+SUMIF('10j'!H$5:H$100,$A38,'10j'!$I$5:$I$100)+SUMIF('10k'!H$5:H$100,$A38,'10k'!$I$5:$I$100)+SUMIF('10l'!H$5:H$100,$A38,'10l'!$I$5:$I$100)+SUMIF('10m'!H$5:H$100,$A38,'10m'!$I$5:$I$100)+SUMIF('10 TOTAL'!H$5:H$100,$A38,'10 TOTAL'!$I$5:$I$100) -> 0 | S38: 0
A39: 08-110 | B39: Municipal/County Court Fines and Costs | C39: =SUMIF('4'!H$5:H$100,$A39,'4'!$K$5:$K$100)+SUMIF('4a'!H$5:H$100,$A39,'4a'!$K$5:$K$100)+SUMIF('4b'!H$5:H$100,$A39,'4b'!$K$5:$K$100)+SUMIF('4c'!H$5:H$100,$A39,'4c'!$K$5:$K$100)+SUMIF('5'!H$5:H$100,$A39,'5'!$K$5:$K$100)+SUMIF('6'!H$5:H$100,$A39,'6'!$K$5:$K$100)+SUMIF('7'!H$5:H$100,$A39,'7'!$K$5:$K$100)+SUMIF('7a'!H$5:H$100,$A39,'7a'!$K$5:$K$100)+SUMIF('7b'!H$5:H$100,$A39,'7b'!$K$5:$K$100)+SUMIF('8'!H$5:H$100,$A39,'8'!$K$5:$K$100)+SUMIF('9'!H$5:H$100,$A39,'9'!$K$5:$K$100)+SUMIF('9a'!H$5:H$100,$A39,'9a'!$K$5:$K$100)+SUMIF('9b'!H$5:H$100,$A39,'9b'!$K$5:$K$100)+SUMIF('9c'!H$5:H$100,$A39,'9c'!$K$5:$K$100)+SUMIF('9d'!H$5:H$100,$A39,'9d'!$K$5:$K$100)+SUMIF('9e'!H$5:H$100,$A39,'9e'!$K$5:$K$100)+SUMIF('9f'!H$5:H$100,$A39,'9f'!$K$5:$K$100)+SUMIF('9g'!H$5:H$100,$A39,'9g'!$K$5:$K$100)+SUMIF('9h'!H$5:H$100,$A39,'9h'!$K$5:$K$100)+SUMIF('9 TOTAL'!H$5:H$100,$A39,'9 TOTAL'!$K$5:$K$100) +SUMIF('10'!H$5:H$100,$A39,'10'!$K$5:$K$100)+SUMIF('10a'!H$5:H$100,$A39,'10a'!$K$5:$K$100)+SUMIF('10b'!H$5:H$100,$A39,'10b'!$K$5:$K$100)+SUMIF('10c'!H$5:H$100,$A39,'10c'!$K$5:$K$100)+SUMIF('10d'!H$5:H$100,$A39,'10d'!$K$5:$K$100)+SUMIF('10e'!H$5:H$100,$A39,'10e'!$K$5:$K$100)+SUMIF('10f'!H$5:H$100,$A39,'10f'!$K$5:$K$100)+SUMIF('10g'!H$5:H$100,$A39,'10g'!$K$5:$K$100)+SUMIF('10h'!H$5:H$100,$A39,'10h'!$K$5:$K$100)+SUMIF('10i'!H$5:H$100,$A39,'10i'!$K$5:$K$100)+SUMIF('10j'!H$5:H$100,$A39,'10j'!$K$5:$K$100)+SUMIF('10k'!H$5:H$100,$A39,'10k'!$K$5:$K$100)+SUMIF('10l'!H$5:H$100,$A39,'10l'!$K$5:$K$100)+SUMIF('10m'!H$5:H$100,$A39,'10m'!$K$5:$K$100)+SUMIF('10 TOTAL'!H$5:H$100,$A39,'10 TOTAL'!$K$5:$K$100) -> 1,178 | D39: =SUMIF('4'!H$5:H$100,$A39,'4'!$I$5:$I$100)+SUMIF('4a'!H$5:H$100,$A39,'4a'!$I$5:$I$100)+SUMIF('4b'!H$5:H$100,$A39,'4b'!$I$5:$I$100)+SUMIF('4c'!H$5:H$100,$A39,'4c'!$I$5:$I$100)+SUMIF('5'!H$5:H$100,$A39,'5'!$I$5:$I$100)+SUMIF('6'!H$5:H$100,$A39,'6'!$I$5:$I$100)+SUMIF('7'!H$5:H$100,$A39,'7'!$I$5:$I$100)+SUMIF('7a'!H$5:H$100,$A39,'7a'!$I$5:$I$100)+SUMIF('7b'!H$5:H$100,$A39,'7b'!$I$5:$I$100)+SUMIF('8'!H$5:H$100,$A39,'8'!$I$5:$I$100)+SUMIF('9'!H$5:H$100,$A39,'9'!$I$5:$I$100)+SUMIF('9a'!H$5:H$100,$A39,'9a'!$I$5:$I$100)+SUMIF('9b'!H$5:H$100,$A39,'9b'!$I$5:$I$100)+SUMIF('9c'!H$5:H$100,$A39,'9c'!$I$5:$I$100)+SUMIF('9d'!H$5:H$100,$A39,'9d'!$I$5:$I$100)+SUMIF('9e'!H$5:H$100,$A39,'9e'!$I$5:$I$100)+SUMIF('9f'!H$5:H$100,$A39,'9f'!$I$5:$I$100)+SUMIF('9g'!H$5:H$100,$A39,'9g'!$I$5:$I$100)+SUMIF('9h'!H$5:H$100,$A39,'9h'!$I$5:$I$100)+SUMIF('9 TOTAL'!H$5:H$100,$A39,'9 TOTAL'!$I$5:$I$100) +SUMIF('10'!H$5:H$100,$A39,'10'!$I$5:$I$100)+SUMIF('10a'!H$5:H$100,$A39,'10a'!$I$5:$I$100)+SUMIF('10b'!H$5:H$100,$A39,'10b'!$I$5:$I$100)+SUMIF('10c'!H$5:H$100,$A39,'10c'!$I$5:$I$100)+SUMIF('10d'!H$5:H$100,$A39,'10d'!$I$5:$I$100)+SUMIF('10e'!H$5:H$100,$A39,'10e'!$I$5:$I$100)+SUMIF('10f'!H$5:H$100,$A39,'10f'!$I$5:$I$100)+SUMIF('10g'!H$5:H$100,$A39,'10g'!$I$5:$I$100)+SUMIF('10h'!H$5:H$100,$A39,'10h'!$I$5:$I$100)+SUMIF('10i'!H$5:H$100,$A39,'10i'!$I$5:$I$100)+SUMIF('10j'!H$5:H$100,$A39,'10j'!$I$5:$I$100)+SUMIF('10k'!H$5:H$100,$A39,'10k'!$I$5:$I$100)+SUMIF('10l'!H$5:H$100,$A39,'10l'!$I$5:$I$100)+SUMIF('10m'!H$5:H$100,$A39,'10m'!$I$5:$I$100)+SUMIF('10 TOTAL'!H$5:H$100,$A39,'10 TOTAL'!$I$5:$I$100) -> 1,000 | S39: 2178.16
A40: 08-111 | B40: Parking Meter Revenue | C40: =SUMIF('4'!H$5:H$100,$A40,'4'!$K$5:$K$100)+SUMIF('4a'!H$5:H$100,$A40,'4a'!$K$5:$K$100)+SUMIF('4b'!H$5:H$100,$A40,'4b'!$K$5:$K$100)+SUMIF('4c'!H$5:H$100,$A40,'4c'!$K$5:$K$100)+SUMIF('5'!H$5:H$100,$A40,'5'!$K$5:$K$100)+SUMIF('6'!H$5:H$100,$A40,'6'!$K$5:$K$100)+SUMIF('7'!H$5:H$100,$A40,'7'!$K$5:$K$100)+SUMIF('7a'!H$5:H$100,$A40,'7a'!$K$5:$K$100)+SUMIF('7b'!H$5:H$100,$A40,'7b'!$K$5:$K$100)+SUMIF('8'!H$5:H$100,$A40,'8'!$K$5:$K$100)+SUMIF('9'!H$5:H$100,$A40,'9'!$K$5:$K$100)+SUMIF('9a'!H$5:H$100,$A40,'9a'!$K$5:$K$100)+SUMIF('9b'!H$5:H$100,$A40,'9b'!$K$5:$K$100)+SUMIF('9c'!H$5:H$100,$A40,'9c'!$K$5:$K$100)+SUMIF('9d'!H$5:H$100,$A40,'9d'!$K$5:$K$100)+SUMIF('9e'!H$5:H$100,$A40,'9e'!$K$5:$K$100)+SUMIF('9f'!H$5:H$100,$A40,'9f'!$K$5:$K$100)+SUMIF('9g'!H$5:H$100,$A40,'9g'!$K$5:$K$100)+SUMIF('9h'!H$5:H$100,$A40,'9h'!$K$5:$K$100)+SUMIF('9 TOTAL'!H$5:H$100,$A40,'9 TOTAL'!$K$5:$K$100) +SUMIF('10'!H$5:H$100,$A40,'10'!$K$5:$K$100)+SUMIF('10a'!H$5:H$100,$A40,'10a'!$K$5:$K$100)+SUMIF('10b'!H$5:H$100,$A40,'10b'!$K$5:$K$100)+SUMIF('10c'!H$5:H$100,$A40,'10c'!$K$5:$K$100)+SUMIF('10d'!H$5:H$100,$A40,'10d'!$K$5:$K$100)+SUMIF('10e'!H$5:H$100,$A40,'10e'!$K$5:$K$100)+SUMIF('10f'!H$5:H$100,$A40,'10f'!$K$5:$K$100)+SUMIF('10g'!H$5:H$100,$A40,'10g'!$K$5:$K$100)+SUMIF('10h'!H$5:H$100,$A40,'10h'!$K$5:$K$100)+SUMIF('10i'!H$5:H$100,$A40,'10i'!$K$5:$K$100)+SUMIF('10j'!H$5:H$100,$A40,'10j'!$K$5:$K$100)+SUMIF('10k'!H$5:H$100,$A40,'10k'!$K$5:$K$100)+SUMIF('10l'!H$5:H$100,$A40,'10l'!$K$5:$K$100)+SUMIF('10m'!H$5:H$100,$A40,'10m'!$K$5:$K$100)+SUMIF('10 TOTAL'!H$5:H$100,$A40,'10 TOTAL'!$K$5:$K$100) -> 0 | D40: =SUMIF('4'!H$5:H$100,$A40,'4'!$I$5:$I$100)+SUMIF('4a'!H$5:H$100,$A40,'4a'!$I$5:$I$100)+SUMIF('4b'!H$5:H$100,$A40,'4b'!$I$5:$I$100)+SUMIF('4c'!H$5:H$100,$A40,'4c'!$I$5:$I$100)+SUMIF('5'!H$5:H$100,$A40,'5'!$I$5:$I$100)+SUMIF('6'!H$5:H$100,$A40,'6'!$I$5:$I$100)+SUMIF('7'!H$5:H$100,$A40,'7'!$I$5:$I$100)+SUMIF('7a'!H$5:H$100,$A40,'7a'!$I$5:$I$100)+SUMIF('7b'!H$5:H$100,$A40,'7b'!$I$5:$I$100)+SUMIF('8'!H$5:H$100,$A40,'8'!$I$5:$I$100)+SUMIF('9'!H$5:H$100,$A40,'9'!$I$5:$I$100)+SUMIF('9a'!H$5:H$100,$A40,'9a'!$I$5:$I$100)+SUMIF('9b'!H$5:H$100,$A40,'9b'!$I$5:$I$100)+SUMIF('9c'!H$5:H$100,$A40,'9c'!$I$5:$I$100)+SUMIF('9d'!H$5:H$100,$A40,'9d'!$I$5:$I$100)+SUMIF('9e'!H$5:H$100,$A40,'9e'!$I$5:$I$100)+SUMIF('9f'!H$5:H$100,$A40,'9f'!$I$5:$I$100)+SUMIF('9g'!H$5:H$100,$A40,'9g'!$I$5:$I$100)+SUMIF('9h'!H$5:H$100,$A40,'9h'!$I$5:$I$100)+SUMIF('9 TOTAL'!H$5:H$100,$A40,'9 TOTAL'!$I$5:$I$100) +SUMIF('10'!H$5:H$100,$A40,'10'!$I$5:$I$100)+SUMIF('10a'!H$5:H$100,$A40,'10a'!$I$5:$I$100)+SUMIF('10b'!H$5:H$100,$A40,'10b'!$I$5:$I$100)+SUMIF('10c'!H$5:H$100,$A40,'10c'!$I$5:$I$100)+SUMIF('10d'!H$5:H$100,$A40,'10d'!$I$5:$I$100)+SUMIF('10e'!H$5:H$100,$A40,'10e'!$I$5:$I$100)+SUMIF('10f'!H$5:H$100,$A40,'10f'!$I$5:$I$100)+SUMIF('10g'!H$5:H$100,$A40,'10g'!$I$5:$I$100)+SUMIF('10h'!H$5:H$100,$A40,'10h'!$I$5:$I$100)+SUMIF('10i'!H$5:H$100,$A40,'10i'!$I$5:$I$100)+SUMIF('10j'!H$5:H$100,$A40,'10j'!$I$5:$I$100)+SUMIF('10k'!H$5:H$100,$A40,'10k'!$I$5:$I$100)+SUMIF('10l'!H$5:H$100,$A40,'10l'!$I$5:$I$100)+SUMIF('10m'!H$5:H$100,$A40,'10m'!$I$5:$I$100)+SUMIF('10 TOTAL'!H$5:H$100,$A40,'10 TOTAL'!$I$5:$I$100) -> 0 | S40: 0
A41: 08-112 | B41: Interest and Costs on Taxes | C41: =SUMIF('4'!H$5:H$100,$A41,'4'!$K$5:$K$100)+SUMIF('4a'!H$5:H$100,$A41,'4a'!$K$5:$K$100)+SUMIF('4b'!H$5:H$100,$A41,'4b'!$K$5:$K$100)+SUMIF('4c'!H$5:H$100,$A41,'4c'!$K$5:$K$100)+SUMIF('5'!H$5:H$100,$A41,'5'!$K$5:$K$100)+SUMIF('6'!H$5:H$100,$A41,'6'!$K$5:$K$100)+SUMIF('7'!H$5:H$100,$A41,'7'!$K$5:$K$100)+SUMIF('7a'!H$5:H$100,$A41,'7a'!$K$5:$K$100)+SUMIF('7b'!H$5:H$100,$A41,'7b'!$K$5:$K$100)+SUMIF('8'!H$5:H$100,$A41,'8'!$K$5:$K$100)+SUMIF('9'!H$5:H$100,$A41,'9'!$K$5:$K$100)+SUMIF('9a'!H$5:H$100,$A41,'9a'!$K$5:$K$100)+SUMIF('9b'!H$5:H$100,$A41,'9b'!$K$5:$K$100)+SUMIF('9c'!H$5:H$100,$A41,'9c'!$K$5:$K$100)+SUMIF('9d'!H$5:H$100,$A41,'9d'!$K$5:$K$100)+SUMIF('9e'!H$5:H$100,$A41,'9e'!$K$5:$K$100)+SUMIF('9f'!H$5:H$100,$A41,'9f'!$K$5:$K$100)+SUMIF('9g'!H$5:H$100,$A41,'9g'!$K$5:$K$100)+SUMIF('9h'!H$5:H$100,$A41,'9h'!$K$5:$K$100)+SUMIF('9 TOTAL'!H$5:H$100,$A41,'9 TOTAL'!$K$5:$K$100) +SUMIF('10'!H$5:H$100,$A41,'10'!$K$5:$K$100)+SUMIF('10a'!H$5:H$100,$A41,'10a'!$K$5:$K$100)+SUMIF('10b'!H$5:H$100,$A41,'10b'!$K$5:$K$100)+SUMIF('10c'!H$5:H$100,$A41,'10c'!$K$5:$K$100)+SUMIF('10d'!H$5:H$100,$A41,'10d'!$K$5:$K$100)+SUMIF('10e'!H$5:H$100,$A41,'10e'!$K$5:$K$100)+SUMIF('10f'!H$5:H$100,$A41,'10f'!$K$5:$K$100)+SUMIF('10g'!H$5:H$100,$A41,'10g'!$K$5:$K$100)+SUMIF('10h'!H$5:H$100,$A41,'10h'!$K$5:$K$100)+SUMIF('10i'!H$5:H$100,$A41,'10i'!$K$5:$K$100)+SUMIF('10j'!H$5:H$100,$A41,'10j'!$K$5:$K$100)+SUMIF('10k'!H$5:H$100,$A41,'10k'!$K$5:$K$100)+SUMIF('10l'!H$5:H$100,$A41,'10l'!$K$5:$K$100)+SUMIF('10m'!H$5:H$100,$A41,'10m'!$K$5:$K$100)+SUMIF('10 TOTAL'!H$5:H$100,$A41,'10 TOTAL'!$K$5:$K$100) -> 1,530 | D41: =SUMIF('4'!H$5:H$100,$A41,'4'!$I$5:$I$100)+SUMIF('4a'!H$5:H$100,$A41,'4a'!$I$5:$I$100)+SUMIF('4b'!H$5:H$100,$A41,'4b'!$I$5:$I$100)+SUMIF('4c'!H$5:H$100,$A41,'4c'!$I$5:$I$100)+SUMIF('5'!H$5:H$100,$A41,'5'!$I$5:$I$100)+SUMIF('6'!H$5:H$100,$A41,'6'!$I$5:$I$100)+SUMIF('7'!H$5:H$100,$A41,'7'!$I$5:$I$100)+SUMIF('7a'!H$5:H$100,$A41,'7a'!$I$5:$I$100)+SUMIF('7b'!H$5:H$100,$A41,'7b'!$I$5:$I$100)+SUMIF('8'!H$5:H$100,$A41,'8'!$I$5:$I$100)+SUMIF('9'!H$5:H$100,$A41,'9'!$I$5:$I$100)+SUMIF('9a'!H$5:H$100,$A41,'9a'!$I$5:$I$100)+SUMIF('9b'!H$5:H$100,$A41,'9b'!$I$5:$I$100)+SUMIF('9c'!H$5:H$100,$A41,'9c'!$I$5:$I$100)+SUMIF('9d'!H$5:H$100,$A41,'9d'!$I$5:$I$100)+SUMIF('9e'!H$5:H$100,$A41,'9e'!$I$5:$I$100)+SUMIF('9f'!H$5:H$100,$A41,'9f'!$I$5:$I$100)+SUMIF('9g'!H$5:H$100,$A41,'9g'!$I$5:$I$100)+SUMIF('9h'!H$5:H$100,$A41,'9h'!$I$5:$I$100)+SUMIF('9 TOTAL'!H$5:H$100,$A41,'9 TOTAL'!$I$5:$I$100) +SUMIF('10'!H$5:H$100,$A41,'10'!$I$5:$I$100)+SUMIF('10a'!H$5:H$100,$A41,'10a'!$I$5:$I$100)+SUMIF('10b'!H$5:H$100,$A41,'10b'!$I$5:$I$100)+SUMIF('10c'!H$5:H$100,$A41,'10c'!$I$5:$I$100)+SUMIF('10d'!H$5:H$100,$A41,'10d'!$I$5:$I$100)+SUMIF('10e'!H$5:H$100,$A41,'10e'!$I$5:$I$100)+SUMIF('10f'!H$5:H$100,$A41,'10f'!$I$5:$I$100)+SUMIF('10g'!H$5:H$100,$A41,'10g'!$I$5:$I$100)+SUMIF('10h'!H$5:H$100,$A41,'10h'!$I$5:$I$100)+SUMIF('10i'!H$5:H$100,$A41,'10i'!$I$5:$I$100)+SUMIF('10j'!H$5:H$100,$A41,'10j'!$I$5:$I$100)+SUMIF('10k'!H$5:H$100,$A41,'10k'!$I$5:$I$100)+SUMIF('10l'!H$5:H$100,$A41,'10l'!$I$5:$I$100)+SUMIF('10m'!H$5:H$100,$A41,'10m'!$I$5:$I$100)+SUMIF('10 TOTAL'!H$5:H$100,$A41,'10 TOTAL'!$I$5:$I$100) -> 1,500 | S41: 3029.76
A42: 08-113 | B42: Interest on Investments | C42: =SUMIF('4'!H$5:H$100,$A42,'4'!$K$5:$K$100)+SUMIF('4a'!H$5:H$100,$A42,'4a'!$K$5:$K$100)+SUMIF('4b'!H$5:H$100,$A42,'4b'!$K$5:$K$100)+SUMIF('4c'!H$5:H$100,$A42,'4c'!$K$5:$K$100)+SUMIF('5'!H$5:H$100,$A42,'5'!$K$5:$K$100)+SUMIF('6'!H$5:H$100,$A42,'6'!$K$5:$K$100)+SUMIF('7'!H$5:H$100,$A42,'7'!$K$5:$K$100)+SUMIF('7a'!H$5:H$100,$A42,'7a'!$K$5:$K$100)+SUMIF('7b'!H$5:H$100,$A42,'7b'!$K$5:$K$100)+SUMIF('8'!H$5:H$100,$A42,'8'!$K$5:$K$100)+SUMIF('9'!H$5:H$100,$A42,'9'!$K$5:$K$100)+SUMIF('9a'!H$5:H$100,$A42,'9a'!$K$5:$K$100)+SUMIF('9b'!H$5:H$100,$A42,'9b'!$K$5:$K$100)+SUMIF('9c'!H$5:H$100,$A42,'9c'!$K$5:$K$100)+SUMIF('9d'!H$5:H$100,$A42,'9d'!$K$5:$K$100)+SUMIF('9e'!H$5:H$100,$A42,'9e'!$K$5:$K$100)+SUMIF('9f'!H$5:H$100,$A42,'9f'!$K$5:$K$100)+SUMIF('9g'!H$5:H$100,$A42,'9g'!$K$5:$K$100)+SUMIF('9h'!H$5:H$100,$A42,'9h'!$K$5:$K$100)+SUMIF('9 TOTAL'!H$5:H$100,$A42,'9 TOTAL'!$K$5:$K$100) +SUMIF('10'!H$5:H$100,$A42,'10'!$K$5:$K$100)+SUMIF('10a'!H$5:H$100,$A42,'10a'!$K$5:$K$100)+SUMIF('10b'!H$5:H$100,$A42,'10b'!$K$5:$K$100)+SUMIF('10c'!H$5:H$100,$A42,'10c'!$K$5:$K$100)+SUMIF('10d'!H$5:H$100,$A42,'10d'!$K$5:$K$100)+SUMIF('10e'!H$5:H$100,$A42,'10e'!$K$5:$K$100)+SUMIF('10f'!H$5:H$100,$A42,'10f'!$K$5:$K$100)+SUMIF('10g'!H$5:H$100,$A42,'10g'!$K$5:$K$100)+SUMIF('10h'!H$5:H$100,$A42,'10h'!$K$5:$K$100)+SUMIF('10i'!H$5:H$100,$A42,'10i'!$K$5:$K$100)+SUMIF('10j'!H$5:H$100,$A42,'10j'!$K$5:$K$100)+SUMIF('10k'!H$5:H$100,$A42,'10k'!$K$5:$K$100)+SUMIF('10l'!H$5:H$100,$A42,'10l'!$K$5:$K$100)+SUMIF('10m'!H$5:H$100,$A42,'10m'!$K$5:$K$100)+SUMIF('10 TOTAL'!H$5:H$100,$A42,'10 TOTAL'!$K$5:$K$100) -> 0 | D42: =SUMIF('4'!H$5:H$100,$A42,'4'!$I$5:$I$100)+SUMIF('4a'!H$5:H$100,$A42,'4a'!$I$5:$I$100)+SUMIF('4b'!H$5:H$100,$A42,'4b'!$I$5:$I$100)+SUMIF('4c'!H$5:H$100,$A42,'4c'!$I$5:$I$100)+SUMIF('5'!H$5:H$100,$A42,'5'!$I$5:$I$100)+SUMIF('6'!H$5:H$100,$A42,'6'!$I$5:$I$100)+SUMIF('7'!H$5:H$100,$A42,'7'!$I$5:$I$100)+SUMIF('7a'!H$5:H$100,$A42,'7a'!$I$5:$I$100)+SUMIF('7b'!H$5:H$100,$A42,'7b'!$I$5:$I$100)+SUMIF('8'!H$5:H$100,$A42,'8'!$I$5:$I$100)+SUMIF('9'!H$5:H$100,$A42,'9'!$I$5:$I$100)+SUMIF('9a'!H$5:H$100,$A42,'9a'!$I$5:$I$100)+SUMIF('9b'!H$5:H$100,$A42,'9b'!$I$5:$I$100)+SUMIF('9c'!H$5:H$100,$A42,'9c'!$I$5:$I$100)+SUMIF('9d'!H$5:H$100,$A42,'9d'!$I$5:$I$100)+SUMIF('9e'!H$5:H$100,$A42,'9e'!$I$5:$I$100)+SUMIF('9f'!H$5:H$100,$A42,'9f'!$I$5:$I$100)+SUMIF('9g'!H$5:H$100,$A42,'9g'!$I$5:$I$100)+SUMIF('9h'!H$5:H$100,$A42,'9h'!$I$5:$I$100)+SUMIF('9 TOTAL'!H$5:H$100,$A42,'9 TOTAL'!$I$5:$I$100) +SUMIF('10'!H$5:H$100,$A42,'10'!$I$5:$I$100)+SUMIF('10a'!H$5:H$100,$A42,'10a'!$I$5:$I$100)+SUMIF('10b'!H$5:H$100,$A42,'10b'!$I$5:$I$100)+SUMIF('10c'!H$5:H$100,$A42,'10c'!$I$5:$I$100)+SUMIF('10d'!H$5:H$100,$A42,'10d'!$I$5:$I$100)+SUMIF('10e'!H$5:H$100,$A42,'10e'!$I$5:$I$100)+SUMIF('10f'!H$5:H$100,$A42,'10f'!$I$5:$I$100)+SUMIF('10g'!H$5:H$100,$A42,'10g'!$I$5:$I$100)+SUMIF('10h'!H$5:H$100,$A42,'10h'!$I$5:$I$100)+SUMIF('10i'!H$5:H$100,$A42,'10i'!$I$5:$I$100)+SUMIF('10j'!H$5:H$100,$A42,'10j'!$I$5:$I$100)+SUMIF('10k'!H$5:H$100,$A42,'10k'!$I$5:$I$100)+SUMIF('10l'!H$5:H$100,$A42,'10l'!$I$5:$I$100)+SUMIF('10m'!H$5:H$100,$A42,'10m'!$I$5:$I$100)+SUMIF('10 TOTAL'!H$5:H$100,$A42,'10 TOTAL'!$I$5:$I$100) -> 0 | S42: 0
A43: 08-114 | B43: Anticipated Utility Operating Surplus | C43: =SUMIF('4'!H$5:H$100,$A43,'4'!$K$5:$K$100)+SUMIF('4a'!H$5:H$100,$A43,'4a'!$K$5:$K$100)+SUMIF('4b'!H$5:H$100,$A43,'4b'!$K$5:$K$100)+SUMIF('4c'!H$5:H$100,$A43,'4c'!$K$5:$K$100)+SUMIF('5'!H$5:H$100,$A43,'5'!$K$5:$K$100)+SUMIF('6'!H$5:H$100,$A43,'6'!$K$5:$K$100)+SUMIF('7'!H$5:H$100,$A43,'7'!$K$5:$K$100)+SUMIF('7a'!H$5:H$100,$A43,'7a'!$K$5:$K$100)+SUMIF('7b'!H$5:H$100,$A43,'7b'!$K$5:$K$100)+SUMIF('8'!H$5:H$100,$A43,'8'!$K$5:$K$100)+SUMIF('9'!H$5:H$100,$A43,'9'!$K$5:$K$100)+SUMIF('9a'!H$5:H$100,$A43,'9a'!$K$5:$K$100)+SUMIF('9b'!H$5:H$100,$A43,'9b'!$K$5:$K$100)+SUMIF('9c'!H$5:H$100,$A43,'9c'!$K$5:$K$100)+SUMIF('9d'!H$5:H$100,$A43,'9d'!$K$5:$K$100)+SUMIF('9e'!H$5:H$100,$A43,'9e'!$K$5:$K$100)+SUMIF('9f'!H$5:H$100,$A43,'9f'!$K$5:$K$100)+SUMIF('9g'!H$5:H$100,$A43,'9g'!$K$5:$K$100)+SUMIF('9h'!H$5:H$100,$A43,'9h'!$K$5:$K$100)+SUMIF('9 TOTAL'!H$5:H$100,$A43,'9 TOTAL'!$K$5:$K$100) +SUMIF('10'!H$5:H$100,$A43,'10'!$K$5:$K$100)+SUMIF('10a'!H$5:H$100,$A43,'10a'!$K$5:$K$100)+SUMIF('10b'!H$5:H$100,$A43,'10b'!$K$5:$K$100)+SUMIF('10c'!H$5:H$100,$A43,'10c'!$K$5:$K$100)+SUMIF('10d'!H$5:H$100,$A43,'10d'!$K$5:$K$100)+SUMIF('10e'!H$5:H$100,$A43,'10e'!$K$5:$K$100)+SUMIF('10f'!H$5:H$100,$A43,'10f'!$K$5:$K$100)+SUMIF('10g'!H$5:H$100,$A43,'10g'!$K$5:$K$100)+SUMIF('10h'!H$5:H$100,$A43,'10h'!$K$5:$K$100)+SUMIF('10i'!H$5:H$100,$A43,'10i'!$K$5:$K$100)+SUMIF('10j'!H$5:H$100,$A43,'10j'!$K$5:$K$100)+SUMIF('10k'!H$5:H$100,$A43,'10k'!$K$5:$K$100)+SUMIF('10l'!H$5:H$100,$A43,'10l'!$K$5:$K$100)+SUMIF('10m'!H$5:H$100,$A43,'10m'!$K$5:$K$100)+SUMIF('10 TOTAL'!H$5:H$100,$A43,'10 TOTAL'!$K$5:$K$100) -> 0 | D43: =SUMIF('4'!H$5:H$100,$A43,'4'!$I$5:$I$100)+SUMIF('4a'!H$5:H$100,$A43,'4a'!$I$5:$I$100)+SUMIF('4b'!H$5:H$100,$A43,'4b'!$I$5:$I$100)+SUMIF('4c'!H$5:H$100,$A43,'4c'!$I$5:$I$100)+SUMIF('5'!H$5:H$100,$A43,'5'!$I$5:$I$100)+SUMIF('6'!H$5:H$100,$A43,'6'!$I$5:$I$100)+SUMIF('7'!H$5:H$100,$A43,'7'!$I$5:$I$100)+SUMIF('7a'!H$5:H$100,$A43,'7a'!$I$5:$I$100)+SUMIF('7b'!H$5:H$100,$A43,'7b'!$I$5:$I$100)+SUMIF('8'!H$5:H$100,$A43,'8'!$I$5:$I$100)+SUMIF('9'!H$5:H$100,$A43,'9'!$I$5:$I$100)+SUMIF('9a'!H$5:H$100,$A43,'9a'!$I$5:$I$100)+SUMIF('9b'!H$5:H$100,$A43,'9b'!$I$5:$I$100)+SUMIF('9c'!H$5:H$100,$A43,'9c'!$I$5:$I$100)+SUMIF('9d'!H$5:H$100,$A43,'9d'!$I$5:$I$100)+SUMIF('9e'!H$5:H$100,$A43,'9e'!$I$5:$I$100)+SUMIF('9f'!H$5:H$100,$A43,'9f'!$I$5:$I$100)+SUMIF('9g'!H$5:H$100,$A43,'9g'!$I$5:$I$100)+SUMIF('9h'!H$5:H$100,$A43,'9h'!$I$5:$I$100)+SUMIF('9 TOTAL'!H$5:H$100,$A43,'9 TOTAL'!$I$5:$I$100) +SUMIF('10'!H$5:H$100,$A43,'10'!$I$5:$I$100)+SUMIF('10a'!H$5:H$100,$A43,'10a'!$I$5:$I$100)+SUMIF('10b'!H$5:H$100,$A43,'10b'!$I$5:$I$100)+SUMIF('10c'!H$5:H$100,$A43,'10c'!$I$5:$I$100)+SUMIF('10d'!H$5:H$100,$A43,'10d'!$I$5:$I$100)+SUMIF('10e'!H$5:H$100,$A43,'10e'!$I$5:$I$100)+SUMIF('10f'!H$5:H$100,$A43,'10f'!$I$5:$I$100)+SUMIF('10g'!H$5:H$100,$A43,'10g'!$I$5:$I$100)+SUMIF('10h'!H$5:H$100,$A43,'10h'!$I$5:$I$100)+SUMIF('10i'!H$5:H$100,$A43,'10i'!$I$5:$I$100)+SUMIF('10j'!H$5:H$100,$A43,'10j'!$I$5:$I$100)+SUMIF('10k'!H$5:H$100,$A43,'10k'!$I$5:$I$100)+SUMIF('10l'!H$5:H$100,$A43,'10l'!$I$5:$I$100)+SUMIF('10m'!H$5:H$100,$A43,'10m'!$I$5:$I$100)+SUMIF('10 TOTAL'!H$5:H$100,$A43,'10 TOTAL'!$I$5:$I$100) -> 0 | S43: 0
A44: 08-115 | B44: Interest and Costs on Assessments | C44: =SUMIF('4'!H$5:H$100,$A44,'4'!$K$5:$K$100)+SUMIF('4a'!H$5:H$100,$A44,'4a'!$K$5:$K$100)+SUMIF('4b'!H$5:H$100,$A44,'4b'!$K$5:$K$100)+SUMIF('4c'!H$5:H$100,$A44,'4c'!$K$5:$K$100)+SUMIF('5'!H$5:H$100,$A44,'5'!$K$5:$K$100)+SUMIF('6'!H$5:H$100,$A44,'6'!$K$5:$K$100)+SUMIF('7'!H$5:H$100,$A44,'7'!$K$5:$K$100)+SUMIF('7a'!H$5:H$100,$A44,'7a'!$K$5:$K$100)+SUMIF('7b'!H$5:H$100,$A44,'7b'!$K$5:$K$100)+SUMIF('8'!H$5:H$100,$A44,'8'!$K$5:$K$100)+SUMIF('9'!H$5:H$100,$A44,'9'!$K$5:$K$100)+SUMIF('9a'!H$5:H$100,$A44,'9a'!$K$5:$K$100)+SUMIF('9b'!H$5:H$100,$A44,'9b'!$K$5:$K$100)+SUMIF('9c'!H$5:H$100,$A44,'9c'!$K$5:$K$100)+SUMIF('9d'!H$5:H$100,$A44,'9d'!$K$5:$K$100)+SUMIF('9e'!H$5:H$100,$A44,'9e'!$K$5:$K$100)+SUMIF('9f'!H$5:H$100,$A44,'9f'!$K$5:$K$100)+SUMIF('9g'!H$5:H$100,$A44,'9g'!$K$5:$K$100)+SUMIF('9h'!H$5:H$100,$A44,'9h'!$K$5:$K$100)+SUMIF('9 TOTAL'!H$5:H$100,$A44,'9 TOTAL'!$K$5:$K$100) +SUMIF('10'!H$5:H$100,$A44,'10'!$K$5:$K$100)+SUMIF('10a'!H$5:H$100,$A44,'10a'!$K$5:$K$100)+SUMIF('10b'!H$5:H$100,$A44,'10b'!$K$5:$K$100)+SUMIF('10c'!H$5:H$100,$A44,'10c'!$K$5:$K$100)+SUMIF('10d'!H$5:H$100,$A44,'10d'!$K$5:$K$100)+SUMIF('10e'!H$5:H$100,$A44,'10e'!$K$5:$K$100)+SUMIF('10f'!H$5:H$100,$A44,'10f'!$K$5:$K$100)+SUMIF('10g'!H$5:H$100,$A44,'10g'!$K$5:$K$100)+SUMIF('10h'!H$5:H$100,$A44,'10h'!$K$5:$K$100)+SUMIF('10i'!H$5:H$100,$A44,'10i'!$K$5:$K$100)+SUMIF('10j'!H$5:H$100,$A44,'10j'!$K$5:$K$100)+SUMIF('10k'!H$5:H$100,$A44,'10k'!$K$5:$K$100)+SUMIF('10l'!H$5:H$100,$A44,'10l'!$K$5:$K$100)+SUMIF('10m'!H$5:H$100,$A44,'10m'!$K$5:$K$100)+SUMIF('10 TOTAL'!H$5:H$100,$A44,'10 TOTAL'!$K$5:$K$100) -> 0 | D44: =SUMIF('4'!H$5:H$100,$A44,'4'!$I$5:$I$100)+SUMIF('4a'!H$5:H$100,$A44,'4a'!$I$5:$I$100)+SUMIF('4b'!H$5:H$100,$A44,'4b'!$I$5:$I$100)+SUMIF('4c'!H$5:H$100,$A44,'4c'!$I$5:$I$100)+SUMIF('5'!H$5:H$100,$A44,'5'!$I$5:$I$100)+SUMIF('6'!H$5:H$100,$A44,'6'!$I$5:$I$100)+SUMIF('7'!H$5:H$100,$A44,'7'!$I$5:$I$100)+SUMIF('7a'!H$5:H$100,$A44,'7a'!$I$5:$I$100)+SUMIF('7b'!H$5:H$100,$A44,'7b'!$I$5:$I$100)+SUMIF('8'!H$5:H$100,$A44,'8'!$I$5:$I$100)+SUMIF('9'!H$5:H$100,$A44,'9'!$I$5:$I$100)+SUMIF('9a'!H$5:H$100,$A44,'9a'!$I$5:$I$100)+SUMIF('9b'!H$5:H$100,$A44,'9b'!$I$5:$I$100)+SUMIF('9c'!H$5:H$100,$A44,'9c'!$I$5:$I$100)+SUMIF('9d'!H$5:H$100,$A44,'9d'!$I$5:$I$100)+SUMIF('9e'!H$5:H$100,$A44,'9e'!$I$5:$I$100)+SUMIF('9f'!H$5:H$100,$A44,'9f'!$I$5:$I$100)+SUMIF('9g'!H$5:H$100,$A44,'9g'!$I$5:$I$100)+SUMIF('9h'!H$5:H$100,$A44,'9h'!$I$5:$I$100)+SUMIF('9 TOTAL'!H$5:H$100,$A44,'9 TOTAL'!$I$5:$I$100) +SUMIF('10'!H$5:H$100,$A44,'10'!$I$5:$I$100)+SUMIF('10a'!H$5:H$100,$A44,'10a'!$I$5:$I$100)+SUMIF('10b'!H$5:H$100,$A44,'10b'!$I$5:$I$100)+SUMIF('10c'!H$5:H$100,$A44,'10c'!$I$5:$I$100)+SUMIF('10d'!H$5:H$100,$A44,'10d'!$I$5:$I$100)+SUMIF('10e'!H$5:H$100,$A44,'10e'!$I$5:$I$100)+SUMIF('10f'!H$5:H$100,$A44,'10f'!$I$5:$I$100)+SUMIF('10g'!H$5:H$100,$A44,'10g'!$I$5:$I$100)+SUMIF('10h'!H$5:H$100,$A44,'10h'!$I$5:$I$100)+SUMIF('10i'!H$5:H$100,$A44,'10i'!$I$5:$I$100)+SUMIF('10j'!H$5:H$100,$A44,'10j'!$I$5:$I$100)+SUMIF('10k'!H$5:H$100,$A44,'10k'!$I$5:$I$100)+SUMIF('10l'!H$5:H$100,$A44,'10l'!$I$5:$I$100)+SUMIF('10m'!H$5:H$100,$A44,'10m'!$I$5:$I$100)+SUMIF('10 TOTAL'!H$5:H$100,$A44,'10 TOTAL'!$I$5:$I$100) -> 0 | S44: 0
A45: 08-118 | B45: Rental of Municipally Owned Property | C45: =SUMIF('4'!H$5:H$100,$A45,'4'!$K$5:$K$100)+SUMIF('4a'!H$5:H$100,$A45,'4a'!$K$5:$K$100)+SUMIF('4b'!H$5:H$100,$A45,'4b'!$K$5:$K$100)+SUMIF('4c'!H$5:H$100,$A45,'4c'!$K$5:$K$100)+SUMIF('5'!H$5:H$100,$A45,'5'!$K$5:$K$100)+SUMIF('6'!H$5:H$100,$A45,'6'!$K$5:$K$100)+SUMIF('7'!H$5:H$100,$A45,'7'!$K$5:$K$100)+SUMIF('7a'!H$5:H$100,$A45,'7a'!$K$5:$K$100)+SUMIF('7b'!H$5:H$100,$A45,'7b'!$K$5:$K$100)+SUMIF('8'!H$5:H$100,$A45,'8'!$K$5:$K$100)+SUMIF('9'!H$5:H$100,$A45,'9'!$K$5:$K$100)+SUMIF('9a'!H$5:H$100,$A45,'9a'!$K$5:$K$100)+SUMIF('9b'!H$5:H$100,$A45,'9b'!$K$5:$K$100)+SUMIF('9c'!H$5:H$100,$A45,'9c'!$K$5:$K$100)+SUMIF('9d'!H$5:H$100,$A45,'9d'!$K$5:$K$100)+SUMIF('9e'!H$5:H$100,$A45,'9e'!$K$5:$K$100)+SUMIF('9f'!H$5:H$100,$A45,'9f'!$K$5:$K$100)+SUMIF('9g'!H$5:H$100,$A45,'9g'!$K$5:$K$100)+SUMIF('9h'!H$5:H$100,$A45,'9h'!$K$5:$K$100)+SUMIF('9 TOTAL'!H$5:H$100,$A45,'9 TOTAL'!$K$5:$K$100) +SUMIF('10'!H$5:H$100,$A45,'10'!$K$5:$K$100)+SUMIF('10a'!H$5:H$100,$A45,'10a'!$K$5:$K$100)+SUMIF('10b'!H$5:H$100,$A45,'10b'!$K$5:$K$100)+SUMIF('10c'!H$5:H$100,$A45,'10c'!$K$5:$K$100)+SUMIF('10d'!H$5:H$100,$A45,'10d'!$K$5:$K$100)+SUMIF('10e'!H$5:H$100,$A45,'10e'!$K$5:$K$100)+SUMIF('10f'!H$5:H$100,$A45,'10f'!$K$5:$K$100)+SUMIF('10g'!H$5:H$100,$A45,'10g'!$K$5:$K$100)+SUMIF('10h'!H$5:H$100,$A45,'10h'!$K$5:$K$100)+SUMIF('10i'!H$5:H$100,$A45,'10i'!$K$5:$K$100)+SUMIF('10j'!H$5:H$100,$A45,'10j'!$K$5:$K$100)+SUMIF('10k'!H$5:H$100,$A45,'10k'!$K$5:$K$100)+SUMIF('10l'!H$5:H$100,$A45,'10l'!$K$5:$K$100)+SUMIF('10m'!H$5:H$100,$A45,'10m'!$K$5:$K$100)+SUMIF('10 TOTAL'!H$5:H$100,$A45,'10 TOTAL'!$K$5:$K$100) -> 5,500 | D45: =SUMIF('4'!H$5:H$100,$A45,'4'!$I$5:$I$100)+SUMIF('4a'!H$5:H$100,$A45,'4a'!$I$5:$I$100)+SUMIF('4b'!H$5:H$100,$A45,'4b'!$I$5:$I$100)+SUMIF('4c'!H$5:H$100,$A45,'4c'!$I$5:$I$100)+SUMIF('5'!H$5:H$100,$A45,'5'!$I$5:$I$100)+SUMIF('6'!H$5:H$100,$A45,'6'!$I$5:$I$100)+SUMIF('7'!H$5:H$100,$A45,'7'!$I$5:$I$100)+SUMIF('7a'!H$5:H$100,$A45,'7a'!$I$5:$I$100)+SUMIF('7b'!H$5:H$100,$A45,'7b'!$I$5:$I$100)+SUMIF('8'!H$5:H$100,$A45,'8'!$I$5:$I$100)+SUMIF('9'!H$5:H$100,$A45,'9'!$I$5:$I$100)+SUMIF('9a'!H$5:H$100,$A45,'9a'!$I$5:$I$100)+SUMIF('9b'!H$5:H$100,$A45,'9b'!$I$5:$I$100)+SUMIF('9c'!H$5:H$100,$A45,'9c'!$I$5:$I$100)+SUMIF('9d'!H$5:H$100,$A45,'9d'!$I$5:$I$100)+SUMIF('9e'!H$5:H$100,$A45,'9e'!$I$5:$I$100)+SUMIF('9f'!H$5:H$100,$A45,'9f'!$I$5:$I$100)+SUMIF('9g'!H$5:H$100,$A45,'9g'!$I$5:$I$100)+SUMIF('9h'!H$5:H$100,$A45,'9h'!$I$5:$I$100)+SUMIF('9 TOTAL'!H$5:H$100,$A45,'9 TOTAL'!$I$5:$I$100) +SUMIF('10'!H$5:H$100,$A45,'10'!$I$5:$I$100)+SUMIF('10a'!H$5:H$100,$A45,'10a'!$I$5:$I$100)+SUMIF('10b'!H$5:H$100,$A45,'10b'!$I$5:$I$100)+SUMIF('10c'!H$5:H$100,$A45,'10c'!$I$5:$I$100)+SUMIF('10d'!H$5:H$100,$A45,'10d'!$I$5:$I$100)+SUMIF('10e'!H$5:H$100,$A45,'10e'!$I$5:$I$100)+SUMIF('10f'!H$5:H$100,$A45,'10f'!$I$5:$I$100)+SUMIF('10g'!H$5:H$100,$A45,'10g'!$I$5:$I$100)+SUMIF('10h'!H$5:H$100,$A45,'10h'!$I$5:$I$100)+SUMIF('10i'!H$5:H$100,$A45,'10i'!$I$5:$I$100)+SUMIF('10j'!H$5:H$100,$A45,'10j'!$I$5:$I$100)+SUMIF('10k'!H$5:H$100,$A45,'10k'!$I$5:$I$100)+SUMIF('10l'!H$5:H$100,$A45,'10l'!$I$5:$I$100)+SUMIF('10m'!H$5:H$100,$A45,'10m'!$I$5:$I$100)+SUMIF('10 TOTAL'!H$5:H$100,$A45,'10 TOTAL'!$I$5:$I$100) -> 5,500 | S45: 11000.15
A46: 08-120 | B46: Rental Registration Fees | C46: =SUMIF('4'!H$5:H$100,$A46,'4'!$K$5:$K$100)+SUMIF('4a'!H$5:H$100,$A46,'4a'!$K$5:$K$100)+SUMIF('4b'!H$5:H$100,$A46,'4b'!$K$5:$K$100)+SUMIF('4c'!H$5:H$100,$A46,'4c'!$K$5:$K$100)+SUMIF('5'!H$5:H$100,$A46,'5'!$K$5:$K$100)+SUMIF('6'!H$5:H$100,$A46,'6'!$K$5:$K$100)+SUMIF('7'!H$5:H$100,$A46,'7'!$K$5:$K$100)+SUMIF('7a'!H$5:H$100,$A46,'7a'!$K$5:$K$100)+SUMIF('7b'!H$5:H$100,$A46,'7b'!$K$5:$K$100)+SUMIF('8'!H$5:H$100,$A46,'8'!$K$5:$K$100)+SUMIF('9'!H$5:H$100,$A46,'9'!$K$5:$K$100)+SUMIF('9a'!H$5:H$100,$A46,'9a'!$K$5:$K$100)+SUMIF('9b'!H$5:H$100,$A46,'9b'!$K$5:$K$100)+SUMIF('9c'!H$5:H$100,$A46,'9c'!$K$5:$K$100)+SUMIF('9d'!H$5:H$100,$A46,'9d'!$K$5:$K$100)+SUMIF('9e'!H$5:H$100,$A46,'9e'!$K$5:$K$100)+SUMIF('9f'!H$5:H$100,$A46,'9f'!$K$5:$K$100)+SUMIF('9g'!H$5:H$100,$A46,'9g'!$K$5:$K$100)+SUMIF('9h'!H$5:H$100,$A46,'9h'!$K$5:$K$100)+SUMIF('9 TOTAL'!H$5:H$100,$A46,'9 TOTAL'!$K$5:$K$100) +SUMIF('10'!H$5:H$100,$A46,'10'!$K$5:$K$100)+SUMIF('10a'!H$5:H$100,$A46,'10a'!$K$5:$K$100)+SUMIF('10b'!H$5:H$100,$A46,'10b'!$K$5:$K$100)+SUMIF('10c'!H$5:H$100,$A46,'10c'!$K$5:$K$100)+SUMIF('10d'!H$5:H$100,$A46,'10d'!$K$5:$K$100)+SUMIF('10e'!H$5:H$100,$A46,'10e'!$K$5:$K$100)+SUMIF('10f'!H$5:H$100,$A46,'10f'!$K$5:$K$100)+SUMIF('10g'!H$5:H$100,$A46,'10g'!$K$5:$K$100)+SUMIF('10h'!H$5:H$100,$A46,'10h'!$K$5:$K$100)+SUMIF('10i'!H$5:H$100,$A46,'10i'!$K$5:$K$100)+SUMIF('10j'!H$5:H$100,$A46,'10j'!$K$5:$K$100)+SUMIF('10k'!H$5:H$100,$A46,'10k'!$K$5:$K$100)+SUMIF('10l'!H$5:H$100,$A46,'10l'!$K$5:$K$100)+SUMIF('10m'!H$5:H$100,$A46,'10m'!$K$5:$K$100)+SUMIF('10 TOTAL'!H$5:H$100,$A46,'10 TOTAL'!$K$5:$K$100) -> 0 | D46: =SUMIF('4'!H$5:H$100,$A46,'4'!$I$5:$I$100)+SUMIF('4a'!H$5:H$100,$A46,'4a'!$I$5:$I$100)+SUMIF('4b'!H$5:H$100,$A46,'4b'!$I$5:$I$100)+SUMIF('4c'!H$5:H$100,$A46,'4c'!$I$5:$I$100)+SUMIF('5'!H$5:H$100,$A46,'5'!$I$5:$I$100)+SUMIF('6'!H$5:H$100,$A46,'6'!$I$5:$I$100)+SUMIF('7'!H$5:H$100,$A46,'7'!$I$5:$I$100)+SUMIF('7a'!H$5:H$100,$A46,'7a'!$I$5:$I$100)+SUMIF('7b'!H$5:H$100,$A46,'7b'!$I$5:$I$100)+SUMIF('8'!H$5:H$100,$A46,'8'!$I$5:$I$100)+SUMIF('9'!H$5:H$100,$A46,'9'!$I$5:$I$100)+SUMIF('9a'!H$5:H$100,$A46,'9a'!$I$5:$I$100)+SUMIF('9b'!H$5:H$100,$A46,'9b'!$I$5:$I$100)+SUMIF('9c'!H$5:H$100,$A46,'9c'!$I$5:$I$100)+SUMIF('9d'!H$5:H$100,$A46,'9d'!$I$5:$I$100)+SUMIF('9e'!H$5:H$100,$A46,'9e'!$I$5:$I$100)+SUMIF('9f'!H$5:H$100,$A46,'9f'!$I$5:$I$100)+SUMIF('9g'!H$5:H$100,$A46,'9g'!$I$5:$I$100)+SUMIF('9h'!H$5:H$100,$A46,'9h'!$I$5:$I$100)+SUMIF('9 TOTAL'!H$5:H$100,$A46,'9 TOTAL'!$I$5:$I$100) +SUMIF('10'!H$5:H$100,$A46,'10'!$I$5:$I$100)+SUMIF('10a'!H$5:H$100,$A46,'10a'!$I$5:$I$100)+SUMIF('10b'!H$5:H$100,$A46,'10b'!$I$5:$I$100)+SUMIF('10c'!H$5:H$100,$A46,'10c'!$I$5:$I$100)+SUMIF('10d'!H$5:H$100,$A46,'10d'!$I$5:$I$100)+SUMIF('10e'!H$5:H$100,$A46,'10e'!$I$5:$I$100)+SUMIF('10f'!H$5:H$100,$A46,'10f'!$I$5:$I$100)+SUMIF('10g'!H$5:H$100,$A46,'10g'!$I$5:$I$100)+SUMIF('10h'!H$5:H$100,$A46,'10h'!$I$5:$I$100)+SUMIF('10i'!H$5:H$100,$A46,'10i'!$I$5:$I$100)+SUMIF('10j'!H$5:H$100,$A46,'10j'!$I$5:$I$100)+SUMIF('10k'!H$5:H$100,$A46,'10k'!$I$5:$I$100)+SUMIF('10l'!H$5:H$100,$A46,'10l'!$I$5:$I$100)+SUMIF('10m'!H$5:H$100,$A46,'10m'!$I$5:$I$100)+SUMIF('10 TOTAL'!H$5:H$100,$A46,'10 TOTAL'!$I$5:$I$100) -> 0 | S46: 0
A47: 08-123 | B47: Sewer Service Fees (No Sewer Utility) | C47: =SUMIF('4'!H$5:H$100,$A47,'4'!$K$5:$K$100)+SUMIF('4a'!H$5:H$100,$A47,'4a'!$K$5:$K$100)+SUMIF('4b'!H$5:H$100,$A47,'4b'!$K$5:$K$100)+SUMIF('4c'!H$5:H$100,$A47,'4c'!$K$5:$K$100)+SUMIF('5'!H$5:H$100,$A47,'5'!$K$5:$K$100)+SUMIF('6'!H$5:H$100,$A47,'6'!$K$5:$K$100)+SUMIF('7'!H$5:H$100,$A47,'7'!$K$5:$K$100)+SUMIF('7a'!H$5:H$100,$A47,'7a'!$K$5:$K$100)+SUMIF('7b'!H$5:H$100,$A47,'7b'!$K$5:$K$100)+SUMIF('8'!H$5:H$100,$A47,'8'!$K$5:$K$100)+SUMIF('9'!H$5:H$100,$A47,'9'!$K$5:$K$100)+SUMIF('9a'!H$5:H$100,$A47,'9a'!$K$5:$K$100)+SUMIF('9b'!H$5:H$100,$A47,'9b'!$K$5:$K$100)+SUMIF('9c'!H$5:H$100,$A47,'9c'!$K$5:$K$100)+SUMIF('9d'!H$5:H$100,$A47,'9d'!$K$5:$K$100)+SUMIF('9e'!H$5:H$100,$A47,'9e'!$K$5:$K$100)+SUMIF('9f'!H$5:H$100,$A47,'9f'!$K$5:$K$100)+SUMIF('9g'!H$5:H$100,$A47,'9g'!$K$5:$K$100)+SUMIF('9h'!H$5:H$100,$A47,'9h'!$K$5:$K$100)+SUMIF('9 TOTAL'!H$5:H$100,$A47,'9 TOTAL'!$K$5:$K$100) +SUMIF('10'!H$5:H$100,$A47,'10'!$K$5:$K$100)+SUMIF('10a'!H$5:H$100,$A47,'10a'!$K$5:$K$100)+SUMIF('10b'!H$5:H$100,$A47,'10b'!$K$5:$K$100)+SUMIF('10c'!H$5:H$100,$A47,'10c'!$K$5:$K$100)+SUMIF('10d'!H$5:H$100,$A47,'10d'!$K$5:$K$100)+SUMIF('10e'!H$5:H$100,$A47,'10e'!$K$5:$K$100)+SUMIF('10f'!H$5:H$100,$A47,'10f'!$K$5:$K$100)+SUMIF('10g'!H$5:H$100,$A47,'10g'!$K$5:$K$100)+SUMIF('10h'!H$5:H$100,$A47,'10h'!$K$5:$K$100)+SUMIF('10i'!H$5:H$100,$A47,'10i'!$K$5:$K$100)+SUMIF('10j'!H$5:H$100,$A47,'10j'!$K$5:$K$100)+SUMIF('10k'!H$5:H$100,$A47,'10k'!$K$5:$K$100)+SUMIF('10l'!H$5:H$100,$A47,'10l'!$K$5:$K$100)+SUMIF('10m'!H$5:H$100,$A47,'10m'!$K$5:$K$100)+SUMIF('10 TOTAL'!H$5:H$100,$A47,'10 TOTAL'!$K$5:$K$100) -> 0 | D47: =SUMIF('4'!H$5:H$100,$A47,'4'!$I$5:$I$100)+SUMIF('4a'!H$5:H$100,$A47,'4a'!$I$5:$I$100)+SUMIF('4b'!H$5:H$100,$A47,'4b'!$I$5:$I$100)+SUMIF('4c'!H$5:H$100,$A47,'4c'!$I$5:$I$100)+SUMIF('5'!H$5:H$100,$A47,'5'!$I$5:$I$100)+SUMIF('6'!H$5:H$100,$A47,'6'!$I$5:$I$100)+SUMIF('7'!H$5:H$100,$A47,'7'!$I$5:$I$100)+SUMIF('7a'!H$5:H$100,$A47,'7a'!$I$5:$I$100)+SUMIF('7b'!H$5:H$100,$A47,'7b'!$I$5:$I$100)+SUMIF('8'!H$5:H$100,$A47,'8'!$I$5:$I$100)+SUMIF('9'!H$5:H$100,$A47,'9'!$I$5:$I$100)+SUMIF('9a'!H$5:H$100,$A47,'9a'!$I$5:$I$100)+SUMIF('9b'!H$5:H$100,$A47,'9b'!$I$5:$I$100)+SUMIF('9c'!H$5:H$100,$A47,'9c'!$I$5:$I$100)+SUMIF('9d'!H$5:H$100,$A47,'9d'!$I$5:$I$100)+SUMIF('9e'!H$5:H$100,$A47,'9e'!$I$5:$I$100)+SUMIF('9f'!H$5:H$100,$A47,'9f'!$I$5:$I$100)+SUMIF('9g'!H$5:H$100,$A47,'9g'!$I$5:$I$100)+SUMIF('9h'!H$5:H$100,$A47,'9h'!$I$5:$I$100)+SUMIF('9 TOTAL'!H$5:H$100,$A47,'9 TOTAL'!$I$5:$I$100) +SUMIF('10'!H$5:H$100,$A47,'10'!$I$5:$I$100)+SUMIF('10a'!H$5:H$100,$A47,'10a'!$I$5:$I$100)+SUMIF('10b'!H$5:H$100,$A47,'10b'!$I$5:$I$100)+SUMIF('10c'!H$5:H$100,$A47,'10c'!$I$5:$I$100)+SUMIF('10d'!H$5:H$100,$A47,'10d'!$I$5:$I$100)+SUMIF('10e'!H$5:H$100,$A47,'10e'!$I$5:$I$100)+SUMIF('10f'!H$5:H$100,$A47,'10f'!$I$5:$I$100)+SUMIF('10g'!H$5:H$100,$A47,'10g'!$I$5:$I$100)+SUMIF('10h'!H$5:H$100,$A47,'10h'!$I$5:$I$100)+SUMIF('10i'!H$5:H$100,$A47,'10i'!$I$5:$I$100)+SUMIF('10j'!H$5:H$100,$A47,'10j'!$I$5:$I$100)+SUMIF('10k'!H$5:H$100,$A47,'10k'!$I$5:$I$100)+SUMIF('10l'!H$5:H$100,$A47,'10l'!$I$5:$I$100)+SUMIF('10m'!H$5:H$100,$A47,'10m'!$I$5:$I$100)+SUMIF('10 TOTAL'!H$5:H$100,$A47,'10 TOTAL'!$I$5:$I$100) -> 0 | S47: 0
A48: 08-125 | B48: Board of Health Fees | C48: =SUMIF('4'!H$5:H$100,$A48,'4'!$K$5:$K$100)+SUMIF('4a'!H$5:H$100,$A48,'4a'!$K$5:$K$100)+SUMIF('4b'!H$5:H$100,$A48,'4b'!$K$5:$K$100)+SUMIF('4c'!H$5:H$100,$A48,'4c'!$K$5:$K$100)+SUMIF('5'!H$5:H$100,$A48,'5'!$K$5:$K$100)+SUMIF('6'!H$5:H$100,$A48,'6'!$K$5:$K$100)+SUMIF('7'!H$5:H$100,$A48,'7'!$K$5:$K$100)+SUMIF('7a'!H$5:H$100,$A48,'7a'!$K$5:$K$100)+SUMIF('7b'!H$5:H$100,$A48,'7b'!$K$5:$K$100)+SUMIF('8'!H$5:H$100,$A48,'8'!$K$5:$K$100)+SUMIF('9'!H$5:H$100,$A48,'9'!$K$5:$K$100)+SUMIF('9a'!H$5:H$100,$A48,'9a'!$K$5:$K$100)+SUMIF('9b'!H$5:H$100,$A48,'9b'!$K$5:$K$100)+SUMIF('9c'!H$5:H$100,$A48,'9c'!$K$5:$K$100)+SUMIF('9d'!H$5:H$100,$A48,'9d'!$K$5:$K$100)+SUMIF('9e'!H$5:H$100,$A48,'9e'!$K$5:$K$100)+SUMIF('9f'!H$5:H$100,$A48,'9f'!$K$5:$K$100)+SUMIF('9g'!H$5:H$100,$A48,'9g'!$K$5:$K$100)+SUMIF('9h'!H$5:H$100,$A48,'9h'!$K$5:$K$100)+SUMIF('9 TOTAL'!H$5:H$100,$A48,'9 TOTAL'!$K$5:$K$100) +SUMIF('10'!H$5:H$100,$A48,'10'!$K$5:$K$100)+SUMIF('10a'!H$5:H$100,$A48,'10a'!$K$5:$K$100)+SUMIF('10b'!H$5:H$100,$A48,'10b'!$K$5:$K$100)+SUMIF('10c'!H$5:H$100,$A48,'10c'!$K$5:$K$100)+SUMIF('10d'!H$5:H$100,$A48,'10d'!$K$5:$K$100)+SUMIF('10e'!H$5:H$100,$A48,'10e'!$K$5:$K$100)+SUMIF('10f'!H$5:H$100,$A48,'10f'!$K$5:$K$100)+SUMIF('10g'!H$5:H$100,$A48,'10g'!$K$5:$K$100)+SUMIF('10h'!H$5:H$100,$A48,'10h'!$K$5:$K$100)+SUMIF('10i'!H$5:H$100,$A48,'10i'!$K$5:$K$100)+SUMIF('10j'!H$5:H$100,$A48,'10j'!$K$5:$K$100)+SUMIF('10k'!H$5:H$100,$A48,'10k'!$K$5:$K$100)+SUMIF('10l'!H$5:H$100,$A48,'10l'!$K$5:$K$100)+SUMIF('10m'!H$5:H$100,$A48,'10m'!$K$5:$K$100)+SUMIF('10 TOTAL'!H$5:H$100,$A48,'10 TOTAL'!$K$5:$K$100) -> 0 | D48: =SUMIF('4'!H$5:H$100,$A48,'4'!$I$5:$I$100)+SUMIF('4a'!H$5:H$100,$A48,'4a'!$I$5:$I$100)+SUMIF('4b'!H$5:H$100,$A48,'4b'!$I$5:$I$100)+SUMIF('4c'!H$5:H$100,$A48,'4c'!$I$5:$I$100)+SUMIF('5'!H$5:H$100,$A48,'5'!$I$5:$I$100)+SUMIF('6'!H$5:H$100,$A48,'6'!$I$5:$I$100)+SUMIF('7'!H$5:H$100,$A48,'7'!$I$5:$I$100)+SUMIF('7a'!H$5:H$100,$A48,'7a'!$I$5:$I$100)+SUMIF('7b'!H$5:H$100,$A48,'7b'!$I$5:$I$100)+SUMIF('8'!H$5:H$100,$A48,'8'!$I$5:$I$100)+SUMIF('9'!H$5:H$100,$A48,'9'!$I$5:$I$100)+SUMIF('9a'!H$5:H$100,$A48,'9a'!$I$5:$I$100)+SUMIF('9b'!H$5:H$100,$A48,'9b'!$I$5:$I$100)+SUMIF('9c'!H$5:H$100,$A48,'9c'!$I$5:$I$100)+SUMIF('9d'!H$5:H$100,$A48,'9d'!$I$5:$I$100)+SUMIF('9e'!H$5:H$100,$A48,'9e'!$I$5:$I$100)+SUMIF('9f'!H$5:H$100,$A48,'9f'!$I$5:$I$100)+SUMIF('9g'!H$5:H$100,$A48,'9g'!$I$5:$I$100)+SUMIF('9h'!H$5:H$100,$A48,'9h'!$I$5:$I$100)+SUMIF('9 TOTAL'!H$5:H$100,$A48,'9 TOTAL'!$I$5:$I$100) +SUMIF('10'!H$5:H$100,$A48,'10'!$I$5:$I$100)+SUMIF('10a'!H$5:H$100,$A48,'10a'!$I$5:$I$100)+SUMIF('10b'!H$5:H$100,$A48,'10b'!$I$5:$I$100)+SUMIF('10c'!H$5:H$100,$A48,'10c'!$I$5:$I$100)+SUMIF('10d'!H$5:H$100,$A48,'10d'!$I$5:$I$100)+SUMIF('10e'!H$5:H$100,$A48,'10e'!$I$5:$I$100)+SUMIF('10f'!H$5:H$100,$A48,'10f'!$I$5:$I$100)+SUMIF('10g'!H$5:H$100,$A48,'10g'!$I$5:$I$100)+SUMIF('10h'!H$5:H$100,$A48,'10h'!$I$5:$I$100)+SUMIF('10i'!H$5:H$100,$A48,'10i'!$I$5:$I$100)+SUMIF('10j'!H$5:H$100,$A48,'10j'!$I$5:$I$100)+SUMIF('10k'!H$5:H$100,$A48,'10k'!$I$5:$I$100)+SUMIF('10l'!H$5:H$100,$A48,'10l'!$I$5:$I$100)+SUMIF('10m'!H$5:H$100,$A48,'10m'!$I$5:$I$100)+SUMIF('10 TOTAL'!H$5:H$100,$A48,'10 TOTAL'!$I$5:$I$100) -> 0 | S48: 0
A49: 08-129 | B49: Foreclosed Property Registration Fees | C49: =SUMIF('4'!H$5:H$100,$A49,'4'!$K$5:$K$100)+SUMIF('4a'!H$5:H$100,$A49,'4a'!$K$5:$K$100)+SUMIF('4b'!H$5:H$100,$A49,'4b'!$K$5:$K$100)+SUMIF('4c'!H$5:H$100,$A49,'4c'!$K$5:$K$100)+SUMIF('5'!H$5:H$100,$A49,'5'!$K$5:$K$100)+SUMIF('6'!H$5:H$100,$A49,'6'!$K$5:$K$100)+SUMIF('7'!H$5:H$100,$A49,'7'!$K$5:$K$100)+SUMIF('7a'!H$5:H$100,$A49,'7a'!$K$5:$K$100)+SUMIF('7b'!H$5:H$100,$A49,'7b'!$K$5:$K$100)+SUMIF('8'!H$5:H$100,$A49,'8'!$K$5:$K$100)+SUMIF('9'!H$5:H$100,$A49,'9'!$K$5:$K$100)+SUMIF('9a'!H$5:H$100,$A49,'9a'!$K$5:$K$100)+SUMIF('9b'!H$5:H$100,$A49,'9b'!$K$5:$K$100)+SUMIF('9c'!H$5:H$100,$A49,'9c'!$K$5:$K$100)+SUMIF('9d'!H$5:H$100,$A49,'9d'!$K$5:$K$100)+SUMIF('9e'!H$5:H$100,$A49,'9e'!$K$5:$K$100)+SUMIF('9f'!H$5:H$100,$A49,'9f'!$K$5:$K$100)+SUMIF('9g'!H$5:H$100,$A49,'9g'!$K$5:$K$100)+SUMIF('9h'!H$5:H$100,$A49,'9h'!$K$5:$K$100)+SUMIF('9 TOTAL'!H$5:H$100,$A49,'9 TOTAL'!$K$5:$K$100) +SUMIF('10'!H$5:H$100,$A49,'10'!$K$5:$K$100)+SUMIF('10a'!H$5:H$100,$A49,'10a'!$K$5:$K$100)+SUMIF('10b'!H$5:H$100,$A49,'10b'!$K$5:$K$100)+SUMIF('10c'!H$5:H$100,$A49,'10c'!$K$5:$K$100)+SUMIF('10d'!H$5:H$100,$A49,'10d'!$K$5:$K$100)+SUMIF('10e'!H$5:H$100,$A49,'10e'!$K$5:$K$100)+SUMIF('10f'!H$5:H$100,$A49,'10f'!$K$5:$K$100)+SUMIF('10g'!H$5:H$100,$A49,'10g'!$K$5:$K$100)+SUMIF('10h'!H$5:H$100,$A49,'10h'!$K$5:$K$100)+SUMIF('10i'!H$5:H$100,$A49,'10i'!$K$5:$K$100)+SUMIF('10j'!H$5:H$100,$A49,'10j'!$K$5:$K$100)+SUMIF('10k'!H$5:H$100,$A49,'10k'!$K$5:$K$100)+SUMIF('10l'!H$5:H$100,$A49,'10l'!$K$5:$K$100)+SUMIF('10m'!H$5:H$100,$A49,'10m'!$K$5:$K$100)+SUMIF('10 TOTAL'!H$5:H$100,$A49,'10 TOTAL'!$K$5:$K$100) -> 0 | D49: =SUMIF('4'!H$5:H$100,$A49,'4'!$I$5:$I$100)+SUMIF('4a'!H$5:H$100,$A49,'4a'!$I$5:$I$100)+SUMIF('4b'!H$5:H$100,$A49,'4b'!$I$5:$I$100)+SUMIF('4c'!H$5:H$100,$A49,'4c'!$I$5:$I$100)+SUMIF('5'!H$5:H$100,$A49,'5'!$I$5:$I$100)+SUMIF('6'!H$5:H$100,$A49,'6'!$I$5:$I$100)+SUMIF('7'!H$5:H$100,$A49,'7'!$I$5:$I$100)+SUMIF('7a'!H$5:H$100,$A49,'7a'!$I$5:$I$100)+SUMIF('7b'!H$5:H$100,$A49,'7b'!$I$5:$I$100)+SUMIF('8'!H$5:H$100,$A49,'8'!$I$5:$I$100)+SUMIF('9'!H$5:H$100,$A49,'9'!$I$5:$I$100)+SUMIF('9a'!H$5:H$100,$A49,'9a'!$I$5:$I$100)+SUMIF('9b'!H$5:H$100,$A49,'9b'!$I$5:$I$100)+SUMIF('9c'!H$5:H$100,$A49,'9c'!$I$5:$I$100)+SUMIF('9d'!H$5:H$100,$A49,'9d'!$I$5:$I$100)+SUMIF('9e'!H$5:H$100,$A49,'9e'!$I$5:$I$100)+SUMIF('9f'!H$5:H$100,$A49,'9f'!$I$5:$I$100)+SUMIF('9g'!H$5:H$100,$A49,'9g'!$I$5:$I$100)+SUMIF('9h'!H$5:H$100,$A49,'9h'!$I$5:$I$100)+SUMIF('9 TOTAL'!H$5:H$100,$A49,'9 TOTAL'!$I$5:$I$100) +SUMIF('10'!H$5:H$100,$A49,'10'!$I$5:$I$100)+SUMIF('10a'!H$5:H$100,$A49,'10a'!$I$5:$I$100)+SUMIF('10b'!H$5:H$100,$A49,'10b'!$I$5:$I$100)+SUMIF('10c'!H$5:H$100,$A49,'10c'!$I$5:$I$100)+SUMIF('10d'!H$5:H$100,$A49,'10d'!$I$5:$I$100)+SUMIF('10e'!H$5:H$100,$A49,'10e'!$I$5:$I$100)+SUMIF('10f'!H$5:H$100,$A49,'10f'!$I$5:$I$100)+SUMIF('10g'!H$5:H$100,$A49,'10g'!$I$5:$I$100)+SUMIF('10h'!H$5:H$100,$A49,'10h'!$I$5:$I$100)+SUMIF('10i'!H$5:H$100,$A49,'10i'!$I$5:$I$100)+SUMIF('10j'!H$5:H$100,$A49,'10j'!$I$5:$I$100)+SUMIF('10k'!H$5:H$100,$A49,'10k'!$I$5:$I$100)+SUMIF('10l'!H$5:H$100,$A49,'10l'!$I$5:$I$100)+SUMIF('10m'!H$5:H$100,$A49,'10m'!$I$5:$I$100)+SUMIF('10 TOTAL'!H$5:H$100,$A49,'10 TOTAL'!$I$5:$I$100) -> 0 | S49: 0
B50: Other Fees | C50: =SUM(C51:C52) -> 0 | D50: =SUM(D51:D52) -> 0 | S50: 0
A51: 08-134 | B51: "User Defined" Fees | C51: =SUMIF('4'!H$5:H$100,$A51,'4'!$K$5:$K$100)+SUMIF('4a'!H$5:H$100,$A51,'4a'!$K$5:$K$100)+SUMIF('4b'!H$5:H$100,$A51,'4b'!$K$5:$K$100)+SUMIF('4c'!H$5:H$100,$A51,'4c'!$K$5:$K$100)+SUMIF('5'!H$5:H$100,$A51,'5'!$K$5:$K$100)+SUMIF('6'!H$5:H$100,$A51,'6'!$K$5:$K$100)+SUMIF('7'!H$5:H$100,$A51,'7'!$K$5:$K$100)+SUMIF('7a'!H$5:H$100,$A51,'7a'!$K$5:$K$100)+SUMIF('7b'!H$5:H$100,$A51,'7b'!$K$5:$K$100)+SUMIF('8'!H$5:H$100,$A51,'8'!$K$5:$K$100)+SUMIF('9'!H$5:H$100,$A51,'9'!$K$5:$K$100)+SUMIF('9a'!H$5:H$100,$A51,'9a'!$K$5:$K$100)+SUMIF('9b'!H$5:H$100,$A51,'9b'!$K$5:$K$100)+SUMIF('9c'!H$5:H$100,$A51,'9c'!$K$5:$K$100)+SUMIF('9d'!H$5:H$100,$A51,'9d'!$K$5:$K$100)+SUMIF('9e'!H$5:H$100,$A51,'9e'!$K$5:$K$100)+SUMIF('9f'!H$5:H$100,$A51,'9f'!$K$5:$K$100)+SUMIF('9g'!H$5:H$100,$A51,'9g'!$K$5:$K$100)+SUMIF('9h'!H$5:H$100,$A51,'9h'!$K$5:$K$100)+SUMIF('9 TOTAL'!H$5:H$100,$A51,'9 TOTAL'!$K$5:$K$100) +SUMIF('10'!H$5:H$100,$A51,'10'!$K$5:$K$100)+SUMIF('10a'!H$5:H$100,$A51,'10a'!$K$5:$K$100)+SUMIF('10b'!H$5:H$100,$A51,'10b'!$K$5:$K$100)+SUMIF('10c'!H$5:H$100,$A51,'10c'!$K$5:$K$100)+SUMIF('10d'!H$5:H$100,$A51,'10d'!$K$5:$K$100)+SUMIF('10e'!H$5:H$100,$A51,'10e'!$K$5:$K$100)+SUMIF('10f'!H$5:H$100,$A51,'10f'!$K$5:$K$100)+SUMIF('10g'!H$5:H$100,$A51,'10g'!$K$5:$K$100)+SUMIF('10h'!H$5:H$100,$A51,'10h'!$K$5:$K$100)+SUMIF('10i'!H$5:H$100,$A51,'10i'!$K$5:$K$100)+SUMIF('10j'!H$5:H$100,$A51,'10j'!$K$5:$K$100)+SUMIF('10k'!H$5:H$100,$A51,'10k'!$K$5:$K$100)+SUMIF('10l'!H$5:H$100,$A51,'10l'!$K$5:$K$100)+SUMIF('10m'!H$5:H$100,$A51,'10m'!$K$5:$K$100)+SUMIF('10 TOTAL'!H$5:H$100,$A51,'10 TOTAL'!$K$5:$K$100) -> 0 | D51: =SUMIF('4'!H$5:H$100,$A51,'4'!$I$5:$I$100)+SUMIF('4a'!H$5:H$100,$A51,'4a'!$I$5:$I$100)+SUMIF('4b'!H$5:H$100,$A51,'4b'!$I$5:$I$100)+SUMIF('4c'!H$5:H$100,$A51,'4c'!$I$5:$I$100)+SUMIF('5'!H$5:H$100,$A51,'5'!$I$5:$I$100)+SUMIF('6'!H$5:H$100,$A51,'6'!$I$5:$I$100)+SUMIF('7'!H$5:H$100,$A51,'7'!$I$5:$I$100)+SUMIF('7a'!H$5:H$100,$A51,'7a'!$I$5:$I$100)+SUMIF('7b'!H$5:H$100,$A51,'7b'!$I$5:$I$100)+SUMIF('8'!H$5:H$100,$A51,'8'!$I$5:$I$100)+SUMIF('9'!H$5:H$100,$A51,'9'!$I$5:$I$100)+SUMIF('9a'!H$5:H$100,$A51,'9a'!$I$5:$I$100)+SUMIF('9b'!H$5:H$100,$A51,'9b'!$I$5:$I$100)+SUMIF('9c'!H$5:H$100,$A51,'9c'!$I$5:$I$100)+SUMIF('9d'!H$5:H$100,$A51,'9d'!$I$5:$I$100)+SUMIF('9e'!H$5:H$100,$A51,'9e'!$I$5:$I$100)+SUMIF('9f'!H$5:H$100,$A51,'9f'!$I$5:$I$100)+SUMIF('9g'!H$5:H$100,$A51,'9g'!$I$5:$I$100)+SUMIF('9h'!H$5:H$100,$A51,'9h'!$I$5:$I$100)+SUMIF('9 TOTAL'!H$5:H$100,$A51,'9 TOTAL'!$I$5:$I$100) +SUMIF('10'!H$5:H$100,$A51,'10'!$I$5:$I$100)+SUMIF('10a'!H$5:H$100,$A51,'10a'!$I$5:$I$100)+SUMIF('10b'!H$5:H$100,$A51,'10b'!$I$5:$I$100)+SUMIF('10c'!H$5:H$100,$A51,'10c'!$I$5:$I$100)+SUMIF('10d'!H$5:H$100,$A51,'10d'!$I$5:$I$100)+SUMIF('10e'!H$5:H$100,$A51,'10e'!$I$5:$I$100)+SUMIF('10f'!H$5:H$100,$A51,'10f'!$I$5:$I$100)+SUMIF('10g'!H$5:H$100,$A51,'10g'!$I$5:$I$100)+SUMIF('10h'!H$5:H$100,$A51,'10h'!$I$5:$I$100)+SUMIF('10i'!H$5:H$100,$A51,'10i'!$I$5:$I$100)+SUMIF('10j'!H$5:H$100,$A51,'10j'!$I$5:$I$100)+SUMIF('10k'!H$5:H$100,$A51,'10k'!$I$5:$I$100)+SUMIF('10l'!H$5:H$100,$A51,'10l'!$I$5:$I$100)+SUMIF('10m'!H$5:H$100,$A51,'10m'!$I$5:$I$100)+SUMIF('10 TOTAL'!H$5:H$100,$A51,'10 TOTAL'!$I$5:$I$100) -> 0 | S51: 0
A52: 08-135 | B52: "User Defined" Fees | C52: =SUMIF('4'!H$5:H$100,$A52,'4'!$K$5:$K$100)+SUMIF('4a'!H$5:H$100,$A52,'4a'!$K$5:$K$100)+SUMIF('4b'!H$5:H$100,$A52,'4b'!$K$5:$K$100)+SUMIF('4c'!H$5:H$100,$A52,'4c'!$K$5:$K$100)+SUMIF('5'!H$5:H$100,$A52,'5'!$K$5:$K$100)+SUMIF('6'!H$5:H$100,$A52,'6'!$K$5:$K$100)+SUMIF('7'!H$5:H$100,$A52,'7'!$K$5:$K$100)+SUMIF('7a'!H$5:H$100,$A52,'7a'!$K$5:$K$100)+SUMIF('7b'!H$5:H$100,$A52,'7b'!$K$5:$K$100)+SUMIF('8'!H$5:H$100,$A52,'8'!$K$5:$K$100)+SUMIF('9'!H$5:H$100,$A52,'9'!$K$5:$K$100)+SUMIF('9a'!H$5:H$100,$A52,'9a'!$K$5:$K$100)+SUMIF('9b'!H$5:H$100,$A52,'9b'!$K$5:$K$100)+SUMIF('9c'!H$5:H$100,$A52,'9c'!$K$5:$K$100)+SUMIF('9d'!H$5:H$100,$A52,'9d'!$K$5:$K$100)+SUMIF('9e'!H$5:H$100,$A52,'9e'!$K$5:$K$100)+SUMIF('9f'!H$5:H$100,$A52,'9f'!$K$5:$K$100)+SUMIF('9g'!H$5:H$100,$A52,'9g'!$K$5:$K$100)+SUMIF('9h'!H$5:H$100,$A52,'9h'!$K$5:$K$100)+SUMIF('9 TOTAL'!H$5:H$100,$A52,'9 TOTAL'!$K$5:$K$100) +SUMIF('10'!H$5:H$100,$A52,'10'!$K$5:$K$100)+SUMIF('10a'!H$5:H$100,$A52,'10a'!$K$5:$K$100)+SUMIF('10b'!H$5:H$100,$A52,'10b'!$K$5:$K$100)+SUMIF('10c'!H$5:H$100,$A52,'10c'!$K$5:$K$100)+SUMIF('10d'!H$5:H$100,$A52,'10d'!$K$5:$K$100)+SUMIF('10e'!H$5:H$100,$A52,'10e'!$K$5:$K$100)+SUMIF('10f'!H$5:H$100,$A52,'10f'!$K$5:$K$100)+SUMIF('10g'!H$5:H$100,$A52,'10g'!$K$5:$K$100)+SUMIF('10h'!H$5:H$100,$A52,'10h'!$K$5:$K$100)+SUMIF('10i'!H$5:H$100,$A52,'10i'!$K$5:$K$100)+SUMIF('10j'!H$5:H$100,$A52,'10j'!$K$5:$K$100)+SUMIF('10k'!H$5:H$100,$A52,'10k'!$K$5:$K$100)+SUMIF('10l'!H$5:H$100,$A52,'10l'!$K$5:$K$100)+SUMIF('10m'!H$5:H$100,$A52,'10m'!$K$5:$K$100)+SUMIF('10 TOTAL'!H$5:H$100,$A52,'10 TOTAL'!$K$5:$K$100) -> 0 | D52: =SUMIF('4'!H$5:H$100,$A52,'4'!$I$5:$I$100)+SUMIF('4a'!H$5:H$100,$A52,'4a'!$I$5:$I$100)+SUMIF('4b'!H$5:H$100,$A52,'4b'!$I$5:$I$100)+SUMIF('4c'!H$5:H$100,$A52,'4c'!$I$5:$I$100)+SUMIF('5'!H$5:H$100,$A52,'5'!$I$5:$I$100)+SUMIF('6'!H$5:H$100,$A52,'6'!$I$5:$I$100)+SUMIF('7'!H$5:H$100,$A52,'7'!$I$5:$I$100)+SUMIF('7a'!H$5:H$100,$A52,'7a'!$I$5:$I$100)+SUMIF('7b'!H$5:H$100,$A52,'7b'!$I$5:$I$100)+SUMIF('8'!H$5:H$100,$A52,'8'!$I$5:$I$100)+SUMIF('9'!H$5:H$100,$A52,'9'!$I$5:$I$100)+SUMIF('9a'!H$5:H$100,$A52,'9a'!$I$5:$I$100)+SUMIF('9b'!H$5:H$100,$A52,'9b'!$I$5:$I$100)+SUMIF('9c'!H$5:H$100,$A52,'9c'!$I$5:$I$100)+SUMIF('9d'!H$5:H$100,$A52,'9d'!$I$5:$I$100)+SUMIF('9e'!H$5:H$100,$A52,'9e'!$I$5:$I$100)+SUMIF('9f'!H$5:H$100,$A52,'9f'!$I$5:$I$100)+SUMIF('9g'!H$5:H$100,$A52,'9g'!$I$5:$I$100)+SUMIF('9h'!H$5:H$100,$A52,'9h'!$I$5:$I$100)+SUMIF('9 TOTAL'!H$5:H$100,$A52,'9 TOTAL'!$I$5:$I$100) +SUMIF('10'!H$5:H$100,$A52,'10'!$I$5:$I$100)+SUMIF('10a'!H$5:H$100,$A52,'10a'!$I$5:$I$100)+SUMIF('10b'!H$5:H$100,$A52,'10b'!$I$5:$I$100)+SUMIF('10c'!H$5:H$100,$A52,'10c'!$I$5:$I$100)+SUMIF('10d'!H$5:H$100,$A52,'10d'!$I$5:$I$100)+SUMIF('10e'!H$5:H$100,$A52,'10e'!$I$5:$I$100)+SUMIF('10f'!H$5:H$100,$A52,'10f'!$I$5:$I$100)+SUMIF('10g'!H$5:H$100,$A52,'10g'!$I$5:$I$100)+SUMIF('10h'!H$5:H$100,$A52,'10h'!$I$5:$I$100)+SUMIF('10i'!H$5:H$100,$A52,'10i'!$I$5:$I$100)+SUMIF('10j'!H$5:H$100,$A52,'10j'!$I$5:$I$100)+SUMIF('10k'!H$5:H$100,$A52,'10k'!$I$5:$I$100)+SUMIF('10l'!H$5:H$100,$A52,'10l'!$I$5:$I$100)+SUMIF('10m'!H$5:H$100,$A52,'10m'!$I$5:$I$100)+SUMIF('10 TOTAL'!H$5:H$100,$A52,'10 TOTAL'!$I$5:$I$100) -> 0 | S52: 0
A53: 08-146 | B53: Planning & Zoning Fees | C53: =SUMIF('4'!H$5:H$100,$A53,'4'!$K$5:$K$100)+SUMIF('4a'!H$5:H$100,$A53,'4a'!$K$5:$K$100)+SUMIF('4b'!H$5:H$100,$A53,'4b'!$K$5:$K$100)+SUMIF('4c'!H$5:H$100,$A53,'4c'!$K$5:$K$100)+SUMIF('5'!H$5:H$100,$A53,'5'!$K$5:$K$100)+SUMIF('6'!H$5:H$100,$A53,'6'!$K$5:$K$100)+SUMIF('7'!H$5:H$100,$A53,'7'!$K$5:$K$100)+SUMIF('7a'!H$5:H$100,$A53,'7a'!$K$5:$K$100)+SUMIF('7b'!H$5:H$100,$A53,'7b'!$K$5:$K$100)+SUMIF('8'!H$5:H$100,$A53,'8'!$K$5:$K$100)+SUMIF('9'!H$5:H$100,$A53,'9'!$K$5:$K$100)+SUMIF('9a'!H$5:H$100,$A53,'9a'!$K$5:$K$100)+SUMIF('9b'!H$5:H$100,$A53,'9b'!$K$5:$K$100)+SUMIF('9c'!H$5:H$100,$A53,'9c'!$K$5:$K$100)+SUMIF('9d'!H$5:H$100,$A53,'9d'!$K$5:$K$100)+SUMIF('9e'!H$5:H$100,$A53,'9e'!$K$5:$K$100)+SUMIF('9f'!H$5:H$100,$A53,'9f'!$K$5:$K$100)+SUMIF('9g'!H$5:H$100,$A53,'9g'!$K$5:$K$100)+SUMIF('9h'!H$5:H$100,$A53,'9h'!$K$5:$K$100)+SUMIF('9 TOTAL'!H$5:H$100,$A53,'9 TOTAL'!$K$5:$K$100) +SUMIF('10'!H$5:H$100,$A53,'10'!$K$5:$K$100)+SUMIF('10a'!H$5:H$100,$A53,'10a'!$K$5:$K$100)+SUMIF('10b'!H$5:H$100,$A53,'10b'!$K$5:$K$100)+SUMIF('10c'!H$5:H$100,$A53,'10c'!$K$5:$K$100)+SUMIF('10d'!H$5:H$100,$A53,'10d'!$K$5:$K$100)+SUMIF('10e'!H$5:H$100,$A53,'10e'!$K$5:$K$100)+SUMIF('10f'!H$5:H$100,$A53,'10f'!$K$5:$K$100)+SUMIF('10g'!H$5:H$100,$A53,'10g'!$K$5:$K$100)+SUMIF('10h'!H$5:H$100,$A53,'10h'!$K$5:$K$100)+SUMIF('10i'!H$5:H$100,$A53,'10i'!$K$5:$K$100)+SUMIF('10j'!H$5:H$100,$A53,'10j'!$K$5:$K$100)+SUMIF('10k'!H$5:H$100,$A53,'10k'!$K$5:$K$100)+SUMIF('10l'!H$5:H$100,$A53,'10l'!$K$5:$K$100)+SUMIF('10m'!H$5:H$100,$A53,'10m'!$K$5:$K$100)+SUMIF('10 TOTAL'!H$5:H$100,$A53,'10 TOTAL'!$K$5:$K$100) -> 0 | D53: =SUMIF('4'!H$5:H$100,$A53,'4'!$I$5:$I$100)+SUMIF('4a'!H$5:H$100,$A53,'4a'!$I$5:$I$100)+SUMIF('4b'!H$5:H$100,$A53,'4b'!$I$5:$I$100)+SUMIF('4c'!H$5:H$100,$A53,'4c'!$I$5:$I$100)+SUMIF('5'!H$5:H$100,$A53,'5'!$I$5:$I$100)+SUMIF('6'!H$5:H$100,$A53,'6'!$I$5:$I$100)+SUMIF('7'!H$5:H$100,$A53,'7'!$I$5:$I$100)+SUMIF('7a'!H$5:H$100,$A53,'7a'!$I$5:$I$100)+SUMIF('7b'!H$5:H$100,$A53,'7b'!$I$5:$I$100)+SUMIF('8'!H$5:H$100,$A53,'8'!$I$5:$I$100)+SUMIF('9'!H$5:H$100,$A53,'9'!$I$5:$I$100)+SUMIF('9a'!H$5:H$100,$A53,'9a'!$I$5:$I$100)+SUMIF('9b'!H$5:H$100,$A53,'9b'!$I$5:$I$100)+SUMIF('9c'!H$5:H$100,$A53,'9c'!$I$5:$I$100)+SUMIF('9d'!H$5:H$100,$A53,'9d'!$I$5:$I$100)+SUMIF('9e'!H$5:H$100,$A53,'9e'!$I$5:$I$100)+SUMIF('9f'!H$5:H$100,$A53,'9f'!$I$5:$I$100)+SUMIF('9g'!H$5:H$100,$A53,'9g'!$I$5:$I$100)+SUMIF('9h'!H$5:H$100,$A53,'9h'!$I$5:$I$100)+SUMIF('9 TOTAL'!H$5:H$100,$A53,'9 TOTAL'!$I$5:$I$100) +SUMIF('10'!H$5:H$100,$A53,'10'!$I$5:$I$100)+SUMIF('10a'!H$5:H$100,$A53,'10a'!$I$5:$I$100)+SUMIF('10b'!H$5:H$100,$A53,'10b'!$I$5:$I$100)+SUMIF('10c'!H$5:H$100,$A53,'10c'!$I$5:$I$100)+SUMIF('10d'!H$5:H$100,$A53,'10d'!$I$5:$I$100)+SUMIF('10e'!H$5:H$100,$A53,'10e'!$I$5:$I$100)+SUMIF('10f'!H$5:H$100,$A53,'10f'!$I$5:$I$100)+SUMIF('10g'!H$5:H$100,$A53,'10g'!$I$5:$I$100)+SUMIF('10h'!H$5:H$100,$A53,'10h'!$I$5:$I$100)+SUMIF('10i'!H$5:H$100,$A53,'10i'!$I$5:$I$100)+SUMIF('10j'!H$5:H$100,$A53,'10j'!$I$5:$I$100)+SUMIF('10k'!H$5:H$100,$A53,'10k'!$I$5:$I$100)+SUMIF('10l'!H$5:H$100,$A53,'10l'!$I$5:$I$100)+SUMIF('10m'!H$5:H$100,$A53,'10m'!$I$5:$I$100)+SUMIF('10 TOTAL'!H$5:H$100,$A53,'10 TOTAL'!$I$5:$I$100) -> 0 | S53: 0
A54: 08-210 | B54: Payments in Lieu of Taxes (PILOT) (Local Revenues) | C54: =SUMIF('4'!H$5:H$100,$A54,'4'!$K$5:$K$100)+SUMIF('4a'!H$5:H$100,$A54,'4a'!$K$5:$K$100)+SUMIF('4b'!H$5:H$100,$A54,'4b'!$K$5:$K$100)+SUMIF('4c'!H$5:H$100,$A54,'4c'!$K$5:$K$100)+SUMIF('5'!H$5:H$100,$A54,'5'!$K$5:$K$100)+SUMIF('6'!H$5:H$100,$A54,'6'!$K$5:$K$100)+SUMIF('7'!H$5:H$100,$A54,'7'!$K$5:$K$100)+SUMIF('7a'!H$5:H$100,$A54,'7a'!$K$5:$K$100)+SUMIF('7b'!H$5:H$100,$A54,'7b'!$K$5:$K$100)+SUMIF('8'!H$5:H$100,$A54,'8'!$K$5:$K$100)+SUMIF('9'!H$5:H$100,$A54,'9'!$K$5:$K$100)+SUMIF('9a'!H$5:H$100,$A54,'9a'!$K$5:$K$100)+SUMIF('9b'!H$5:H$100,$A54,'9b'!$K$5:$K$100)+SUMIF('9c'!H$5:H$100,$A54,'9c'!$K$5:$K$100)+SUMIF('9d'!H$5:H$100,$A54,'9d'!$K$5:$K$100)+SUMIF('9e'!H$5:H$100,$A54,'9e'!$K$5:$K$100)+SUMIF('9f'!H$5:H$100,$A54,'9f'!$K$5:$K$100)+SUMIF('9g'!H$5:H$100,$A54,'9g'!$K$5:$K$100)+SUMIF('9h'!H$5:H$100,$A54,'9h'!$K$5:$K$100)+SUMIF('9 TOTAL'!H$5:H$100,$A54,'9 TOTAL'!$K$5:$K$100) +SUMIF('10'!H$5:H$100,$A54,'10'!$K$5:$K$100)+SUMIF('10a'!H$5:H$100,$A54,'10a'!$K$5:$K$100)+SUMIF('10b'!H$5:H$100,$A54,'10b'!$K$5:$K$100)+SUMIF('10c'!H$5:H$100,$A54,'10c'!$K$5:$K$100)+SUMIF('10d'!H$5:H$100,$A54,'10d'!$K$5:$K$100)+SUMIF('10e'!H$5:H$100,$A54,'10e'!$K$5:$K$100)+SUMIF('10f'!H$5:H$100,$A54,'10f'!$K$5:$K$100)+SUMIF('10g'!H$5:H$100,$A54,'10g'!$K$5:$K$100)+SUMIF('10h'!H$5:H$100,$A54,'10h'!$K$5:$K$100)+SUMIF('10i'!H$5:H$100,$A54,'10i'!$K$5:$K$100)+SUMIF('10j'!H$5:H$100,$A54,'10j'!$K$5:$K$100)+SUMIF('10k'!H$5:H$100,$A54,'10k'!$K$5:$K$100)+SUMIF('10l'!H$5:H$100,$A54,'10l'!$K$5:$K$100)+SUMIF('10m'!H$5:H$100,$A54,'10m'!$K$5:$K$100)+SUMIF('10 TOTAL'!H$5:H$100,$A54,'10 TOTAL'!$K$5:$K$100) -> 0 | D54: =SUMIF('4'!H$5:H$100,$A54,'4'!$I$5:$I$100)+SUMIF('4a'!H$5:H$100,$A54,'4a'!$I$5:$I$100)+SUMIF('4b'!H$5:H$100,$A54,'4b'!$I$5:$I$100)+SUMIF('4c'!H$5:H$100,$A54,'4c'!$I$5:$I$100)+SUMIF('5'!H$5:H$100,$A54,'5'!$I$5:$I$100)+SUMIF('6'!H$5:H$100,$A54,'6'!$I$5:$I$100)+SUMIF('7'!H$5:H$100,$A54,'7'!$I$5:$I$100)+SUMIF('7a'!H$5:H$100,$A54,'7a'!$I$5:$I$100)+SUMIF('7b'!H$5:H$100,$A54,'7b'!$I$5:$I$100)+SUMIF('8'!H$5:H$100,$A54,'8'!$I$5:$I$100)+SUMIF('9'!H$5:H$100,$A54,'9'!$I$5:$I$100)+SUMIF('9a'!H$5:H$100,$A54,'9a'!$I$5:$I$100)+SUMIF('9b'!H$5:H$100,$A54,'9b'!$I$5:$I$100)+SUMIF('9c'!H$5:H$100,$A54,'9c'!$I$5:$I$100)+SUMIF('9d'!H$5:H$100,$A54,'9d'!$I$5:$I$100)+SUMIF('9e'!H$5:H$100,$A54,'9e'!$I$5:$I$100)+SUMIF('9f'!H$5:H$100,$A54,'9f'!$I$5:$I$100)+SUMIF('9g'!H$5:H$100,$A54,'9g'!$I$5:$I$100)+SUMIF('9h'!H$5:H$100,$A54,'9h'!$I$5:$I$100)+SUMIF('9 TOTAL'!H$5:H$100,$A54,'9 TOTAL'!$I$5:$I$100) +SUMIF('10'!H$5:H$100,$A54,'10'!$I$5:$I$100)+SUMIF('10a'!H$5:H$100,$A54,'10a'!$I$5:$I$100)+SUMIF('10b'!H$5:H$100,$A54,'10b'!$I$5:$I$100)+SUMIF('10c'!H$5:H$100,$A54,'10c'!$I$5:$I$100)+SUMIF('10d'!H$5:H$100,$A54,'10d'!$I$5:$I$100)+SUMIF('10e'!H$5:H$100,$A54,'10e'!$I$5:$I$100)+SUMIF('10f'!H$5:H$100,$A54,'10f'!$I$5:$I$100)+SUMIF('10g'!H$5:H$100,$A54,'10g'!$I$5:$I$100)+SUMIF('10h'!H$5:H$100,$A54,'10h'!$I$5:$I$100)+SUMIF('10i'!H$5:H$100,$A54,'10i'!$I$5:$I$100)+SUMIF('10j'!H$5:H$100,$A54,'10j'!$I$5:$I$100)+SUMIF('10k'!H$5:H$100,$A54,'10k'!$I$5:$I$100)+SUMIF('10l'!H$5:H$100,$A54,'10l'!$I$5:$I$100)+SUMIF('10m'!H$5:H$100,$A54,'10m'!$I$5:$I$100)+SUMIF('10 TOTAL'!H$5:H$100,$A54,'10 TOTAL'!$I$5:$I$100) -> 0 | S54: 0
B55: Other Local Revenue | C55: =SUM(C56:C66) -> 0 | D55: =SUM(D56:D66) -> 0 | S55: 0
A56: 08-229 | B56: "User Defined" Local Revenue | C56: =SUMIF('4'!H$5:H$100,$A56,'4'!$K$5:$K$100)+SUMIF('4a'!H$5:H$100,$A56,'4a'!$K$5:$K$100)+SUMIF('4b'!H$5:H$100,$A56,'4b'!$K$5:$K$100)+SUMIF('4c'!H$5:H$100,$A56,'4c'!$K$5:$K$100)+SUMIF('5'!H$5:H$100,$A56,'5'!$K$5:$K$100)+SUMIF('6'!H$5:H$100,$A56,'6'!$K$5:$K$100)+SUMIF('7'!H$5:H$100,$A56,'7'!$K$5:$K$100)+SUMIF('7a'!H$5:H$100,$A56,'7a'!$K$5:$K$100)+SUMIF('7b'!H$5:H$100,$A56,'7b'!$K$5:$K$100)+SUMIF('8'!H$5:H$100,$A56,'8'!$K$5:$K$100)+SUMIF('9'!H$5:H$100,$A56,'9'!$K$5:$K$100)+SUMIF('9a'!H$5:H$100,$A56,'9a'!$K$5:$K$100)+SUMIF('9b'!H$5:H$100,$A56,'9b'!$K$5:$K$100)+SUMIF('9c'!H$5:H$100,$A56,'9c'!$K$5:$K$100)+SUMIF('9d'!H$5:H$100,$A56,'9d'!$K$5:$K$100)+SUMIF('9e'!H$5:H$100,$A56,'9e'!$K$5:$K$100)+SUMIF('9f'!H$5:H$100,$A56,'9f'!$K$5:$K$100)+SUMIF('9g'!H$5:H$100,$A56,'9g'!$K$5:$K$100)+SUMIF('9h'!H$5:H$100,$A56,'9h'!$K$5:$K$100)+SUMIF('9 TOTAL'!H$5:H$100,$A56,'9 TOTAL'!$K$5:$K$100) +SUMIF('10'!H$5:H$100,$A56,'10'!$K$5:$K$100)+SUMIF('10a'!H$5:H$100,$A56,'10a'!$K$5:$K$100)+SUMIF('10b'!H$5:H$100,$A56,'10b'!$K$5:$K$100)+SUMIF('10c'!H$5:H$100,$A56,'10c'!$K$5:$K$100)+SUMIF('10d'!H$5:H$100,$A56,'10d'!$K$5:$K$100)+SUMIF('10e'!H$5:H$100,$A56,'10e'!$K$5:$K$100)+SUMIF('10f'!H$5:H$100,$A56,'10f'!$K$5:$K$100)+SUMIF('10g'!H$5:H$100,$A56,'10g'!$K$5:$K$100)+SUMIF('10h'!H$5:H$100,$A56,'10h'!$K$5:$K$100)+SUMIF('10i'!H$5:H$100,$A56,'10i'!$K$5:$K$100)+SUMIF('10j'!H$5:H$100,$A56,'10j'!$K$5:$K$100)+SUMIF('10k'!H$5:H$100,$A56,'10k'!$K$5:$K$100)+SUMIF('10l'!H$5:H$100,$A56,'10l'!$K$5:$K$100)+SUMIF('10m'!H$5:H$100,$A56,'10m'!$K$5:$K$100)+SUMIF('10 TOTAL'!H$5:H$100,$A56,'10 TOTAL'!$K$5:$K$100) -> 0 | D56: =SUMIF('4'!H$5:H$100,$A56,'4'!$I$5:$I$100)+SUMIF('4a'!H$5:H$100,$A56,'4a'!$I$5:$I$100)+SUMIF('4b'!H$5:H$100,$A56,'4b'!$I$5:$I$100)+SUMIF('4c'!H$5:H$100,$A56,'4c'!$I$5:$I$100)+SUMIF('5'!H$5:H$100,$A56,'5'!$I$5:$I$100)+SUMIF('6'!H$5:H$100,$A56,'6'!$I$5:$I$100)+SUMIF('7'!H$5:H$100,$A56,'7'!$I$5:$I$100)+SUMIF('7a'!H$5:H$100,$A56,'7a'!$I$5:$I$100)+SUMIF('7b'!H$5:H$100,$A56,'7b'!$I$5:$I$100)+SUMIF('8'!H$5:H$100,$A56,'8'!$I$5:$I$100)+SUMIF('9'!H$5:H$100,$A56,'9'!$I$5:$I$100)+SUMIF('9a'!H$5:H$100,$A56,'9a'!$I$5:$I$100)+SUMIF('9b'!H$5:H$100,$A56,'9b'!$I$5:$I$100)+SUMIF('9c'!H$5:H$100,$A56,'9c'!$I$5:$I$100)+SUMIF('9d'!H$5:H$100,$A56,'9d'!$I$5:$I$100)+SUMIF('9e'!H$5:H$100,$A56,'9e'!$I$5:$I$100)+SUMIF('9f'!H$5:H$100,$A56,'9f'!$I$5:$I$100)+SUMIF('9g'!H$5:H$100,$A56,'9g'!$I$5:$I$100)+SUMIF('9h'!H$5:H$100,$A56,'9h'!$I$5:$I$100)+SUMIF('9 TOTAL'!H$5:H$100,$A56,'9 TOTAL'!$I$5:$I$100) +SUMIF('10'!H$5:H$100,$A56,'10'!$I$5:$I$100)+SUMIF('10a'!H$5:H$100,$A56,'10a'!$I$5:$I$100)+SUMIF('10b'!H$5:H$100,$A56,'10b'!$I$5:$I$100)+SUMIF('10c'!H$5:H$100,$A56,'10c'!$I$5:$I$100)+SUMIF('10d'!H$5:H$100,$A56,'10d'!$I$5:$I$100)+SUMIF('10e'!H$5:H$100,$A56,'10e'!$I$5:$I$100)+SUMIF('10f'!H$5:H$100,$A56,'10f'!$I$5:$I$100)+SUMIF('10g'!H$5:H$100,$A56,'10g'!$I$5:$I$100)+SUMIF('10h'!H$5:H$100,$A56,'10h'!$I$5:$I$100)+SUMIF('10i'!H$5:H$100,$A56,'10i'!$I$5:$I$100)+SUMIF('10j'!H$5:H$100,$A56,'10j'!$I$5:$I$100)+SUMIF('10k'!H$5:H$100,$A56,'10k'!$I$5:$I$100)+SUMIF('10l'!H$5:H$100,$A56,'10l'!$I$5:$I$100)+SUMIF('10m'!H$5:H$100,$A56,'10m'!$I$5:$I$100)+SUMIF('10 TOTAL'!H$5:H$100,$A56,'10 TOTAL'!$I$5:$I$100) -> 0 | S56: 0
A57: 08-230 | B57: "User Defined" Local Revenue | C57: =SUMIF('4'!H$5:H$100,$A57,'4'!$K$5:$K$100)+SUMIF('4a'!H$5:H$100,$A57,'4a'!$K$5:$K$100)+SUMIF('4b'!H$5:H$100,$A57,'4b'!$K$5:$K$100)+SUMIF('4c'!H$5:H$100,$A57,'4c'!$K$5:$K$100)+SUMIF('5'!H$5:H$100,$A57,'5'!$K$5:$K$100)+SUMIF('6'!H$5:H$100,$A57,'6'!$K$5:$K$100)+SUMIF('7'!H$5:H$100,$A57,'7'!$K$5:$K$100)+SUMIF('7a'!H$5:H$100,$A57,'7a'!$K$5:$K$100)+SUMIF('7b'!H$5:H$100,$A57,'7b'!$K$5:$K$100)+SUMIF('8'!H$5:H$100,$A57,'8'!$K$5:$K$100)+SUMIF('9'!H$5:H$100,$A57,'9'!$K$5:$K$100)+SUMIF('9a'!H$5:H$100,$A57,'9a'!$K$5:$K$100)+SUMIF('9b'!H$5:H$100,$A57,'9b'!$K$5:$K$100)+SUMIF('9c'!H$5:H$100,$A57,'9c'!$K$5:$K$100)+SUMIF('9d'!H$5:H$100,$A57,'9d'!$K$5:$K$100)+SUMIF('9e'!H$5:H$100,$A57,'9e'!$K$5:$K$100)+SUMIF('9f'!H$5:H$100,$A57,'9f'!$K$5:$K$100)+SUMIF('9g'!H$5:H$100,$A57,'9g'!$K$5:$K$100)+SUMIF('9h'!H$5:H$100,$A57,'9h'!$K$5:$K$100)+SUMIF('9 TOTAL'!H$5:H$100,$A57,'9 TOTAL'!$K$5:$K$100) +SUMIF('10'!H$5:H$100,$A57,'10'!$K$5:$K$100)+SUMIF('10a'!H$5:H$100,$A57,'10a'!$K$5:$K$100)+SUMIF('10b'!H$5:H$100,$A57,'10b'!$K$5:$K$100)+SUMIF('10c'!H$5:H$100,$A57,'10c'!$K$5:$K$100)+SUMIF('10d'!H$5:H$100,$A57,'10d'!$K$5:$K$100)+SUMIF('10e'!H$5:H$100,$A57,'10e'!$K$5:$K$100)+SUMIF('10f'!H$5:H$100,$A57,'10f'!$K$5:$K$100)+SUMIF('10g'!H$5:H$100,$A57,'10g'!$K$5:$K$100)+SUMIF('10h'!H$5:H$100,$A57,'10h'!$K$5:$K$100)+SUMIF('10i'!H$5:H$100,$A57,'10i'!$K$5:$K$100)+SUMIF('10j'!H$5:H$100,$A57,'10j'!$K$5:$K$100)+SUMIF('10k'!H$5:H$100,$A57,'10k'!$K$5:$K$100)+SUMIF('10l'!H$5:H$100,$A57,'10l'!$K$5:$K$100)+SUMIF('10m'!H$5:H$100,$A57,'10m'!$K$5:$K$100)+SUMIF('10 TOTAL'!H$5:H$100,$A57,'10 TOTAL'!$K$5:$K$100) -> 0 | D57: =SUMIF('4'!H$5:H$100,$A57,'4'!$I$5:$I$100)+SUMIF('4a'!H$5:H$100,$A57,'4a'!$I$5:$I$100)+SUMIF('4b'!H$5:H$100,$A57,'4b'!$I$5:$I$100)+SUMIF('4c'!H$5:H$100,$A57,'4c'!$I$5:$I$100)+SUMIF('5'!H$5:H$100,$A57,'5'!$I$5:$I$100)+SUMIF('6'!H$5:H$100,$A57,'6'!$I$5:$I$100)+SUMIF('7'!H$5:H$100,$A57,'7'!$I$5:$I$100)+SUMIF('7a'!H$5:H$100,$A57,'7a'!$I$5:$I$100)+SUMIF('7b'!H$5:H$100,$A57,'7b'!$I$5:$I$100)+SUMIF('8'!H$5:H$100,$A57,'8'!$I$5:$I$100)+SUMIF('9'!H$5:H$100,$A57,'9'!$I$5:$I$100)+SUMIF('9a'!H$5:H$100,$A57,'9a'!$I$5:$I$100)+SUMIF('9b'!H$5:H$100,$A57,'9b'!$I$5:$I$100)+SUMIF('9c'!H$5:H$100,$A57,'9c'!$I$5:$I$100)+SUMIF('9d'!H$5:H$100,$A57,'9d'!$I$5:$I$100)+SUMIF('9e'!H$5:H$100,$A57,'9e'!$I$5:$I$100)+SUMIF('9f'!H$5:H$100,$A57,'9f'!$I$5:$I$100)+SUMIF('9g'!H$5:H$100,$A57,'9g'!$I$5:$I$100)+SUMIF('9h'!H$5:H$100,$A57,'9h'!$I$5:$I$100)+SUMIF('9 TOTAL'!H$5:H$100,$A57,'9 TOTAL'!$I$5:$I$100) +SUMIF('10'!H$5:H$100,$A57,'10'!$I$5:$I$100)+SUMIF('10a'!H$5:H$100,$A57,'10a'!$I$5:$I$100)+SUMIF('10b'!H$5:H$100,$A57,'10b'!$I$5:$I$100)+SUMIF('10c'!H$5:H$100,$A57,'10c'!$I$5:$I$100)+SUMIF('10d'!H$5:H$100,$A57,'10d'!$I$5:$I$100)+SUMIF('10e'!H$5:H$100,$A57,'10e'!$I$5:$I$100)+SUMIF('10f'!H$5:H$100,$A57,'10f'!$I$5:$I$100)+SUMIF('10g'!H$5:H$100,$A57,'10g'!$I$5:$I$100)+SUMIF('10h'!H$5:H$100,$A57,'10h'!$I$5:$I$100)+SUMIF('10i'!H$5:H$100,$A57,'10i'!$I$5:$I$100)+SUMIF('10j'!H$5:H$100,$A57,'10j'!$I$5:$I$100)+SUMIF('10k'!H$5:H$100,$A57,'10k'!$I$5:$I$100)+SUMIF('10l'!H$5:H$100,$A57,'10l'!$I$5:$I$100)+SUMIF('10m'!H$5:H$100,$A57,'10m'!$I$5:$I$100)+SUMIF('10 TOTAL'!H$5:H$100,$A57,'10 TOTAL'!$I$5:$I$100) -> 0 | S57: 0
A58: 08-231 | B58: "User Defined" Local Revenue | C58: =SUMIF('4'!H$5:H$100,$A58,'4'!$K$5:$K$100)+SUMIF('4a'!H$5:H$100,$A58,'4a'!$K$5:$K$100)+SUMIF('4b'!H$5:H$100,$A58,'4b'!$K$5:$K$100)+SUMIF('4c'!H$5:H$100,$A58,'4c'!$K$5:$K$100)+SUMIF('5'!H$5:H$100,$A58,'5'!$K$5:$K$100)+SUMIF('6'!H$5:H$100,$A58,'6'!$K$5:$K$100)+SUMIF('7'!H$5:H$100,$A58,'7'!$K$5:$K$100)+SUMIF('7a'!H$5:H$100,$A58,'7a'!$K$5:$K$100)+SUMIF('7b'!H$5:H$100,$A58,'7b'!$K$5:$K$100)+SUMIF('8'!H$5:H$100,$A58,'8'!$K$5:$K$100)+SUMIF('9'!H$5:H$100,$A58,'9'!$K$5:$K$100)+SUMIF('9a'!H$5:H$100,$A58,'9a'!$K$5:$K$100)+SUMIF('9b'!H$5:H$100,$A58,'9b'!$K$5:$K$100)+SUMIF('9c'!H$5:H$100,$A58,'9c'!$K$5:$K$100)+SUMIF('9d'!H$5:H$100,$A58,'9d'!$K$5:$K$100)+SUMIF('9e'!H$5:H$100,$A58,'9e'!$K$5:$K$100)+SUMIF('9f'!H$5:H$100,$A58,'9f'!$K$5:$K$100)+SUMIF('9g'!H$5:H$100,$A58,'9g'!$K$5:$K$100)+SUMIF('9h'!H$5:H$100,$A58,'9h'!$K$5:$K$100)+SUMIF('9 TOTAL'!H$5:H$100,$A58,'9 TOTAL'!$K$5:$K$100) +SUMIF('10'!H$5:H$100,$A58,'10'!$K$5:$K$100)+SUMIF('10a'!H$5:H$100,$A58,'10a'!$K$5:$K$100)+SUMIF('10b'!H$5:H$100,$A58,'10b'!$K$5:$K$100)+SUMIF('10c'!H$5:H$100,$A58,'10c'!$K$5:$K$100)+SUMIF('10d'!H$5:H$100,$A58,'10d'!$K$5:$K$100)+SUMIF('10e'!H$5:H$100,$A58,'10e'!$K$5:$K$100)+SUMIF('10f'!H$5:H$100,$A58,'10f'!$K$5:$K$100)+SUMIF('10g'!H$5:H$100,$A58,'10g'!$K$5:$K$100)+SUMIF('10h'!H$5:H$100,$A58,'10h'!$K$5:$K$100)+SUMIF('10i'!H$5:H$100,$A58,'10i'!$K$5:$K$100)+SUMIF('10j'!H$5:H$100,$A58,'10j'!$K$5:$K$100)+SUMIF('10k'!H$5:H$100,$A58,'10k'!$K$5:$K$100)+SUMIF('10l'!H$5:H$100,$A58,'10l'!$K$5:$K$100)+SUMIF('10m'!H$5:H$100,$A58,'10m'!$K$5:$K$100)+SUMIF('10 TOTAL'!H$5:H$100,$A58,'10 TOTAL'!$K$5:$K$100) -> 0 | D58: =SUMIF('4'!H$5:H$100,$A58,'4'!$I$5:$I$100)+SUMIF('4a'!H$5:H$100,$A58,'4a'!$I$5:$I$100)+SUMIF('4b'!H$5:H$100,$A58,'4b'!$I$5:$I$100)+SUMIF('4c'!H$5:H$100,$A58,'4c'!$I$5:$I$100)+SUMIF('5'!H$5:H$100,$A58,'5'!$I$5:$I$100)+SUMIF('6'!H$5:H$100,$A58,'6'!$I$5:$I$100)+SUMIF('7'!H$5:H$100,$A58,'7'!$I$5:$I$100)+SUMIF('7a'!H$5:H$100,$A58,'7a'!$I$5:$I$100)+SUMIF('7b'!H$5:H$100,$A58,'7b'!$I$5:$I$100)+SUMIF('8'!H$5:H$100,$A58,'8'!$I$5:$I$100)+SUMIF('9'!H$5:H$100,$A58,'9'!$I$5:$I$100)+SUMIF('9a'!H$5:H$100,$A58,'9a'!$I$5:$I$100)+SUMIF('9b'!H$5:H$100,$A58,'9b'!$I$5:$I$100)+SUMIF('9c'!H$5:H$100,$A58,'9c'!$I$5:$I$100)+SUMIF('9d'!H$5:H$100,$A58,'9d'!$I$5:$I$100)+SUMIF('9e'!H$5:H$100,$A58,'9e'!$I$5:$I$100)+SUMIF('9f'!H$5:H$100,$A58,'9f'!$I$5:$I$100)+SUMIF('9g'!H$5:H$100,$A58,'9g'!$I$5:$I$100)+SUMIF('9h'!H$5:H$100,$A58,'9h'!$I$5:$I$100)+SUMIF('9 TOTAL'!H$5:H$100,$A58,'9 TOTAL'!$I$5:$I$100) +SUMIF('10'!H$5:H$100,$A58,'10'!$I$5:$I$100)+SUMIF('10a'!H$5:H$100,$A58,'10a'!$I$5:$I$100)+SUMIF('10b'!H$5:H$100,$A58,'10b'!$I$5:$I$100)+SUMIF('10c'!H$5:H$100,$A58,'10c'!$I$5:$I$100)+SUMIF('10d'!H$5:H$100,$A58,'10d'!$I$5:$I$100)+SUMIF('10e'!H$5:H$100,$A58,'10e'!$I$5:$I$100)+SUMIF('10f'!H$5:H$100,$A58,'10f'!$I$5:$I$100)+SUMIF('10g'!H$5:H$100,$A58,'10g'!$I$5:$I$100)+SUMIF('10h'!H$5:H$100,$A58,'10h'!$I$5:$I$100)+SUMIF('10i'!H$5:H$100,$A58,'10i'!$I$5:$I$100)+SUMIF('10j'!H$5:H$100,$A58,'10j'!$I$5:$I$100)+SUMIF('10k'!H$5:H$100,$A58,'10k'!$I$5:$I$100)+SUMIF('10l'!H$5:H$100,$A58,'10l'!$I$5:$I$100)+SUMIF('10m'!H$5:H$100,$A58,'10m'!$I$5:$I$100)+SUMIF('10 TOTAL'!H$5:H$100,$A58,'10 TOTAL'!$I$5:$I$100) -> 0 | S58: 0
A59: 08-232 | B59: "User Defined" Local Revenue | C59: =SUMIF('4'!H$5:H$100,$A59,'4'!$K$5:$K$100)+SUMIF('4a'!H$5:H$100,$A59,'4a'!$K$5:$K$100)+SUMIF('4b'!H$5:H$100,$A59,'4b'!$K$5:$K$100)+SUMIF('4c'!H$5:H$100,$A59,'4c'!$K$5:$K$100)+SUMIF('5'!H$5:H$100,$A59,'5'!$K$5:$K$100)+SUMIF('6'!H$5:H$100,$A59,'6'!$K$5:$K$100)+SUMIF('7'!H$5:H$100,$A59,'7'!$K$5:$K$100)+SUMIF('7a'!H$5:H$100,$A59,'7a'!$K$5:$K$100)+SUMIF('7b'!H$5:H$100,$A59,'7b'!$K$5:$K$100)+SUMIF('8'!H$5:H$100,$A59,'8'!$K$5:$K$100)+SUMIF('9'!H$5:H$100,$A59,'9'!$K$5:$K$100)+SUMIF('9a'!H$5:H$100,$A59,'9a'!$K$5:$K$100)+SUMIF('9b'!H$5:H$100,$A59,'9b'!$K$5:$K$100)+SUMIF('9c'!H$5:H$100,$A59,'9c'!$K$5:$K$100)+SUMIF('9d'!H$5:H$100,$A59,'9d'!$K$5:$K$100)+SUMIF('9e'!H$5:H$100,$A59,'9e'!$K$5:$K$100)+SUMIF('9f'!H$5:H$100,$A59,'9f'!$K$5:$K$100)+SUMIF('9g'!H$5:H$100,$A59,'9g'!$K$5:$K$100)+SUMIF('9h'!H$5:H$100,$A59,'9h'!$K$5:$K$100)+SUMIF('9 TOTAL'!H$5:H$100,$A59,'9 TOTAL'!$K$5:$K$100) +SUMIF('10'!H$5:H$100,$A59,'10'!$K$5:$K$100)+SUMIF('10a'!H$5:H$100,$A59,'10a'!$K$5:$K$100)+SUMIF('10b'!H$5:H$100,$A59,'10b'!$K$5:$K$100)+SUMIF('10c'!H$5:H$100,$A59,'10c'!$K$5:$K$100)+SUMIF('10d'!H$5:H$100,$A59,'10d'!$K$5:$K$100)+SUMIF('10e'!H$5:H$100,$A59,'10e'!$K$5:$K$100)+SUMIF('10f'!H$5:H$100,$A59,'10f'!$K$5:$K$100)+SUMIF('10g'!H$5:H$100,$A59,'10g'!$K$5:$K$100)+SUMIF('10h'!H$5:H$100,$A59,'10h'!$K$5:$K$100)+SUMIF('10i'!H$5:H$100,$A59,'10i'!$K$5:$K$100)+SUMIF('10j'!H$5:H$100,$A59,'10j'!$K$5:$K$100)+SUMIF('10k'!H$5:H$100,$A59,'10k'!$K$5:$K$100)+SUMIF('10l'!H$5:H$100,$A59,'10l'!$K$5:$K$100)+SUMIF('10m'!H$5:H$100,$A59,'10m'!$K$5:$K$100)+SUMIF('10 TOTAL'!H$5:H$100,$A59,'10 TOTAL'!$K$5:$K$100) -> 0 | D59: =SUMIF('4'!H$5:H$100,$A59,'4'!$I$5:$I$100)+SUMIF('4a'!H$5:H$100,$A59,'4a'!$I$5:$I$100)+SUMIF('4b'!H$5:H$100,$A59,'4b'!$I$5:$I$100)+SUMIF('4c'!H$5:H$100,$A59,'4c'!$I$5:$I$100)+SUMIF('5'!H$5:H$100,$A59,'5'!$I$5:$I$100)+SUMIF('6'!H$5:H$100,$A59,'6'!$I$5:$I$100)+SUMIF('7'!H$5:H$100,$A59,'7'!$I$5:$I$100)+SUMIF('7a'!H$5:H$100,$A59,'7a'!$I$5:$I$100)+SUMIF('7b'!H$5:H$100,$A59,'7b'!$I$5:$I$100)+SUMIF('8'!H$5:H$100,$A59,'8'!$I$5:$I$100)+SUMIF('9'!H$5:H$100,$A59,'9'!$I$5:$I$100)+SUMIF('9a'!H$5:H$100,$A59,'9a'!$I$5:$I$100)+SUMIF('9b'!H$5:H$100,$A59,'9b'!$I$5:$I$100)+SUMIF('9c'!H$5:H$100,$A59,'9c'!$I$5:$I$100)+SUMIF('9d'!H$5:H$100,$A59,'9d'!$I$5:$I$100)+SUMIF('9e'!H$5:H$100,$A59,'9e'!$I$5:$I$100)+SUMIF('9f'!H$5:H$100,$A59,'9f'!$I$5:$I$100)+SUMIF('9g'!H$5:H$100,$A59,'9g'!$I$5:$I$100)+SUMIF('9h'!H$5:H$100,$A59,'9h'!$I$5:$I$100)+SUMIF('9 TOTAL'!H$5:H$100,$A59,'9 TOTAL'!$I$5:$I$100) +SUMIF('10'!H$5:H$100,$A59,'10'!$I$5:$I$100)+SUMIF('10a'!H$5:H$100,$A59,'10a'!$I$5:$I$100)+SUMIF('10b'!H$5:H$100,$A59,'10b'!$I$5:$I$100)+SUMIF('10c'!H$5:H$100,$A59,'10c'!$I$5:$I$100)+SUMIF('10d'!H$5:H$100,$A59,'10d'!$I$5:$I$100)+SUMIF('10e'!H$5:H$100,$A59,'10e'!$I$5:$I$100)+SUMIF('10f'!H$5:H$100,$A59,'10f'!$I$5:$I$100)+SUMIF('10g'!H$5:H$100,$A59,'10g'!$I$5:$I$100)+SUMIF('10h'!H$5:H$100,$A59,'10h'!$I$5:$I$100)+SUMIF('10i'!H$5:H$100,$A59,'10i'!$I$5:$I$100)+SUMIF('10j'!H$5:H$100,$A59,'10j'!$I$5:$I$100)+SUMIF('10k'!H$5:H$100,$A59,'10k'!$I$5:$I$100)+SUMIF('10l'!H$5:H$100,$A59,'10l'!$I$5:$I$100)+SUMIF('10m'!H$5:H$100,$A59,'10m'!$I$5:$I$100)+SUMIF('10 TOTAL'!H$5:H$100,$A59,'10 TOTAL'!$I$5:$I$100) -> 0 | S59: 0
A60: 08-233 | B60: "User Defined" Local Revenue | C60: =SUMIF('4'!H$5:H$100,$A60,'4'!$K$5:$K$100)+SUMIF('4a'!H$5:H$100,$A60,'4a'!$K$5:$K$100)+SUMIF('4b'!H$5:H$100,$A60,'4b'!$K$5:$K$100)+SUMIF('4c'!H$5:H$100,$A60,'4c'!$K$5:$K$100)+SUMIF('5'!H$5:H$100,$A60,'5'!$K$5:$K$100)+SUMIF('6'!H$5:H$100,$A60,'6'!$K$5:$K$100)+SUMIF('7'!H$5:H$100,$A60,'7'!$K$5:$K$100)+SUMIF('7a'!H$5:H$100,$A60,'7a'!$K$5:$K$100)+SUMIF('7b'!H$5:H$100,$A60,'7b'!$K$5:$K$100)+SUMIF('8'!H$5:H$100,$A60,'8'!$K$5:$K$100)+SUMIF('9'!H$5:H$100,$A60,'9'!$K$5:$K$100)+SUMIF('9a'!H$5:H$100,$A60,'9a'!$K$5:$K$100)+SUMIF('9b'!H$5:H$100,$A60,'9b'!$K$5:$K$100)+SUMIF('9c'!H$5:H$100,$A60,'9c'!$K$5:$K$100)+SUMIF('9d'!H$5:H$100,$A60,'9d'!$K$5:$K$100)+SUMIF('9e'!H$5:H$100,$A60,'9e'!$K$5:$K$100)+SUMIF('9f'!H$5:H$100,$A60,'9f'!$K$5:$K$100)+SUMIF('9g'!H$5:H$100,$A60,'9g'!$K$5:$K$100)+SUMIF('9h'!H$5:H$100,$A60,'9h'!$K$5:$K$100)+SUMIF('9 TOTAL'!H$5:H$100,$A60,'9 TOTAL'!$K$5:$K$100) +SUMIF('10'!H$5:H$100,$A60,'10'!$K$5:$K$100)+SUMIF('10a'!H$5:H$100,$A60,'10a'!$K$5:$K$100)+SUMIF('10b'!H$5:H$100,$A60,'10b'!$K$5:$K$100)+SUMIF('10c'!H$5:H$100,$A60,'10c'!$K$5:$K$100)+SUMIF('10d'!H$5:H$100,$A60,'10d'!$K$5:$K$100)+SUMIF('10e'!H$5:H$100,$A60,'10e'!$K$5:$K$100)+SUMIF('10f'!H$5:H$100,$A60,'10f'!$K$5:$K$100)+SUMIF('10g'!H$5:H$100,$A60,'10g'!$K$5:$K$100)+SUMIF('10h'!H$5:H$100,$A60,'10h'!$K$5:$K$100)+SUMIF('10i'!H$5:H$100,$A60,'10i'!$K$5:$K$100)+SUMIF('10j'!H$5:H$100,$A60,'10j'!$K$5:$K$100)+SUMIF('10k'!H$5:H$100,$A60,'10k'!$K$5:$K$100)+SUMIF('10l'!H$5:H$100,$A60,'10l'!$K$5:$K$100)+SUMIF('10m'!H$5:H$100,$A60,'10m'!$K$5:$K$100)+SUMIF('10 TOTAL'!H$5:H$100,$A60,'10 TOTAL'!$K$5:$K$100) -> 0 | D60: =SUMIF('4'!H$5:H$100,$A60,'4'!$I$5:$I$100)+SUMIF('4a'!H$5:H$100,$A60,'4a'!$I$5:$I$100)+SUMIF('4b'!H$5:H$100,$A60,'4b'!$I$5:$I$100)+SUMIF('4c'!H$5:H$100,$A60,'4c'!$I$5:$I$100)+SUMIF('5'!H$5:H$100,$A60,'5'!$I$5:$I$100)+SUMIF('6'!H$5:H$100,$A60,'6'!$I$5:$I$100)+SUMIF('7'!H$5:H$100,$A60,'7'!$I$5:$I$100)+SUMIF('7a'!H$5:H$100,$A60,'7a'!$I$5:$I$100)+SUMIF('7b'!H$5:H$100,$A60,'7b'!$I$5:$I$100)+SUMIF('8'!H$5:H$100,$A60,'8'!$I$5:$I$100)+SUMIF('9'!H$5:H$100,$A60,'9'!$I$5:$I$100)+SUMIF('9a'!H$5:H$100,$A60,'9a'!$I$5:$I$100)+SUMIF('9b'!H$5:H$100,$A60,'9b'!$I$5:$I$100)+SUMIF('9c'!H$5:H$100,$A60,'9c'!$I$5:$I$100)+SUMIF('9d'!H$5:H$100,$A60,'9d'!$I$5:$I$100)+SUMIF('9e'!H$5:H$100,$A60,'9e'!$I$5:$I$100)+SUMIF('9f'!H$5:H$100,$A60,'9f'!$I$5:$I$100)+SUMIF('9g'!H$5:H$100,$A60,'9g'!$I$5:$I$100)+SUMIF('9h'!H$5:H$100,$A60,'9h'!$I$5:$I$100)+SUMIF('9 TOTAL'!H$5:H$100,$A60,'9 TOTAL'!$I$5:$I$100) +SUMIF('10'!H$5:H$100,$A60,'10'!$I$5:$I$100)+SUMIF('10a'!H$5:H$100,$A60,'10a'!$I$5:$I$100)+SUMIF('10b'!H$5:H$100,$A60,'10b'!$I$5:$I$100)+SUMIF('10c'!H$5:H$100,$A60,'10c'!$I$5:$I$100)+SUMIF('10d'!H$5:H$100,$A60,'10d'!$I$5:$I$100)+SUMIF('10e'!H$5:H$100,$A60,'10e'!$I$5:$I$100)+SUMIF('10f'!H$5:H$100,$A60,'10f'!$I$5:$I$100)+SUMIF('10g'!H$5:H$100,$A60,'10g'!$I$5:$I$100)+SUMIF('10h'!H$5:H$100,$A60,'10h'!$I$5:$I$100)+SUMIF('10i'!H$5:H$100,$A60,'10i'!$I$5:$I$100)+SUMIF('10j'!H$5:H$100,$A60,'10j'!$I$5:$I$100)+SUMIF('10k'!H$5:H$100,$A60,'10k'!$I$5:$I$100)+SUMIF('10l'!H$5:H$100,$A60,'10l'!$I$5:$I$100)+SUMIF('10m'!H$5:H$100,$A60,'10m'!$I$5:$I$100)+SUMIF('10 TOTAL'!H$5:H$100,$A60,'10 TOTAL'!$I$5:$I$100) -> 0 | S60: 0
A61: 08-234 | B61: "User Defined" Local Revenue | C61: =SUMIF('4'!H$5:H$100,$A61,'4'!$K$5:$K$100)+SUMIF('4a'!H$5:H$100,$A61,'4a'!$K$5:$K$100)+SUMIF('4b'!H$5:H$100,$A61,'4b'!$K$5:$K$100)+SUMIF('4c'!H$5:H$100,$A61,'4c'!$K$5:$K$100)+SUMIF('5'!H$5:H$100,$A61,'5'!$K$5:$K$100)+SUMIF('6'!H$5:H$100,$A61,'6'!$K$5:$K$100)+SUMIF('7'!H$5:H$100,$A61,'7'!$K$5:$K$100)+SUMIF('7a'!H$5:H$100,$A61,'7a'!$K$5:$K$100)+SUMIF('7b'!H$5:H$100,$A61,'7b'!$K$5:$K$100)+SUMIF('8'!H$5:H$100,$A61,'8'!$K$5:$K$100)+SUMIF('9'!H$5:H$100,$A61,'9'!$K$5:$K$100)+SUMIF('9a'!H$5:H$100,$A61,'9a'!$K$5:$K$100)+SUMIF('9b'!H$5:H$100,$A61,'9b'!$K$5:$K$100)+SUMIF('9c'!H$5:H$100,$A61,'9c'!$K$5:$K$100)+SUMIF('9d'!H$5:H$100,$A61,'9d'!$K$5:$K$100)+SUMIF('9e'!H$5:H$100,$A61,'9e'!$K$5:$K$100)+SUMIF('9f'!H$5:H$100,$A61,'9f'!$K$5:$K$100)+SUMIF('9g'!H$5:H$100,$A61,'9g'!$K$5:$K$100)+SUMIF('9h'!H$5:H$100,$A61,'9h'!$K$5:$K$100)+SUMIF('9 TOTAL'!H$5:H$100,$A61,'9 TOTAL'!$K$5:$K$100) +SUMIF('10'!H$5:H$100,$A61,'10'!$K$5:$K$100)+SUMIF('10a'!H$5:H$100,$A61,'10a'!$K$5:$K$100)+SUMIF('10b'!H$5:H$100,$A61,'10b'!$K$5:$K$100)+SUMIF('10c'!H$5:H$100,$A61,'10c'!$K$5:$K$100)+SUMIF('10d'!H$5:H$100,$A61,'10d'!$K$5:$K$100)+SUMIF('10e'!H$5:H$100,$A61,'10e'!$K$5:$K$100)+SUMIF('10f'!H$5:H$100,$A61,'10f'!$K$5:$K$100)+SUMIF('10g'!H$5:H$100,$A61,'10g'!$K$5:$K$100)+SUMIF('10h'!H$5:H$100,$A61,'10h'!$K$5:$K$100)+SUMIF('10i'!H$5:H$100,$A61,'10i'!$K$5:$K$100)+SUMIF('10j'!H$5:H$100,$A61,'10j'!$K$5:$K$100)+SUMIF('10k'!H$5:H$100,$A61,'10k'!$K$5:$K$100)+SUMIF('10l'!H$5:H$100,$A61,'10l'!$K$5:$K$100)+SUMIF('10m'!H$5:H$100,$A61,'10m'!$K$5:$K$100)+SUMIF('10 TOTAL'!H$5:H$100,$A61,'10 TOTAL'!$K$5:$K$100) -> 0 | D61: =SUMIF('4'!H$5:H$100,$A61,'4'!$I$5:$I$100)+SUMIF('4a'!H$5:H$100,$A61,'4a'!$I$5:$I$100)+SUMIF('4b'!H$5:H$100,$A61,'4b'!$I$5:$I$100)+SUMIF('4c'!H$5:H$100,$A61,'4c'!$I$5:$I$100)+SUMIF('5'!H$5:H$100,$A61,'5'!$I$5:$I$100)+SUMIF('6'!H$5:H$100,$A61,'6'!$I$5:$I$100)+SUMIF('7'!H$5:H$100,$A61,'7'!$I$5:$I$100)+SUMIF('7a'!H$5:H$100,$A61,'7a'!$I$5:$I$100)+SUMIF('7b'!H$5:H$100,$A61,'7b'!$I$5:$I$100)+SUMIF('8'!H$5:H$100,$A61,'8'!$I$5:$I$100)+SUMIF('9'!H$5:H$100,$A61,'9'!$I$5:$I$100)+SUMIF('9a'!H$5:H$100,$A61,'9a'!$I$5:$I$100)+SUMIF('9b'!H$5:H$100,$A61,'9b'!$I$5:$I$100)+SUMIF('9c'!H$5:H$100,$A61,'9c'!$I$5:$I$100)+SUMIF('9d'!H$5:H$100,$A61,'9d'!$I$5:$I$100)+SUMIF('9e'!H$5:H$100,$A61,'9e'!$I$5:$I$100)+SUMIF('9f'!H$5:H$100,$A61,'9f'!$I$5:$I$100)+SUMIF('9g'!H$5:H$100,$A61,'9g'!$I$5:$I$100)+SUMIF('9h'!H$5:H$100,$A61,'9h'!$I$5:$I$100)+SUMIF('9 TOTAL'!H$5:H$100,$A61,'9 TOTAL'!$I$5:$I$100) +SUMIF('10'!H$5:H$100,$A61,'10'!$I$5:$I$100)+SUMIF('10a'!H$5:H$100,$A61,'10a'!$I$5:$I$100)+SUMIF('10b'!H$5:H$100,$A61,'10b'!$I$5:$I$100)+SUMIF('10c'!H$5:H$100,$A61,'10c'!$I$5:$I$100)+SUMIF('10d'!H$5:H$100,$A61,'10d'!$I$5:$I$100)+SUMIF('10e'!H$5:H$100,$A61,'10e'!$I$5:$I$100)+SUMIF('10f'!H$5:H$100,$A61,'10f'!$I$5:$I$100)+SUMIF('10g'!H$5:H$100,$A61,'10g'!$I$5:$I$100)+SUMIF('10h'!H$5:H$100,$A61,'10h'!$I$5:$I$100)+SUMIF('10i'!H$5:H$100,$A61,'10i'!$I$5:$I$100)+SUMIF('10j'!H$5:H$100,$A61,'10j'!$I$5:$I$100)+SUMIF('10k'!H$5:H$100,$A61,'10k'!$I$5:$I$100)+SUMIF('10l'!H$5:H$100,$A61,'10l'!$I$5:$I$100)+SUMIF('10m'!H$5:H$100,$A61,'10m'!$I$5:$I$100)+SUMIF('10 TOTAL'!H$5:H$100,$A61,'10 TOTAL'!$I$5:$I$100) -> 0 | S61: 0
A62: 08-235 | B62: "User Defined" Local Revenue | C62: =SUMIF('4'!H$5:H$100,$A62,'4'!$K$5:$K$100)+SUMIF('4a'!H$5:H$100,$A62,'4a'!$K$5:$K$100)+SUMIF('4b'!H$5:H$100,$A62,'4b'!$K$5:$K$100)+SUMIF('4c'!H$5:H$100,$A62,'4c'!$K$5:$K$100)+SUMIF('5'!H$5:H$100,$A62,'5'!$K$5:$K$100)+SUMIF('6'!H$5:H$100,$A62,'6'!$K$5:$K$100)+SUMIF('7'!H$5:H$100,$A62,'7'!$K$5:$K$100)+SUMIF('7a'!H$5:H$100,$A62,'7a'!$K$5:$K$100)+SUMIF('7b'!H$5:H$100,$A62,'7b'!$K$5:$K$100)+SUMIF('8'!H$5:H$100,$A62,'8'!$K$5:$K$100)+SUMIF('9'!H$5:H$100,$A62,'9'!$K$5:$K$100)+SUMIF('9a'!H$5:H$100,$A62,'9a'!$K$5:$K$100)+SUMIF('9b'!H$5:H$100,$A62,'9b'!$K$5:$K$100)+SUMIF('9c'!H$5:H$100,$A62,'9c'!$K$5:$K$100)+SUMIF('9d'!H$5:H$100,$A62,'9d'!$K$5:$K$100)+SUMIF('9e'!H$5:H$100,$A62,'9e'!$K$5:$K$100)+SUMIF('9f'!H$5:H$100,$A62,'9f'!$K$5:$K$100)+SUMIF('9g'!H$5:H$100,$A62,'9g'!$K$5:$K$100)+SUMIF('9h'!H$5:H$100,$A62,'9h'!$K$5:$K$100)+SUMIF('9 TOTAL'!H$5:H$100,$A62,'9 TOTAL'!$K$5:$K$100) +SUMIF('10'!H$5:H$100,$A62,'10'!$K$5:$K$100)+SUMIF('10a'!H$5:H$100,$A62,'10a'!$K$5:$K$100)+SUMIF('10b'!H$5:H$100,$A62,'10b'!$K$5:$K$100)+SUMIF('10c'!H$5:H$100,$A62,'10c'!$K$5:$K$100)+SUMIF('10d'!H$5:H$100,$A62,'10d'!$K$5:$K$100)+SUMIF('10e'!H$5:H$100,$A62,'10e'!$K$5:$K$100)+SUMIF('10f'!H$5:H$100,$A62,'10f'!$K$5:$K$100)+SUMIF('10g'!H$5:H$100,$A62,'10g'!$K$5:$K$100)+SUMIF('10h'!H$5:H$100,$A62,'10h'!$K$5:$K$100)+SUMIF('10i'!H$5:H$100,$A62,'10i'!$K$5:$K$100)+SUMIF('10j'!H$5:H$100,$A62,'10j'!$K$5:$K$100)+SUMIF('10k'!H$5:H$100,$A62,'10k'!$K$5:$K$100)+SUMIF('10l'!H$5:H$100,$A62,'10l'!$K$5:$K$100)+SUMIF('10m'!H$5:H$100,$A62,'10m'!$K$5:$K$100)+SUMIF('10 TOTAL'!H$5:H$100,$A62,'10 TOTAL'!$K$5:$K$100) -> 0 | D62: =SUMIF('4'!H$5:H$100,$A62,'4'!$I$5:$I$100)+SUMIF('4a'!H$5:H$100,$A62,'4a'!$I$5:$I$100)+SUMIF('4b'!H$5:H$100,$A62,'4b'!$I$5:$I$100)+SUMIF('4c'!H$5:H$100,$A62,'4c'!$I$5:$I$100)+SUMIF('5'!H$5:H$100,$A62,'5'!$I$5:$I$100)+SUMIF('6'!H$5:H$100,$A62,'6'!$I$5:$I$100)+SUMIF('7'!H$5:H$100,$A62,'7'!$I$5:$I$100)+SUMIF('7a'!H$5:H$100,$A62,'7a'!$I$5:$I$100)+SUMIF('7b'!H$5:H$100,$A62,'7b'!$I$5:$I$100)+SUMIF('8'!H$5:H$100,$A62,'8'!$I$5:$I$100)+SUMIF('9'!H$5:H$100,$A62,'9'!$I$5:$I$100)+SUMIF('9a'!H$5:H$100,$A62,'9a'!$I$5:$I$100)+SUMIF('9b'!H$5:H$100,$A62,'9b'!$I$5:$I$100)+SUMIF('9c'!H$5:H$100,$A62,'9c'!$I$5:$I$100)+SUMIF('9d'!H$5:H$100,$A62,'9d'!$I$5:$I$100)+SUMIF('9e'!H$5:H$100,$A62,'9e'!$I$5:$I$100)+SUMIF('9f'!H$5:H$100,$A62,'9f'!$I$5:$I$100)+SUMIF('9g'!H$5:H$100,$A62,'9g'!$I$5:$I$100)+SUMIF('9h'!H$5:H$100,$A62,'9h'!$I$5:$I$100)+SUMIF('9 TOTAL'!H$5:H$100,$A62,'9 TOTAL'!$I$5:$I$100) +SUMIF('10'!H$5:H$100,$A62,'10'!$I$5:$I$100)+SUMIF('10a'!H$5:H$100,$A62,'10a'!$I$5:$I$100)+SUMIF('10b'!H$5:H$100,$A62,'10b'!$I$5:$I$100)+SUMIF('10c'!H$5:H$100,$A62,'10c'!$I$5:$I$100)+SUMIF('10d'!H$5:H$100,$A62,'10d'!$I$5:$I$100)+SUMIF('10e'!H$5:H$100,$A62,'10e'!$I$5:$I$100)+SUMIF('10f'!H$5:H$100,$A62,'10f'!$I$5:$I$100)+SUMIF('10g'!H$5:H$100,$A62,'10g'!$I$5:$I$100)+SUMIF('10h'!H$5:H$100,$A62,'10h'!$I$5:$I$100)+SUMIF('10i'!H$5:H$100,$A62,'10i'!$I$5:$I$100)+SUMIF('10j'!H$5:H$100,$A62,'10j'!$I$5:$I$100)+SUMIF('10k'!H$5:H$100,$A62,'10k'!$I$5:$I$100)+SUMIF('10l'!H$5:H$100,$A62,'10l'!$I$5:$I$100)+SUMIF('10m'!H$5:H$100,$A62,'10m'!$I$5:$I$100)+SUMIF('10 TOTAL'!H$5:H$100,$A62,'10 TOTAL'!$I$5:$I$100) -> 0 | S62: 0
A63: 08-236 | B63: "User Defined" Local Revenue | C63: =SUMIF('4'!H$5:H$100,$A63,'4'!$K$5:$K$100)+SUMIF('4a'!H$5:H$100,$A63,'4a'!$K$5:$K$100)+SUMIF('4b'!H$5:H$100,$A63,'4b'!$K$5:$K$100)+SUMIF('4c'!H$5:H$100,$A63,'4c'!$K$5:$K$100)+SUMIF('5'!H$5:H$100,$A63,'5'!$K$5:$K$100)+SUMIF('6'!H$5:H$100,$A63,'6'!$K$5:$K$100)+SUMIF('7'!H$5:H$100,$A63,'7'!$K$5:$K$100)+SUMIF('7a'!H$5:H$100,$A63,'7a'!$K$5:$K$100)+SUMIF('7b'!H$5:H$100,$A63,'7b'!$K$5:$K$100)+SUMIF('8'!H$5:H$100,$A63,'8'!$K$5:$K$100)+SUMIF('9'!H$5:H$100,$A63,'9'!$K$5:$K$100)+SUMIF('9a'!H$5:H$100,$A63,'9a'!$K$5:$K$100)+SUMIF('9b'!H$5:H$100,$A63,'9b'!$K$5:$K$100)+SUMIF('9c'!H$5:H$100,$A63,'9c'!$K$5:$K$100)+SUMIF('9d'!H$5:H$100,$A63,'9d'!$K$5:$K$100)+SUMIF('9e'!H$5:H$100,$A63,'9e'!$K$5:$K$100)+SUMIF('9f'!H$5:H$100,$A63,'9f'!$K$5:$K$100)+SUMIF('9g'!H$5:H$100,$A63,'9g'!$K$5:$K$100)+SUMIF('9h'!H$5:H$100,$A63,'9h'!$K$5:$K$100)+SUMIF('9 TOTAL'!H$5:H$100,$A63,'9 TOTAL'!$K$5:$K$100) +SUMIF('10'!H$5:H$100,$A63,'10'!$K$5:$K$100)+SUMIF('10a'!H$5:H$100,$A63,'10a'!$K$5:$K$100)+SUMIF('10b'!H$5:H$100,$A63,'10b'!$K$5:$K$100)+SUMIF('10c'!H$5:H$100,$A63,'10c'!$K$5:$K$100)+SUMIF('10d'!H$5:H$100,$A63,'10d'!$K$5:$K$100)+SUMIF('10e'!H$5:H$100,$A63,'10e'!$K$5:$K$100)+SUMIF('10f'!H$5:H$100,$A63,'10f'!$K$5:$K$100)+SUMIF('10g'!H$5:H$100,$A63,'10g'!$K$5:$K$100)+SUMIF('10h'!H$5:H$100,$A63,'10h'!$K$5:$K$100)+SUMIF('10i'!H$5:H$100,$A63,'10i'!$K$5:$K$100)+SUMIF('10j'!H$5:H$100,$A63,'10j'!$K$5:$K$100)+SUMIF('10k'!H$5:H$100,$A63,'10k'!$K$5:$K$100)+SUMIF('10l'!H$5:H$100,$A63,'10l'!$K$5:$K$100)+SUMIF('10m'!H$5:H$100,$A63,'10m'!$K$5:$K$100)+SUMIF('10 TOTAL'!H$5:H$100,$A63,'10 TOTAL'!$K$5:$K$100) -> 0 | D63: =SUMIF('4'!H$5:H$100,$A63,'4'!$I$5:$I$100)+SUMIF('4a'!H$5:H$100,$A63,'4a'!$I$5:$I$100)+SUMIF('4b'!H$5:H$100,$A63,'4b'!$I$5:$I$100)+SUMIF('4c'!H$5:H$100,$A63,'4c'!$I$5:$I$100)+SUMIF('5'!H$5:H$100,$A63,'5'!$I$5:$I$100)+SUMIF('6'!H$5:H$100,$A63,'6'!$I$5:$I$100)+SUMIF('7'!H$5:H$100,$A63,'7'!$I$5:$I$100)+SUMIF('7a'!H$5:H$100,$A63,'7a'!$I$5:$I$100)+SUMIF('7b'!H$5:H$100,$A63,'7b'!$I$5:$I$100)+SUMIF('8'!H$5:H$100,$A63,'8'!$I$5:$I$100)+SUMIF('9'!H$5:H$100,$A63,'9'!$I$5:$I$100)+SUMIF('9a'!H$5:H$100,$A63,'9a'!$I$5:$I$100)+SUMIF('9b'!H$5:H$100,$A63,'9b'!$I$5:$I$100)+SUMIF('9c'!H$5:H$100,$A63,'9c'!$I$5:$I$100)+SUMIF('9d'!H$5:H$100,$A63,'9d'!$I$5:$I$100)+SUMIF('9e'!H$5:H$100,$A63,'9e'!$I$5:$I$100)+SUMIF('9f'!H$5:H$100,$A63,'9f'!$I$5:$I$100)+SUMIF('9g'!H$5:H$100,$A63,'9g'!$I$5:$I$100)+SUMIF('9h'!H$5:H$100,$A63,'9h'!$I$5:$I$100)+SUMIF('9 TOTAL'!H$5:H$100,$A63,'9 TOTAL'!$I$5:$I$100) +SUMIF('10'!H$5:H$100,$A63,'10'!$I$5:$I$100)+SUMIF('10a'!H$5:H$100,$A63,'10a'!$I$5:$I$100)+SUMIF('10b'!H$5:H$100,$A63,'10b'!$I$5:$I$100)+SUMIF('10c'!H$5:H$100,$A63,'10c'!$I$5:$I$100)+SUMIF('10d'!H$5:H$100,$A63,'10d'!$I$5:$I$100)+SUMIF('10e'!H$5:H$100,$A63,'10e'!$I$5:$I$100)+SUMIF('10f'!H$5:H$100,$A63,'10f'!$I$5:$I$100)+SUMIF('10g'!H$5:H$100,$A63,'10g'!$I$5:$I$100)+SUMIF('10h'!H$5:H$100,$A63,'10h'!$I$5:$I$100)+SUMIF('10i'!H$5:H$100,$A63,'10i'!$I$5:$I$100)+SUMIF('10j'!H$5:H$100,$A63,'10j'!$I$5:$I$100)+SUMIF('10k'!H$5:H$100,$A63,'10k'!$I$5:$I$100)+SUMIF('10l'!H$5:H$100,$A63,'10l'!$I$5:$I$100)+SUMIF('10m'!H$5:H$100,$A63,'10m'!$I$5:$I$100)+SUMIF('10 TOTAL'!H$5:H$100,$A63,'10 TOTAL'!$I$5:$I$100) -> 0 | S63: 0
A64: 08-237 | B64: "User Defined" Local Revenue | C64: =SUMIF('4'!H$5:H$100,$A64,'4'!$K$5:$K$100)+SUMIF('4a'!H$5:H$100,$A64,'4a'!$K$5:$K$100)+SUMIF('4b'!H$5:H$100,$A64,'4b'!$K$5:$K$100)+SUMIF('4c'!H$5:H$100,$A64,'4c'!$K$5:$K$100)+SUMIF('5'!H$5:H$100,$A64,'5'!$K$5:$K$100)+SUMIF('6'!H$5:H$100,$A64,'6'!$K$5:$K$100)+SUMIF('7'!H$5:H$100,$A64,'7'!$K$5:$K$100)+SUMIF('7a'!H$5:H$100,$A64,'7a'!$K$5:$K$100)+SUMIF('7b'!H$5:H$100,$A64,'7b'!$K$5:$K$100)+SUMIF('8'!H$5:H$100,$A64,'8'!$K$5:$K$100)+SUMIF('9'!H$5:H$100,$A64,'9'!$K$5:$K$100)+SUMIF('9a'!H$5:H$100,$A64,'9a'!$K$5:$K$100)+SUMIF('9b'!H$5:H$100,$A64,'9b'!$K$5:$K$100)+SUMIF('9c'!H$5:H$100,$A64,'9c'!$K$5:$K$100)+SUMIF('9d'!H$5:H$100,$A64,'9d'!$K$5:$K$100)+SUMIF('9e'!H$5:H$100,$A64,'9e'!$K$5:$K$100)+SUMIF('9f'!H$5:H$100,$A64,'9f'!$K$5:$K$100)+SUMIF('9g'!H$5:H$100,$A64,'9g'!$K$5:$K$100)+SUMIF('9h'!H$5:H$100,$A64,'9h'!$K$5:$K$100)+SUMIF('9 TOTAL'!H$5:H$100,$A64,'9 TOTAL'!$K$5:$K$100) +SUMIF('10'!H$5:H$100,$A64,'10'!$K$5:$K$100)+SUMIF('10a'!H$5:H$100,$A64,'10a'!$K$5:$K$100)+SUMIF('10b'!H$5:H$100,$A64,'10b'!$K$5:$K$100)+SUMIF('10c'!H$5:H$100,$A64,'10c'!$K$5:$K$100)+SUMIF('10d'!H$5:H$100,$A64,'10d'!$K$5:$K$100)+SUMIF('10e'!H$5:H$100,$A64,'10e'!$K$5:$K$100)+SUMIF('10f'!H$5:H$100,$A64,'10f'!$K$5:$K$100)+SUMIF('10g'!H$5:H$100,$A64,'10g'!$K$5:$K$100)+SUMIF('10h'!H$5:H$100,$A64,'10h'!$K$5:$K$100)+SUMIF('10i'!H$5:H$100,$A64,'10i'!$K$5:$K$100)+SUMIF('10j'!H$5:H$100,$A64,'10j'!$K$5:$K$100)+SUMIF('10k'!H$5:H$100,$A64,'10k'!$K$5:$K$100)+SUMIF('10l'!H$5:H$100,$A64,'10l'!$K$5:$K$100)+SUMIF('10m'!H$5:H$100,$A64,'10m'!$K$5:$K$100)+SUMIF('10 TOTAL'!H$5:H$100,$A64,'10 TOTAL'!$K$5:$K$100) -> 0 | D64: =SUMIF('4'!H$5:H$100,$A64,'4'!$I$5:$I$100)+SUMIF('4a'!H$5:H$100,$A64,'4a'!$I$5:$I$100)+SUMIF('4b'!H$5:H$100,$A64,'4b'!$I$5:$I$100)+SUMIF('4c'!H$5:H$100,$A64,'4c'!$I$5:$I$100)+SUMIF('5'!H$5:H$100,$A64,'5'!$I$5:$I$100)+SUMIF('6'!H$5:H$100,$A64,'6'!$I$5:$I$100)+SUMIF('7'!H$5:H$100,$A64,'7'!$I$5:$I$100)+SUMIF('7a'!H$5:H$100,$A64,'7a'!$I$5:$I$100)+SUMIF('7b'!H$5:H$100,$A64,'7b'!$I$5:$I$100)+SUMIF('8'!H$5:H$100,$A64,'8'!$I$5:$I$100)+SUMIF('9'!H$5:H$100,$A64,'9'!$I$5:$I$100)+SUMIF('9a'!H$5:H$100,$A64,'9a'!$I$5:$I$100)+SUMIF('9b'!H$5:H$100,$A64,'9b'!$I$5:$I$100)+SUMIF('9c'!H$5:H$100,$A64,'9c'!$I$5:$I$100)+SUMIF('9d'!H$5:H$100,$A64,'9d'!$I$5:$I$100)+SUMIF('9e'!H$5:H$100,$A64,'9e'!$I$5:$I$100)+SUMIF('9f'!H$5:H$100,$A64,'9f'!$I$5:$I$100)+SUMIF('9g'!H$5:H$100,$A64,'9g'!$I$5:$I$100)+SUMIF('9h'!H$5:H$100,$A64,'9h'!$I$5:$I$100)+SUMIF('9 TOTAL'!H$5:H$100,$A64,'9 TOTAL'!$I$5:$I$100) +SUMIF('10'!H$5:H$100,$A64,'10'!$I$5:$I$100)+SUMIF('10a'!H$5:H$100,$A64,'10a'!$I$5:$I$100)+SUMIF('10b'!H$5:H$100,$A64,'10b'!$I$5:$I$100)+SUMIF('10c'!H$5:H$100,$A64,'10c'!$I$5:$I$100)+SUMIF('10d'!H$5:H$100,$A64,'10d'!$I$5:$I$100)+SUMIF('10e'!H$5:H$100,$A64,'10e'!$I$5:$I$100)+SUMIF('10f'!H$5:H$100,$A64,'10f'!$I$5:$I$100)+SUMIF('10g'!H$5:H$100,$A64,'10g'!$I$5:$I$100)+SUMIF('10h'!H$5:H$100,$A64,'10h'!$I$5:$I$100)+SUMIF('10i'!H$5:H$100,$A64,'10i'!$I$5:$I$100)+SUMIF('10j'!H$5:H$100,$A64,'10j'!$I$5:$I$100)+SUMIF('10k'!H$5:H$100,$A64,'10k'!$I$5:$I$100)+SUMIF('10l'!H$5:H$100,$A64,'10l'!$I$5:$I$100)+SUMIF('10m'!H$5:H$100,$A64,'10m'!$I$5:$I$100)+SUMIF('10 TOTAL'!H$5:H$100,$A64,'10 TOTAL'!$I$5:$I$100) -> 0 | S64: 0
A65: 08-238 | B65: "User Defined" Local Revenue | C65: =SUMIF('4'!H$5:H$100,$A65,'4'!$K$5:$K$100)+SUMIF('4a'!H$5:H$100,$A65,'4a'!$K$5:$K$100)+SUMIF('4b'!H$5:H$100,$A65,'4b'!$K$5:$K$100)+SUMIF('4c'!H$5:H$100,$A65,'4c'!$K$5:$K$100)+SUMIF('5'!H$5:H$100,$A65,'5'!$K$5:$K$100)+SUMIF('6'!H$5:H$100,$A65,'6'!$K$5:$K$100)+SUMIF('7'!H$5:H$100,$A65,'7'!$K$5:$K$100)+SUMIF('7a'!H$5:H$100,$A65,'7a'!$K$5:$K$100)+SUMIF('7b'!H$5:H$100,$A65,'7b'!$K$5:$K$100)+SUMIF('8'!H$5:H$100,$A65,'8'!$K$5:$K$100)+SUMIF('9'!H$5:H$100,$A65,'9'!$K$5:$K$100)+SUMIF('9a'!H$5:H$100,$A65,'9a'!$K$5:$K$100)+SUMIF('9b'!H$5:H$100,$A65,'9b'!$K$5:$K$100)+SUMIF('9c'!H$5:H$100,$A65,'9c'!$K$5:$K$100)+SUMIF('9d'!H$5:H$100,$A65,'9d'!$K$5:$K$100)+SUMIF('9e'!H$5:H$100,$A65,'9e'!$K$5:$K$100)+SUMIF('9f'!H$5:H$100,$A65,'9f'!$K$5:$K$100)+SUMIF('9g'!H$5:H$100,$A65,'9g'!$K$5:$K$100)+SUMIF('9h'!H$5:H$100,$A65,'9h'!$K$5:$K$100)+SUMIF('9 TOTAL'!H$5:H$100,$A65,'9 TOTAL'!$K$5:$K$100) +SUMIF('10'!H$5:H$100,$A65,'10'!$K$5:$K$100)+SUMIF('10a'!H$5:H$100,$A65,'10a'!$K$5:$K$100)+SUMIF('10b'!H$5:H$100,$A65,'10b'!$K$5:$K$100)+SUMIF('10c'!H$5:H$100,$A65,'10c'!$K$5:$K$100)+SUMIF('10d'!H$5:H$100,$A65,'10d'!$K$5:$K$100)+SUMIF('10e'!H$5:H$100,$A65,'10e'!$K$5:$K$100)+SUMIF('10f'!H$5:H$100,$A65,'10f'!$K$5:$K$100)+SUMIF('10g'!H$5:H$100,$A65,'10g'!$K$5:$K$100)+SUMIF('10h'!H$5:H$100,$A65,'10h'!$K$5:$K$100)+SUMIF('10i'!H$5:H$100,$A65,'10i'!$K$5:$K$100)+SUMIF('10j'!H$5:H$100,$A65,'10j'!$K$5:$K$100)+SUMIF('10k'!H$5:H$100,$A65,'10k'!$K$5:$K$100)+SUMIF('10l'!H$5:H$100,$A65,'10l'!$K$5:$K$100)+SUMIF('10m'!H$5:H$100,$A65,'10m'!$K$5:$K$100)+SUMIF('10 TOTAL'!H$5:H$100,$A65,'10 TOTAL'!$K$5:$K$100) -> 0 | D65: =SUMIF('4'!H$5:H$100,$A65,'4'!$I$5:$I$100)+SUMIF('4a'!H$5:H$100,$A65,'4a'!$I$5:$I$100)+SUMIF('4b'!H$5:H$100,$A65,'4b'!$I$5:$I$100)+SUMIF('4c'!H$5:H$100,$A65,'4c'!$I$5:$I$100)+SUMIF('5'!H$5:H$100,$A65,'5'!$I$5:$I$100)+SUMIF('6'!H$5:H$100,$A65,'6'!$I$5:$I$100)+SUMIF('7'!H$5:H$100,$A65,'7'!$I$5:$I$100)+SUMIF('7a'!H$5:H$100,$A65,'7a'!$I$5:$I$100)+SUMIF('7b'!H$5:H$100,$A65,'7b'!$I$5:$I$100)+SUMIF('8'!H$5:H$100,$A65,'8'!$I$5:$I$100)+SUMIF('9'!H$5:H$100,$A65,'9'!$I$5:$I$100)+SUMIF('9a'!H$5:H$100,$A65,'9a'!$I$5:$I$100)+SUMIF('9b'!H$5:H$100,$A65,'9b'!$I$5:$I$100)+SUMIF('9c'!H$5:H$100,$A65,'9c'!$I$5:$I$100)+SUMIF('9d'!H$5:H$100,$A65,'9d'!$I$5:$I$100)+SUMIF('9e'!H$5:H$100,$A65,'9e'!$I$5:$I$100)+SUMIF('9f'!H$5:H$100,$A65,'9f'!$I$5:$I$100)+SUMIF('9g'!H$5:H$100,$A65,'9g'!$I$5:$I$100)+SUMIF('9h'!H$5:H$100,$A65,'9h'!$I$5:$I$100)+SUMIF('9 TOTAL'!H$5:H$100,$A65,'9 TOTAL'!$I$5:$I$100) +SUMIF('10'!H$5:H$100,$A65,'10'!$I$5:$I$100)+SUMIF('10a'!H$5:H$100,$A65,'10a'!$I$5:$I$100)+SUMIF('10b'!H$5:H$100,$A65,'10b'!$I$5:$I$100)+SUMIF('10c'!H$5:H$100,$A65,'10c'!$I$5:$I$100)+SUMIF('10d'!H$5:H$100,$A65,'10d'!$I$5:$I$100)+SUMIF('10e'!H$5:H$100,$A65,'10e'!$I$5:$I$100)+SUMIF('10f'!H$5:H$100,$A65,'10f'!$I$5:$I$100)+SUMIF('10g'!H$5:H$100,$A65,'10g'!$I$5:$I$100)+SUMIF('10h'!H$5:H$100,$A65,'10h'!$I$5:$I$100)+SUMIF('10i'!H$5:H$100,$A65,'10i'!$I$5:$I$100)+SUMIF('10j'!H$5:H$100,$A65,'10j'!$I$5:$I$100)+SUMIF('10k'!H$5:H$100,$A65,'10k'!$I$5:$I$100)+SUMIF('10l'!H$5:H$100,$A65,'10l'!$I$5:$I$100)+SUMIF('10m'!H$5:H$100,$A65,'10m'!$I$5:$I$100)+SUMIF('10 TOTAL'!H$5:H$100,$A65,'10 TOTAL'!$I$5:$I$100) -> 0 | S65: 0
A66: 08-239 | B66: "User Defined" Local Revenue | C66: =SUMIF('4'!H$5:H$100,$A66,'4'!$K$5:$K$100)+SUMIF('4a'!H$5:H$100,$A66,'4a'!$K$5:$K$100)+SUMIF('4b'!H$5:H$100,$A66,'4b'!$K$5:$K$100)+SUMIF('4c'!H$5:H$100,$A66,'4c'!$K$5:$K$100)+SUMIF('5'!H$5:H$100,$A66,'5'!$K$5:$K$100)+SUMIF('6'!H$5:H$100,$A66,'6'!$K$5:$K$100)+SUMIF('7'!H$5:H$100,$A66,'7'!$K$5:$K$100)+SUMIF('7a'!H$5:H$100,$A66,'7a'!$K$5:$K$100)+SUMIF('7b'!H$5:H$100,$A66,'7b'!$K$5:$K$100)+SUMIF('8'!H$5:H$100,$A66,'8'!$K$5:$K$100)+SUMIF('9'!H$5:H$100,$A66,'9'!$K$5:$K$100)+SUMIF('9a'!H$5:H$100,$A66,'9a'!$K$5:$K$100)+SUMIF('9b'!H$5:H$100,$A66,'9b'!$K$5:$K$100)+SUMIF('9c'!H$5:H$100,$A66,'9c'!$K$5:$K$100)+SUMIF('9d'!H$5:H$100,$A66,'9d'!$K$5:$K$100)+SUMIF('9e'!H$5:H$100,$A66,'9e'!$K$5:$K$100)+SUMIF('9f'!H$5:H$100,$A66,'9f'!$K$5:$K$100)+SUMIF('9g'!H$5:H$100,$A66,'9g'!$K$5:$K$100)+SUMIF('9h'!H$5:H$100,$A66,'9h'!$K$5:$K$100)+SUMIF('9 TOTAL'!H$5:H$100,$A66,'9 TOTAL'!$K$5:$K$100) +SUMIF('10'!H$5:H$100,$A66,'10'!$K$5:$K$100)+SUMIF('10a'!H$5:H$100,$A66,'10a'!$K$5:$K$100)+SUMIF('10b'!H$5:H$100,$A66,'10b'!$K$5:$K$100)+SUMIF('10c'!H$5:H$100,$A66,'10c'!$K$5:$K$100)+SUMIF('10d'!H$5:H$100,$A66,'10d'!$K$5:$K$100)+SUMIF('10e'!H$5:H$100,$A66,'10e'!$K$5:$K$100)+SUMIF('10f'!H$5:H$100,$A66,'10f'!$K$5:$K$100)+SUMIF('10g'!H$5:H$100,$A66,'10g'!$K$5:$K$100)+SUMIF('10h'!H$5:H$100,$A66,'10h'!$K$5:$K$100)+SUMIF('10i'!H$5:H$100,$A66,'10i'!$K$5:$K$100)+SUMIF('10j'!H$5:H$100,$A66,'10j'!$K$5:$K$100)+SUMIF('10k'!H$5:H$100,$A66,'10k'!$K$5:$K$100)+SUMIF('10l'!H$5:H$100,$A66,'10l'!$K$5:$K$100)+SUMIF('10m'!H$5:H$100,$A66,'10m'!$K$5:$K$100)+SUMIF('10 TOTAL'!H$5:H$100,$A66,'10 TOTAL'!$K$5:$K$100) -> 0 | D66: =SUMIF('4'!H$5:H$100,$A66,'4'!$I$5:$I$100)+SUMIF('4a'!H$5:H$100,$A66,'4a'!$I$5:$I$100)+SUMIF('4b'!H$5:H$100,$A66,'4b'!$I$5:$I$100)+SUMIF('4c'!H$5:H$100,$A66,'4c'!$I$5:$I$100)+SUMIF('5'!H$5:H$100,$A66,'5'!$I$5:$I$100)+SUMIF('6'!H$5:H$100,$A66,'6'!$I$5:$I$100)+SUMIF('7'!H$5:H$100,$A66,'7'!$I$5:$I$100)+SUMIF('7a'!H$5:H$100,$A66,'7a'!$I$5:$I$100)+SUMIF('7b'!H$5:H$100,$A66,'7b'!$I$5:$I$100)+SUMIF('8'!H$5:H$100,$A66,'8'!$I$5:$I$100)+SUMIF('9'!H$5:H$100,$A66,'9'!$I$5:$I$100)+SUMIF('9a'!H$5:H$100,$A66,'9a'!$I$5:$I$100)+SUMIF('9b'!H$5:H$100,$A66,'9b'!$I$5:$I$100)+SUMIF('9c'!H$5:H$100,$A66,'9c'!$I$5:$I$100)+SUMIF('9d'!H$5:H$100,$A66,'9d'!$I$5:$I$100)+SUMIF('9e'!H$5:H$100,$A66,'9e'!$I$5:$I$100)+SUMIF('9f'!H$5:H$100,$A66,'9f'!$I$5:$I$100)+SUMIF('9g'!H$5:H$100,$A66,'9g'!$I$5:$I$100)+SUMIF('9h'!H$5:H$100,$A66,'9h'!$I$5:$I$100)+SUMIF('9 TOTAL'!H$5:H$100,$A66,'9 TOTAL'!$I$5:$I$100) +SUMIF('10'!H$5:H$100,$A66,'10'!$I$5:$I$100)+SUMIF('10a'!H$5:H$100,$A66,'10a'!$I$5:$I$100)+SUMIF('10b'!H$5:H$100,$A66,'10b'!$I$5:$I$100)+SUMIF('10c'!H$5:H$100,$A66,'10c'!$I$5:$I$100)+SUMIF('10d'!H$5:H$100,$A66,'10d'!$I$5:$I$100)+SUMIF('10e'!H$5:H$100,$A66,'10e'!$I$5:$I$100)+SUMIF('10f'!H$5:H$100,$A66,'10f'!$I$5:$I$100)+SUMIF('10g'!H$5:H$100,$A66,'10g'!$I$5:$I$100)+SUMIF('10h'!H$5:H$100,$A66,'10h'!$I$5:$I$100)+SUMIF('10i'!H$5:H$100,$A66,'10i'!$I$5:$I$100)+SUMIF('10j'!H$5:H$100,$A66,'10j'!$I$5:$I$100)+SUMIF('10k'!H$5:H$100,$A66,'10k'!$I$5:$I$100)+SUMIF('10l'!H$5:H$100,$A66,'10l'!$I$5:$I$100)+SUMIF('10m'!H$5:H$100,$A66,'10m'!$I$5:$I$100)+SUMIF('10 TOTAL'!H$5:H$100,$A66,'10 TOTAL'!$I$5:$I$100) -> 0 | S66: 0
B67: Total- Local Revenues | C67: =SUM(C33:C50,C53:C55) -> 17,404 | D67: =SUM(D33:D50,D53:D55) -> 17,150
A69: State Aid
A70: 09-200 | B70: Consolidated Municipal Property Tax Relief Aid (CMPTRA) | C70: =SUMIF('4'!H$5:H$100,$A70,'4'!$K$5:$K$100)+SUMIF('4a'!H$5:H$100,$A70,'4a'!$K$5:$K$100)+SUMIF('4b'!H$5:H$100,$A70,'4b'!$K$5:$K$100)+SUMIF('4c'!H$5:H$100,$A70,'4c'!$K$5:$K$100)+SUMIF('5'!H$5:H$100,$A70,'5'!$K$5:$K$100)+SUMIF('6'!H$5:H$100,$A70,'6'!$K$5:$K$100)+SUMIF('7'!H$5:H$100,$A70,'7'!$K$5:$K$100)+SUMIF('7a'!H$5:H$100,$A70,'7a'!$K$5:$K$100)+SUMIF('7b'!H$5:H$100,$A70,'7b'!$K$5:$K$100)+SUMIF('8'!H$5:H$100,$A70,'8'!$K$5:$K$100)+SUMIF('9'!H$5:H$100,$A70,'9'!$K$5:$K$100)+SUMIF('9a'!H$5:H$100,$A70,'9a'!$K$5:$K$100)+SUMIF('9b'!H$5:H$100,$A70,'9b'!$K$5:$K$100)+SUMIF('9c'!H$5:H$100,$A70,'9c'!$K$5:$K$100)+SUMIF('9d'!H$5:H$100,$A70,'9d'!$K$5:$K$100)+SUMIF('9e'!H$5:H$100,$A70,'9e'!$K$5:$K$100)+SUMIF('9f'!H$5:H$100,$A70,'9f'!$K$5:$K$100)+SUMIF('9g'!H$5:H$100,$A70,'9g'!$K$5:$K$100)+SUMIF('9h'!H$5:H$100,$A70,'9h'!$K$5:$K$100)+SUMIF('9 TOTAL'!H$5:H$100,$A70,'9 TOTAL'!$K$5:$K$100) +SUMIF('10'!H$5:H$100,$A70,'10'!$K$5:$K$100)+SUMIF('10a'!H$5:H$100,$A70,'10a'!$K$5:$K$100)+SUMIF('10b'!H$5:H$100,$A70,'10b'!$K$5:$K$100)+SUMIF('10c'!H$5:H$100,$A70,'10c'!$K$5:$K$100)+SUMIF('10d'!H$5:H$100,$A70,'10d'!$K$5:$K$100)+SUMIF('10e'!H$5:H$100,$A70,'10e'!$K$5:$K$100)+SUMIF('10f'!H$5:H$100,$A70,'10f'!$K$5:$K$100)+SUMIF('10g'!H$5:H$100,$A70,'10g'!$K$5:$K$100)+SUMIF('10h'!H$5:H$100,$A70,'10h'!$K$5:$K$100)+SUMIF('10i'!H$5:H$100,$A70,'10i'!$K$5:$K$100)+SUMIF('10j'!H$5:H$100,$A70,'10j'!$K$5:$K$100)+SUMIF('10k'!H$5:H$100,$A70,'10k'!$K$5:$K$100)+SUMIF('10l'!H$5:H$100,$A70,'10l'!$K$5:$K$100)+SUMIF('10m'!H$5:H$100,$A70,'10m'!$K$5:$K$100)+SUMIF('10 TOTAL'!H$5:H$100,$A70,'10 TOTAL'!$K$5:$K$100) -> 0 | D70: =SUMIF('4'!H$5:H$100,$A70,'4'!$I$5:$I$100)+SUMIF('4a'!H$5:H$100,$A70,'4a'!$I$5:$I$100)+SUMIF('4b'!H$5:H$100,$A70,'4b'!$I$5:$I$100)+SUMIF('4c'!H$5:H$100,$A70,'4c'!$I$5:$I$100)+SUMIF('5'!H$5:H$100,$A70,'5'!$I$5:$I$100)+SUMIF('6'!H$5:H$100,$A70,'6'!$I$5:$I$100)+SUMIF('7'!H$5:H$100,$A70,'7'!$I$5:$I$100)+SUMIF('7a'!H$5:H$100,$A70,'7a'!$I$5:$I$100)+SUMIF('7b'!H$5:H$100,$A70,'7b'!$I$5:$I$100)+SUMIF('8'!H$5:H$100,$A70,'8'!$I$5:$I$100)+SUMIF('9'!H$5:H$100,$A70,'9'!$I$5:$I$100)+SUMIF('9a'!H$5:H$100,$A70,'9a'!$I$5:$I$100)+SUMIF('9b'!H$5:H$100,$A70,'9b'!$I$5:$I$100)+SUMIF('9c'!H$5:H$100,$A70,'9c'!$I$5:$I$100)+SUMIF('9d'!H$5:H$100,$A70,'9d'!$I$5:$I$100)+SUMIF('9e'!H$5:H$100,$A70,'9e'!$I$5:$I$100)+SUMIF('9f'!H$5:H$100,$A70,'9f'!$I$5:$I$100)+SUMIF('9g'!H$5:H$100,$A70,'9g'!$I$5:$I$100)+SUMIF('9h'!H$5:H$100,$A70,'9h'!$I$5:$I$100)+SUMIF('9 TOTAL'!H$5:H$100,$A70,'9 TOTAL'!$I$5:$I$100) +SUMIF('10'!H$5:H$100,$A70,'10'!$I$5:$I$100)+SUMIF('10a'!H$5:H$100,$A70,'10a'!$I$5:$I$100)+SUMIF('10b'!H$5:H$100,$A70,'10b'!$I$5:$I$100)+SUMIF('10c'!H$5:H$100,$A70,'10c'!$I$5:$I$100)+SUMIF('10d'!H$5:H$100,$A70,'10d'!$I$5:$I$100)+SUMIF('10e'!H$5:H$100,$A70,'10e'!$I$5:$I$100)+SUMIF('10f'!H$5:H$100,$A70,'10f'!$I$5:$I$100)+SUMIF('10g'!H$5:H$100,$A70,'10g'!$I$5:$I$100)+SUMIF('10h'!H$5:H$100,$A70,'10h'!$I$5:$I$100)+SUMIF('10i'!H$5:H$100,$A70,'10i'!$I$5:$I$100)+SUMIF('10j'!H$5:H$100,$A70,'10j'!$I$5:$I$100)+SUMIF('10k'!H$5:H$100,$A70,'10k'!$I$5:$I$100)+SUMIF('10l'!H$5:H$100,$A70,'10l'!$I$5:$I$100)+SUMIF('10m'!H$5:H$100,$A70,'10m'!$I$5:$I$100)+SUMIF('10 TOTAL'!H$5:H$100,$A70,'10 TOTAL'!$I$5:$I$100) -> 0 | S70: 0
A71: 09-202 | B71: Energy Tax Receipts | C71: =SUMIF('4'!H$5:H$100,$A71,'4'!$K$5:$K$100)+SUMIF('4a'!H$5:H$100,$A71,'4a'!$K$5:$K$100)+SUMIF('4b'!H$5:H$100,$A71,'4b'!$K$5:$K$100)+SUMIF('4c'!H$5:H$100,$A71,'4c'!$K$5:$K$100)+SUMIF('5'!H$5:H$100,$A71,'5'!$K$5:$K$100)+SUMIF('6'!H$5:H$100,$A71,'6'!$K$5:$K$100)+SUMIF('7'!H$5:H$100,$A71,'7'!$K$5:$K$100)+SUMIF('7a'!H$5:H$100,$A71,'7a'!$K$5:$K$100)+SUMIF('7b'!H$5:H$100,$A71,'7b'!$K$5:$K$100)+SUMIF('8'!H$5:H$100,$A71,'8'!$K$5:$K$100)+SUMIF('9'!H$5:H$100,$A71,'9'!$K$5:$K$100)+SUMIF('9a'!H$5:H$100,$A71,'9a'!$K$5:$K$100)+SUMIF('9b'!H$5:H$100,$A71,'9b'!$K$5:$K$100)+SUMIF('9c'!H$5:H$100,$A71,'9c'!$K$5:$K$100)+SUMIF('9d'!H$5:H$100,$A71,'9d'!$K$5:$K$100)+SUMIF('9e'!H$5:H$100,$A71,'9e'!$K$5:$K$100)+SUMIF('9f'!H$5:H$100,$A71,'9f'!$K$5:$K$100)+SUMIF('9g'!H$5:H$100,$A71,'9g'!$K$5:$K$100)+SUMIF('9h'!H$5:H$100,$A71,'9h'!$K$5:$K$100)+SUMIF('9 TOTAL'!H$5:H$100,$A71,'9 TOTAL'!$K$5:$K$100) +SUMIF('10'!H$5:H$100,$A71,'10'!$K$5:$K$100)+SUMIF('10a'!H$5:H$100,$A71,'10a'!$K$5:$K$100)+SUMIF('10b'!H$5:H$100,$A71,'10b'!$K$5:$K$100)+SUMIF('10c'!H$5:H$100,$A71,'10c'!$K$5:$K$100)+SUMIF('10d'!H$5:H$100,$A71,'10d'!$K$5:$K$100)+SUMIF('10e'!H$5:H$100,$A71,'10e'!$K$5:$K$100)+SUMIF('10f'!H$5:H$100,$A71,'10f'!$K$5:$K$100)+SUMIF('10g'!H$5:H$100,$A71,'10g'!$K$5:$K$100)+SUMIF('10h'!H$5:H$100,$A71,'10h'!$K$5:$K$100)+SUMIF('10i'!H$5:H$100,$A71,'10i'!$K$5:$K$100)+SUMIF('10j'!H$5:H$100,$A71,'10j'!$K$5:$K$100)+SUMIF('10k'!H$5:H$100,$A71,'10k'!$K$5:$K$100)+SUMIF('10l'!H$5:H$100,$A71,'10l'!$K$5:$K$100)+SUMIF('10m'!H$5:H$100,$A71,'10m'!$K$5:$K$100)+SUMIF('10 TOTAL'!H$5:H$100,$A71,'10 TOTAL'!$K$5:$K$100) -> 86,497 | D71: =SUMIF('4'!H$5:H$100,$A71,'4'!$I$5:$I$100)+SUMIF('4a'!H$5:H$100,$A71,'4a'!$I$5:$I$100)+SUMIF('4b'!H$5:H$100,$A71,'4b'!$I$5:$I$100)+SUMIF('4c'!H$5:H$100,$A71,'4c'!$I$5:$I$100)+SUMIF('5'!H$5:H$100,$A71,'5'!$I$5:$I$100)+SUMIF('6'!H$5:H$100,$A71,'6'!$I$5:$I$100)+SUMIF('7'!H$5:H$100,$A71,'7'!$I$5:$I$100)+SUMIF('7a'!H$5:H$100,$A71,'7a'!$I$5:$I$100)+SUMIF('7b'!H$5:H$100,$A71,'7b'!$I$5:$I$100)+SUMIF('8'!H$5:H$100,$A71,'8'!$I$5:$I$100)+SUMIF('9'!H$5:H$100,$A71,'9'!$I$5:$I$100)+SUMIF('9a'!H$5:H$100,$A71,'9a'!$I$5:$I$100)+SUMIF('9b'!H$5:H$100,$A71,'9b'!$I$5:$I$100)+SUMIF('9c'!H$5:H$100,$A71,'9c'!$I$5:$I$100)+SUMIF('9d'!H$5:H$100,$A71,'9d'!$I$5:$I$100)+SUMIF('9e'!H$5:H$100,$A71,'9e'!$I$5:$I$100)+SUMIF('9f'!H$5:H$100,$A71,'9f'!$I$5:$I$100)+SUMIF('9g'!H$5:H$100,$A71,'9g'!$I$5:$I$100)+SUMIF('9h'!H$5:H$100,$A71,'9h'!$I$5:$I$100)+SUMIF('9 TOTAL'!H$5:H$100,$A71,'9 TOTAL'!$I$5:$I$100) +SUMIF('10'!H$5:H$100,$A71,'10'!$I$5:$I$100)+SUMIF('10a'!H$5:H$100,$A71,'10a'!$I$5:$I$100)+SUMIF('10b'!H$5:H$100,$A71,'10b'!$I$5:$I$100)+SUMIF('10c'!H$5:H$100,$A71,'10c'!$I$5:$I$100)+SUMIF('10d'!H$5:H$100,$A71,'10d'!$I$5:$I$100)+SUMIF('10e'!H$5:H$100,$A71,'10e'!$I$5:$I$100)+SUMIF('10f'!H$5:H$100,$A71,'10f'!$I$5:$I$100)+SUMIF('10g'!H$5:H$100,$A71,'10g'!$I$5:$I$100)+SUMIF('10h'!H$5:H$100,$A71,'10h'!$I$5:$I$100)+SUMIF('10i'!H$5:H$100,$A71,'10i'!$I$5:$I$100)+SUMIF('10j'!H$5:H$100,$A71,'10j'!$I$5:$I$100)+SUMIF('10k'!H$5:H$100,$A71,'10k'!$I$5:$I$100)+SUMIF('10l'!H$5:H$100,$A71,'10l'!$I$5:$I$100)+SUMIF('10m'!H$5:H$100,$A71,'10m'!$I$5:$I$100)+SUMIF('10 TOTAL'!H$5:H$100,$A71,'10 TOTAL'!$I$5:$I$100) -> 86,497 | S71: 172993.8
A72: 09-203 | B72: Supplemental Energy Tax Receipts | C72: =SUMIF('4'!H$5:H$100,$A72,'4'!$K$5:$K$100)+SUMIF('4a'!H$5:H$100,$A72,'4a'!$K$5:$K$100)+SUMIF('4b'!H$5:H$100,$A72,'4b'!$K$5:$K$100)+SUMIF('4c'!H$5:H$100,$A72,'4c'!$K$5:$K$100)+SUMIF('5'!H$5:H$100,$A72,'5'!$K$5:$K$100)+SUMIF('6'!H$5:H$100,$A72,'6'!$K$5:$K$100)+SUMIF('7'!H$5:H$100,$A72,'7'!$K$5:$K$100)+SUMIF('7a'!H$5:H$100,$A72,'7a'!$K$5:$K$100)+SUMIF('7b'!H$5:H$100,$A72,'7b'!$K$5:$K$100)+SUMIF('8'!H$5:H$100,$A72,'8'!$K$5:$K$100)+SUMIF('9'!H$5:H$100,$A72,'9'!$K$5:$K$100)+SUMIF('9a'!H$5:H$100,$A72,'9a'!$K$5:$K$100)+SUMIF('9b'!H$5:H$100,$A72,'9b'!$K$5:$K$100)+SUMIF('9c'!H$5:H$100,$A72,'9c'!$K$5:$K$100)+SUMIF('9d'!H$5:H$100,$A72,'9d'!$K$5:$K$100)+SUMIF('9e'!H$5:H$100,$A72,'9e'!$K$5:$K$100)+SUMIF('9f'!H$5:H$100,$A72,'9f'!$K$5:$K$100)+SUMIF('9g'!H$5:H$100,$A72,'9g'!$K$5:$K$100)+SUMIF('9h'!H$5:H$100,$A72,'9h'!$K$5:$K$100)+SUMIF('9 TOTAL'!H$5:H$100,$A72,'9 TOTAL'!$K$5:$K$100) +SUMIF('10'!H$5:H$100,$A72,'10'!$K$5:$K$100)+SUMIF('10a'!H$5:H$100,$A72,'10a'!$K$5:$K$100)+SUMIF('10b'!H$5:H$100,$A72,'10b'!$K$5:$K$100)+SUMIF('10c'!H$5:H$100,$A72,'10c'!$K$5:$K$100)+SUMIF('10d'!H$5:H$100,$A72,'10d'!$K$5:$K$100)+SUMIF('10e'!H$5:H$100,$A72,'10e'!$K$5:$K$100)+SUMIF('10f'!H$5:H$100,$A72,'10f'!$K$5:$K$100)+SUMIF('10g'!H$5:H$100,$A72,'10g'!$K$5:$K$100)+SUMIF('10h'!H$5:H$100,$A72,'10h'!$K$5:$K$100)+SUMIF('10i'!H$5:H$100,$A72,'10i'!$K$5:$K$100)+SUMIF('10j'!H$5:H$100,$A72,'10j'!$K$5:$K$100)+SUMIF('10k'!H$5:H$100,$A72,'10k'!$K$5:$K$100)+SUMIF('10l'!H$5:H$100,$A72,'10l'!$K$5:$K$100)+SUMIF('10m'!H$5:H$100,$A72,'10m'!$K$5:$K$100)+SUMIF('10 TOTAL'!H$5:H$100,$A72,'10 TOTAL'!$K$5:$K$100) -> 0 | D72: =SUMIF('4'!H$5:H$100,$A72,'4'!$I$5:$I$100)+SUMIF('4a'!H$5:H$100,$A72,'4a'!$I$5:$I$100)+SUMIF('4b'!H$5:H$100,$A72,'4b'!$I$5:$I$100)+SUMIF('4c'!H$5:H$100,$A72,'4c'!$I$5:$I$100)+SUMIF('5'!H$5:H$100,$A72,'5'!$I$5:$I$100)+SUMIF('6'!H$5:H$100,$A72,'6'!$I$5:$I$100)+SUMIF('7'!H$5:H$100,$A72,'7'!$I$5:$I$100)+SUMIF('7a'!H$5:H$100,$A72,'7a'!$I$5:$I$100)+SUMIF('7b'!H$5:H$100,$A72,'7b'!$I$5:$I$100)+SUMIF('8'!H$5:H$100,$A72,'8'!$I$5:$I$100)+SUMIF('9'!H$5:H$100,$A72,'9'!$I$5:$I$100)+SUMIF('9a'!H$5:H$100,$A72,'9a'!$I$5:$I$100)+SUMIF('9b'!H$5:H$100,$A72,'9b'!$I$5:$I$100)+SUMIF('9c'!H$5:H$100,$A72,'9c'!$I$5:$I$100)+SUMIF('9d'!H$5:H$100,$A72,'9d'!$I$5:$I$100)+SUMIF('9e'!H$5:H$100,$A72,'9e'!$I$5:$I$100)+SUMIF('9f'!H$5:H$100,$A72,'9f'!$I$5:$I$100)+SUMIF('9g'!H$5:H$100,$A72,'9g'!$I$5:$I$100)+SUMIF('9h'!H$5:H$100,$A72,'9h'!$I$5:$I$100)+SUMIF('9 TOTAL'!H$5:H$100,$A72,'9 TOTAL'!$I$5:$I$100) +SUMIF('10'!H$5:H$100,$A72,'10'!$I$5:$I$100)+SUMIF('10a'!H$5:H$100,$A72,'10a'!$I$5:$I$100)+SUMIF('10b'!H$5:H$100,$A72,'10b'!$I$5:$I$100)+SUMIF('10c'!H$5:H$100,$A72,'10c'!$I$5:$I$100)+SUMIF('10d'!H$5:H$100,$A72,'10d'!$I$5:$I$100)+SUMIF('10e'!H$5:H$100,$A72,'10e'!$I$5:$I$100)+SUMIF('10f'!H$5:H$100,$A72,'10f'!$I$5:$I$100)+SUMIF('10g'!H$5:H$100,$A72,'10g'!$I$5:$I$100)+SUMIF('10h'!H$5:H$100,$A72,'10h'!$I$5:$I$100)+SUMIF('10i'!H$5:H$100,$A72,'10i'!$I$5:$I$100)+SUMIF('10j'!H$5:H$100,$A72,'10j'!$I$5:$I$100)+SUMIF('10k'!H$5:H$100,$A72,'10k'!$I$5:$I$100)+SUMIF('10l'!H$5:H$100,$A72,'10l'!$I$5:$I$100)+SUMIF('10m'!H$5:H$100,$A72,'10m'!$I$5:$I$100)+SUMIF('10 TOTAL'!H$5:H$100,$A72,'10 TOTAL'!$I$5:$I$100) -> 0 | S72: 0
A73: 09-204 | B73: Extraordinary Aid | C73: =SUMIF('4'!H$5:H$100,$A73,'4'!$K$5:$K$100)+SUMIF('4a'!H$5:H$100,$A73,'4a'!$K$5:$K$100)+SUMIF('4b'!H$5:H$100,$A73,'4b'!$K$5:$K$100)+SUMIF('4c'!H$5:H$100,$A73,'4c'!$K$5:$K$100)+SUMIF('5'!H$5:H$100,$A73,'5'!$K$5:$K$100)+SUMIF('6'!H$5:H$100,$A73,'6'!$K$5:$K$100)+SUMIF('7'!H$5:H$100,$A73,'7'!$K$5:$K$100)+SUMIF('7a'!H$5:H$100,$A73,'7a'!$K$5:$K$100)+SUMIF('7b'!H$5:H$100,$A73,'7b'!$K$5:$K$100)+SUMIF('8'!H$5:H$100,$A73,'8'!$K$5:$K$100)+SUMIF('9'!H$5:H$100,$A73,'9'!$K$5:$K$100)+SUMIF('9a'!H$5:H$100,$A73,'9a'!$K$5:$K$100)+SUMIF('9b'!H$5:H$100,$A73,'9b'!$K$5:$K$100)+SUMIF('9c'!H$5:H$100,$A73,'9c'!$K$5:$K$100)+SUMIF('9d'!H$5:H$100,$A73,'9d'!$K$5:$K$100)+SUMIF('9e'!H$5:H$100,$A73,'9e'!$K$5:$K$100)+SUMIF('9f'!H$5:H$100,$A73,'9f'!$K$5:$K$100)+SUMIF('9g'!H$5:H$100,$A73,'9g'!$K$5:$K$100)+SUMIF('9h'!H$5:H$100,$A73,'9h'!$K$5:$K$100)+SUMIF('9 TOTAL'!H$5:H$100,$A73,'9 TOTAL'!$K$5:$K$100) +SUMIF('10'!H$5:H$100,$A73,'10'!$K$5:$K$100)+SUMIF('10a'!H$5:H$100,$A73,'10a'!$K$5:$K$100)+SUMIF('10b'!H$5:H$100,$A73,'10b'!$K$5:$K$100)+SUMIF('10c'!H$5:H$100,$A73,'10c'!$K$5:$K$100)+SUMIF('10d'!H$5:H$100,$A73,'10d'!$K$5:$K$100)+SUMIF('10e'!H$5:H$100,$A73,'10e'!$K$5:$K$100)+SUMIF('10f'!H$5:H$100,$A73,'10f'!$K$5:$K$100)+SUMIF('10g'!H$5:H$100,$A73,'10g'!$K$5:$K$100)+SUMIF('10h'!H$5:H$100,$A73,'10h'!$K$5:$K$100)+SUMIF('10i'!H$5:H$100,$A73,'10i'!$K$5:$K$100)+SUMIF('10j'!H$5:H$100,$A73,'10j'!$K$5:$K$100)+SUMIF('10k'!H$5:H$100,$A73,'10k'!$K$5:$K$100)+SUMIF('10l'!H$5:H$100,$A73,'10l'!$K$5:$K$100)+SUMIF('10m'!H$5:H$100,$A73,'10m'!$K$5:$K$100)+SUMIF('10 TOTAL'!H$5:H$100,$A73,'10 TOTAL'!$K$5:$K$100) -> 0 | D73: =SUMIF('4'!H$5:H$100,$A73,'4'!$I$5:$I$100)+SUMIF('4a'!H$5:H$100,$A73,'4a'!$I$5:$I$100)+SUMIF('4b'!H$5:H$100,$A73,'4b'!$I$5:$I$100)+SUMIF('4c'!H$5:H$100,$A73,'4c'!$I$5:$I$100)+SUMIF('5'!H$5:H$100,$A73,'5'!$I$5:$I$100)+SUMIF('6'!H$5:H$100,$A73,'6'!$I$5:$I$100)+SUMIF('7'!H$5:H$100,$A73,'7'!$I$5:$I$100)+SUMIF('7a'!H$5:H$100,$A73,'7a'!$I$5:$I$100)+SUMIF('7b'!H$5:H$100,$A73,'7b'!$I$5:$I$100)+SUMIF('8'!H$5:H$100,$A73,'8'!$I$5:$I$100)+SUMIF('9'!H$5:H$100,$A73,'9'!$I$5:$I$100)+SUMIF('9a'!H$5:H$100,$A73,'9a'!$I$5:$I$100)+SUMIF('9b'!H$5:H$100,$A73,'9b'!$I$5:$I$100)+SUMIF('9c'!H$5:H$100,$A73,'9c'!$I$5:$I$100)+SUMIF('9d'!H$5:H$100,$A73,'9d'!$I$5:$I$100)+SUMIF('9e'!H$5:H$100,$A73,'9e'!$I$5:$I$100)+SUMIF('9f'!H$5:H$100,$A73,'9f'!$I$5:$I$100)+SUMIF('9g'!H$5:H$100,$A73,'9g'!$I$5:$I$100)+SUMIF('9h'!H$5:H$100,$A73,'9h'!$I$5:$I$100)+SUMIF('9 TOTAL'!H$5:H$100,$A73,'9 TOTAL'!$I$5:$I$100) +SUMIF('10'!H$5:H$100,$A73,'10'!$I$5:$I$100)+SUMIF('10a'!H$5:H$100,$A73,'10a'!$I$5:$I$100)+SUMIF('10b'!H$5:H$100,$A73,'10b'!$I$5:$I$100)+SUMIF('10c'!H$5:H$100,$A73,'10c'!$I$5:$I$100)+SUMIF('10d'!H$5:H$100,$A73,'10d'!$I$5:$I$100)+SUMIF('10e'!H$5:H$100,$A73,'10e'!$I$5:$I$100)+SUMIF('10f'!H$5:H$100,$A73,'10f'!$I$5:$I$100)+SUMIF('10g'!H$5:H$100,$A73,'10g'!$I$5:$I$100)+SUMIF('10h'!H$5:H$100,$A73,'10h'!$I$5:$I$100)+SUMIF('10i'!H$5:H$100,$A73,'10i'!$I$5:$I$100)+SUMIF('10j'!H$5:H$100,$A73,'10j'!$I$5:$I$100)+SUMIF('10k'!H$5:H$100,$A73,'10k'!$I$5:$I$100)+SUMIF('10l'!H$5:H$100,$A73,'10l'!$I$5:$I$100)+SUMIF('10m'!H$5:H$100,$A73,'10m'!$I$5:$I$100)+SUMIF('10 TOTAL'!H$5:H$100,$A73,'10 TOTAL'!$I$5:$I$100) -> 0 | S73: 0
A74: 09-206 | B74: Garden State Trust | C74: =SUMIF('4'!H$5:H$100,$A74,'4'!$K$5:$K$100)+SUMIF('4a'!H$5:H$100,$A74,'4a'!$K$5:$K$100)+SUMIF('4b'!H$5:H$100,$A74,'4b'!$K$5:$K$100)+SUMIF('4c'!H$5:H$100,$A74,'4c'!$K$5:$K$100)+SUMIF('5'!H$5:H$100,$A74,'5'!$K$5:$K$100)+SUMIF('6'!H$5:H$100,$A74,'6'!$K$5:$K$100)+SUMIF('7'!H$5:H$100,$A74,'7'!$K$5:$K$100)+SUMIF('7a'!H$5:H$100,$A74,'7a'!$K$5:$K$100)+SUMIF('7b'!H$5:H$100,$A74,'7b'!$K$5:$K$100)+SUMIF('8'!H$5:H$100,$A74,'8'!$K$5:$K$100)+SUMIF('9'!H$5:H$100,$A74,'9'!$K$5:$K$100)+SUMIF('9a'!H$5:H$100,$A74,'9a'!$K$5:$K$100)+SUMIF('9b'!H$5:H$100,$A74,'9b'!$K$5:$K$100)+SUMIF('9c'!H$5:H$100,$A74,'9c'!$K$5:$K$100)+SUMIF('9d'!H$5:H$100,$A74,'9d'!$K$5:$K$100)+SUMIF('9e'!H$5:H$100,$A74,'9e'!$K$5:$K$100)+SUMIF('9f'!H$5:H$100,$A74,'9f'!$K$5:$K$100)+SUMIF('9g'!H$5:H$100,$A74,'9g'!$K$5:$K$100)+SUMIF('9h'!H$5:H$100,$A74,'9h'!$K$5:$K$100)+SUMIF('9 TOTAL'!H$5:H$100,$A74,'9 TOTAL'!$K$5:$K$100) +SUMIF('10'!H$5:H$100,$A74,'10'!$K$5:$K$100)+SUMIF('10a'!H$5:H$100,$A74,'10a'!$K$5:$K$100)+SUMIF('10b'!H$5:H$100,$A74,'10b'!$K$5:$K$100)+SUMIF('10c'!H$5:H$100,$A74,'10c'!$K$5:$K$100)+SUMIF('10d'!H$5:H$100,$A74,'10d'!$K$5:$K$100)+SUMIF('10e'!H$5:H$100,$A74,'10e'!$K$5:$K$100)+SUMIF('10f'!H$5:H$100,$A74,'10f'!$K$5:$K$100)+SUMIF('10g'!H$5:H$100,$A74,'10g'!$K$5:$K$100)+SUMIF('10h'!H$5:H$100,$A74,'10h'!$K$5:$K$100)+SUMIF('10i'!H$5:H$100,$A74,'10i'!$K$5:$K$100)+SUMIF('10j'!H$5:H$100,$A74,'10j'!$K$5:$K$100)+SUMIF('10k'!H$5:H$100,$A74,'10k'!$K$5:$K$100)+SUMIF('10l'!H$5:H$100,$A74,'10l'!$K$5:$K$100)+SUMIF('10m'!H$5:H$100,$A74,'10m'!$K$5:$K$100)+SUMIF('10 TOTAL'!H$5:H$100,$A74,'10 TOTAL'!$K$5:$K$100) -> 0 | D74: =SUMIF('4'!H$5:H$100,$A74,'4'!$I$5:$I$100)+SUMIF('4a'!H$5:H$100,$A74,'4a'!$I$5:$I$100)+SUMIF('4b'!H$5:H$100,$A74,'4b'!$I$5:$I$100)+SUMIF('4c'!H$5:H$100,$A74,'4c'!$I$5:$I$100)+SUMIF('5'!H$5:H$100,$A74,'5'!$I$5:$I$100)+SUMIF('6'!H$5:H$100,$A74,'6'!$I$5:$I$100)+SUMIF('7'!H$5:H$100,$A74,'7'!$I$5:$I$100)+SUMIF('7a'!H$5:H$100,$A74,'7a'!$I$5:$I$100)+SUMIF('7b'!H$5:H$100,$A74,'7b'!$I$5:$I$100)+SUMIF('8'!H$5:H$100,$A74,'8'!$I$5:$I$100)+SUMIF('9'!H$5:H$100,$A74,'9'!$I$5:$I$100)+SUMIF('9a'!H$5:H$100,$A74,'9a'!$I$5:$I$100)+SUMIF('9b'!H$5:H$100,$A74,'9b'!$I$5:$I$100)+SUMIF('9c'!H$5:H$100,$A74,'9c'!$I$5:$I$100)+SUMIF('9d'!H$5:H$100,$A74,'9d'!$I$5:$I$100)+SUMIF('9e'!H$5:H$100,$A74,'9e'!$I$5:$I$100)+SUMIF('9f'!H$5:H$100,$A74,'9f'!$I$5:$I$100)+SUMIF('9g'!H$5:H$100,$A74,'9g'!$I$5:$I$100)+SUMIF('9h'!H$5:H$100,$A74,'9h'!$I$5:$I$100)+SUMIF('9 TOTAL'!H$5:H$100,$A74,'9 TOTAL'!$I$5:$I$100) +SUMIF('10'!H$5:H$100,$A74,'10'!$I$5:$I$100)+SUMIF('10a'!H$5:H$100,$A74,'10a'!$I$5:$I$100)+SUMIF('10b'!H$5:H$100,$A74,'10b'!$I$5:$I$100)+SUMIF('10c'!H$5:H$100,$A74,'10c'!$I$5:$I$100)+SUMIF('10d'!H$5:H$100,$A74,'10d'!$I$5:$I$100)+SUMIF('10e'!H$5:H$100,$A74,'10e'!$I$5:$I$100)+SUMIF('10f'!H$5:H$100,$A74,'10f'!$I$5:$I$100)+SUMIF('10g'!H$5:H$100,$A74,'10g'!$I$5:$I$100)+SUMIF('10h'!H$5:H$100,$A74,'10h'!$I$5:$I$100)+SUMIF('10i'!H$5:H$100,$A74,'10i'!$I$5:$I$100)+SUMIF('10j'!H$5:H$100,$A74,'10j'!$I$5:$I$100)+SUMIF('10k'!H$5:H$100,$A74,'10k'!$I$5:$I$100)+SUMIF('10l'!H$5:H$100,$A74,'10l'!$I$5:$I$100)+SUMIF('10m'!H$5:H$100,$A74,'10m'!$I$5:$I$100)+SUMIF('10 TOTAL'!H$5:H$100,$A74,'10 TOTAL'!$I$5:$I$100) -> 0 | S74: 0
A75: 09-207 | B75: Watershed Aid | C75: =SUMIF('4'!H$5:H$100,$A75,'4'!$K$5:$K$100)+SUMIF('4a'!H$5:H$100,$A75,'4a'!$K$5:$K$100)+SUMIF('4b'!H$5:H$100,$A75,'4b'!$K$5:$K$100)+SUMIF('4c'!H$5:H$100,$A75,'4c'!$K$5:$K$100)+SUMIF('5'!H$5:H$100,$A75,'5'!$K$5:$K$100)+SUMIF('6'!H$5:H$100,$A75,'6'!$K$5:$K$100)+SUMIF('7'!H$5:H$100,$A75,'7'!$K$5:$K$100)+SUMIF('7a'!H$5:H$100,$A75,'7a'!$K$5:$K$100)+SUMIF('7b'!H$5:H$100,$A75,'7b'!$K$5:$K$100)+SUMIF('8'!H$5:H$100,$A75,'8'!$K$5:$K$100)+SUMIF('9'!H$5:H$100,$A75,'9'!$K$5:$K$100)+SUMIF('9a'!H$5:H$100,$A75,'9a'!$K$5:$K$100)+SUMIF('9b'!H$5:H$100,$A75,'9b'!$K$5:$K$100)+SUMIF('9c'!H$5:H$100,$A75,'9c'!$K$5:$K$100)+SUMIF('9d'!H$5:H$100,$A75,'9d'!$K$5:$K$100)+SUMIF('9e'!H$5:H$100,$A75,'9e'!$K$5:$K$100)+SUMIF('9f'!H$5:H$100,$A75,'9f'!$K$5:$K$100)+SUMIF('9g'!H$5:H$100,$A75,'9g'!$K$5:$K$100)+SUMIF('9h'!H$5:H$100,$A75,'9h'!$K$5:$K$100)+SUMIF('9 TOTAL'!H$5:H$100,$A75,'9 TOTAL'!$K$5:$K$100) +SUMIF('10'!H$5:H$100,$A75,'10'!$K$5:$K$100)+SUMIF('10a'!H$5:H$100,$A75,'10a'!$K$5:$K$100)+SUMIF('10b'!H$5:H$100,$A75,'10b'!$K$5:$K$100)+SUMIF('10c'!H$5:H$100,$A75,'10c'!$K$5:$K$100)+SUMIF('10d'!H$5:H$100,$A75,'10d'!$K$5:$K$100)+SUMIF('10e'!H$5:H$100,$A75,'10e'!$K$5:$K$100)+SUMIF('10f'!H$5:H$100,$A75,'10f'!$K$5:$K$100)+SUMIF('10g'!H$5:H$100,$A75,'10g'!$K$5:$K$100)+SUMIF('10h'!H$5:H$100,$A75,'10h'!$K$5:$K$100)+SUMIF('10i'!H$5:H$100,$A75,'10i'!$K$5:$K$100)+SUMIF('10j'!H$5:H$100,$A75,'10j'!$K$5:$K$100)+SUMIF('10k'!H$5:H$100,$A75,'10k'!$K$5:$K$100)+SUMIF('10l'!H$5:H$100,$A75,'10l'!$K$5:$K$100)+SUMIF('10m'!H$5:H$100,$A75,'10m'!$K$5:$K$100)+SUMIF('10 TOTAL'!H$5:H$100,$A75,'10 TOTAL'!$K$5:$K$100) -> 0 | D75: =SUMIF('4'!H$5:H$100,$A75,'4'!$I$5:$I$100)+SUMIF('4a'!H$5:H$100,$A75,'4a'!$I$5:$I$100)+SUMIF('4b'!H$5:H$100,$A75,'4b'!$I$5:$I$100)+SUMIF('4c'!H$5:H$100,$A75,'4c'!$I$5:$I$100)+SUMIF('5'!H$5:H$100,$A75,'5'!$I$5:$I$100)+SUMIF('6'!H$5:H$100,$A75,'6'!$I$5:$I$100)+SUMIF('7'!H$5:H$100,$A75,'7'!$I$5:$I$100)+SUMIF('7a'!H$5:H$100,$A75,'7a'!$I$5:$I$100)+SUMIF('7b'!H$5:H$100,$A75,'7b'!$I$5:$I$100)+SUMIF('8'!H$5:H$100,$A75,'8'!$I$5:$I$100)+SUMIF('9'!H$5:H$100,$A75,'9'!$I$5:$I$100)+SUMIF('9a'!H$5:H$100,$A75,'9a'!$I$5:$I$100)+SUMIF('9b'!H$5:H$100,$A75,'9b'!$I$5:$I$100)+SUMIF('9c'!H$5:H$100,$A75,'9c'!$I$5:$I$100)+SUMIF('9d'!H$5:H$100,$A75,'9d'!$I$5:$I$100)+SUMIF('9e'!H$5:H$100,$A75,'9e'!$I$5:$I$100)+SUMIF('9f'!H$5:H$100,$A75,'9f'!$I$5:$I$100)+SUMIF('9g'!H$5:H$100,$A75,'9g'!$I$5:$I$100)+SUMIF('9h'!H$5:H$100,$A75,'9h'!$I$5:$I$100)+SUMIF('9 TOTAL'!H$5:H$100,$A75,'9 TOTAL'!$I$5:$I$100) +SUMIF('10'!H$5:H$100,$A75,'10'!$I$5:$I$100)+SUMIF('10a'!H$5:H$100,$A75,'10a'!$I$5:$I$100)+SUMIF('10b'!H$5:H$100,$A75,'10b'!$I$5:$I$100)+SUMIF('10c'!H$5:H$100,$A75,'10c'!$I$5:$I$100)+SUMIF('10d'!H$5:H$100,$A75,'10d'!$I$5:$I$100)+SUMIF('10e'!H$5:H$100,$A75,'10e'!$I$5:$I$100)+SUMIF('10f'!H$5:H$100,$A75,'10f'!$I$5:$I$100)+SUMIF('10g'!H$5:H$100,$A75,'10g'!$I$5:$I$100)+SUMIF('10h'!H$5:H$100,$A75,'10h'!$I$5:$I$100)+SUMIF('10i'!H$5:H$100,$A75,'10i'!$I$5:$I$100)+SUMIF('10j'!H$5:H$100,$A75,'10j'!$I$5:$I$100)+SUMIF('10k'!H$5:H$100,$A75,'10k'!$I$5:$I$100)+SUMIF('10l'!H$5:H$100,$A75,'10l'!$I$5:$I$100)+SUMIF('10m'!H$5:H$100,$A75,'10m'!$I$5:$I$100)+SUMIF('10 TOTAL'!H$5:H$100,$A75,'10 TOTAL'!$I$5:$I$100) -> 0 | S75: 0
A76: 09-208 | B76: Pinelands Aid | C76: =SUMIF('4'!H$5:H$100,$A76,'4'!$K$5:$K$100)+SUMIF('4a'!H$5:H$100,$A76,'4a'!$K$5:$K$100)+SUMIF('4b'!H$5:H$100,$A76,'4b'!$K$5:$K$100)+SUMIF('4c'!H$5:H$100,$A76,'4c'!$K$5:$K$100)+SUMIF('5'!H$5:H$100,$A76,'5'!$K$5:$K$100)+SUMIF('6'!H$5:H$100,$A76,'6'!$K$5:$K$100)+SUMIF('7'!H$5:H$100,$A76,'7'!$K$5:$K$100)+SUMIF('7a'!H$5:H$100,$A76,'7a'!$K$5:$K$100)+SUMIF('7b'!H$5:H$100,$A76,'7b'!$K$5:$K$100)+SUMIF('8'!H$5:H$100,$A76,'8'!$K$5:$K$100)+SUMIF('9'!H$5:H$100,$A76,'9'!$K$5:$K$100)+SUMIF('9a'!H$5:H$100,$A76,'9a'!$K$5:$K$100)+SUMIF('9b'!H$5:H$100,$A76,'9b'!$K$5:$K$100)+SUMIF('9c'!H$5:H$100,$A76,'9c'!$K$5:$K$100)+SUMIF('9d'!H$5:H$100,$A76,'9d'!$K$5:$K$100)+SUMIF('9e'!H$5:H$100,$A76,'9e'!$K$5:$K$100)+SUMIF('9f'!H$5:H$100,$A76,'9f'!$K$5:$K$100)+SUMIF('9g'!H$5:H$100,$A76,'9g'!$K$5:$K$100)+SUMIF('9h'!H$5:H$100,$A76,'9h'!$K$5:$K$100)+SUMIF('9 TOTAL'!H$5:H$100,$A76,'9 TOTAL'!$K$5:$K$100) +SUMIF('10'!H$5:H$100,$A76,'10'!$K$5:$K$100)+SUMIF('10a'!H$5:H$100,$A76,'10a'!$K$5:$K$100)+SUMIF('10b'!H$5:H$100,$A76,'10b'!$K$5:$K$100)+SUMIF('10c'!H$5:H$100,$A76,'10c'!$K$5:$K$100)+SUMIF('10d'!H$5:H$100,$A76,'10d'!$K$5:$K$100)+SUMIF('10e'!H$5:H$100,$A76,'10e'!$K$5:$K$100)+SUMIF('10f'!H$5:H$100,$A76,'10f'!$K$5:$K$100)+SUMIF('10g'!H$5:H$100,$A76,'10g'!$K$5:$K$100)+SUMIF('10h'!H$5:H$100,$A76,'10h'!$K$5:$K$100)+SUMIF('10i'!H$5:H$100,$A76,'10i'!$K$5:$K$100)+SUMIF('10j'!H$5:H$100,$A76,'10j'!$K$5:$K$100)+SUMIF('10k'!H$5:H$100,$A76,'10k'!$K$5:$K$100)+SUMIF('10l'!H$5:H$100,$A76,'10l'!$K$5:$K$100)+SUMIF('10m'!H$5:H$100,$A76,'10m'!$K$5:$K$100)+SUMIF('10 TOTAL'!H$5:H$100,$A76,'10 TOTAL'!$K$5:$K$100) -> 0 | D76: =SUMIF('4'!H$5:H$100,$A76,'4'!$I$5:$I$100)+SUMIF('4a'!H$5:H$100,$A76,'4a'!$I$5:$I$100)+SUMIF('4b'!H$5:H$100,$A76,'4b'!$I$5:$I$100)+SUMIF('4c'!H$5:H$100,$A76,'4c'!$I$5:$I$100)+SUMIF('5'!H$5:H$100,$A76,'5'!$I$5:$I$100)+SUMIF('6'!H$5:H$100,$A76,'6'!$I$5:$I$100)+SUMIF('7'!H$5:H$100,$A76,'7'!$I$5:$I$100)+SUMIF('7a'!H$5:H$100,$A76,'7a'!$I$5:$I$100)+SUMIF('7b'!H$5:H$100,$A76,'7b'!$I$5:$I$100)+SUMIF('8'!H$5:H$100,$A76,'8'!$I$5:$I$100)+SUMIF('9'!H$5:H$100,$A76,'9'!$I$5:$I$100)+SUMIF('9a'!H$5:H$100,$A76,'9a'!$I$5:$I$100)+SUMIF('9b'!H$5:H$100,$A76,'9b'!$I$5:$I$100)+SUMIF('9c'!H$5:H$100,$A76,'9c'!$I$5:$I$100)+SUMIF('9d'!H$5:H$100,$A76,'9d'!$I$5:$I$100)+SUMIF('9e'!H$5:H$100,$A76,'9e'!$I$5:$I$100)+SUMIF('9f'!H$5:H$100,$A76,'9f'!$I$5:$I$100)+SUMIF('9g'!H$5:H$100,$A76,'9g'!$I$5:$I$100)+SUMIF('9h'!H$5:H$100,$A76,'9h'!$I$5:$I$100)+SUMIF('9 TOTAL'!H$5:H$100,$A76,'9 TOTAL'!$I$5:$I$100) +SUMIF('10'!H$5:H$100,$A76,'10'!$I$5:$I$100)+SUMIF('10a'!H$5:H$100,$A76,'10a'!$I$5:$I$100)+SUMIF('10b'!H$5:H$100,$A76,'10b'!$I$5:$I$100)+SUMIF('10c'!H$5:H$100,$A76,'10c'!$I$5:$I$100)+SUMIF('10d'!H$5:H$100,$A76,'10d'!$I$5:$I$100)+SUMIF('10e'!H$5:H$100,$A76,'10e'!$I$5:$I$100)+SUMIF('10f'!H$5:H$100,$A76,'10f'!$I$5:$I$100)+SUMIF('10g'!H$5:H$100,$A76,'10g'!$I$5:$I$100)+SUMIF('10h'!H$5:H$100,$A76,'10h'!$I$5:$I$100)+SUMIF('10i'!H$5:H$100,$A76,'10i'!$I$5:$I$100)+SUMIF('10j'!H$5:H$100,$A76,'10j'!$I$5:$I$100)+SUMIF('10k'!H$5:H$100,$A76,'10k'!$I$5:$I$100)+SUMIF('10l'!H$5:H$100,$A76,'10l'!$I$5:$I$100)+SUMIF('10m'!H$5:H$100,$A76,'10m'!$I$5:$I$100)+SUMIF('10 TOTAL'!H$5:H$100,$A76,'10 TOTAL'!$I$5:$I$100) -> 0 | S76: 0
A77: 09-209 | B77: School Building Aid Allowance | C77: =SUMIF('4'!H$5:H$100,$A77,'4'!$K$5:$K$100)+SUMIF('4a'!H$5:H$100,$A77,'4a'!$K$5:$K$100)+SUMIF('4b'!H$5:H$100,$A77,'4b'!$K$5:$K$100)+SUMIF('4c'!H$5:H$100,$A77,'4c'!$K$5:$K$100)+SUMIF('5'!H$5:H$100,$A77,'5'!$K$5:$K$100)+SUMIF('6'!H$5:H$100,$A77,'6'!$K$5:$K$100)+SUMIF('7'!H$5:H$100,$A77,'7'!$K$5:$K$100)+SUMIF('7a'!H$5:H$100,$A77,'7a'!$K$5:$K$100)+SUMIF('7b'!H$5:H$100,$A77,'7b'!$K$5:$K$100)+SUMIF('8'!H$5:H$100,$A77,'8'!$K$5:$K$100)+SUMIF('9'!H$5:H$100,$A77,'9'!$K$5:$K$100)+SUMIF('9a'!H$5:H$100,$A77,'9a'!$K$5:$K$100)+SUMIF('9b'!H$5:H$100,$A77,'9b'!$K$5:$K$100)+SUMIF('9c'!H$5:H$100,$A77,'9c'!$K$5:$K$100)+SUMIF('9d'!H$5:H$100,$A77,'9d'!$K$5:$K$100)+SUMIF('9e'!H$5:H$100,$A77,'9e'!$K$5:$K$100)+SUMIF('9f'!H$5:H$100,$A77,'9f'!$K$5:$K$100)+SUMIF('9g'!H$5:H$100,$A77,'9g'!$K$5:$K$100)+SUMIF('9h'!H$5:H$100,$A77,'9h'!$K$5:$K$100)+SUMIF('9 TOTAL'!H$5:H$100,$A77,'9 TOTAL'!$K$5:$K$100) +SUMIF('10'!H$5:H$100,$A77,'10'!$K$5:$K$100)+SUMIF('10a'!H$5:H$100,$A77,'10a'!$K$5:$K$100)+SUMIF('10b'!H$5:H$100,$A77,'10b'!$K$5:$K$100)+SUMIF('10c'!H$5:H$100,$A77,'10c'!$K$5:$K$100)+SUMIF('10d'!H$5:H$100,$A77,'10d'!$K$5:$K$100)+SUMIF('10e'!H$5:H$100,$A77,'10e'!$K$5:$K$100)+SUMIF('10f'!H$5:H$100,$A77,'10f'!$K$5:$K$100)+SUMIF('10g'!H$5:H$100,$A77,'10g'!$K$5:$K$100)+SUMIF('10h'!H$5:H$100,$A77,'10h'!$K$5:$K$100)+SUMIF('10i'!H$5:H$100,$A77,'10i'!$K$5:$K$100)+SUMIF('10j'!H$5:H$100,$A77,'10j'!$K$5:$K$100)+SUMIF('10k'!H$5:H$100,$A77,'10k'!$K$5:$K$100)+SUMIF('10l'!H$5:H$100,$A77,'10l'!$K$5:$K$100)+SUMIF('10m'!H$5:H$100,$A77,'10m'!$K$5:$K$100)+SUMIF('10 TOTAL'!H$5:H$100,$A77,'10 TOTAL'!$K$5:$K$100) -> 0 | D77: =SUMIF('4'!H$5:H$100,$A77,'4'!$I$5:$I$100)+SUMIF('4a'!H$5:H$100,$A77,'4a'!$I$5:$I$100)+SUMIF('4b'!H$5:H$100,$A77,'4b'!$I$5:$I$100)+SUMIF('4c'!H$5:H$100,$A77,'4c'!$I$5:$I$100)+SUMIF('5'!H$5:H$100,$A77,'5'!$I$5:$I$100)+SUMIF('6'!H$5:H$100,$A77,'6'!$I$5:$I$100)+SUMIF('7'!H$5:H$100,$A77,'7'!$I$5:$I$100)+SUMIF('7a'!H$5:H$100,$A77,'7a'!$I$5:$I$100)+SUMIF('7b'!H$5:H$100,$A77,'7b'!$I$5:$I$100)+SUMIF('8'!H$5:H$100,$A77,'8'!$I$5:$I$100)+SUMIF('9'!H$5:H$100,$A77,'9'!$I$5:$I$100)+SUMIF('9a'!H$5:H$100,$A77,'9a'!$I$5:$I$100)+SUMIF('9b'!H$5:H$100,$A77,'9b'!$I$5:$I$100)+SUMIF('9c'!H$5:H$100,$A77,'9c'!$I$5:$I$100)+SUMIF('9d'!H$5:H$100,$A77,'9d'!$I$5:$I$100)+SUMIF('9e'!H$5:H$100,$A77,'9e'!$I$5:$I$100)+SUMIF('9f'!H$5:H$100,$A77,'9f'!$I$5:$I$100)+SUMIF('9g'!H$5:H$100,$A77,'9g'!$I$5:$I$100)+SUMIF('9h'!H$5:H$100,$A77,'9h'!$I$5:$I$100)+SUMIF('9 TOTAL'!H$5:H$100,$A77,'9 TOTAL'!$I$5:$I$100) +SUMIF('10'!H$5:H$100,$A77,'10'!$I$5:$I$100)+SUMIF('10a'!H$5:H$100,$A77,'10a'!$I$5:$I$100)+SUMIF('10b'!H$5:H$100,$A77,'10b'!$I$5:$I$100)+SUMIF('10c'!H$5:H$100,$A77,'10c'!$I$5:$I$100)+SUMIF('10d'!H$5:H$100,$A77,'10d'!$I$5:$I$100)+SUMIF('10e'!H$5:H$100,$A77,'10e'!$I$5:$I$100)+SUMIF('10f'!H$5:H$100,$A77,'10f'!$I$5:$I$100)+SUMIF('10g'!H$5:H$100,$A77,'10g'!$I$5:$I$100)+SUMIF('10h'!H$5:H$100,$A77,'10h'!$I$5:$I$100)+SUMIF('10i'!H$5:H$100,$A77,'10i'!$I$5:$I$100)+SUMIF('10j'!H$5:H$100,$A77,'10j'!$I$5:$I$100)+SUMIF('10k'!H$5:H$100,$A77,'10k'!$I$5:$I$100)+SUMIF('10l'!H$5:H$100,$A77,'10l'!$I$5:$I$100)+SUMIF('10m'!H$5:H$100,$A77,'10m'!$I$5:$I$100)+SUMIF('10 TOTAL'!H$5:H$100,$A77,'10 TOTAL'!$I$5:$I$100) -> 0 | S77: 0
A78: 09-210 | B78: Other PILOT (State Aid) | C78: =SUMIF('4'!H$5:H$100,$A78,'4'!$K$5:$K$100)+SUMIF('4a'!H$5:H$100,$A78,'4a'!$K$5:$K$100)+SUMIF('4b'!H$5:H$100,$A78,'4b'!$K$5:$K$100)+SUMIF('4c'!H$5:H$100,$A78,'4c'!$K$5:$K$100)+SUMIF('5'!H$5:H$100,$A78,'5'!$K$5:$K$100)+SUMIF('6'!H$5:H$100,$A78,'6'!$K$5:$K$100)+SUMIF('7'!H$5:H$100,$A78,'7'!$K$5:$K$100)+SUMIF('7a'!H$5:H$100,$A78,'7a'!$K$5:$K$100)+SUMIF('7b'!H$5:H$100,$A78,'7b'!$K$5:$K$100)+SUMIF('8'!H$5:H$100,$A78,'8'!$K$5:$K$100)+SUMIF('9'!H$5:H$100,$A78,'9'!$K$5:$K$100)+SUMIF('9a'!H$5:H$100,$A78,'9a'!$K$5:$K$100)+SUMIF('9b'!H$5:H$100,$A78,'9b'!$K$5:$K$100)+SUMIF('9c'!H$5:H$100,$A78,'9c'!$K$5:$K$100)+SUMIF('9d'!H$5:H$100,$A78,'9d'!$K$5:$K$100)+SUMIF('9e'!H$5:H$100,$A78,'9e'!$K$5:$K$100)+SUMIF('9f'!H$5:H$100,$A78,'9f'!$K$5:$K$100)+SUMIF('9g'!H$5:H$100,$A78,'9g'!$K$5:$K$100)+SUMIF('9h'!H$5:H$100,$A78,'9h'!$K$5:$K$100)+SUMIF('9 TOTAL'!H$5:H$100,$A78,'9 TOTAL'!$K$5:$K$100) +SUMIF('10'!H$5:H$100,$A78,'10'!$K$5:$K$100)+SUMIF('10a'!H$5:H$100,$A78,'10a'!$K$5:$K$100)+SUMIF('10b'!H$5:H$100,$A78,'10b'!$K$5:$K$100)+SUMIF('10c'!H$5:H$100,$A78,'10c'!$K$5:$K$100)+SUMIF('10d'!H$5:H$100,$A78,'10d'!$K$5:$K$100)+SUMIF('10e'!H$5:H$100,$A78,'10e'!$K$5:$K$100)+SUMIF('10f'!H$5:H$100,$A78,'10f'!$K$5:$K$100)+SUMIF('10g'!H$5:H$100,$A78,'10g'!$K$5:$K$100)+SUMIF('10h'!H$5:H$100,$A78,'10h'!$K$5:$K$100)+SUMIF('10i'!H$5:H$100,$A78,'10i'!$K$5:$K$100)+SUMIF('10j'!H$5:H$100,$A78,'10j'!$K$5:$K$100)+SUMIF('10k'!H$5:H$100,$A78,'10k'!$K$5:$K$100)+SUMIF('10l'!H$5:H$100,$A78,'10l'!$K$5:$K$100)+SUMIF('10m'!H$5:H$100,$A78,'10m'!$K$5:$K$100)+SUMIF('10 TOTAL'!H$5:H$100,$A78,'10 TOTAL'!$K$5:$K$100) -> 0 | D78: =SUMIF('4'!H$5:H$100,$A78,'4'!$I$5:$I$100)+SUMIF('4a'!H$5:H$100,$A78,'4a'!$I$5:$I$100)+SUMIF('4b'!H$5:H$100,$A78,'4b'!$I$5:$I$100)+SUMIF('4c'!H$5:H$100,$A78,'4c'!$I$5:$I$100)+SUMIF('5'!H$5:H$100,$A78,'5'!$I$5:$I$100)+SUMIF('6'!H$5:H$100,$A78,'6'!$I$5:$I$100)+SUMIF('7'!H$5:H$100,$A78,'7'!$I$5:$I$100)+SUMIF('7a'!H$5:H$100,$A78,'7a'!$I$5:$I$100)+SUMIF('7b'!H$5:H$100,$A78,'7b'!$I$5:$I$100)+SUMIF('8'!H$5:H$100,$A78,'8'!$I$5:$I$100)+SUMIF('9'!H$5:H$100,$A78,'9'!$I$5:$I$100)+SUMIF('9a'!H$5:H$100,$A78,'9a'!$I$5:$I$100)+SUMIF('9b'!H$5:H$100,$A78,'9b'!$I$5:$I$100)+SUMIF('9c'!H$5:H$100,$A78,'9c'!$I$5:$I$100)+SUMIF('9d'!H$5:H$100,$A78,'9d'!$I$5:$I$100)+SUMIF('9e'!H$5:H$100,$A78,'9e'!$I$5:$I$100)+SUMIF('9f'!H$5:H$100,$A78,'9f'!$I$5:$I$100)+SUMIF('9g'!H$5:H$100,$A78,'9g'!$I$5:$I$100)+SUMIF('9h'!H$5:H$100,$A78,'9h'!$I$5:$I$100)+SUMIF('9 TOTAL'!H$5:H$100,$A78,'9 TOTAL'!$I$5:$I$100) +SUMIF('10'!H$5:H$100,$A78,'10'!$I$5:$I$100)+SUMIF('10a'!H$5:H$100,$A78,'10a'!$I$5:$I$100)+SUMIF('10b'!H$5:H$100,$A78,'10b'!$I$5:$I$100)+SUMIF('10c'!H$5:H$100,$A78,'10c'!$I$5:$I$100)+SUMIF('10d'!H$5:H$100,$A78,'10d'!$I$5:$I$100)+SUMIF('10e'!H$5:H$100,$A78,'10e'!$I$5:$I$100)+SUMIF('10f'!H$5:H$100,$A78,'10f'!$I$5:$I$100)+SUMIF('10g'!H$5:H$100,$A78,'10g'!$I$5:$I$100)+SUMIF('10h'!H$5:H$100,$A78,'10h'!$I$5:$I$100)+SUMIF('10i'!H$5:H$100,$A78,'10i'!$I$5:$I$100)+SUMIF('10j'!H$5:H$100,$A78,'10j'!$I$5:$I$100)+SUMIF('10k'!H$5:H$100,$A78,'10k'!$I$5:$I$100)+SUMIF('10l'!H$5:H$100,$A78,'10l'!$I$5:$I$100)+SUMIF('10m'!H$5:H$100,$A78,'10m'!$I$5:$I$100)+SUMIF('10 TOTAL'!H$5:H$100,$A78,'10 TOTAL'!$I$5:$I$100) -> 0 | S78: 0
A79: 09-212 | B79: Transitional Aid | C79: =SUMIF('4'!H$5:H$100,$A79,'4'!$K$5:$K$100)+SUMIF('4a'!H$5:H$100,$A79,'4a'!$K$5:$K$100)+SUMIF('4b'!H$5:H$100,$A79,'4b'!$K$5:$K$100)+SUMIF('4c'!H$5:H$100,$A79,'4c'!$K$5:$K$100)+SUMIF('5'!H$5:H$100,$A79,'5'!$K$5:$K$100)+SUMIF('6'!H$5:H$100,$A79,'6'!$K$5:$K$100)+SUMIF('7'!H$5:H$100,$A79,'7'!$K$5:$K$100)+SUMIF('7a'!H$5:H$100,$A79,'7a'!$K$5:$K$100)+SUMIF('7b'!H$5:H$100,$A79,'7b'!$K$5:$K$100)+SUMIF('8'!H$5:H$100,$A79,'8'!$K$5:$K$100)+SUMIF('9'!H$5:H$100,$A79,'9'!$K$5:$K$100)+SUMIF('9a'!H$5:H$100,$A79,'9a'!$K$5:$K$100)+SUMIF('9b'!H$5:H$100,$A79,'9b'!$K$5:$K$100)+SUMIF('9c'!H$5:H$100,$A79,'9c'!$K$5:$K$100)+SUMIF('9d'!H$5:H$100,$A79,'9d'!$K$5:$K$100)+SUMIF('9e'!H$5:H$100,$A79,'9e'!$K$5:$K$100)+SUMIF('9f'!H$5:H$100,$A79,'9f'!$K$5:$K$100)+SUMIF('9g'!H$5:H$100,$A79,'9g'!$K$5:$K$100)+SUMIF('9h'!H$5:H$100,$A79,'9h'!$K$5:$K$100)+SUMIF('9 TOTAL'!H$5:H$100,$A79,'9 TOTAL'!$K$5:$K$100) +SUMIF('10'!H$5:H$100,$A79,'10'!$K$5:$K$100)+SUMIF('10a'!H$5:H$100,$A79,'10a'!$K$5:$K$100)+SUMIF('10b'!H$5:H$100,$A79,'10b'!$K$5:$K$100)+SUMIF('10c'!H$5:H$100,$A79,'10c'!$K$5:$K$100)+SUMIF('10d'!H$5:H$100,$A79,'10d'!$K$5:$K$100)+SUMIF('10e'!H$5:H$100,$A79,'10e'!$K$5:$K$100)+SUMIF('10f'!H$5:H$100,$A79,'10f'!$K$5:$K$100)+SUMIF('10g'!H$5:H$100,$A79,'10g'!$K$5:$K$100)+SUMIF('10h'!H$5:H$100,$A79,'10h'!$K$5:$K$100)+SUMIF('10i'!H$5:H$100,$A79,'10i'!$K$5:$K$100)+SUMIF('10j'!H$5:H$100,$A79,'10j'!$K$5:$K$100)+SUMIF('10k'!H$5:H$100,$A79,'10k'!$K$5:$K$100)+SUMIF('10l'!H$5:H$100,$A79,'10l'!$K$5:$K$100)+SUMIF('10m'!H$5:H$100,$A79,'10m'!$K$5:$K$100)+SUMIF('10 TOTAL'!H$5:H$100,$A79,'10 TOTAL'!$K$5:$K$100) -> 0 | D79: =SUMIF('4'!H$5:H$100,$A79,'4'!$I$5:$I$100)+SUMIF('4a'!H$5:H$100,$A79,'4a'!$I$5:$I$100)+SUMIF('4b'!H$5:H$100,$A79,'4b'!$I$5:$I$100)+SUMIF('4c'!H$5:H$100,$A79,'4c'!$I$5:$I$100)+SUMIF('5'!H$5:H$100,$A79,'5'!$I$5:$I$100)+SUMIF('6'!H$5:H$100,$A79,'6'!$I$5:$I$100)+SUMIF('7'!H$5:H$100,$A79,'7'!$I$5:$I$100)+SUMIF('7a'!H$5:H$100,$A79,'7a'!$I$5:$I$100)+SUMIF('7b'!H$5:H$100,$A79,'7b'!$I$5:$I$100)+SUMIF('8'!H$5:H$100,$A79,'8'!$I$5:$I$100)+SUMIF('9'!H$5:H$100,$A79,'9'!$I$5:$I$100)+SUMIF('9a'!H$5:H$100,$A79,'9a'!$I$5:$I$100)+SUMIF('9b'!H$5:H$100,$A79,'9b'!$I$5:$I$100)+SUMIF('9c'!H$5:H$100,$A79,'9c'!$I$5:$I$100)+SUMIF('9d'!H$5:H$100,$A79,'9d'!$I$5:$I$100)+SUMIF('9e'!H$5:H$100,$A79,'9e'!$I$5:$I$100)+SUMIF('9f'!H$5:H$100,$A79,'9f'!$I$5:$I$100)+SUMIF('9g'!H$5:H$100,$A79,'9g'!$I$5:$I$100)+SUMIF('9h'!H$5:H$100,$A79,'9h'!$I$5:$I$100)+SUMIF('9 TOTAL'!H$5:H$100,$A79,'9 TOTAL'!$I$5:$I$100) +SUMIF('10'!H$5:H$100,$A79,'10'!$I$5:$I$100)+SUMIF('10a'!H$5:H$100,$A79,'10a'!$I$5:$I$100)+SUMIF('10b'!H$5:H$100,$A79,'10b'!$I$5:$I$100)+SUMIF('10c'!H$5:H$100,$A79,'10c'!$I$5:$I$100)+SUMIF('10d'!H$5:H$100,$A79,'10d'!$I$5:$I$100)+SUMIF('10e'!H$5:H$100,$A79,'10e'!$I$5:$I$100)+SUMIF('10f'!H$5:H$100,$A79,'10f'!$I$5:$I$100)+SUMIF('10g'!H$5:H$100,$A79,'10g'!$I$5:$I$100)+SUMIF('10h'!H$5:H$100,$A79,'10h'!$I$5:$I$100)+SUMIF('10i'!H$5:H$100,$A79,'10i'!$I$5:$I$100)+SUMIF('10j'!H$5:H$100,$A79,'10j'!$I$5:$I$100)+SUMIF('10k'!H$5:H$100,$A79,'10k'!$I$5:$I$100)+SUMIF('10l'!H$5:H$100,$A79,'10l'!$I$5:$I$100)+SUMIF('10m'!H$5:H$100,$A79,'10m'!$I$5:$I$100)+SUMIF('10 TOTAL'!H$5:H$100,$A79,'10 TOTAL'!$I$5:$I$100) -> 0 | S79: 0
B80: Other State Aid | C80: =SUM(C81:C83) -> 0 | D80: =SUM(D81:D83) -> 0 | S80: 0
A81: 09-213 | B81: "User Defined" State Aid Program | C81: =SUMIF('4'!H$5:H$100,$A81,'4'!$K$5:$K$100)+SUMIF('4a'!H$5:H$100,$A81,'4a'!$K$5:$K$100)+SUMIF('4b'!H$5:H$100,$A81,'4b'!$K$5:$K$100)+SUMIF('4c'!H$5:H$100,$A81,'4c'!$K$5:$K$100)+SUMIF('5'!H$5:H$100,$A81,'5'!$K$5:$K$100)+SUMIF('6'!H$5:H$100,$A81,'6'!$K$5:$K$100)+SUMIF('7'!H$5:H$100,$A81,'7'!$K$5:$K$100)+SUMIF('7a'!H$5:H$100,$A81,'7a'!$K$5:$K$100)+SUMIF('7b'!H$5:H$100,$A81,'7b'!$K$5:$K$100)+SUMIF('8'!H$5:H$100,$A81,'8'!$K$5:$K$100)+SUMIF('9'!H$5:H$100,$A81,'9'!$K$5:$K$100)+SUMIF('9a'!H$5:H$100,$A81,'9a'!$K$5:$K$100)+SUMIF('9b'!H$5:H$100,$A81,'9b'!$K$5:$K$100)+SUMIF('9c'!H$5:H$100,$A81,'9c'!$K$5:$K$100)+SUMIF('9d'!H$5:H$100,$A81,'9d'!$K$5:$K$100)+SUMIF('9e'!H$5:H$100,$A81,'9e'!$K$5:$K$100)+SUMIF('9f'!H$5:H$100,$A81,'9f'!$K$5:$K$100)+SUMIF('9g'!H$5:H$100,$A81,'9g'!$K$5:$K$100)+SUMIF('9h'!H$5:H$100,$A81,'9h'!$K$5:$K$100)+SUMIF('9 TOTAL'!H$5:H$100,$A81,'9 TOTAL'!$K$5:$K$100) +SUMIF('10'!H$5:H$100,$A81,'10'!$K$5:$K$100)+SUMIF('10a'!H$5:H$100,$A81,'10a'!$K$5:$K$100)+SUMIF('10b'!H$5:H$100,$A81,'10b'!$K$5:$K$100)+SUMIF('10c'!H$5:H$100,$A81,'10c'!$K$5:$K$100)+SUMIF('10d'!H$5:H$100,$A81,'10d'!$K$5:$K$100)+SUMIF('10e'!H$5:H$100,$A81,'10e'!$K$5:$K$100)+SUMIF('10f'!H$5:H$100,$A81,'10f'!$K$5:$K$100)+SUMIF('10g'!H$5:H$100,$A81,'10g'!$K$5:$K$100)+SUMIF('10h'!H$5:H$100,$A81,'10h'!$K$5:$K$100)+SUMIF('10i'!H$5:H$100,$A81,'10i'!$K$5:$K$100)+SUMIF('10j'!H$5:H$100,$A81,'10j'!$K$5:$K$100)+SUMIF('10k'!H$5:H$100,$A81,'10k'!$K$5:$K$100)+SUMIF('10l'!H$5:H$100,$A81,'10l'!$K$5:$K$100)+SUMIF('10m'!H$5:H$100,$A81,'10m'!$K$5:$K$100)+SUMIF('10 TOTAL'!H$5:H$100,$A81,'10 TOTAL'!$K$5:$K$100) -> 0 | D81: =SUMIF('4'!H$5:H$100,$A81,'4'!$I$5:$I$100)+SUMIF('4a'!H$5:H$100,$A81,'4a'!$I$5:$I$100)+SUMIF('4b'!H$5:H$100,$A81,'4b'!$I$5:$I$100)+SUMIF('4c'!H$5:H$100,$A81,'4c'!$I$5:$I$100)+SUMIF('5'!H$5:H$100,$A81,'5'!$I$5:$I$100)+SUMIF('6'!H$5:H$100,$A81,'6'!$I$5:$I$100)+SUMIF('7'!H$5:H$100,$A81,'7'!$I$5:$I$100)+SUMIF('7a'!H$5:H$100,$A81,'7a'!$I$5:$I$100)+SUMIF('7b'!H$5:H$100,$A81,'7b'!$I$5:$I$100)+SUMIF('8'!H$5:H$100,$A81,'8'!$I$5:$I$100)+SUMIF('9'!H$5:H$100,$A81,'9'!$I$5:$I$100)+SUMIF('9a'!H$5:H$100,$A81,'9a'!$I$5:$I$100)+SUMIF('9b'!H$5:H$100,$A81,'9b'!$I$5:$I$100)+SUMIF('9c'!H$5:H$100,$A81,'9c'!$I$5:$I$100)+SUMIF('9d'!H$5:H$100,$A81,'9d'!$I$5:$I$100)+SUMIF('9e'!H$5:H$100,$A81,'9e'!$I$5:$I$100)+SUMIF('9f'!H$5:H$100,$A81,'9f'!$I$5:$I$100)+SUMIF('9g'!H$5:H$100,$A81,'9g'!$I$5:$I$100)+SUMIF('9h'!H$5:H$100,$A81,'9h'!$I$5:$I$100)+SUMIF('9 TOTAL'!H$5:H$100,$A81,'9 TOTAL'!$I$5:$I$100) +SUMIF('10'!H$5:H$100,$A81,'10'!$I$5:$I$100)+SUMIF('10a'!H$5:H$100,$A81,'10a'!$I$5:$I$100)+SUMIF('10b'!H$5:H$100,$A81,'10b'!$I$5:$I$100)+SUMIF('10c'!H$5:H$100,$A81,'10c'!$I$5:$I$100)+SUMIF('10d'!H$5:H$100,$A81,'10d'!$I$5:$I$100)+SUMIF('10e'!H$5:H$100,$A81,'10e'!$I$5:$I$100)+SUMIF('10f'!H$5:H$100,$A81,'10f'!$I$5:$I$100)+SUMIF('10g'!H$5:H$100,$A81,'10g'!$I$5:$I$100)+SUMIF('10h'!H$5:H$100,$A81,'10h'!$I$5:$I$100)+SUMIF('10i'!H$5:H$100,$A81,'10i'!$I$5:$I$100)+SUMIF('10j'!H$5:H$100,$A81,'10j'!$I$5:$I$100)+SUMIF('10k'!H$5:H$100,$A81,'10k'!$I$5:$I$100)+SUMIF('10l'!H$5:H$100,$A81,'10l'!$I$5:$I$100)+SUMIF('10m'!H$5:H$100,$A81,'10m'!$I$5:$I$100)+SUMIF('10 TOTAL'!H$5:H$100,$A81,'10 TOTAL'!$I$5:$I$100) -> 0 | S81: 0
A82: 09-214 | B82: "User Defined" State Aid Program | C82: =SUMIF('4'!H$5:H$100,$A82,'4'!$K$5:$K$100)+SUMIF('4a'!H$5:H$100,$A82,'4a'!$K$5:$K$100)+SUMIF('4b'!H$5:H$100,$A82,'4b'!$K$5:$K$100)+SUMIF('4c'!H$5:H$100,$A82,'4c'!$K$5:$K$100)+SUMIF('5'!H$5:H$100,$A82,'5'!$K$5:$K$100)+SUMIF('6'!H$5:H$100,$A82,'6'!$K$5:$K$100)+SUMIF('7'!H$5:H$100,$A82,'7'!$K$5:$K$100)+SUMIF('7a'!H$5:H$100,$A82,'7a'!$K$5:$K$100)+SUMIF('7b'!H$5:H$100,$A82,'7b'!$K$5:$K$100)+SUMIF('8'!H$5:H$100,$A82,'8'!$K$5:$K$100)+SUMIF('9'!H$5:H$100,$A82,'9'!$K$5:$K$100)+SUMIF('9a'!H$5:H$100,$A82,'9a'!$K$5:$K$100)+SUMIF('9b'!H$5:H$100,$A82,'9b'!$K$5:$K$100)+SUMIF('9c'!H$5:H$100,$A82,'9c'!$K$5:$K$100)+SUMIF('9d'!H$5:H$100,$A82,'9d'!$K$5:$K$100)+SUMIF('9e'!H$5:H$100,$A82,'9e'!$K$5:$K$100)+SUMIF('9f'!H$5:H$100,$A82,'9f'!$K$5:$K$100)+SUMIF('9g'!H$5:H$100,$A82,'9g'!$K$5:$K$100)+SUMIF('9h'!H$5:H$100,$A82,'9h'!$K$5:$K$100)+SUMIF('9 TOTAL'!H$5:H$100,$A82,'9 TOTAL'!$K$5:$K$100) +SUMIF('10'!H$5:H$100,$A82,'10'!$K$5:$K$100)+SUMIF('10a'!H$5:H$100,$A82,'10a'!$K$5:$K$100)+SUMIF('10b'!H$5:H$100,$A82,'10b'!$K$5:$K$100)+SUMIF('10c'!H$5:H$100,$A82,'10c'!$K$5:$K$100)+SUMIF('10d'!H$5:H$100,$A82,'10d'!$K$5:$K$100)+SUMIF('10e'!H$5:H$100,$A82,'10e'!$K$5:$K$100)+SUMIF('10f'!H$5:H$100,$A82,'10f'!$K$5:$K$100)+SUMIF('10g'!H$5:H$100,$A82,'10g'!$K$5:$K$100)+SUMIF('10h'!H$5:H$100,$A82,'10h'!$K$5:$K$100)+SUMIF('10i'!H$5:H$100,$A82,'10i'!$K$5:$K$100)+SUMIF('10j'!H$5:H$100,$A82,'10j'!$K$5:$K$100)+SUMIF('10k'!H$5:H$100,$A82,'10k'!$K$5:$K$100)+SUMIF('10l'!H$5:H$100,$A82,'10l'!$K$5:$K$100)+SUMIF('10m'!H$5:H$100,$A82,'10m'!$K$5:$K$100)+SUMIF('10 TOTAL'!H$5:H$100,$A82,'10 TOTAL'!$K$5:$K$100) -> 0 | D82: =SUMIF('4'!H$5:H$100,$A82,'4'!$I$5:$I$100)+SUMIF('4a'!H$5:H$100,$A82,'4a'!$I$5:$I$100)+SUMIF('4b'!H$5:H$100,$A82,'4b'!$I$5:$I$100)+SUMIF('4c'!H$5:H$100,$A82,'4c'!$I$5:$I$100)+SUMIF('5'!H$5:H$100,$A82,'5'!$I$5:$I$100)+SUMIF('6'!H$5:H$100,$A82,'6'!$I$5:$I$100)+SUMIF('7'!H$5:H$100,$A82,'7'!$I$5:$I$100)+SUMIF('7a'!H$5:H$100,$A82,'7a'!$I$5:$I$100)+SUMIF('7b'!H$5:H$100,$A82,'7b'!$I$5:$I$100)+SUMIF('8'!H$5:H$100,$A82,'8'!$I$5:$I$100)+SUMIF('9'!H$5:H$100,$A82,'9'!$I$5:$I$100)+SUMIF('9a'!H$5:H$100,$A82,'9a'!$I$5:$I$100)+SUMIF('9b'!H$5:H$100,$A82,'9b'!$I$5:$I$100)+SUMIF('9c'!H$5:H$100,$A82,'9c'!$I$5:$I$100)+SUMIF('9d'!H$5:H$100,$A82,'9d'!$I$5:$I$100)+SUMIF('9e'!H$5:H$100,$A82,'9e'!$I$5:$I$100)+SUMIF('9f'!H$5:H$100,$A82,'9f'!$I$5:$I$100)+SUMIF('9g'!H$5:H$100,$A82,'9g'!$I$5:$I$100)+SUMIF('9h'!H$5:H$100,$A82,'9h'!$I$5:$I$100)+SUMIF('9 TOTAL'!H$5:H$100,$A82,'9 TOTAL'!$I$5:$I$100) +SUMIF('10'!H$5:H$100,$A82,'10'!$I$5:$I$100)+SUMIF('10a'!H$5:H$100,$A82,'10a'!$I$5:$I$100)+SUMIF('10b'!H$5:H$100,$A82,'10b'!$I$5:$I$100)+SUMIF('10c'!H$5:H$100,$A82,'10c'!$I$5:$I$100)+SUMIF('10d'!H$5:H$100,$A82,'10d'!$I$5:$I$100)+SUMIF('10e'!H$5:H$100,$A82,'10e'!$I$5:$I$100)+SUMIF('10f'!H$5:H$100,$A82,'10f'!$I$5:$I$100)+SUMIF('10g'!H$5:H$100,$A82,'10g'!$I$5:$I$100)+SUMIF('10h'!H$5:H$100,$A82,'10h'!$I$5:$I$100)+SUMIF('10i'!H$5:H$100,$A82,'10i'!$I$5:$I$100)+SUMIF('10j'!H$5:H$100,$A82,'10j'!$I$5:$I$100)+SUMIF('10k'!H$5:H$100,$A82,'10k'!$I$5:$I$100)+SUMIF('10l'!H$5:H$100,$A82,'10l'!$I$5:$I$100)+SUMIF('10m'!H$5:H$100,$A82,'10m'!$I$5:$I$100)+SUMIF('10 TOTAL'!H$5:H$100,$A82,'10 TOTAL'!$I$5:$I$100) -> 0 | S82: 0
A83: 09-215 | B83: "User Defined" State Aid Program | C83: =SUMIF('4'!H$5:H$100,$A83,'4'!$K$5:$K$100)+SUMIF('4a'!H$5:H$100,$A83,'4a'!$K$5:$K$100)+SUMIF('4b'!H$5:H$100,$A83,'4b'!$K$5:$K$100)+SUMIF('4c'!H$5:H$100,$A83,'4c'!$K$5:$K$100)+SUMIF('5'!H$5:H$100,$A83,'5'!$K$5:$K$100)+SUMIF('6'!H$5:H$100,$A83,'6'!$K$5:$K$100)+SUMIF('7'!H$5:H$100,$A83,'7'!$K$5:$K$100)+SUMIF('7a'!H$5:H$100,$A83,'7a'!$K$5:$K$100)+SUMIF('7b'!H$5:H$100,$A83,'7b'!$K$5:$K$100)+SUMIF('8'!H$5:H$100,$A83,'8'!$K$5:$K$100)+SUMIF('9'!H$5:H$100,$A83,'9'!$K$5:$K$100)+SUMIF('9a'!H$5:H$100,$A83,'9a'!$K$5:$K$100)+SUMIF('9b'!H$5:H$100,$A83,'9b'!$K$5:$K$100)+SUMIF('9c'!H$5:H$100,$A83,'9c'!$K$5:$K$100)+SUMIF('9d'!H$5:H$100,$A83,'9d'!$K$5:$K$100)+SUMIF('9e'!H$5:H$100,$A83,'9e'!$K$5:$K$100)+SUMIF('9f'!H$5:H$100,$A83,'9f'!$K$5:$K$100)+SUMIF('9g'!H$5:H$100,$A83,'9g'!$K$5:$K$100)+SUMIF('9h'!H$5:H$100,$A83,'9h'!$K$5:$K$100)+SUMIF('9 TOTAL'!H$5:H$100,$A83,'9 TOTAL'!$K$5:$K$100) +SUMIF('10'!H$5:H$100,$A83,'10'!$K$5:$K$100)+SUMIF('10a'!H$5:H$100,$A83,'10a'!$K$5:$K$100)+SUMIF('10b'!H$5:H$100,$A83,'10b'!$K$5:$K$100)+SUMIF('10c'!H$5:H$100,$A83,'10c'!$K$5:$K$100)+SUMIF('10d'!H$5:H$100,$A83,'10d'!$K$5:$K$100)+SUMIF('10e'!H$5:H$100,$A83,'10e'!$K$5:$K$100)+SUMIF('10f'!H$5:H$100,$A83,'10f'!$K$5:$K$100)+SUMIF('10g'!H$5:H$100,$A83,'10g'!$K$5:$K$100)+SUMIF('10h'!H$5:H$100,$A83,'10h'!$K$5:$K$100)+SUMIF('10i'!H$5:H$100,$A83,'10i'!$K$5:$K$100)+SUMIF('10j'!H$5:H$100,$A83,'10j'!$K$5:$K$100)+SUMIF('10k'!H$5:H$100,$A83,'10k'!$K$5:$K$100)+SUMIF('10l'!H$5:H$100,$A83,'10l'!$K$5:$K$100)+SUMIF('10m'!H$5:H$100,$A83,'10m'!$K$5:$K$100)+SUMIF('10 TOTAL'!H$5:H$100,$A83,'10 TOTAL'!$K$5:$K$100) -> 0 | D83: =SUMIF('4'!H$5:H$100,$A83,'4'!$I$5:$I$100)+SUMIF('4a'!H$5:H$100,$A83,'4a'!$I$5:$I$100)+SUMIF('4b'!H$5:H$100,$A83,'4b'!$I$5:$I$100)+SUMIF('4c'!H$5:H$100,$A83,'4c'!$I$5:$I$100)+SUMIF('5'!H$5:H$100,$A83,'5'!$I$5:$I$100)+SUMIF('6'!H$5:H$100,$A83,'6'!$I$5:$I$100)+SUMIF('7'!H$5:H$100,$A83,'7'!$I$5:$I$100)+SUMIF('7a'!H$5:H$100,$A83,'7a'!$I$5:$I$100)+SUMIF('7b'!H$5:H$100,$A83,'7b'!$I$5:$I$100)+SUMIF('8'!H$5:H$100,$A83,'8'!$I$5:$I$100)+SUMIF('9'!H$5:H$100,$A83,'9'!$I$5:$I$100)+SUMIF('9a'!H$5:H$100,$A83,'9a'!$I$5:$I$100)+SUMIF('9b'!H$5:H$100,$A83,'9b'!$I$5:$I$100)+SUMIF('9c'!H$5:H$100,$A83,'9c'!$I$5:$I$100)+SUMIF('9d'!H$5:H$100,$A83,'9d'!$I$5:$I$100)+SUMIF('9e'!H$5:H$100,$A83,'9e'!$I$5:$I$100)+SUMIF('9f'!H$5:H$100,$A83,'9f'!$I$5:$I$100)+SUMIF('9g'!H$5:H$100,$A83,'9g'!$I$5:$I$100)+SUMIF('9h'!H$5:H$100,$A83,'9h'!$I$5:$I$100)+SUMIF('9 TOTAL'!H$5:H$100,$A83,'9 TOTAL'!$I$5:$I$100) +SUMIF('10'!H$5:H$100,$A83,'10'!$I$5:$I$100)+SUMIF('10a'!H$5:H$100,$A83,'10a'!$I$5:$I$100)+SUMIF('10b'!H$5:H$100,$A83,'10b'!$I$5:$I$100)+SUMIF('10c'!H$5:H$100,$A83,'10c'!$I$5:$I$100)+SUMIF('10d'!H$5:H$100,$A83,'10d'!$I$5:$I$100)+SUMIF('10e'!H$5:H$100,$A83,'10e'!$I$5:$I$100)+SUMIF('10f'!H$5:H$100,$A83,'10f'!$I$5:$I$100)+SUMIF('10g'!H$5:H$100,$A83,'10g'!$I$5:$I$100)+SUMIF('10h'!H$5:H$100,$A83,'10h'!$I$5:$I$100)+SUMIF('10i'!H$5:H$100,$A83,'10i'!$I$5:$I$100)+SUMIF('10j'!H$5:H$100,$A83,'10j'!$I$5:$I$100)+SUMIF('10k'!H$5:H$100,$A83,'10k'!$I$5:$I$100)+SUMIF('10l'!H$5:H$100,$A83,'10l'!$I$5:$I$100)+SUMIF('10m'!H$5:H$100,$A83,'10m'!$I$5:$I$100)+SUMIF('10 TOTAL'!H$5:H$100,$A83,'10 TOTAL'!$I$5:$I$100) -> 0 | S83: 0
A84: 09-221 | B84: State Aid - County College Bonds | C84: =SUMIF('4'!H$5:H$100,$A84,'4'!$K$5:$K$100)+SUMIF('4a'!H$5:H$100,$A84,'4a'!$K$5:$K$100)+SUMIF('4b'!H$5:H$100,$A84,'4b'!$K$5:$K$100)+SUMIF('4c'!H$5:H$100,$A84,'4c'!$K$5:$K$100)+SUMIF('5'!H$5:H$100,$A84,'5'!$K$5:$K$100)+SUMIF('6'!H$5:H$100,$A84,'6'!$K$5:$K$100)+SUMIF('7'!H$5:H$100,$A84,'7'!$K$5:$K$100)+SUMIF('7a'!H$5:H$100,$A84,'7a'!$K$5:$K$100)+SUMIF('7b'!H$5:H$100,$A84,'7b'!$K$5:$K$100)+SUMIF('8'!H$5:H$100,$A84,'8'!$K$5:$K$100)+SUMIF('9'!H$5:H$100,$A84,'9'!$K$5:$K$100)+SUMIF('9a'!H$5:H$100,$A84,'9a'!$K$5:$K$100)+SUMIF('9b'!H$5:H$100,$A84,'9b'!$K$5:$K$100)+SUMIF('9c'!H$5:H$100,$A84,'9c'!$K$5:$K$100)+SUMIF('9d'!H$5:H$100,$A84,'9d'!$K$5:$K$100)+SUMIF('9e'!H$5:H$100,$A84,'9e'!$K$5:$K$100)+SUMIF('9f'!H$5:H$100,$A84,'9f'!$K$5:$K$100)+SUMIF('9g'!H$5:H$100,$A84,'9g'!$K$5:$K$100)+SUMIF('9h'!H$5:H$100,$A84,'9h'!$K$5:$K$100)+SUMIF('9 TOTAL'!H$5:H$100,$A84,'9 TOTAL'!$K$5:$K$100) +SUMIF('10'!H$5:H$100,$A84,'10'!$K$5:$K$100)+SUMIF('10a'!H$5:H$100,$A84,'10a'!$K$5:$K$100)+SUMIF('10b'!H$5:H$100,$A84,'10b'!$K$5:$K$100)+SUMIF('10c'!H$5:H$100,$A84,'10c'!$K$5:$K$100)+SUMIF('10d'!H$5:H$100,$A84,'10d'!$K$5:$K$100)+SUMIF('10e'!H$5:H$100,$A84,'10e'!$K$5:$K$100)+SUMIF('10f'!H$5:H$100,$A84,'10f'!$K$5:$K$100)+SUMIF('10g'!H$5:H$100,$A84,'10g'!$K$5:$K$100)+SUMIF('10h'!H$5:H$100,$A84,'10h'!$K$5:$K$100)+SUMIF('10i'!H$5:H$100,$A84,'10i'!$K$5:$K$100)+SUMIF('10j'!H$5:H$100,$A84,'10j'!$K$5:$K$100)+SUMIF('10k'!H$5:H$100,$A84,'10k'!$K$5:$K$100)+SUMIF('10l'!H$5:H$100,$A84,'10l'!$K$5:$K$100)+SUMIF('10m'!H$5:H$100,$A84,'10m'!$K$5:$K$100)+SUMIF('10 TOTAL'!H$5:H$100,$A84,'10 TOTAL'!$K$5:$K$100) -> 0 | D84: =SUMIF('4'!H$5:H$100,$A84,'4'!$I$5:$I$100)+SUMIF('4a'!H$5:H$100,$A84,'4a'!$I$5:$I$100)+SUMIF('4b'!H$5:H$100,$A84,'4b'!$I$5:$I$100)+SUMIF('4c'!H$5:H$100,$A84,'4c'!$I$5:$I$100)+SUMIF('5'!H$5:H$100,$A84,'5'!$I$5:$I$100)+SUMIF('6'!H$5:H$100,$A84,'6'!$I$5:$I$100)+SUMIF('7'!H$5:H$100,$A84,'7'!$I$5:$I$100)+SUMIF('7a'!H$5:H$100,$A84,'7a'!$I$5:$I$100)+SUMIF('7b'!H$5:H$100,$A84,'7b'!$I$5:$I$100)+SUMIF('8'!H$5:H$100,$A84,'8'!$I$5:$I$100)+SUMIF('9'!H$5:H$100,$A84,'9'!$I$5:$I$100)+SUMIF('9a'!H$5:H$100,$A84,'9a'!$I$5:$I$100)+SUMIF('9b'!H$5:H$100,$A84,'9b'!$I$5:$I$100)+SUMIF('9c'!H$5:H$100,$A84,'9c'!$I$5:$I$100)+SUMIF('9d'!H$5:H$100,$A84,'9d'!$I$5:$I$100)+SUMIF('9e'!H$5:H$100,$A84,'9e'!$I$5:$I$100)+SUMIF('9f'!H$5:H$100,$A84,'9f'!$I$5:$I$100)+SUMIF('9g'!H$5:H$100,$A84,'9g'!$I$5:$I$100)+SUMIF('9h'!H$5:H$100,$A84,'9h'!$I$5:$I$100)+SUMIF('9 TOTAL'!H$5:H$100,$A84,'9 TOTAL'!$I$5:$I$100) +SUMIF('10'!H$5:H$100,$A84,'10'!$I$5:$I$100)+SUMIF('10a'!H$5:H$100,$A84,'10a'!$I$5:$I$100)+SUMIF('10b'!H$5:H$100,$A84,'10b'!$I$5:$I$100)+SUMIF('10c'!H$5:H$100,$A84,'10c'!$I$5:$I$100)+SUMIF('10d'!H$5:H$100,$A84,'10d'!$I$5:$I$100)+SUMIF('10e'!H$5:H$100,$A84,'10e'!$I$5:$I$100)+SUMIF('10f'!H$5:H$100,$A84,'10f'!$I$5:$I$100)+SUMIF('10g'!H$5:H$100,$A84,'10g'!$I$5:$I$100)+SUMIF('10h'!H$5:H$100,$A84,'10h'!$I$5:$I$100)+SUMIF('10i'!H$5:H$100,$A84,'10i'!$I$5:$I$100)+SUMIF('10j'!H$5:H$100,$A84,'10j'!$I$5:$I$100)+SUMIF('10k'!H$5:H$100,$A84,'10k'!$I$5:$I$100)+SUMIF('10l'!H$5:H$100,$A84,'10l'!$I$5:$I$100)+SUMIF('10m'!H$5:H$100,$A84,'10m'!$I$5:$I$100)+SUMIF('10 TOTAL'!H$5:H$100,$A84,'10 TOTAL'!$I$5:$I$100) -> 0 | S84: 0
A85: 09-222 | B85: Permanent Disability - Patients in County Institutions | C85: =SUMIF('4'!H$5:H$100,$A85,'4'!$K$5:$K$100)+SUMIF('4a'!H$5:H$100,$A85,'4a'!$K$5:$K$100)+SUMIF('4b'!H$5:H$100,$A85,'4b'!$K$5:$K$100)+SUMIF('4c'!H$5:H$100,$A85,'4c'!$K$5:$K$100)+SUMIF('5'!H$5:H$100,$A85,'5'!$K$5:$K$100)+SUMIF('6'!H$5:H$100,$A85,'6'!$K$5:$K$100)+SUMIF('7'!H$5:H$100,$A85,'7'!$K$5:$K$100)+SUMIF('7a'!H$5:H$100,$A85,'7a'!$K$5:$K$100)+SUMIF('7b'!H$5:H$100,$A85,'7b'!$K$5:$K$100)+SUMIF('8'!H$5:H$100,$A85,'8'!$K$5:$K$100)+SUMIF('9'!H$5:H$100,$A85,'9'!$K$5:$K$100)+SUMIF('9a'!H$5:H$100,$A85,'9a'!$K$5:$K$100)+SUMIF('9b'!H$5:H$100,$A85,'9b'!$K$5:$K$100)+SUMIF('9c'!H$5:H$100,$A85,'9c'!$K$5:$K$100)+SUMIF('9d'!H$5:H$100,$A85,'9d'!$K$5:$K$100)+SUMIF('9e'!H$5:H$100,$A85,'9e'!$K$5:$K$100)+SUMIF('9f'!H$5:H$100,$A85,'9f'!$K$5:$K$100)+SUMIF('9g'!H$5:H$100,$A85,'9g'!$K$5:$K$100)+SUMIF('9h'!H$5:H$100,$A85,'9h'!$K$5:$K$100)+SUMIF('9 TOTAL'!H$5:H$100,$A85,'9 TOTAL'!$K$5:$K$100) +SUMIF('10'!H$5:H$100,$A85,'10'!$K$5:$K$100)+SUMIF('10a'!H$5:H$100,$A85,'10a'!$K$5:$K$100)+SUMIF('10b'!H$5:H$100,$A85,'10b'!$K$5:$K$100)+SUMIF('10c'!H$5:H$100,$A85,'10c'!$K$5:$K$100)+SUMIF('10d'!H$5:H$100,$A85,'10d'!$K$5:$K$100)+SUMIF('10e'!H$5:H$100,$A85,'10e'!$K$5:$K$100)+SUMIF('10f'!H$5:H$100,$A85,'10f'!$K$5:$K$100)+SUMIF('10g'!H$5:H$100,$A85,'10g'!$K$5:$K$100)+SUMIF('10h'!H$5:H$100,$A85,'10h'!$K$5:$K$100)+SUMIF('10i'!H$5:H$100,$A85,'10i'!$K$5:$K$100)+SUMIF('10j'!H$5:H$100,$A85,'10j'!$K$5:$K$100)+SUMIF('10k'!H$5:H$100,$A85,'10k'!$K$5:$K$100)+SUMIF('10l'!H$5:H$100,$A85,'10l'!$K$5:$K$100)+SUMIF('10m'!H$5:H$100,$A85,'10m'!$K$5:$K$100)+SUMIF('10 TOTAL'!H$5:H$100,$A85,'10 TOTAL'!$K$5:$K$100) -> 0 | D85: =SUMIF('4'!H$5:H$100,$A85,'4'!$I$5:$I$100)+SUMIF('4a'!H$5:H$100,$A85,'4a'!$I$5:$I$100)+SUMIF('4b'!H$5:H$100,$A85,'4b'!$I$5:$I$100)+SUMIF('4c'!H$5:H$100,$A85,'4c'!$I$5:$I$100)+SUMIF('5'!H$5:H$100,$A85,'5'!$I$5:$I$100)+SUMIF('6'!H$5:H$100,$A85,'6'!$I$5:$I$100)+SUMIF('7'!H$5:H$100,$A85,'7'!$I$5:$I$100)+SUMIF('7a'!H$5:H$100,$A85,'7a'!$I$5:$I$100)+SUMIF('7b'!H$5:H$100,$A85,'7b'!$I$5:$I$100)+SUMIF('8'!H$5:H$100,$A85,'8'!$I$5:$I$100)+SUMIF('9'!H$5:H$100,$A85,'9'!$I$5:$I$100)+SUMIF('9a'!H$5:H$100,$A85,'9a'!$I$5:$I$100)+SUMIF('9b'!H$5:H$100,$A85,'9b'!$I$5:$I$100)+SUMIF('9c'!H$5:H$100,$A85,'9c'!$I$5:$I$100)+SUMIF('9d'!H$5:H$100,$A85,'9d'!$I$5:$I$100)+SUMIF('9e'!H$5:H$100,$A85,'9e'!$I$5:$I$100)+SUMIF('9f'!H$5:H$100,$A85,'9f'!$I$5:$I$100)+SUMIF('9g'!H$5:H$100,$A85,'9g'!$I$5:$I$100)+SUMIF('9h'!H$5:H$100,$A85,'9h'!$I$5:$I$100)+SUMIF('9 TOTAL'!H$5:H$100,$A85,'9 TOTAL'!$I$5:$I$100) +SUMIF('10'!H$5:H$100,$A85,'10'!$I$5:$I$100)+SUMIF('10a'!H$5:H$100,$A85,'10a'!$I$5:$I$100)+SUMIF('10b'!H$5:H$100,$A85,'10b'!$I$5:$I$100)+SUMIF('10c'!H$5:H$100,$A85,'10c'!$I$5:$I$100)+SUMIF('10d'!H$5:H$100,$A85,'10d'!$I$5:$I$100)+SUMIF('10e'!H$5:H$100,$A85,'10e'!$I$5:$I$100)+SUMIF('10f'!H$5:H$100,$A85,'10f'!$I$5:$I$100)+SUMIF('10g'!H$5:H$100,$A85,'10g'!$I$5:$I$100)+SUMIF('10h'!H$5:H$100,$A85,'10h'!$I$5:$I$100)+SUMIF('10i'!H$5:H$100,$A85,'10i'!$I$5:$I$100)+SUMIF('10j'!H$5:H$100,$A85,'10j'!$I$5:$I$100)+SUMIF('10k'!H$5:H$100,$A85,'10k'!$I$5:$I$100)+SUMIF('10l'!H$5:H$100,$A85,'10l'!$I$5:$I$100)+SUMIF('10m'!H$5:H$100,$A85,'10m'!$I$5:$I$100)+SUMIF('10 TOTAL'!H$5:H$100,$A85,'10 TOTAL'!$I$5:$I$100) -> 0 | S85: 0
A86: 09-224 | B86: State Aid - County Vocational School Debt Service | C86: =SUMIF('4'!H$5:H$100,$A86,'4'!$K$5:$K$100)+SUMIF('4a'!H$5:H$100,$A86,'4a'!$K$5:$K$100)+SUMIF('4b'!H$5:H$100,$A86,'4b'!$K$5:$K$100)+SUMIF('4c'!H$5:H$100,$A86,'4c'!$K$5:$K$100)+SUMIF('5'!H$5:H$100,$A86,'5'!$K$5:$K$100)+SUMIF('6'!H$5:H$100,$A86,'6'!$K$5:$K$100)+SUMIF('7'!H$5:H$100,$A86,'7'!$K$5:$K$100)+SUMIF('7a'!H$5:H$100,$A86,'7a'!$K$5:$K$100)+SUMIF('7b'!H$5:H$100,$A86,'7b'!$K$5:$K$100)+SUMIF('8'!H$5:H$100,$A86,'8'!$K$5:$K$100)+SUMIF('9'!H$5:H$100,$A86,'9'!$K$5:$K$100)+SUMIF('9a'!H$5:H$100,$A86,'9a'!$K$5:$K$100)+SUMIF('9b'!H$5:H$100,$A86,'9b'!$K$5:$K$100)+SUMIF('9c'!H$5:H$100,$A86,'9c'!$K$5:$K$100)+SUMIF('9d'!H$5:H$100,$A86,'9d'!$K$5:$K$100)+SUMIF('9e'!H$5:H$100,$A86,'9e'!$K$5:$K$100)+SUMIF('9f'!H$5:H$100,$A86,'9f'!$K$5:$K$100)+SUMIF('9g'!H$5:H$100,$A86,'9g'!$K$5:$K$100)+SUMIF('9h'!H$5:H$100,$A86,'9h'!$K$5:$K$100)+SUMIF('9 TOTAL'!H$5:H$100,$A86,'9 TOTAL'!$K$5:$K$100) +SUMIF('10'!H$5:H$100,$A86,'10'!$K$5:$K$100)+SUMIF('10a'!H$5:H$100,$A86,'10a'!$K$5:$K$100)+SUMIF('10b'!H$5:H$100,$A86,'10b'!$K$5:$K$100)+SUMIF('10c'!H$5:H$100,$A86,'10c'!$K$5:$K$100)+SUMIF('10d'!H$5:H$100,$A86,'10d'!$K$5:$K$100)+SUMIF('10e'!H$5:H$100,$A86,'10e'!$K$5:$K$100)+SUMIF('10f'!H$5:H$100,$A86,'10f'!$K$5:$K$100)+SUMIF('10g'!H$5:H$100,$A86,'10g'!$K$5:$K$100)+SUMIF('10h'!H$5:H$100,$A86,'10h'!$K$5:$K$100)+SUMIF('10i'!H$5:H$100,$A86,'10i'!$K$5:$K$100)+SUMIF('10j'!H$5:H$100,$A86,'10j'!$K$5:$K$100)+SUMIF('10k'!H$5:H$100,$A86,'10k'!$K$5:$K$100)+SUMIF('10l'!H$5:H$100,$A86,'10l'!$K$5:$K$100)+SUMIF('10m'!H$5:H$100,$A86,'10m'!$K$5:$K$100)+SUMIF('10 TOTAL'!H$5:H$100,$A86,'10 TOTAL'!$K$5:$K$100) -> 0 | D86: =SUMIF('4'!H$5:H$100,$A86,'4'!$I$5:$I$100)+SUMIF('4a'!H$5:H$100,$A86,'4a'!$I$5:$I$100)+SUMIF('4b'!H$5:H$100,$A86,'4b'!$I$5:$I$100)+SUMIF('4c'!H$5:H$100,$A86,'4c'!$I$5:$I$100)+SUMIF('5'!H$5:H$100,$A86,'5'!$I$5:$I$100)+SUMIF('6'!H$5:H$100,$A86,'6'!$I$5:$I$100)+SUMIF('7'!H$5:H$100,$A86,'7'!$I$5:$I$100)+SUMIF('7a'!H$5:H$100,$A86,'7a'!$I$5:$I$100)+SUMIF('7b'!H$5:H$100,$A86,'7b'!$I$5:$I$100)+SUMIF('8'!H$5:H$100,$A86,'8'!$I$5:$I$100)+SUMIF('9'!H$5:H$100,$A86,'9'!$I$5:$I$100)+SUMIF('9a'!H$5:H$100,$A86,'9a'!$I$5:$I$100)+SUMIF('9b'!H$5:H$100,$A86,'9b'!$I$5:$I$100)+SUMIF('9c'!H$5:H$100,$A86,'9c'!$I$5:$I$100)+SUMIF('9d'!H$5:H$100,$A86,'9d'!$I$5:$I$100)+SUMIF('9e'!H$5:H$100,$A86,'9e'!$I$5:$I$100)+SUMIF('9f'!H$5:H$100,$A86,'9f'!$I$5:$I$100)+SUMIF('9g'!H$5:H$100,$A86,'9g'!$I$5:$I$100)+SUMIF('9h'!H$5:H$100,$A86,'9h'!$I$5:$I$100)+SUMIF('9 TOTAL'!H$5:H$100,$A86,'9 TOTAL'!$I$5:$I$100) +SUMIF('10'!H$5:H$100,$A86,'10'!$I$5:$I$100)+SUMIF('10a'!H$5:H$100,$A86,'10a'!$I$5:$I$100)+SUMIF('10b'!H$5:H$100,$A86,'10b'!$I$5:$I$100)+SUMIF('10c'!H$5:H$100,$A86,'10c'!$I$5:$I$100)+SUMIF('10d'!H$5:H$100,$A86,'10d'!$I$5:$I$100)+SUMIF('10e'!H$5:H$100,$A86,'10e'!$I$5:$I$100)+SUMIF('10f'!H$5:H$100,$A86,'10f'!$I$5:$I$100)+SUMIF('10g'!H$5:H$100,$A86,'10g'!$I$5:$I$100)+SUMIF('10h'!H$5:H$100,$A86,'10h'!$I$5:$I$100)+SUMIF('10i'!H$5:H$100,$A86,'10i'!$I$5:$I$100)+SUMIF('10j'!H$5:H$100,$A86,'10j'!$I$5:$I$100)+SUMIF('10k'!H$5:H$100,$A86,'10k'!$I$5:$I$100)+SUMIF('10l'!H$5:H$100,$A86,'10l'!$I$5:$I$100)+SUMIF('10m'!H$5:H$100,$A86,'10m'!$I$5:$I$100)+SUMIF('10 TOTAL'!H$5:H$100,$A86,'10 TOTAL'!$I$5:$I$100) -> 0 | S86: 0
A87: 09-230 | B87: State Aid Without Offsetting Appropriations | C87: =SUMIF('4'!H$5:H$100,$A87,'4'!$K$5:$K$100)+SUMIF('4a'!H$5:H$100,$A87,'4a'!$K$5:$K$100)+SUMIF('4b'!H$5:H$100,$A87,'4b'!$K$5:$K$100)+SUMIF('4c'!H$5:H$100,$A87,'4c'!$K$5:$K$100)+SUMIF('5'!H$5:H$100,$A87,'5'!$K$5:$K$100)+SUMIF('6'!H$5:H$100,$A87,'6'!$K$5:$K$100)+SUMIF('7'!H$5:H$100,$A87,'7'!$K$5:$K$100)+SUMIF('7a'!H$5:H$100,$A87,'7a'!$K$5:$K$100)+SUMIF('7b'!H$5:H$100,$A87,'7b'!$K$5:$K$100)+SUMIF('8'!H$5:H$100,$A87,'8'!$K$5:$K$100)+SUMIF('9'!H$5:H$100,$A87,'9'!$K$5:$K$100)+SUMIF('9a'!H$5:H$100,$A87,'9a'!$K$5:$K$100)+SUMIF('9b'!H$5:H$100,$A87,'9b'!$K$5:$K$100)+SUMIF('9c'!H$5:H$100,$A87,'9c'!$K$5:$K$100)+SUMIF('9d'!H$5:H$100,$A87,'9d'!$K$5:$K$100)+SUMIF('9e'!H$5:H$100,$A87,'9e'!$K$5:$K$100)+SUMIF('9f'!H$5:H$100,$A87,'9f'!$K$5:$K$100)+SUMIF('9g'!H$5:H$100,$A87,'9g'!$K$5:$K$100)+SUMIF('9h'!H$5:H$100,$A87,'9h'!$K$5:$K$100)+SUMIF('9 TOTAL'!H$5:H$100,$A87,'9 TOTAL'!$K$5:$K$100) +SUMIF('10'!H$5:H$100,$A87,'10'!$K$5:$K$100)+SUMIF('10a'!H$5:H$100,$A87,'10a'!$K$5:$K$100)+SUMIF('10b'!H$5:H$100,$A87,'10b'!$K$5:$K$100)+SUMIF('10c'!H$5:H$100,$A87,'10c'!$K$5:$K$100)+SUMIF('10d'!H$5:H$100,$A87,'10d'!$K$5:$K$100)+SUMIF('10e'!H$5:H$100,$A87,'10e'!$K$5:$K$100)+SUMIF('10f'!H$5:H$100,$A87,'10f'!$K$5:$K$100)+SUMIF('10g'!H$5:H$100,$A87,'10g'!$K$5:$K$100)+SUMIF('10h'!H$5:H$100,$A87,'10h'!$K$5:$K$100)+SUMIF('10i'!H$5:H$100,$A87,'10i'!$K$5:$K$100)+SUMIF('10j'!H$5:H$100,$A87,'10j'!$K$5:$K$100)+SUMIF('10k'!H$5:H$100,$A87,'10k'!$K$5:$K$100)+SUMIF('10l'!H$5:H$100,$A87,'10l'!$K$5:$K$100)+SUMIF('10m'!H$5:H$100,$A87,'10m'!$K$5:$K$100)+SUMIF('10 TOTAL'!H$5:H$100,$A87,'10 TOTAL'!$K$5:$K$100) -> 0 | D87: =SUMIF('4'!H$5:H$100,$A87,'4'!$I$5:$I$100)+SUMIF('4a'!H$5:H$100,$A87,'4a'!$I$5:$I$100)+SUMIF('4b'!H$5:H$100,$A87,'4b'!$I$5:$I$100)+SUMIF('4c'!H$5:H$100,$A87,'4c'!$I$5:$I$100)+SUMIF('5'!H$5:H$100,$A87,'5'!$I$5:$I$100)+SUMIF('6'!H$5:H$100,$A87,'6'!$I$5:$I$100)+SUMIF('7'!H$5:H$100,$A87,'7'!$I$5:$I$100)+SUMIF('7a'!H$5:H$100,$A87,'7a'!$I$5:$I$100)+SUMIF('7b'!H$5:H$100,$A87,'7b'!$I$5:$I$100)+SUMIF('8'!H$5:H$100,$A87,'8'!$I$5:$I$100)+SUMIF('9'!H$5:H$100,$A87,'9'!$I$5:$I$100)+SUMIF('9a'!H$5:H$100,$A87,'9a'!$I$5:$I$100)+SUMIF('9b'!H$5:H$100,$A87,'9b'!$I$5:$I$100)+SUMIF('9c'!H$5:H$100,$A87,'9c'!$I$5:$I$100)+SUMIF('9d'!H$5:H$100,$A87,'9d'!$I$5:$I$100)+SUMIF('9e'!H$5:H$100,$A87,'9e'!$I$5:$I$100)+SUMIF('9f'!H$5:H$100,$A87,'9f'!$I$5:$I$100)+SUMIF('9g'!H$5:H$100,$A87,'9g'!$I$5:$I$100)+SUMIF('9h'!H$5:H$100,$A87,'9h'!$I$5:$I$100)+SUMIF('9 TOTAL'!H$5:H$100,$A87,'9 TOTAL'!$I$5:$I$100) +SUMIF('10'!H$5:H$100,$A87,'10'!$I$5:$I$100)+SUMIF('10a'!H$5:H$100,$A87,'10a'!$I$5:$I$100)+SUMIF('10b'!H$5:H$100,$A87,'10b'!$I$5:$I$100)+SUMIF('10c'!H$5:H$100,$A87,'10c'!$I$5:$I$100)+SUMIF('10d'!H$5:H$100,$A87,'10d'!$I$5:$I$100)+SUMIF('10e'!H$5:H$100,$A87,'10e'!$I$5:$I$100)+SUMIF('10f'!H$5:H$100,$A87,'10f'!$I$5:$I$100)+SUMIF('10g'!H$5:H$100,$A87,'10g'!$I$5:$I$100)+SUMIF('10h'!H$5:H$100,$A87,'10h'!$I$5:$I$100)+SUMIF('10i'!H$5:H$100,$A87,'10i'!$I$5:$I$100)+SUMIF('10j'!H$5:H$100,$A87,'10j'!$I$5:$I$100)+SUMIF('10k'!H$5:H$100,$A87,'10k'!$I$5:$I$100)+SUMIF('10l'!H$5:H$100,$A87,'10l'!$I$5:$I$100)+SUMIF('10m'!H$5:H$100,$A87,'10m'!$I$5:$I$100)+SUMIF('10 TOTAL'!H$5:H$100,$A87,'10 TOTAL'!$I$5:$I$100) -> 0 | S87: 0
B88: ="Total- "&A69 -> Total- State Aid | C88: =SUM(C84:C87,C80,C70:C79) -> 86,497 | D88: =SUM(D84:D87,D80,D70:D79) -> 86,497
A90: Uniform Construction Code Revenue
A91: 08-160 | B91: Uniform Construction Code Fees | C91: =SUMIF('4'!H$5:H$100,$A91,'4'!$K$5:$K$100)+SUMIF('4a'!H$5:H$100,$A91,'4a'!$K$5:$K$100)+SUMIF('4b'!H$5:H$100,$A91,'4b'!$K$5:$K$100)+SUMIF('4c'!H$5:H$100,$A91,'4c'!$K$5:$K$100)+SUMIF('5'!H$5:H$100,$A91,'5'!$K$5:$K$100)+SUMIF('6'!H$5:H$100,$A91,'6'!$K$5:$K$100)+SUMIF('7'!H$5:H$100,$A91,'7'!$K$5:$K$100)+SUMIF('7a'!H$5:H$100,$A91,'7a'!$K$5:$K$100)+SUMIF('7b'!H$5:H$100,$A91,'7b'!$K$5:$K$100)+SUMIF('8'!H$5:H$100,$A91,'8'!$K$5:$K$100)+SUMIF('9'!H$5:H$100,$A91,'9'!$K$5:$K$100)+SUMIF('9a'!H$5:H$100,$A91,'9a'!$K$5:$K$100)+SUMIF('9b'!H$5:H$100,$A91,'9b'!$K$5:$K$100)+SUMIF('9c'!H$5:H$100,$A91,'9c'!$K$5:$K$100)+SUMIF('9d'!H$5:H$100,$A91,'9d'!$K$5:$K$100)+SUMIF('9e'!H$5:H$100,$A91,'9e'!$K$5:$K$100)+SUMIF('9f'!H$5:H$100,$A91,'9f'!$K$5:$K$100)+SUMIF('9g'!H$5:H$100,$A91,'9g'!$K$5:$K$100)+SUMIF('9h'!H$5:H$100,$A91,'9h'!$K$5:$K$100)+SUMIF('9 TOTAL'!H$5:H$100,$A91,'9 TOTAL'!$K$5:$K$100) +SUMIF('10'!H$5:H$100,$A91,'10'!$K$5:$K$100)+SUMIF('10a'!H$5:H$100,$A91,'10a'!$K$5:$K$100)+SUMIF('10b'!H$5:H$100,$A91,'10b'!$K$5:$K$100)+SUMIF('10c'!H$5:H$100,$A91,'10c'!$K$5:$K$100)+SUMIF('10d'!H$5:H$100,$A91,'10d'!$K$5:$K$100)+SUMIF('10e'!H$5:H$100,$A91,'10e'!$K$5:$K$100)+SUMIF('10f'!H$5:H$100,$A91,'10f'!$K$5:$K$100)+SUMIF('10g'!H$5:H$100,$A91,'10g'!$K$5:$K$100)+SUMIF('10h'!H$5:H$100,$A91,'10h'!$K$5:$K$100)+SUMIF('10i'!H$5:H$100,$A91,'10i'!$K$5:$K$100)+SUMIF('10j'!H$5:H$100,$A91,'10j'!$K$5:$K$100)+SUMIF('10k'!H$5:H$100,$A91,'10k'!$K$5:$K$100)+SUMIF('10l'!H$5:H$100,$A91,'10l'!$K$5:$K$100)+SUMIF('10m'!H$5:H$100,$A91,'10m'!$K$5:$K$100)+SUMIF('10 TOTAL'!H$5:H$100,$A91,'10 TOTAL'!$K$5:$K$100) -> 0 | D91: =SUMIF('4'!H$5:H$100,$A91,'4'!$I$5:$I$100)+SUMIF('4a'!H$5:H$100,$A91,'4a'!$I$5:$I$100)+SUMIF('4b'!H$5:H$100,$A91,'4b'!$I$5:$I$100)+SUMIF('4c'!H$5:H$100,$A91,'4c'!$I$5:$I$100)+SUMIF('5'!H$5:H$100,$A91,'5'!$I$5:$I$100)+SUMIF('6'!H$5:H$100,$A91,'6'!$I$5:$I$100)+SUMIF('7'!H$5:H$100,$A91,'7'!$I$5:$I$100)+SUMIF('7a'!H$5:H$100,$A91,'7a'!$I$5:$I$100)+SUMIF('7b'!H$5:H$100,$A91,'7b'!$I$5:$I$100)+SUMIF('8'!H$5:H$100,$A91,'8'!$I$5:$I$100)+SUMIF('9'!H$5:H$100,$A91,'9'!$I$5:$I$100)+SUMIF('9a'!H$5:H$100,$A91,'9a'!$I$5:$I$100)+SUMIF('9b'!H$5:H$100,$A91,'9b'!$I$5:$I$100)+SUMIF('9c'!H$5:H$100,$A91,'9c'!$I$5:$I$100)+SUMIF('9d'!H$5:H$100,$A91,'9d'!$I$5:$I$100)+SUMIF('9e'!H$5:H$100,$A91,'9e'!$I$5:$I$100)+SUMIF('9f'!H$5:H$100,$A91,'9f'!$I$5:$I$100)+SUMIF('9g'!H$5:H$100,$A91,'9g'!$I$5:$I$100)+SUMIF('9h'!H$5:H$100,$A91,'9h'!$I$5:$I$100)+SUMIF('9 TOTAL'!H$5:H$100,$A91,'9 TOTAL'!$I$5:$I$100) +SUMIF('10'!H$5:H$100,$A91,'10'!$I$5:$I$100)+SUMIF('10a'!H$5:H$100,$A91,'10a'!$I$5:$I$100)+SUMIF('10b'!H$5:H$100,$A91,'10b'!$I$5:$I$100)+SUMIF('10c'!H$5:H$100,$A91,'10c'!$I$5:$I$100)+SUMIF('10d'!H$5:H$100,$A91,'10d'!$I$5:$I$100)+SUMIF('10e'!H$5:H$100,$A91,'10e'!$I$5:$I$100)+SUMIF('10f'!H$5:H$100,$A91,'10f'!$I$5:$I$100)+SUMIF('10g'!H$5:H$100,$A91,'10g'!$I$5:$I$100)+SUMIF('10h'!H$5:H$100,$A91,'10h'!$I$5:$I$100)+SUMIF('10i'!H$5:H$100,$A91,'10i'!$I$5:$I$100)+SUMIF('10j'!H$5:H$100,$A91,'10j'!$I$5:$I$100)+SUMIF('10k'!H$5:H$100,$A91,'10k'!$I$5:$I$100)+SUMIF('10l'!H$5:H$100,$A91,'10l'!$I$5:$I$100)+SUMIF('10m'!H$5:H$100,$A91,'10m'!$I$5:$I$100)+SUMIF('10 TOTAL'!H$5:H$100,$A91,'10 TOTAL'!$I$5:$I$100) -> 0 | S91: =SUM(C91:J91) -> 0
A92: 08-161 | B92: Additional Uniform Construction Code Fees | C92: =SUMIF('4'!H$5:H$100,$A92,'4'!$K$5:$K$100)+SUMIF('4a'!H$5:H$100,$A92,'4a'!$K$5:$K$100)+SUMIF('4b'!H$5:H$100,$A92,'4b'!$K$5:$K$100)+SUMIF('4c'!H$5:H$100,$A92,'4c'!$K$5:$K$100)+SUMIF('5'!H$5:H$100,$A92,'5'!$K$5:$K$100)+SUMIF('6'!H$5:H$100,$A92,'6'!$K$5:$K$100)+SUMIF('7'!H$5:H$100,$A92,'7'!$K$5:$K$100)+SUMIF('7a'!H$5:H$100,$A92,'7a'!$K$5:$K$100)+SUMIF('7b'!H$5:H$100,$A92,'7b'!$K$5:$K$100)+SUMIF('8'!H$5:H$100,$A92,'8'!$K$5:$K$100)+SUMIF('9'!H$5:H$100,$A92,'9'!$K$5:$K$100)+SUMIF('9a'!H$5:H$100,$A92,'9a'!$K$5:$K$100)+SUMIF('9b'!H$5:H$100,$A92,'9b'!$K$5:$K$100)+SUMIF('9c'!H$5:H$100,$A92,'9c'!$K$5:$K$100)+SUMIF('9d'!H$5:H$100,$A92,'9d'!$K$5:$K$100)+SUMIF('9e'!H$5:H$100,$A92,'9e'!$K$5:$K$100)+SUMIF('9f'!H$5:H$100,$A92,'9f'!$K$5:$K$100)+SUMIF('9g'!H$5:H$100,$A92,'9g'!$K$5:$K$100)+SUMIF('9h'!H$5:H$100,$A92,'9h'!$K$5:$K$100)+SUMIF('9 TOTAL'!H$5:H$100,$A92,'9 TOTAL'!$K$5:$K$100) +SUMIF('10'!H$5:H$100,$A92,'10'!$K$5:$K$100)+SUMIF('10a'!H$5:H$100,$A92,'10a'!$K$5:$K$100)+SUMIF('10b'!H$5:H$100,$A92,'10b'!$K$5:$K$100)+SUMIF('10c'!H$5:H$100,$A92,'10c'!$K$5:$K$100)+SUMIF('10d'!H$5:H$100,$A92,'10d'!$K$5:$K$100)+SUMIF('10e'!H$5:H$100,$A92,'10e'!$K$5:$K$100)+SUMIF('10f'!H$5:H$100,$A92,'10f'!$K$5:$K$100)+SUMIF('10g'!H$5:H$100,$A92,'10g'!$K$5:$K$100)+SUMIF('10h'!H$5:H$100,$A92,'10h'!$K$5:$K$100)+SUMIF('10i'!H$5:H$100,$A92,'10i'!$K$5:$K$100)+SUMIF('10j'!H$5:H$100,$A92,'10j'!$K$5:$K$100)+SUMIF('10k'!H$5:H$100,$A92,'10k'!$K$5:$K$100)+SUMIF('10l'!H$5:H$100,$A92,'10l'!$K$5:$K$100)+SUMIF('10m'!H$5:H$100,$A92,'10m'!$K$5:$K$100)+SUMIF('10 TOTAL'!H$5:H$100,$A92,'10 TOTAL'!$K$5:$K$100) -> 0 | D92: =SUMIF('4'!H$5:H$100,$A92,'4'!$I$5:$I$100)+SUMIF('4a'!H$5:H$100,$A92,'4a'!$I$5:$I$100)+SUMIF('4b'!H$5:H$100,$A92,'4b'!$I$5:$I$100)+SUMIF('4c'!H$5:H$100,$A92,'4c'!$I$5:$I$100)+SUMIF('5'!H$5:H$100,$A92,'5'!$I$5:$I$100)+SUMIF('6'!H$5:H$100,$A92,'6'!$I$5:$I$100)+SUMIF('7'!H$5:H$100,$A92,'7'!$I$5:$I$100)+SUMIF('7a'!H$5:H$100,$A92,'7a'!$I$5:$I$100)+SUMIF('7b'!H$5:H$100,$A92,'7b'!$I$5:$I$100)+SUMIF('8'!H$5:H$100,$A92,'8'!$I$5:$I$100)+SUMIF('9'!H$5:H$100,$A92,'9'!$I$5:$I$100)+SUMIF('9a'!H$5:H$100,$A92,'9a'!$I$5:$I$100)+SUMIF('9b'!H$5:H$100,$A92,'9b'!$I$5:$I$100)+SUMIF('9c'!H$5:H$100,$A92,'9c'!$I$5:$I$100)+SUMIF('9d'!H$5:H$100,$A92,'9d'!$I$5:$I$100)+SUMIF('9e'!H$5:H$100,$A92,'9e'!$I$5:$I$100)+SUMIF('9f'!H$5:H$100,$A92,'9f'!$I$5:$I$100)+SUMIF('9g'!H$5:H$100,$A92,'9g'!$I$5:$I$100)+SUMIF('9h'!H$5:H$100,$A92,'9h'!$I$5:$I$100)+SUMIF('9 TOTAL'!H$5:H$100,$A92,'9 TOTAL'!$I$5:$I$100) +SUMIF('10'!H$5:H$100,$A92,'10'!$I$5:$I$100)+SUMIF('10a'!H$5:H$100,$A92,'10a'!$I$5:$I$100)+SUMIF('10b'!H$5:H$100,$A92,'10b'!$I$5:$I$100)+SUMIF('10c'!H$5:H$100,$A92,'10c'!$I$5:$I$100)+SUMIF('10d'!H$5:H$100,$A92,'10d'!$I$5:$I$100)+SUMIF('10e'!H$5:H$100,$A92,'10e'!$I$5:$I$100)+SUMIF('10f'!H$5:H$100,$A92,'10f'!$I$5:$I$100)+SUMIF('10g'!H$5:H$100,$A92,'10g'!$I$5:$I$100)+SUMIF('10h'!H$5:H$100,$A92,'10h'!$I$5:$I$100)+SUMIF('10i'!H$5:H$100,$A92,'10i'!$I$5:$I$100)+SUMIF('10j'!H$5:H$100,$A92,'10j'!$I$5:$I$100)+SUMIF('10k'!H$5:H$100,$A92,'10k'!$I$5:$I$100)+SUMIF('10l'!H$5:H$100,$A92,'10l'!$I$5:$I$100)+SUMIF('10m'!H$5:H$100,$A92,'10m'!$I$5:$I$100)+SUMIF('10 TOTAL'!H$5:H$100,$A92,'10 TOTAL'!$I$5:$I$100) -> 0 | S92: 0
A93: 08-162 | B93: Other Uniform Construction Code Revenue | C93: =SUMIF('4'!H$5:H$100,$A93,'4'!$K$5:$K$100)+SUMIF('4a'!H$5:H$100,$A93,'4a'!$K$5:$K$100)+SUMIF('4b'!H$5:H$100,$A93,'4b'!$K$5:$K$100)+SUMIF('4c'!H$5:H$100,$A93,'4c'!$K$5:$K$100)+SUMIF('5'!H$5:H$100,$A93,'5'!$K$5:$K$100)+SUMIF('6'!H$5:H$100,$A93,'6'!$K$5:$K$100)+SUMIF('7'!H$5:H$100,$A93,'7'!$K$5:$K$100)+SUMIF('7a'!H$5:H$100,$A93,'7a'!$K$5:$K$100)+SUMIF('7b'!H$5:H$100,$A93,'7b'!$K$5:$K$100)+SUMIF('8'!H$5:H$100,$A93,'8'!$K$5:$K$100)+SUMIF('9'!H$5:H$100,$A93,'9'!$K$5:$K$100)+SUMIF('9a'!H$5:H$100,$A93,'9a'!$K$5:$K$100)+SUMIF('9b'!H$5:H$100,$A93,'9b'!$K$5:$K$100)+SUMIF('9c'!H$5:H$100,$A93,'9c'!$K$5:$K$100)+SUMIF('9d'!H$5:H$100,$A93,'9d'!$K$5:$K$100)+SUMIF('9e'!H$5:H$100,$A93,'9e'!$K$5:$K$100)+SUMIF('9f'!H$5:H$100,$A93,'9f'!$K$5:$K$100)+SUMIF('9g'!H$5:H$100,$A93,'9g'!$K$5:$K$100)+SUMIF('9h'!H$5:H$100,$A93,'9h'!$K$5:$K$100)+SUMIF('9 TOTAL'!H$5:H$100,$A93,'9 TOTAL'!$K$5:$K$100) +SUMIF('10'!H$5:H$100,$A93,'10'!$K$5:$K$100)+SUMIF('10a'!H$5:H$100,$A93,'10a'!$K$5:$K$100)+SUMIF('10b'!H$5:H$100,$A93,'10b'!$K$5:$K$100)+SUMIF('10c'!H$5:H$100,$A93,'10c'!$K$5:$K$100)+SUMIF('10d'!H$5:H$100,$A93,'10d'!$K$5:$K$100)+SUMIF('10e'!H$5:H$100,$A93,'10e'!$K$5:$K$100)+SUMIF('10f'!H$5:H$100,$A93,'10f'!$K$5:$K$100)+SUMIF('10g'!H$5:H$100,$A93,'10g'!$K$5:$K$100)+SUMIF('10h'!H$5:H$100,$A93,'10h'!$K$5:$K$100)+SUMIF('10i'!H$5:H$100,$A93,'10i'!$K$5:$K$100)+SUMIF('10j'!H$5:H$100,$A93,'10j'!$K$5:$K$100)+SUMIF('10k'!H$5:H$100,$A93,'10k'!$K$5:$K$100)+SUMIF('10l'!H$5:H$100,$A93,'10l'!$K$5:$K$100)+SUMIF('10m'!H$5:H$100,$A93,'10m'!$K$5:$K$100)+SUMIF('10 TOTAL'!H$5:H$100,$A93,'10 TOTAL'!$K$5:$K$100) -> 0 | D93: =SUMIF('4'!H$5:H$100,$A93,'4'!$I$5:$I$100)+SUMIF('4a'!H$5:H$100,$A93,'4a'!$I$5:$I$100)+SUMIF('4b'!H$5:H$100,$A93,'4b'!$I$5:$I$100)+SUMIF('4c'!H$5:H$100,$A93,'4c'!$I$5:$I$100)+SUMIF('5'!H$5:H$100,$A93,'5'!$I$5:$I$100)+SUMIF('6'!H$5:H$100,$A93,'6'!$I$5:$I$100)+SUMIF('7'!H$5:H$100,$A93,'7'!$I$5:$I$100)+SUMIF('7a'!H$5:H$100,$A93,'7a'!$I$5:$I$100)+SUMIF('7b'!H$5:H$100,$A93,'7b'!$I$5:$I$100)+SUMIF('8'!H$5:H$100,$A93,'8'!$I$5:$I$100)+SUMIF('9'!H$5:H$100,$A93,'9'!$I$5:$I$100)+SUMIF('9a'!H$5:H$100,$A93,'9a'!$I$5:$I$100)+SUMIF('9b'!H$5:H$100,$A93,'9b'!$I$5:$I$100)+SUMIF('9c'!H$5:H$100,$A93,'9c'!$I$5:$I$100)+SUMIF('9d'!H$5:H$100,$A93,'9d'!$I$5:$I$100)+SUMIF('9e'!H$5:H$100,$A93,'9e'!$I$5:$I$100)+SUMIF('9f'!H$5:H$100,$A93,'9f'!$I$5:$I$100)+SUMIF('9g'!H$5:H$100,$A93,'9g'!$I$5:$I$100)+SUMIF('9h'!H$5:H$100,$A93,'9h'!$I$5:$I$100)+SUMIF('9 TOTAL'!H$5:H$100,$A93,'9 TOTAL'!$I$5:$I$100) +SUMIF('10'!H$5:H$100,$A93,'10'!$I$5:$I$100)+SUMIF('10a'!H$5:H$100,$A93,'10a'!$I$5:$I$100)+SUMIF('10b'!H$5:H$100,$A93,'10b'!$I$5:$I$100)+SUMIF('10c'!H$5:H$100,$A93,'10c'!$I$5:$I$100)+SUMIF('10d'!H$5:H$100,$A93,'10d'!$I$5:$I$100)+SUMIF('10e'!H$5:H$100,$A93,'10e'!$I$5:$I$100)+SUMIF('10f'!H$5:H$100,$A93,'10f'!$I$5:$I$100)+SUMIF('10g'!H$5:H$100,$A93,'10g'!$I$5:$I$100)+SUMIF('10h'!H$5:H$100,$A93,'10h'!$I$5:$I$100)+SUMIF('10i'!H$5:H$100,$A93,'10i'!$I$5:$I$100)+SUMIF('10j'!H$5:H$100,$A93,'10j'!$I$5:$I$100)+SUMIF('10k'!H$5:H$100,$A93,'10k'!$I$5:$I$100)+SUMIF('10l'!H$5:H$100,$A93,'10l'!$I$5:$I$100)+SUMIF('10m'!H$5:H$100,$A93,'10m'!$I$5:$I$100)+SUMIF('10 TOTAL'!H$5:H$100,$A93,'10 TOTAL'!$I$5:$I$100) -> 0 | S93: 0
B94: ="Total- "&A90 -> Total- Uniform Construction Code Revenue | C94: =SUM(C91:C93) -> 0 | D94: =SUM(D91:D93) -> 0
A96: Shared Services Revenue
A97: 11-102 | B97: Shared Services - Tax Assessor | C97: =SUMIF('4'!H$5:H$100,$A97,'4'!$K$5:$K$100)+SUMIF('4a'!H$5:H$100,$A97,'4a'!$K$5:$K$100)+SUMIF('4b'!H$5:H$100,$A97,'4b'!$K$5:$K$100)+SUMIF('4c'!H$5:H$100,$A97,'4c'!$K$5:$K$100)+SUMIF('5'!H$5:H$100,$A97,'5'!$K$5:$K$100)+SUMIF('6'!H$5:H$100,$A97,'6'!$K$5:$K$100)+SUMIF('7'!H$5:H$100,$A97,'7'!$K$5:$K$100)+SUMIF('7a'!H$5:H$100,$A97,'7a'!$K$5:$K$100)+SUMIF('7b'!H$5:H$100,$A97,'7b'!$K$5:$K$100)+SUMIF('8'!H$5:H$100,$A97,'8'!$K$5:$K$100)+SUMIF('9'!H$5:H$100,$A97,'9'!$K$5:$K$100)+SUMIF('9a'!H$5:H$100,$A97,'9a'!$K$5:$K$100)+SUMIF('9b'!H$5:H$100,$A97,'9b'!$K$5:$K$100)+SUMIF('9c'!H$5:H$100,$A97,'9c'!$K$5:$K$100)+SUMIF('9d'!H$5:H$100,$A97,'9d'!$K$5:$K$100)+SUMIF('9e'!H$5:H$100,$A97,'9e'!$K$5:$K$100)+SUMIF('9f'!H$5:H$100,$A97,'9f'!$K$5:$K$100)+SUMIF('9g'!H$5:H$100,$A97,'9g'!$K$5:$K$100)+SUMIF('9h'!H$5:H$100,$A97,'9h'!$K$5:$K$100)+SUMIF('9 TOTAL'!H$5:H$100,$A97,'9 TOTAL'!$K$5:$K$100) +SUMIF('10'!H$5:H$100,$A97,'10'!$K$5:$K$100)+SUMIF('10a'!H$5:H$100,$A97,'10a'!$K$5:$K$100)+SUMIF('10b'!H$5:H$100,$A97,'10b'!$K$5:$K$100)+SUMIF('10c'!H$5:H$100,$A97,'10c'!$K$5:$K$100)+SUMIF('10d'!H$5:H$100,$A97,'10d'!$K$5:$K$100)+SUMIF('10e'!H$5:H$100,$A97,'10e'!$K$5:$K$100)+SUMIF('10f'!H$5:H$100,$A97,'10f'!$K$5:$K$100)+SUMIF('10g'!H$5:H$100,$A97,'10g'!$K$5:$K$100)+SUMIF('10h'!H$5:H$100,$A97,'10h'!$K$5:$K$100)+SUMIF('10i'!H$5:H$100,$A97,'10i'!$K$5:$K$100)+SUMIF('10j'!H$5:H$100,$A97,'10j'!$K$5:$K$100)+SUMIF('10k'!H$5:H$100,$A97,'10k'!$K$5:$K$100)+SUMIF('10l'!H$5:H$100,$A97,'10l'!$K$5:$K$100)+SUMIF('10m'!H$5:H$100,$A97,'10m'!$K$5:$K$100)+SUMIF('10 TOTAL'!H$5:H$100,$A97,'10 TOTAL'!$K$5:$K$100) -> 0 | D97: =SUMIF('4'!H$5:H$100,$A97,'4'!$I$5:$I$100)+SUMIF('4a'!H$5:H$100,$A97,'4a'!$I$5:$I$100)+SUMIF('4b'!H$5:H$100,$A97,'4b'!$I$5:$I$100)+SUMIF('4c'!H$5:H$100,$A97,'4c'!$I$5:$I$100)+SUMIF('5'!H$5:H$100,$A97,'5'!$I$5:$I$100)+SUMIF('6'!H$5:H$100,$A97,'6'!$I$5:$I$100)+SUMIF('7'!H$5:H$100,$A97,'7'!$I$5:$I$100)+SUMIF('7a'!H$5:H$100,$A97,'7a'!$I$5:$I$100)+SUMIF('7b'!H$5:H$100,$A97,'7b'!$I$5:$I$100)+SUMIF('8'!H$5:H$100,$A97,'8'!$I$5:$I$100)+SUMIF('9'!H$5:H$100,$A97,'9'!$I$5:$I$100)+SUMIF('9a'!H$5:H$100,$A97,'9a'!$I$5:$I$100)+SUMIF('9b'!H$5:H$100,$A97,'9b'!$I$5:$I$100)+SUMIF('9c'!H$5:H$100,$A97,'9c'!$I$5:$I$100)+SUMIF('9d'!H$5:H$100,$A97,'9d'!$I$5:$I$100)+SUMIF('9e'!H$5:H$100,$A97,'9e'!$I$5:$I$100)+SUMIF('9f'!H$5:H$100,$A97,'9f'!$I$5:$I$100)+SUMIF('9g'!H$5:H$100,$A97,'9g'!$I$5:$I$100)+SUMIF('9h'!H$5:H$100,$A97,'9h'!$I$5:$I$100)+SUMIF('9 TOTAL'!H$5:H$100,$A97,'9 TOTAL'!$I$5:$I$100) +SUMIF('10'!H$5:H$100,$A97,'10'!$I$5:$I$100)+SUMIF('10a'!H$5:H$100,$A97,'10a'!$I$5:$I$100)+SUMIF('10b'!H$5:H$100,$A97,'10b'!$I$5:$I$100)+SUMIF('10c'!H$5:H$100,$A97,'10c'!$I$5:$I$100)+SUMIF('10d'!H$5:H$100,$A97,'10d'!$I$5:$I$100)+SUMIF('10e'!H$5:H$100,$A97,'10e'!$I$5:$I$100)+SUMIF('10f'!H$5:H$100,$A97,'10f'!$I$5:$I$100)+SUMIF('10g'!H$5:H$100,$A97,'10g'!$I$5:$I$100)+SUMIF('10h'!H$5:H$100,$A97,'10h'!$I$5:$I$100)+SUMIF('10i'!H$5:H$100,$A97,'10i'!$I$5:$I$100)+SUMIF('10j'!H$5:H$100,$A97,'10j'!$I$5:$I$100)+SUMIF('10k'!H$5:H$100,$A97,'10k'!$I$5:$I$100)+SUMIF('10l'!H$5:H$100,$A97,'10l'!$I$5:$I$100)+SUMIF('10m'!H$5:H$100,$A97,'10m'!$I$5:$I$100)+SUMIF('10 TOTAL'!H$5:H$100,$A97,'10 TOTAL'!$I$5:$I$100) -> 0 | S97: 0
A98: 11-103 | B98: Shared Services - Tax Collector | C98: =SUMIF('4'!H$5:H$100,$A98,'4'!$K$5:$K$100)+SUMIF('4a'!H$5:H$100,$A98,'4a'!$K$5:$K$100)+SUMIF('4b'!H$5:H$100,$A98,'4b'!$K$5:$K$100)+SUMIF('4c'!H$5:H$100,$A98,'4c'!$K$5:$K$100)+SUMIF('5'!H$5:H$100,$A98,'5'!$K$5:$K$100)+SUMIF('6'!H$5:H$100,$A98,'6'!$K$5:$K$100)+SUMIF('7'!H$5:H$100,$A98,'7'!$K$5:$K$100)+SUMIF('7a'!H$5:H$100,$A98,'7a'!$K$5:$K$100)+SUMIF('7b'!H$5:H$100,$A98,'7b'!$K$5:$K$100)+SUMIF('8'!H$5:H$100,$A98,'8'!$K$5:$K$100)+SUMIF('9'!H$5:H$100,$A98,'9'!$K$5:$K$100)+SUMIF('9a'!H$5:H$100,$A98,'9a'!$K$5:$K$100)+SUMIF('9b'!H$5:H$100,$A98,'9b'!$K$5:$K$100)+SUMIF('9c'!H$5:H$100,$A98,'9c'!$K$5:$K$100)+SUMIF('9d'!H$5:H$100,$A98,'9d'!$K$5:$K$100)+SUMIF('9e'!H$5:H$100,$A98,'9e'!$K$5:$K$100)+SUMIF('9f'!H$5:H$100,$A98,'9f'!$K$5:$K$100)+SUMIF('9g'!H$5:H$100,$A98,'9g'!$K$5:$K$100)+SUMIF('9h'!H$5:H$100,$A98,'9h'!$K$5:$K$100)+SUMIF('9 TOTAL'!H$5:H$100,$A98,'9 TOTAL'!$K$5:$K$100) +SUMIF('10'!H$5:H$100,$A98,'10'!$K$5:$K$100)+SUMIF('10a'!H$5:H$100,$A98,'10a'!$K$5:$K$100)+SUMIF('10b'!H$5:H$100,$A98,'10b'!$K$5:$K$100)+SUMIF('10c'!H$5:H$100,$A98,'10c'!$K$5:$K$100)+SUMIF('10d'!H$5:H$100,$A98,'10d'!$K$5:$K$100)+SUMIF('10e'!H$5:H$100,$A98,'10e'!$K$5:$K$100)+SUMIF('10f'!H$5:H$100,$A98,'10f'!$K$5:$K$100)+SUMIF('10g'!H$5:H$100,$A98,'10g'!$K$5:$K$100)+SUMIF('10h'!H$5:H$100,$A98,'10h'!$K$5:$K$100)+SUMIF('10i'!H$5:H$100,$A98,'10i'!$K$5:$K$100)+SUMIF('10j'!H$5:H$100,$A98,'10j'!$K$5:$K$100)+SUMIF('10k'!H$5:H$100,$A98,'10k'!$K$5:$K$100)+SUMIF('10l'!H$5:H$100,$A98,'10l'!$K$5:$K$100)+SUMIF('10m'!H$5:H$100,$A98,'10m'!$K$5:$K$100)+SUMIF('10 TOTAL'!H$5:H$100,$A98,'10 TOTAL'!$K$5:$K$100) -> 0 | D98: =SUMIF('4'!H$5:H$100,$A98,'4'!$I$5:$I$100)+SUMIF('4a'!H$5:H$100,$A98,'4a'!$I$5:$I$100)+SUMIF('4b'!H$5:H$100,$A98,'4b'!$I$5:$I$100)+SUMIF('4c'!H$5:H$100,$A98,'4c'!$I$5:$I$100)+SUMIF('5'!H$5:H$100,$A98,'5'!$I$5:$I$100)+SUMIF('6'!H$5:H$100,$A98,'6'!$I$5:$I$100)+SUMIF('7'!H$5:H$100,$A98,'7'!$I$5:$I$100)+SUMIF('7a'!H$5:H$100,$A98,'7a'!$I$5:$I$100)+SUMIF('7b'!H$5:H$100,$A98,'7b'!$I$5:$I$100)+SUMIF('8'!H$5:H$100,$A98,'8'!$I$5:$I$100)+SUMIF('9'!H$5:H$100,$A98,'9'!$I$5:$I$100)+SUMIF('9a'!H$5:H$100,$A98,'9a'!$I$5:$I$100)+SUMIF('9b'!H$5:H$100,$A98,'9b'!$I$5:$I$100)+SUMIF('9c'!H$5:H$100,$A98,'9c'!$I$5:$I$100)+SUMIF('9d'!H$5:H$100,$A98,'9d'!$I$5:$I$100)+SUMIF('9e'!H$5:H$100,$A98,'9e'!$I$5:$I$100)+SUMIF('9f'!H$5:H$100,$A98,'9f'!$I$5:$I$100)+SUMIF('9g'!H$5:H$100,$A98,'9g'!$I$5:$I$100)+SUMIF('9h'!H$5:H$100,$A98,'9h'!$I$5:$I$100)+SUMIF('9 TOTAL'!H$5:H$100,$A98,'9 TOTAL'!$I$5:$I$100) +SUMIF('10'!H$5:H$100,$A98,'10'!$I$5:$I$100)+SUMIF('10a'!H$5:H$100,$A98,'10a'!$I$5:$I$100)+SUMIF('10b'!H$5:H$100,$A98,'10b'!$I$5:$I$100)+SUMIF('10c'!H$5:H$100,$A98,'10c'!$I$5:$I$100)+SUMIF('10d'!H$5:H$100,$A98,'10d'!$I$5:$I$100)+SUMIF('10e'!H$5:H$100,$A98,'10e'!$I$5:$I$100)+SUMIF('10f'!H$5:H$100,$A98,'10f'!$I$5:$I$100)+SUMIF('10g'!H$5:H$100,$A98,'10g'!$I$5:$I$100)+SUMIF('10h'!H$5:H$100,$A98,'10h'!$I$5:$I$100)+SUMIF('10i'!H$5:H$100,$A98,'10i'!$I$5:$I$100)+SUMIF('10j'!H$5:H$100,$A98,'10j'!$I$5:$I$100)+SUMIF('10k'!H$5:H$100,$A98,'10k'!$I$5:$I$100)+SUMIF('10l'!H$5:H$100,$A98,'10l'!$I$5:$I$100)+SUMIF('10m'!H$5:H$100,$A98,'10m'!$I$5:$I$100)+SUMIF('10 TOTAL'!H$5:H$100,$A98,'10 TOTAL'!$I$5:$I$100) -> 0 | S98: 0
A99: 11-104 | B99: Shared Services - Chief Financial Officer | C99: =SUMIF('4'!H$5:H$100,$A99,'4'!$K$5:$K$100)+SUMIF('4a'!H$5:H$100,$A99,'4a'!$K$5:$K$100)+SUMIF('4b'!H$5:H$100,$A99,'4b'!$K$5:$K$100)+SUMIF('4c'!H$5:H$100,$A99,'4c'!$K$5:$K$100)+SUMIF('5'!H$5:H$100,$A99,'5'!$K$5:$K$100)+SUMIF('6'!H$5:H$100,$A99,'6'!$K$5:$K$100)+SUMIF('7'!H$5:H$100,$A99,'7'!$K$5:$K$100)+SUMIF('7a'!H$5:H$100,$A99,'7a'!$K$5:$K$100)+SUMIF('7b'!H$5:H$100,$A99,'7b'!$K$5:$K$100)+SUMIF('8'!H$5:H$100,$A99,'8'!$K$5:$K$100)+SUMIF('9'!H$5:H$100,$A99,'9'!$K$5:$K$100)+SUMIF('9a'!H$5:H$100,$A99,'9a'!$K$5:$K$100)+SUMIF('9b'!H$5:H$100,$A99,'9b'!$K$5:$K$100)+SUMIF('9c'!H$5:H$100,$A99,'9c'!$K$5:$K$100)+SUMIF('9d'!H$5:H$100,$A99,'9d'!$K$5:$K$100)+SUMIF('9e'!H$5:H$100,$A99,'9e'!$K$5:$K$100)+SUMIF('9f'!H$5:H$100,$A99,'9f'!$K$5:$K$100)+SUMIF('9g'!H$5:H$100,$A99,'9g'!$K$5:$K$100)+SUMIF('9h'!H$5:H$100,$A99,'9h'!$K$5:$K$100)+SUMIF('9 TOTAL'!H$5:H$100,$A99,'9 TOTAL'!$K$5:$K$100) +SUMIF('10'!H$5:H$100,$A99,'10'!$K$5:$K$100)+SUMIF('10a'!H$5:H$100,$A99,'10a'!$K$5:$K$100)+SUMIF('10b'!H$5:H$100,$A99,'10b'!$K$5:$K$100)+SUMIF('10c'!H$5:H$100,$A99,'10c'!$K$5:$K$100)+SUMIF('10d'!H$5:H$100,$A99,'10d'!$K$5:$K$100)+SUMIF('10e'!H$5:H$100,$A99,'10e'!$K$5:$K$100)+SUMIF('10f'!H$5:H$100,$A99,'10f'!$K$5:$K$100)+SUMIF('10g'!H$5:H$100,$A99,'10g'!$K$5:$K$100)+SUMIF('10h'!H$5:H$100,$A99,'10h'!$K$5:$K$100)+SUMIF('10i'!H$5:H$100,$A99,'10i'!$K$5:$K$100)+SUMIF('10j'!H$5:H$100,$A99,'10j'!$K$5:$K$100)+SUMIF('10k'!H$5:H$100,$A99,'10k'!$K$5:$K$100)+SUMIF('10l'!H$5:H$100,$A99,'10l'!$K$5:$K$100)+SUMIF('10m'!H$5:H$100,$A99,'10m'!$K$5:$K$100)+SUMIF('10 TOTAL'!H$5:H$100,$A99,'10 TOTAL'!$K$5:$K$100) -> 0 | D99: =SUMIF('4'!H$5:H$100,$A99,'4'!$I$5:$I$100)+SUMIF('4a'!H$5:H$100,$A99,'4a'!$I$5:$I$100)+SUMIF('4b'!H$5:H$100,$A99,'4b'!$I$5:$I$100)+SUMIF('4c'!H$5:H$100,$A99,'4c'!$I$5:$I$100)+SUMIF('5'!H$5:H$100,$A99,'5'!$I$5:$I$100)+SUMIF('6'!H$5:H$100,$A99,'6'!$I$5:$I$100)+SUMIF('7'!H$5:H$100,$A99,'7'!$I$5:$I$100)+SUMIF('7a'!H$5:H$100,$A99,'7a'!$I$5:$I$100)+SUMIF('7b'!H$5:H$100,$A99,'7b'!$I$5:$I$100)+SUMIF('8'!H$5:H$100,$A99,'8'!$I$5:$I$100)+SUMIF('9'!H$5:H$100,$A99,'9'!$I$5:$I$100)+SUMIF('9a'!H$5:H$100,$A99,'9a'!$I$5:$I$100)+SUMIF('9b'!H$5:H$100,$A99,'9b'!$I$5:$I$100)+SUMIF('9c'!H$5:H$100,$A99,'9c'!$I$5:$I$100)+SUMIF('9d'!H$5:H$100,$A99,'9d'!$I$5:$I$100)+SUMIF('9e'!H$5:H$100,$A99,'9e'!$I$5:$I$100)+SUMIF('9f'!H$5:H$100,$A99,'9f'!$I$5:$I$100)+SUMIF('9g'!H$5:H$100,$A99,'9g'!$I$5:$I$100)+SUMIF('9h'!H$5:H$100,$A99,'9h'!$I$5:$I$100)+SUMIF('9 TOTAL'!H$5:H$100,$A99,'9 TOTAL'!$I$5:$I$100) +SUMIF('10'!H$5:H$100,$A99,'10'!$I$5:$I$100)+SUMIF('10a'!H$5:H$100,$A99,'10a'!$I$5:$I$100)+SUMIF('10b'!H$5:H$100,$A99,'10b'!$I$5:$I$100)+SUMIF('10c'!H$5:H$100,$A99,'10c'!$I$5:$I$100)+SUMIF('10d'!H$5:H$100,$A99,'10d'!$I$5:$I$100)+SUMIF('10e'!H$5:H$100,$A99,'10e'!$I$5:$I$100)+SUMIF('10f'!H$5:H$100,$A99,'10f'!$I$5:$I$100)+SUMIF('10g'!H$5:H$100,$A99,'10g'!$I$5:$I$100)+SUMIF('10h'!H$5:H$100,$A99,'10h'!$I$5:$I$100)+SUMIF('10i'!H$5:H$100,$A99,'10i'!$I$5:$I$100)+SUMIF('10j'!H$5:H$100,$A99,'10j'!$I$5:$I$100)+SUMIF('10k'!H$5:H$100,$A99,'10k'!$I$5:$I$100)+SUMIF('10l'!H$5:H$100,$A99,'10l'!$I$5:$I$100)+SUMIF('10m'!H$5:H$100,$A99,'10m'!$I$5:$I$100)+SUMIF('10 TOTAL'!H$5:H$100,$A99,'10 TOTAL'!$I$5:$I$100) -> 0 | S99: 0
A100: 11-105 | B100: Shared Services - Public Works Department | C100: =SUMIF('4'!H$5:H$100,$A100,'4'!$K$5:$K$100)+SUMIF('4a'!H$5:H$100,$A100,'4a'!$K$5:$K$100)+SUMIF('4b'!H$5:H$100,$A100,'4b'!$K$5:$K$100)+SUMIF('4c'!H$5:H$100,$A100,'4c'!$K$5:$K$100)+SUMIF('5'!H$5:H$100,$A100,'5'!$K$5:$K$100)+SUMIF('6'!H$5:H$100,$A100,'6'!$K$5:$K$100)+SUMIF('7'!H$5:H$100,$A100,'7'!$K$5:$K$100)+SUMIF('7a'!H$5:H$100,$A100,'7a'!$K$5:$K$100)+SUMIF('7b'!H$5:H$100,$A100,'7b'!$K$5:$K$100)+SUMIF('8'!H$5:H$100,$A100,'8'!$K$5:$K$100)+SUMIF('9'!H$5:H$100,$A100,'9'!$K$5:$K$100)+SUMIF('9a'!H$5:H$100,$A100,'9a'!$K$5:$K$100)+SUMIF('9b'!H$5:H$100,$A100,'9b'!$K$5:$K$100)+SUMIF('9c'!H$5:H$100,$A100,'9c'!$K$5:$K$100)+SUMIF('9d'!H$5:H$100,$A100,'9d'!$K$5:$K$100)+SUMIF('9e'!H$5:H$100,$A100,'9e'!$K$5:$K$100)+SUMIF('9f'!H$5:H$100,$A100,'9f'!$K$5:$K$100)+SUMIF('9g'!H$5:H$100,$A100,'9g'!$K$5:$K$100)+SUMIF('9h'!H$5:H$100,$A100,'9h'!$K$5:$K$100)+SUMIF('9 TOTAL'!H$5:H$100,$A100,'9 TOTAL'!$K$5:$K$100) +SUMIF('10'!H$5:H$100,$A100,'10'!$K$5:$K$100)+SUMIF('10a'!H$5:H$100,$A100,'10a'!$K$5:$K$100)+SUMIF('10b'!H$5:H$100,$A100,'10b'!$K$5:$K$100)+SUMIF('10c'!H$5:H$100,$A100,'10c'!$K$5:$K$100)+SUMIF('10d'!H$5:H$100,$A100,'10d'!$K$5:$K$100)+SUMIF('10e'!H$5:H$100,$A100,'10e'!$K$5:$K$100)+SUMIF('10f'!H$5:H$100,$A100,'10f'!$K$5:$K$100)+SUMIF('10g'!H$5:H$100,$A100,'10g'!$K$5:$K$100)+SUMIF('10h'!H$5:H$100,$A100,'10h'!$K$5:$K$100)+SUMIF('10i'!H$5:H$100,$A100,'10i'!$K$5:$K$100)+SUMIF('10j'!H$5:H$100,$A100,'10j'!$K$5:$K$100)+SUMIF('10k'!H$5:H$100,$A100,'10k'!$K$5:$K$100)+SUMIF('10l'!H$5:H$100,$A100,'10l'!$K$5:$K$100)+SUMIF('10m'!H$5:H$100,$A100,'10m'!$K$5:$K$100)+SUMIF('10 TOTAL'!H$5:H$100,$A100,'10 TOTAL'!$K$5:$K$100) -> 0 | D100: =SUMIF('4'!H$5:H$100,$A100,'4'!$I$5:$I$100)+SUMIF('4a'!H$5:H$100,$A100,'4a'!$I$5:$I$100)+SUMIF('4b'!H$5:H$100,$A100,'4b'!$I$5:$I$100)+SUMIF('4c'!H$5:H$100,$A100,'4c'!$I$5:$I$100)+SUMIF('5'!H$5:H$100,$A100,'5'!$I$5:$I$100)+SUMIF('6'!H$5:H$100,$A100,'6'!$I$5:$I$100)+SUMIF('7'!H$5:H$100,$A100,'7'!$I$5:$I$100)+SUMIF('7a'!H$5:H$100,$A100,'7a'!$I$5:$I$100)+SUMIF('7b'!H$5:H$100,$A100,'7b'!$I$5:$I$100)+SUMIF('8'!H$5:H$100,$A100,'8'!$I$5:$I$100)+SUMIF('9'!H$5:H$100,$A100,'9'!$I$5:$I$100)+SUMIF('9a'!H$5:H$100,$A100,'9a'!$I$5:$I$100)+SUMIF('9b'!H$5:H$100,$A100,'9b'!$I$5:$I$100)+SUMIF('9c'!H$5:H$100,$A100,'9c'!$I$5:$I$100)+SUMIF('9d'!H$5:H$100,$A100,'9d'!$I$5:$I$100)+SUMIF('9e'!H$5:H$100,$A100,'9e'!$I$5:$I$100)+SUMIF('9f'!H$5:H$100,$A100,'9f'!$I$5:$I$100)+SUMIF('9g'!H$5:H$100,$A100,'9g'!$I$5:$I$100)+SUMIF('9h'!H$5:H$100,$A100,'9h'!$I$5:$I$100)+SUMIF('9 TOTAL'!H$5:H$100,$A100,'9 TOTAL'!$I$5:$I$100) +SUMIF('10'!H$5:H$100,$A100,'10'!$I$5:$I$100)+SUMIF('10a'!H$5:H$100,$A100,'10a'!$I$5:$I$100)+SUMIF('10b'!H$5:H$100,$A100,'10b'!$I$5:$I$100)+SUMIF('10c'!H$5:H$100,$A100,'10c'!$I$5:$I$100)+SUMIF('10d'!H$5:H$100,$A100,'10d'!$I$5:$I$100)+SUMIF('10e'!H$5:H$100,$A100,'10e'!$I$5:$I$100)+SUMIF('10f'!H$5:H$100,$A100,'10f'!$I$5:$I$100)+SUMIF('10g'!H$5:H$100,$A100,'10g'!$I$5:$I$100)+SUMIF('10h'!H$5:H$100,$A100,'10h'!$I$5:$I$100)+SUMIF('10i'!H$5:H$100,$A100,'10i'!$I$5:$I$100)+SUMIF('10j'!H$5:H$100,$A100,'10j'!$I$5:$I$100)+SUMIF('10k'!H$5:H$100,$A100,'10k'!$I$5:$I$100)+SUMIF('10l'!H$5:H$100,$A100,'10l'!$I$5:$I$100)+SUMIF('10m'!H$5:H$100,$A100,'10m'!$I$5:$I$100)+SUMIF('10 TOTAL'!H$5:H$100,$A100,'10 TOTAL'!$I$5:$I$100) -> 0 | S100: 0
A101: 11-106 | B101: Shared Services - Police Department | C101: =SUMIF('4'!H$5:H$100,$A101,'4'!$K$5:$K$100)+SUMIF('4a'!H$5:H$100,$A101,'4a'!$K$5:$K$100)+SUMIF('4b'!H$5:H$100,$A101,'4b'!$K$5:$K$100)+SUMIF('4c'!H$5:H$100,$A101,'4c'!$K$5:$K$100)+SUMIF('5'!H$5:H$100,$A101,'5'!$K$5:$K$100)+SUMIF('6'!H$5:H$100,$A101,'6'!$K$5:$K$100)+SUMIF('7'!H$5:H$100,$A101,'7'!$K$5:$K$100)+SUMIF('7a'!H$5:H$100,$A101,'7a'!$K$5:$K$100)+SUMIF('7b'!H$5:H$100,$A101,'7b'!$K$5:$K$100)+SUMIF('8'!H$5:H$100,$A101,'8'!$K$5:$K$100)+SUMIF('9'!H$5:H$100,$A101,'9'!$K$5:$K$100)+SUMIF('9a'!H$5:H$100,$A101,'9a'!$K$5:$K$100)+SUMIF('9b'!H$5:H$100,$A101,'9b'!$K$5:$K$100)+SUMIF('9c'!H$5:H$100,$A101,'9c'!$K$5:$K$100)+SUMIF('9d'!H$5:H$100,$A101,'9d'!$K$5:$K$100)+SUMIF('9e'!H$5:H$100,$A101,'9e'!$K$5:$K$100)+SUMIF('9f'!H$5:H$100,$A101,'9f'!$K$5:$K$100)+SUMIF('9g'!H$5:H$100,$A101,'9g'!$K$5:$K$100)+SUMIF('9h'!H$5:H$100,$A101,'9h'!$K$5:$K$100)+SUMIF('9 TOTAL'!H$5:H$100,$A101,'9 TOTAL'!$K$5:$K$100) +SUMIF('10'!H$5:H$100,$A101,'10'!$K$5:$K$100)+SUMIF('10a'!H$5:H$100,$A101,'10a'!$K$5:$K$100)+SUMIF('10b'!H$5:H$100,$A101,'10b'!$K$5:$K$100)+SUMIF('10c'!H$5:H$100,$A101,'10c'!$K$5:$K$100)+SUMIF('10d'!H$5:H$100,$A101,'10d'!$K$5:$K$100)+SUMIF('10e'!H$5:H$100,$A101,'10e'!$K$5:$K$100)+SUMIF('10f'!H$5:H$100,$A101,'10f'!$K$5:$K$100)+SUMIF('10g'!H$5:H$100,$A101,'10g'!$K$5:$K$100)+SUMIF('10h'!H$5:H$100,$A101,'10h'!$K$5:$K$100)+SUMIF('10i'!H$5:H$100,$A101,'10i'!$K$5:$K$100)+SUMIF('10j'!H$5:H$100,$A101,'10j'!$K$5:$K$100)+SUMIF('10k'!H$5:H$100,$A101,'10k'!$K$5:$K$100)+SUMIF('10l'!H$5:H$100,$A101,'10l'!$K$5:$K$100)+SUMIF('10m'!H$5:H$100,$A101,'10m'!$K$5:$K$100)+SUMIF('10 TOTAL'!H$5:H$100,$A101,'10 TOTAL'!$K$5:$K$100) -> 0 | D101: =SUMIF('4'!H$5:H$100,$A101,'4'!$I$5:$I$100)+SUMIF('4a'!H$5:H$100,$A101,'4a'!$I$5:$I$100)+SUMIF('4b'!H$5:H$100,$A101,'4b'!$I$5:$I$100)+SUMIF('4c'!H$5:H$100,$A101,'4c'!$I$5:$I$100)+SUMIF('5'!H$5:H$100,$A101,'5'!$I$5:$I$100)+SUMIF('6'!H$5:H$100,$A101,'6'!$I$5:$I$100)+SUMIF('7'!H$5:H$100,$A101,'7'!$I$5:$I$100)+SUMIF('7a'!H$5:H$100,$A101,'7a'!$I$5:$I$100)+SUMIF('7b'!H$5:H$100,$A101,'7b'!$I$5:$I$100)+SUMIF('8'!H$5:H$100,$A101,'8'!$I$5:$I$100)+SUMIF('9'!H$5:H$100,$A101,'9'!$I$5:$I$100)+SUMIF('9a'!H$5:H$100,$A101,'9a'!$I$5:$I$100)+SUMIF('9b'!H$5:H$100,$A101,'9b'!$I$5:$I$100)+SUMIF('9c'!H$5:H$100,$A101,'9c'!$I$5:$I$100)+SUMIF('9d'!H$5:H$100,$A101,'9d'!$I$5:$I$100)+SUMIF('9e'!H$5:H$100,$A101,'9e'!$I$5:$I$100)+SUMIF('9f'!H$5:H$100,$A101,'9f'!$I$5:$I$100)+SUMIF('9g'!H$5:H$100,$A101,'9g'!$I$5:$I$100)+SUMIF('9h'!H$5:H$100,$A101,'9h'!$I$5:$I$100)+SUMIF('9 TOTAL'!H$5:H$100,$A101,'9 TOTAL'!$I$5:$I$100) +SUMIF('10'!H$5:H$100,$A101,'10'!$I$5:$I$100)+SUMIF('10a'!H$5:H$100,$A101,'10a'!$I$5:$I$100)+SUMIF('10b'!H$5:H$100,$A101,'10b'!$I$5:$I$100)+SUMIF('10c'!H$5:H$100,$A101,'10c'!$I$5:$I$100)+SUMIF('10d'!H$5:H$100,$A101,'10d'!$I$5:$I$100)+SUMIF('10e'!H$5:H$100,$A101,'10e'!$I$5:$I$100)+SUMIF('10f'!H$5:H$100,$A101,'10f'!$I$5:$I$100)+SUMIF('10g'!H$5:H$100,$A101,'10g'!$I$5:$I$100)+SUMIF('10h'!H$5:H$100,$A101,'10h'!$I$5:$I$100)+SUMIF('10i'!H$5:H$100,$A101,'10i'!$I$5:$I$100)+SUMIF('10j'!H$5:H$100,$A101,'10j'!$I$5:$I$100)+SUMIF('10k'!H$5:H$100,$A101,'10k'!$I$5:$I$100)+SUMIF('10l'!H$5:H$100,$A101,'10l'!$I$5:$I$100)+SUMIF('10m'!H$5:H$100,$A101,'10m'!$I$5:$I$100)+SUMIF('10 TOTAL'!H$5:H$100,$A101,'10 TOTAL'!$I$5:$I$100) -> 0 | S101: 0
A102: 11-107 | B102: Shared Services - Trash and Recycling Collection | C102: =SUMIF('4'!H$5:H$100,$A102,'4'!$K$5:$K$100)+SUMIF('4a'!H$5:H$100,$A102,'4a'!$K$5:$K$100)+SUMIF('4b'!H$5:H$100,$A102,'4b'!$K$5:$K$100)+SUMIF('4c'!H$5:H$100,$A102,'4c'!$K$5:$K$100)+SUMIF('5'!H$5:H$100,$A102,'5'!$K$5:$K$100)+SUMIF('6'!H$5:H$100,$A102,'6'!$K$5:$K$100)+SUMIF('7'!H$5:H$100,$A102,'7'!$K$5:$K$100)+SUMIF('7a'!H$5:H$100,$A102,'7a'!$K$5:$K$100)+SUMIF('7b'!H$5:H$100,$A102,'7b'!$K$5:$K$100)+SUMIF('8'!H$5:H$100,$A102,'8'!$K$5:$K$100)+SUMIF('9'!H$5:H$100,$A102,'9'!$K$5:$K$100)+SUMIF('9a'!H$5:H$100,$A102,'9a'!$K$5:$K$100)+SUMIF('9b'!H$5:H$100,$A102,'9b'!$K$5:$K$100)+SUMIF('9c'!H$5:H$100,$A102,'9c'!$K$5:$K$100)+SUMIF('9d'!H$5:H$100,$A102,'9d'!$K$5:$K$100)+SUMIF('9e'!H$5:H$100,$A102,'9e'!$K$5:$K$100)+SUMIF('9f'!H$5:H$100,$A102,'9f'!$K$5:$K$100)+SUMIF('9g'!H$5:H$100,$A102,'9g'!$K$5:$K$100)+SUMIF('9h'!H$5:H$100,$A102,'9h'!$K$5:$K$100)+SUMIF('9 TOTAL'!H$5:H$100,$A102,'9 TOTAL'!$K$5:$K$100) +SUMIF('10'!H$5:H$100,$A102,'10'!$K$5:$K$100)+SUMIF('10a'!H$5:H$100,$A102,'10a'!$K$5:$K$100)+SUMIF('10b'!H$5:H$100,$A102,'10b'!$K$5:$K$100)+SUMIF('10c'!H$5:H$100,$A102,'10c'!$K$5:$K$100)+SUMIF('10d'!H$5:H$100,$A102,'10d'!$K$5:$K$100)+SUMIF('10e'!H$5:H$100,$A102,'10e'!$K$5:$K$100)+SUMIF('10f'!H$5:H$100,$A102,'10f'!$K$5:$K$100)+SUMIF('10g'!H$5:H$100,$A102,'10g'!$K$5:$K$100)+SUMIF('10h'!H$5:H$100,$A102,'10h'!$K$5:$K$100)+SUMIF('10i'!H$5:H$100,$A102,'10i'!$K$5:$K$100)+SUMIF('10j'!H$5:H$100,$A102,'10j'!$K$5:$K$100)+SUMIF('10k'!H$5:H$100,$A102,'10k'!$K$5:$K$100)+SUMIF('10l'!H$5:H$100,$A102,'10l'!$K$5:$K$100)+SUMIF('10m'!H$5:H$100,$A102,'10m'!$K$5:$K$100)+SUMIF('10 TOTAL'!H$5:H$100,$A102,'10 TOTAL'!$K$5:$K$100) -> 0 | D102: =SUMIF('4'!H$5:H$100,$A102,'4'!$I$5:$I$100)+SUMIF('4a'!H$5:H$100,$A102,'4a'!$I$5:$I$100)+SUMIF('4b'!H$5:H$100,$A102,'4b'!$I$5:$I$100)+SUMIF('4c'!H$5:H$100,$A102,'4c'!$I$5:$I$100)+SUMIF('5'!H$5:H$100,$A102,'5'!$I$5:$I$100)+SUMIF('6'!H$5:H$100,$A102,'6'!$I$5:$I$100)+SUMIF('7'!H$5:H$100,$A102,'7'!$I$5:$I$100)+SUMIF('7a'!H$5:H$100,$A102,'7a'!$I$5:$I$100)+SUMIF('7b'!H$5:H$100,$A102,'7b'!$I$5:$I$100)+SUMIF('8'!H$5:H$100,$A102,'8'!$I$5:$I$100)+SUMIF('9'!H$5:H$100,$A102,'9'!$I$5:$I$100)+SUMIF('9a'!H$5:H$100,$A102,'9a'!$I$5:$I$100)+SUMIF('9b'!H$5:H$100,$A102,'9b'!$I$5:$I$100)+SUMIF('9c'!H$5:H$100,$A102,'9c'!$I$5:$I$100)+SUMIF('9d'!H$5:H$100,$A102,'9d'!$I$5:$I$100)+SUMIF('9e'!H$5:H$100,$A102,'9e'!$I$5:$I$100)+SUMIF('9f'!H$5:H$100,$A102,'9f'!$I$5:$I$100)+SUMIF('9g'!H$5:H$100,$A102,'9g'!$I$5:$I$100)+SUMIF('9h'!H$5:H$100,$A102,'9h'!$I$5:$I$100)+SUMIF('9 TOTAL'!H$5:H$100,$A102,'9 TOTAL'!$I$5:$I$100) +SUMIF('10'!H$5:H$100,$A102,'10'!$I$5:$I$100)+SUMIF('10a'!H$5:H$100,$A102,'10a'!$I$5:$I$100)+SUMIF('10b'!H$5:H$100,$A102,'10b'!$I$5:$I$100)+SUMIF('10c'!H$5:H$100,$A102,'10c'!$I$5:$I$100)+SUMIF('10d'!H$5:H$100,$A102,'10d'!$I$5:$I$100)+SUMIF('10e'!H$5:H$100,$A102,'10e'!$I$5:$I$100)+SUMIF('10f'!H$5:H$100,$A102,'10f'!$I$5:$I$100)+SUMIF('10g'!H$5:H$100,$A102,'10g'!$I$5:$I$100)+SUMIF('10h'!H$5:H$100,$A102,'10h'!$I$5:$I$100)+SUMIF('10i'!H$5:H$100,$A102,'10i'!$I$5:$I$100)+SUMIF('10j'!H$5:H$100,$A102,'10j'!$I$5:$I$100)+SUMIF('10k'!H$5:H$100,$A102,'10k'!$I$5:$I$100)+SUMIF('10l'!H$5:H$100,$A102,'10l'!$I$5:$I$100)+SUMIF('10m'!H$5:H$100,$A102,'10m'!$I$5:$I$100)+SUMIF('10 TOTAL'!H$5:H$100,$A102,'10 TOTAL'!$I$5:$I$100) -> 0 | S102: 0
A103: 11-108 | B103: Shared Services - Municipal Court | C103: =SUMIF('4'!H$5:H$100,$A103,'4'!$K$5:$K$100)+SUMIF('4a'!H$5:H$100,$A103,'4a'!$K$5:$K$100)+SUMIF('4b'!H$5:H$100,$A103,'4b'!$K$5:$K$100)+SUMIF('4c'!H$5:H$100,$A103,'4c'!$K$5:$K$100)+SUMIF('5'!H$5:H$100,$A103,'5'!$K$5:$K$100)+SUMIF('6'!H$5:H$100,$A103,'6'!$K$5:$K$100)+SUMIF('7'!H$5:H$100,$A103,'7'!$K$5:$K$100)+SUMIF('7a'!H$5:H$100,$A103,'7a'!$K$5:$K$100)+SUMIF('7b'!H$5:H$100,$A103,'7b'!$K$5:$K$100)+SUMIF('8'!H$5:H$100,$A103,'8'!$K$5:$K$100)+SUMIF('9'!H$5:H$100,$A103,'9'!$K$5:$K$100)+SUMIF('9a'!H$5:H$100,$A103,'9a'!$K$5:$K$100)+SUMIF('9b'!H$5:H$100,$A103,'9b'!$K$5:$K$100)+SUMIF('9c'!H$5:H$100,$A103,'9c'!$K$5:$K$100)+SUMIF('9d'!H$5:H$100,$A103,'9d'!$K$5:$K$100)+SUMIF('9e'!H$5:H$100,$A103,'9e'!$K$5:$K$100)+SUMIF('9f'!H$5:H$100,$A103,'9f'!$K$5:$K$100)+SUMIF('9g'!H$5:H$100,$A103,'9g'!$K$5:$K$100)+SUMIF('9h'!H$5:H$100,$A103,'9h'!$K$5:$K$100)+SUMIF('9 TOTAL'!H$5:H$100,$A103,'9 TOTAL'!$K$5:$K$100) +SUMIF('10'!H$5:H$100,$A103,'10'!$K$5:$K$100)+SUMIF('10a'!H$5:H$100,$A103,'10a'!$K$5:$K$100)+SUMIF('10b'!H$5:H$100,$A103,'10b'!$K$5:$K$100)+SUMIF('10c'!H$5:H$100,$A103,'10c'!$K$5:$K$100)+SUMIF('10d'!H$5:H$100,$A103,'10d'!$K$5:$K$100)+SUMIF('10e'!H$5:H$100,$A103,'10e'!$K$5:$K$100)+SUMIF('10f'!H$5:H$100,$A103,'10f'!$K$5:$K$100)+SUMIF('10g'!H$5:H$100,$A103,'10g'!$K$5:$K$100)+SUMIF('10h'!H$5:H$100,$A103,'10h'!$K$5:$K$100)+SUMIF('10i'!H$5:H$100,$A103,'10i'!$K$5:$K$100)+SUMIF('10j'!H$5:H$100,$A103,'10j'!$K$5:$K$100)+SUMIF('10k'!H$5:H$100,$A103,'10k'!$K$5:$K$100)+SUMIF('10l'!H$5:H$100,$A103,'10l'!$K$5:$K$100)+SUMIF('10m'!H$5:H$100,$A103,'10m'!$K$5:$K$100)+SUMIF('10 TOTAL'!H$5:H$100,$A103,'10 TOTAL'!$K$5:$K$100) -> 0 | D103: =SUMIF('4'!H$5:H$100,$A103,'4'!$I$5:$I$100)+SUMIF('4a'!H$5:H$100,$A103,'4a'!$I$5:$I$100)+SUMIF('4b'!H$5:H$100,$A103,'4b'!$I$5:$I$100)+SUMIF('4c'!H$5:H$100,$A103,'4c'!$I$5:$I$100)+SUMIF('5'!H$5:H$100,$A103,'5'!$I$5:$I$100)+SUMIF('6'!H$5:H$100,$A103,'6'!$I$5:$I$100)+SUMIF('7'!H$5:H$100,$A103,'7'!$I$5:$I$100)+SUMIF('7a'!H$5:H$100,$A103,'7a'!$I$5:$I$100)+SUMIF('7b'!H$5:H$100,$A103,'7b'!$I$5:$I$100)+SUMIF('8'!H$5:H$100,$A103,'8'!$I$5:$I$100)+SUMIF('9'!H$5:H$100,$A103,'9'!$I$5:$I$100)+SUMIF('9a'!H$5:H$100,$A103,'9a'!$I$5:$I$100)+SUMIF('9b'!H$5:H$100,$A103,'9b'!$I$5:$I$100)+SUMIF('9c'!H$5:H$100,$A103,'9c'!$I$5:$I$100)+SUMIF('9d'!H$5:H$100,$A103,'9d'!$I$5:$I$100)+SUMIF('9e'!H$5:H$100,$A103,'9e'!$I$5:$I$100)+SUMIF('9f'!H$5:H$100,$A103,'9f'!$I$5:$I$100)+SUMIF('9g'!H$5:H$100,$A103,'9g'!$I$5:$I$100)+SUMIF('9h'!H$5:H$100,$A103,'9h'!$I$5:$I$100)+SUMIF('9 TOTAL'!H$5:H$100,$A103,'9 TOTAL'!$I$5:$I$100) +SUMIF('10'!H$5:H$100,$A103,'10'!$I$5:$I$100)+SUMIF('10a'!H$5:H$100,$A103,'10a'!$I$5:$I$100)+SUMIF('10b'!H$5:H$100,$A103,'10b'!$I$5:$I$100)+SUMIF('10c'!H$5:H$100,$A103,'10c'!$I$5:$I$100)+SUMIF('10d'!H$5:H$100,$A103,'10d'!$I$5:$I$100)+SUMIF('10e'!H$5:H$100,$A103,'10e'!$I$5:$I$100)+SUMIF('10f'!H$5:H$100,$A103,'10f'!$I$5:$I$100)+SUMIF('10g'!H$5:H$100,$A103,'10g'!$I$5:$I$100)+SUMIF('10h'!H$5:H$100,$A103,'10h'!$I$5:$I$100)+SUMIF('10i'!H$5:H$100,$A103,'10i'!$I$5:$I$100)+SUMIF('10j'!H$5:H$100,$A103,'10j'!$I$5:$I$100)+SUMIF('10k'!H$5:H$100,$A103,'10k'!$I$5:$I$100)+SUMIF('10l'!H$5:H$100,$A103,'10l'!$I$5:$I$100)+SUMIF('10m'!H$5:H$100,$A103,'10m'!$I$5:$I$100)+SUMIF('10 TOTAL'!H$5:H$100,$A103,'10 TOTAL'!$I$5:$I$100) -> 0 | S103: 0
A104: 11-109 | B104: Shared Services - Fire Department/District | C104: =SUMIF('4'!H$5:H$100,$A104,'4'!$K$5:$K$100)+SUMIF('4a'!H$5:H$100,$A104,'4a'!$K$5:$K$100)+SUMIF('4b'!H$5:H$100,$A104,'4b'!$K$5:$K$100)+SUMIF('4c'!H$5:H$100,$A104,'4c'!$K$5:$K$100)+SUMIF('5'!H$5:H$100,$A104,'5'!$K$5:$K$100)+SUMIF('6'!H$5:H$100,$A104,'6'!$K$5:$K$100)+SUMIF('7'!H$5:H$100,$A104,'7'!$K$5:$K$100)+SUMIF('7a'!H$5:H$100,$A104,'7a'!$K$5:$K$100)+SUMIF('7b'!H$5:H$100,$A104,'7b'!$K$5:$K$100)+SUMIF('8'!H$5:H$100,$A104,'8'!$K$5:$K$100)+SUMIF('9'!H$5:H$100,$A104,'9'!$K$5:$K$100)+SUMIF('9a'!H$5:H$100,$A104,'9a'!$K$5:$K$100)+SUMIF('9b'!H$5:H$100,$A104,'9b'!$K$5:$K$100)+SUMIF('9c'!H$5:H$100,$A104,'9c'!$K$5:$K$100)+SUMIF('9d'!H$5:H$100,$A104,'9d'!$K$5:$K$100)+SUMIF('9e'!H$5:H$100,$A104,'9e'!$K$5:$K$100)+SUMIF('9f'!H$5:H$100,$A104,'9f'!$K$5:$K$100)+SUMIF('9g'!H$5:H$100,$A104,'9g'!$K$5:$K$100)+SUMIF('9h'!H$5:H$100,$A104,'9h'!$K$5:$K$100)+SUMIF('9 TOTAL'!H$5:H$100,$A104,'9 TOTAL'!$K$5:$K$100) +SUMIF('10'!H$5:H$100,$A104,'10'!$K$5:$K$100)+SUMIF('10a'!H$5:H$100,$A104,'10a'!$K$5:$K$100)+SUMIF('10b'!H$5:H$100,$A104,'10b'!$K$5:$K$100)+SUMIF('10c'!H$5:H$100,$A104,'10c'!$K$5:$K$100)+SUMIF('10d'!H$5:H$100,$A104,'10d'!$K$5:$K$100)+SUMIF('10e'!H$5:H$100,$A104,'10e'!$K$5:$K$100)+SUMIF('10f'!H$5:H$100,$A104,'10f'!$K$5:$K$100)+SUMIF('10g'!H$5:H$100,$A104,'10g'!$K$5:$K$100)+SUMIF('10h'!H$5:H$100,$A104,'10h'!$K$5:$K$100)+SUMIF('10i'!H$5:H$100,$A104,'10i'!$K$5:$K$100)+SUMIF('10j'!H$5:H$100,$A104,'10j'!$K$5:$K$100)+SUMIF('10k'!H$5:H$100,$A104,'10k'!$K$5:$K$100)+SUMIF('10l'!H$5:H$100,$A104,'10l'!$K$5:$K$100)+SUMIF('10m'!H$5:H$100,$A104,'10m'!$K$5:$K$100)+SUMIF('10 TOTAL'!H$5:H$100,$A104,'10 TOTAL'!$K$5:$K$100) -> 0 | D104: =SUMIF('4'!H$5:H$100,$A104,'4'!$I$5:$I$100)+SUMIF('4a'!H$5:H$100,$A104,'4a'!$I$5:$I$100)+SUMIF('4b'!H$5:H$100,$A104,'4b'!$I$5:$I$100)+SUMIF('4c'!H$5:H$100,$A104,'4c'!$I$5:$I$100)+SUMIF('5'!H$5:H$100,$A104,'5'!$I$5:$I$100)+SUMIF('6'!H$5:H$100,$A104,'6'!$I$5:$I$100)+SUMIF('7'!H$5:H$100,$A104,'7'!$I$5:$I$100)+SUMIF('7a'!H$5:H$100,$A104,'7a'!$I$5:$I$100)+SUMIF('7b'!H$5:H$100,$A104,'7b'!$I$5:$I$100)+SUMIF('8'!H$5:H$100,$A104,'8'!$I$5:$I$100)+SUMIF('9'!H$5:H$100,$A104,'9'!$I$5:$I$100)+SUMIF('9a'!H$5:H$100,$A104,'9a'!$I$5:$I$100)+SUMIF('9b'!H$5:H$100,$A104,'9b'!$I$5:$I$100)+SUMIF('9c'!H$5:H$100,$A104,'9c'!$I$5:$I$100)+SUMIF('9d'!H$5:H$100,$A104,'9d'!$I$5:$I$100)+SUMIF('9e'!H$5:H$100,$A104,'9e'!$I$5:$I$100)+SUMIF('9f'!H$5:H$100,$A104,'9f'!$I$5:$I$100)+SUMIF('9g'!H$5:H$100,$A104,'9g'!$I$5:$I$100)+SUMIF('9h'!H$5:H$100,$A104,'9h'!$I$5:$I$100)+SUMIF('9 TOTAL'!H$5:H$100,$A104,'9 TOTAL'!$I$5:$I$100) +SUMIF('10'!H$5:H$100,$A104,'10'!$I$5:$I$100)+SUMIF('10a'!H$5:H$100,$A104,'10a'!$I$5:$I$100)+SUMIF('10b'!H$5:H$100,$A104,'10b'!$I$5:$I$100)+SUMIF('10c'!H$5:H$100,$A104,'10c'!$I$5:$I$100)+SUMIF('10d'!H$5:H$100,$A104,'10d'!$I$5:$I$100)+SUMIF('10e'!H$5:H$100,$A104,'10e'!$I$5:$I$100)+SUMIF('10f'!H$5:H$100,$A104,'10f'!$I$5:$I$100)+SUMIF('10g'!H$5:H$100,$A104,'10g'!$I$5:$I$100)+SUMIF('10h'!H$5:H$100,$A104,'10h'!$I$5:$I$100)+SUMIF('10i'!H$5:H$100,$A104,'10i'!$I$5:$I$100)+SUMIF('10j'!H$5:H$100,$A104,'10j'!$I$5:$I$100)+SUMIF('10k'!H$5:H$100,$A104,'10k'!$I$5:$I$100)+SUMIF('10l'!H$5:H$100,$A104,'10l'!$I$5:$I$100)+SUMIF('10m'!H$5:H$100,$A104,'10m'!$I$5:$I$100)+SUMIF('10 TOTAL'!H$5:H$100,$A104,'10 TOTAL'!$I$5:$I$100) -> 0 | S104: 0
A105: 11-110 | B105: Shared Services - Board of Education | C105: =SUMIF('4'!H$5:H$100,$A105,'4'!$K$5:$K$100)+SUMIF('4a'!H$5:H$100,$A105,'4a'!$K$5:$K$100)+SUMIF('4b'!H$5:H$100,$A105,'4b'!$K$5:$K$100)+SUMIF('4c'!H$5:H$100,$A105,'4c'!$K$5:$K$100)+SUMIF('5'!H$5:H$100,$A105,'5'!$K$5:$K$100)+SUMIF('6'!H$5:H$100,$A105,'6'!$K$5:$K$100)+SUMIF('7'!H$5:H$100,$A105,'7'!$K$5:$K$100)+SUMIF('7a'!H$5:H$100,$A105,'7a'!$K$5:$K$100)+SUMIF('7b'!H$5:H$100,$A105,'7b'!$K$5:$K$100)+SUMIF('8'!H$5:H$100,$A105,'8'!$K$5:$K$100)+SUMIF('9'!H$5:H$100,$A105,'9'!$K$5:$K$100)+SUMIF('9a'!H$5:H$100,$A105,'9a'!$K$5:$K$100)+SUMIF('9b'!H$5:H$100,$A105,'9b'!$K$5:$K$100)+SUMIF('9c'!H$5:H$100,$A105,'9c'!$K$5:$K$100)+SUMIF('9d'!H$5:H$100,$A105,'9d'!$K$5:$K$100)+SUMIF('9e'!H$5:H$100,$A105,'9e'!$K$5:$K$100)+SUMIF('9f'!H$5:H$100,$A105,'9f'!$K$5:$K$100)+SUMIF('9g'!H$5:H$100,$A105,'9g'!$K$5:$K$100)+SUMIF('9h'!H$5:H$100,$A105,'9h'!$K$5:$K$100)+SUMIF('9 TOTAL'!H$5:H$100,$A105,'9 TOTAL'!$K$5:$K$100) +SUMIF('10'!H$5:H$100,$A105,'10'!$K$5:$K$100)+SUMIF('10a'!H$5:H$100,$A105,'10a'!$K$5:$K$100)+SUMIF('10b'!H$5:H$100,$A105,'10b'!$K$5:$K$100)+SUMIF('10c'!H$5:H$100,$A105,'10c'!$K$5:$K$100)+SUMIF('10d'!H$5:H$100,$A105,'10d'!$K$5:$K$100)+SUMIF('10e'!H$5:H$100,$A105,'10e'!$K$5:$K$100)+SUMIF('10f'!H$5:H$100,$A105,'10f'!$K$5:$K$100)+SUMIF('10g'!H$5:H$100,$A105,'10g'!$K$5:$K$100)+SUMIF('10h'!H$5:H$100,$A105,'10h'!$K$5:$K$100)+SUMIF('10i'!H$5:H$100,$A105,'10i'!$K$5:$K$100)+SUMIF('10j'!H$5:H$100,$A105,'10j'!$K$5:$K$100)+SUMIF('10k'!H$5:H$100,$A105,'10k'!$K$5:$K$100)+SUMIF('10l'!H$5:H$100,$A105,'10l'!$K$5:$K$100)+SUMIF('10m'!H$5:H$100,$A105,'10m'!$K$5:$K$100)+SUMIF('10 TOTAL'!H$5:H$100,$A105,'10 TOTAL'!$K$5:$K$100) -> 0 | D105: =SUMIF('4'!H$5:H$100,$A105,'4'!$I$5:$I$100)+SUMIF('4a'!H$5:H$100,$A105,'4a'!$I$5:$I$100)+SUMIF('4b'!H$5:H$100,$A105,'4b'!$I$5:$I$100)+SUMIF('4c'!H$5:H$100,$A105,'4c'!$I$5:$I$100)+SUMIF('5'!H$5:H$100,$A105,'5'!$I$5:$I$100)+SUMIF('6'!H$5:H$100,$A105,'6'!$I$5:$I$100)+SUMIF('7'!H$5:H$100,$A105,'7'!$I$5:$I$100)+SUMIF('7a'!H$5:H$100,$A105,'7a'!$I$5:$I$100)+SUMIF('7b'!H$5:H$100,$A105,'7b'!$I$5:$I$100)+SUMIF('8'!H$5:H$100,$A105,'8'!$I$5:$I$100)+SUMIF('9'!H$5:H$100,$A105,'9'!$I$5:$I$100)+SUMIF('9a'!H$5:H$100,$A105,'9a'!$I$5:$I$100)+SUMIF('9b'!H$5:H$100,$A105,'9b'!$I$5:$I$100)+SUMIF('9c'!H$5:H$100,$A105,'9c'!$I$5:$I$100)+SUMIF('9d'!H$5:H$100,$A105,'9d'!$I$5:$I$100)+SUMIF('9e'!H$5:H$100,$A105,'9e'!$I$5:$I$100)+SUMIF('9f'!H$5:H$100,$A105,'9f'!$I$5:$I$100)+SUMIF('9g'!H$5:H$100,$A105,'9g'!$I$5:$I$100)+SUMIF('9h'!H$5:H$100,$A105,'9h'!$I$5:$I$100)+SUMIF('9 TOTAL'!H$5:H$100,$A105,'9 TOTAL'!$I$5:$I$100) +SUMIF('10'!H$5:H$100,$A105,'10'!$I$5:$I$100)+SUMIF('10a'!H$5:H$100,$A105,'10a'!$I$5:$I$100)+SUMIF('10b'!H$5:H$100,$A105,'10b'!$I$5:$I$100)+SUMIF('10c'!H$5:H$100,$A105,'10c'!$I$5:$I$100)+SUMIF('10d'!H$5:H$100,$A105,'10d'!$I$5:$I$100)+SUMIF('10e'!H$5:H$100,$A105,'10e'!$I$5:$I$100)+SUMIF('10f'!H$5:H$100,$A105,'10f'!$I$5:$I$100)+SUMIF('10g'!H$5:H$100,$A105,'10g'!$I$5:$I$100)+SUMIF('10h'!H$5:H$100,$A105,'10h'!$I$5:$I$100)+SUMIF('10i'!H$5:H$100,$A105,'10i'!$I$5:$I$100)+SUMIF('10j'!H$5:H$100,$A105,'10j'!$I$5:$I$100)+SUMIF('10k'!H$5:H$100,$A105,'10k'!$I$5:$I$100)+SUMIF('10l'!H$5:H$100,$A105,'10l'!$I$5:$I$100)+SUMIF('10m'!H$5:H$100,$A105,'10m'!$I$5:$I$100)+SUMIF('10 TOTAL'!H$5:H$100,$A105,'10 TOTAL'!$I$5:$I$100) -> 0 | S105: 0
A106: 11-111 | B106: Shared Services - Social Service Functions | C106: =SUMIF('4'!H$5:H$100,$A106,'4'!$K$5:$K$100)+SUMIF('4a'!H$5:H$100,$A106,'4a'!$K$5:$K$100)+SUMIF('4b'!H$5:H$100,$A106,'4b'!$K$5:$K$100)+SUMIF('4c'!H$5:H$100,$A106,'4c'!$K$5:$K$100)+SUMIF('5'!H$5:H$100,$A106,'5'!$K$5:$K$100)+SUMIF('6'!H$5:H$100,$A106,'6'!$K$5:$K$100)+SUMIF('7'!H$5:H$100,$A106,'7'!$K$5:$K$100)+SUMIF('7a'!H$5:H$100,$A106,'7a'!$K$5:$K$100)+SUMIF('7b'!H$5:H$100,$A106,'7b'!$K$5:$K$100)+SUMIF('8'!H$5:H$100,$A106,'8'!$K$5:$K$100)+SUMIF('9'!H$5:H$100,$A106,'9'!$K$5:$K$100)+SUMIF('9a'!H$5:H$100,$A106,'9a'!$K$5:$K$100)+SUMIF('9b'!H$5:H$100,$A106,'9b'!$K$5:$K$100)+SUMIF('9c'!H$5:H$100,$A106,'9c'!$K$5:$K$100)+SUMIF('9d'!H$5:H$100,$A106,'9d'!$K$5:$K$100)+SUMIF('9e'!H$5:H$100,$A106,'9e'!$K$5:$K$100)+SUMIF('9f'!H$5:H$100,$A106,'9f'!$K$5:$K$100)+SUMIF('9g'!H$5:H$100,$A106,'9g'!$K$5:$K$100)+SUMIF('9h'!H$5:H$100,$A106,'9h'!$K$5:$K$100)+SUMIF('9 TOTAL'!H$5:H$100,$A106,'9 TOTAL'!$K$5:$K$100) +SUMIF('10'!H$5:H$100,$A106,'10'!$K$5:$K$100)+SUMIF('10a'!H$5:H$100,$A106,'10a'!$K$5:$K$100)+SUMIF('10b'!H$5:H$100,$A106,'10b'!$K$5:$K$100)+SUMIF('10c'!H$5:H$100,$A106,'10c'!$K$5:$K$100)+SUMIF('10d'!H$5:H$100,$A106,'10d'!$K$5:$K$100)+SUMIF('10e'!H$5:H$100,$A106,'10e'!$K$5:$K$100)+SUMIF('10f'!H$5:H$100,$A106,'10f'!$K$5:$K$100)+SUMIF('10g'!H$5:H$100,$A106,'10g'!$K$5:$K$100)+SUMIF('10h'!H$5:H$100,$A106,'10h'!$K$5:$K$100)+SUMIF('10i'!H$5:H$100,$A106,'10i'!$K$5:$K$100)+SUMIF('10j'!H$5:H$100,$A106,'10j'!$K$5:$K$100)+SUMIF('10k'!H$5:H$100,$A106,'10k'!$K$5:$K$100)+SUMIF('10l'!H$5:H$100,$A106,'10l'!$K$5:$K$100)+SUMIF('10m'!H$5:H$100,$A106,'10m'!$K$5:$K$100)+SUMIF('10 TOTAL'!H$5:H$100,$A106,'10 TOTAL'!$K$5:$K$100) -> 0 | D106: =SUMIF('4'!H$5:H$100,$A106,'4'!$I$5:$I$100)+SUMIF('4a'!H$5:H$100,$A106,'4a'!$I$5:$I$100)+SUMIF('4b'!H$5:H$100,$A106,'4b'!$I$5:$I$100)+SUMIF('4c'!H$5:H$100,$A106,'4c'!$I$5:$I$100)+SUMIF('5'!H$5:H$100,$A106,'5'!$I$5:$I$100)+SUMIF('6'!H$5:H$100,$A106,'6'!$I$5:$I$100)+SUMIF('7'!H$5:H$100,$A106,'7'!$I$5:$I$100)+SUMIF('7a'!H$5:H$100,$A106,'7a'!$I$5:$I$100)+SUMIF('7b'!H$5:H$100,$A106,'7b'!$I$5:$I$100)+SUMIF('8'!H$5:H$100,$A106,'8'!$I$5:$I$100)+SUMIF('9'!H$5:H$100,$A106,'9'!$I$5:$I$100)+SUMIF('9a'!H$5:H$100,$A106,'9a'!$I$5:$I$100)+SUMIF('9b'!H$5:H$100,$A106,'9b'!$I$5:$I$100)+SUMIF('9c'!H$5:H$100,$A106,'9c'!$I$5:$I$100)+SUMIF('9d'!H$5:H$100,$A106,'9d'!$I$5:$I$100)+SUMIF('9e'!H$5:H$100,$A106,'9e'!$I$5:$I$100)+SUMIF('9f'!H$5:H$100,$A106,'9f'!$I$5:$I$100)+SUMIF('9g'!H$5:H$100,$A106,'9g'!$I$5:$I$100)+SUMIF('9h'!H$5:H$100,$A106,'9h'!$I$5:$I$100)+SUMIF('9 TOTAL'!H$5:H$100,$A106,'9 TOTAL'!$I$5:$I$100) +SUMIF('10'!H$5:H$100,$A106,'10'!$I$5:$I$100)+SUMIF('10a'!H$5:H$100,$A106,'10a'!$I$5:$I$100)+SUMIF('10b'!H$5:H$100,$A106,'10b'!$I$5:$I$100)+SUMIF('10c'!H$5:H$100,$A106,'10c'!$I$5:$I$100)+SUMIF('10d'!H$5:H$100,$A106,'10d'!$I$5:$I$100)+SUMIF('10e'!H$5:H$100,$A106,'10e'!$I$5:$I$100)+SUMIF('10f'!H$5:H$100,$A106,'10f'!$I$5:$I$100)+SUMIF('10g'!H$5:H$100,$A106,'10g'!$I$5:$I$100)+SUMIF('10h'!H$5:H$100,$A106,'10h'!$I$5:$I$100)+SUMIF('10i'!H$5:H$100,$A106,'10i'!$I$5:$I$100)+SUMIF('10j'!H$5:H$100,$A106,'10j'!$I$5:$I$100)+SUMIF('10k'!H$5:H$100,$A106,'10k'!$I$5:$I$100)+SUMIF('10l'!H$5:H$100,$A106,'10l'!$I$5:$I$100)+SUMIF('10m'!H$5:H$100,$A106,'10m'!$I$5:$I$100)+SUMIF('10 TOTAL'!H$5:H$100,$A106,'10 TOTAL'!$I$5:$I$100) -> 0 | S106: 0
A107: 11-112 | B107: Shared Services - Purchasing | C107: =SUMIF('4'!H$5:H$100,$A107,'4'!$K$5:$K$100)+SUMIF('4a'!H$5:H$100,$A107,'4a'!$K$5:$K$100)+SUMIF('4b'!H$5:H$100,$A107,'4b'!$K$5:$K$100)+SUMIF('4c'!H$5:H$100,$A107,'4c'!$K$5:$K$100)+SUMIF('5'!H$5:H$100,$A107,'5'!$K$5:$K$100)+SUMIF('6'!H$5:H$100,$A107,'6'!$K$5:$K$100)+SUMIF('7'!H$5:H$100,$A107,'7'!$K$5:$K$100)+SUMIF('7a'!H$5:H$100,$A107,'7a'!$K$5:$K$100)+SUMIF('7b'!H$5:H$100,$A107,'7b'!$K$5:$K$100)+SUMIF('8'!H$5:H$100,$A107,'8'!$K$5:$K$100)+SUMIF('9'!H$5:H$100,$A107,'9'!$K$5:$K$100)+SUMIF('9a'!H$5:H$100,$A107,'9a'!$K$5:$K$100)+SUMIF('9b'!H$5:H$100,$A107,'9b'!$K$5:$K$100)+SUMIF('9c'!H$5:H$100,$A107,'9c'!$K$5:$K$100)+SUMIF('9d'!H$5:H$100,$A107,'9d'!$K$5:$K$100)+SUMIF('9e'!H$5:H$100,$A107,'9e'!$K$5:$K$100)+SUMIF('9f'!H$5:H$100,$A107,'9f'!$K$5:$K$100)+SUMIF('9g'!H$5:H$100,$A107,'9g'!$K$5:$K$100)+SUMIF('9h'!H$5:H$100,$A107,'9h'!$K$5:$K$100)+SUMIF('9 TOTAL'!H$5:H$100,$A107,'9 TOTAL'!$K$5:$K$100) +SUMIF('10'!H$5:H$100,$A107,'10'!$K$5:$K$100)+SUMIF('10a'!H$5:H$100,$A107,'10a'!$K$5:$K$100)+SUMIF('10b'!H$5:H$100,$A107,'10b'!$K$5:$K$100)+SUMIF('10c'!H$5:H$100,$A107,'10c'!$K$5:$K$100)+SUMIF('10d'!H$5:H$100,$A107,'10d'!$K$5:$K$100)+SUMIF('10e'!H$5:H$100,$A107,'10e'!$K$5:$K$100)+SUMIF('10f'!H$5:H$100,$A107,'10f'!$K$5:$K$100)+SUMIF('10g'!H$5:H$100,$A107,'10g'!$K$5:$K$100)+SUMIF('10h'!H$5:H$100,$A107,'10h'!$K$5:$K$100)+SUMIF('10i'!H$5:H$100,$A107,'10i'!$K$5:$K$100)+SUMIF('10j'!H$5:H$100,$A107,'10j'!$K$5:$K$100)+SUMIF('10k'!H$5:H$100,$A107,'10k'!$K$5:$K$100)+SUMIF('10l'!H$5:H$100,$A107,'10l'!$K$5:$K$100)+SUMIF('10m'!H$5:H$100,$A107,'10m'!$K$5:$K$100)+SUMIF('10 TOTAL'!H$5:H$100,$A107,'10 TOTAL'!$K$5:$K$100) -> 0 | D107: =SUMIF('4'!H$5:H$100,$A107,'4'!$I$5:$I$100)+SUMIF('4a'!H$5:H$100,$A107,'4a'!$I$5:$I$100)+SUMIF('4b'!H$5:H$100,$A107,'4b'!$I$5:$I$100)+SUMIF('4c'!H$5:H$100,$A107,'4c'!$I$5:$I$100)+SUMIF('5'!H$5:H$100,$A107,'5'!$I$5:$I$100)+SUMIF('6'!H$5:H$100,$A107,'6'!$I$5:$I$100)+SUMIF('7'!H$5:H$100,$A107,'7'!$I$5:$I$100)+SUMIF('7a'!H$5:H$100,$A107,'7a'!$I$5:$I$100)+SUMIF('7b'!H$5:H$100,$A107,'7b'!$I$5:$I$100)+SUMIF('8'!H$5:H$100,$A107,'8'!$I$5:$I$100)+SUMIF('9'!H$5:H$100,$A107,'9'!$I$5:$I$100)+SUMIF('9a'!H$5:H$100,$A107,'9a'!$I$5:$I$100)+SUMIF('9b'!H$5:H$100,$A107,'9b'!$I$5:$I$100)+SUMIF('9c'!H$5:H$100,$A107,'9c'!$I$5:$I$100)+SUMIF('9d'!H$5:H$100,$A107,'9d'!$I$5:$I$100)+SUMIF('9e'!H$5:H$100,$A107,'9e'!$I$5:$I$100)+SUMIF('9f'!H$5:H$100,$A107,'9f'!$I$5:$I$100)+SUMIF('9g'!H$5:H$100,$A107,'9g'!$I$5:$I$100)+SUMIF('9h'!H$5:H$100,$A107,'9h'!$I$5:$I$100)+SUMIF('9 TOTAL'!H$5:H$100,$A107,'9 TOTAL'!$I$5:$I$100) +SUMIF('10'!H$5:H$100,$A107,'10'!$I$5:$I$100)+SUMIF('10a'!H$5:H$100,$A107,'10a'!$I$5:$I$100)+SUMIF('10b'!H$5:H$100,$A107,'10b'!$I$5:$I$100)+SUMIF('10c'!H$5:H$100,$A107,'10c'!$I$5:$I$100)+SUMIF('10d'!H$5:H$100,$A107,'10d'!$I$5:$I$100)+SUMIF('10e'!H$5:H$100,$A107,'10e'!$I$5:$I$100)+SUMIF('10f'!H$5:H$100,$A107,'10f'!$I$5:$I$100)+SUMIF('10g'!H$5:H$100,$A107,'10g'!$I$5:$I$100)+SUMIF('10h'!H$5:H$100,$A107,'10h'!$I$5:$I$100)+SUMIF('10i'!H$5:H$100,$A107,'10i'!$I$5:$I$100)+SUMIF('10j'!H$5:H$100,$A107,'10j'!$I$5:$I$100)+SUMIF('10k'!H$5:H$100,$A107,'10k'!$I$5:$I$100)+SUMIF('10l'!H$5:H$100,$A107,'10l'!$I$5:$I$100)+SUMIF('10m'!H$5:H$100,$A107,'10m'!$I$5:$I$100)+SUMIF('10 TOTAL'!H$5:H$100,$A107,'10 TOTAL'!$I$5:$I$100) -> 0 | S107: 0
A108: 11-113 | B108: Shared Services - Animal Control Services | C108: =SUMIF('4'!H$5:H$100,$A108,'4'!$K$5:$K$100)+SUMIF('4a'!H$5:H$100,$A108,'4a'!$K$5:$K$100)+SUMIF('4b'!H$5:H$100,$A108,'4b'!$K$5:$K$100)+SUMIF('4c'!H$5:H$100,$A108,'4c'!$K$5:$K$100)+SUMIF('5'!H$5:H$100,$A108,'5'!$K$5:$K$100)+SUMIF('6'!H$5:H$100,$A108,'6'!$K$5:$K$100)+SUMIF('7'!H$5:H$100,$A108,'7'!$K$5:$K$100)+SUMIF('7a'!H$5:H$100,$A108,'7a'!$K$5:$K$100)+SUMIF('7b'!H$5:H$100,$A108,'7b'!$K$5:$K$100)+SUMIF('8'!H$5:H$100,$A108,'8'!$K$5:$K$100)+SUMIF('9'!H$5:H$100,$A108,'9'!$K$5:$K$100)+SUMIF('9a'!H$5:H$100,$A108,'9a'!$K$5:$K$100)+SUMIF('9b'!H$5:H$100,$A108,'9b'!$K$5:$K$100)+SUMIF('9c'!H$5:H$100,$A108,'9c'!$K$5:$K$100)+SUMIF('9d'!H$5:H$100,$A108,'9d'!$K$5:$K$100)+SUMIF('9e'!H$5:H$100,$A108,'9e'!$K$5:$K$100)+SUMIF('9f'!H$5:H$100,$A108,'9f'!$K$5:$K$100)+SUMIF('9g'!H$5:H$100,$A108,'9g'!$K$5:$K$100)+SUMIF('9h'!H$5:H$100,$A108,'9h'!$K$5:$K$100)+SUMIF('9 TOTAL'!H$5:H$100,$A108,'9 TOTAL'!$K$5:$K$100) +SUMIF('10'!H$5:H$100,$A108,'10'!$K$5:$K$100)+SUMIF('10a'!H$5:H$100,$A108,'10a'!$K$5:$K$100)+SUMIF('10b'!H$5:H$100,$A108,'10b'!$K$5:$K$100)+SUMIF('10c'!H$5:H$100,$A108,'10c'!$K$5:$K$100)+SUMIF('10d'!H$5:H$100,$A108,'10d'!$K$5:$K$100)+SUMIF('10e'!H$5:H$100,$A108,'10e'!$K$5:$K$100)+SUMIF('10f'!H$5:H$100,$A108,'10f'!$K$5:$K$100)+SUMIF('10g'!H$5:H$100,$A108,'10g'!$K$5:$K$100)+SUMIF('10h'!H$5:H$100,$A108,'10h'!$K$5:$K$100)+SUMIF('10i'!H$5:H$100,$A108,'10i'!$K$5:$K$100)+SUMIF('10j'!H$5:H$100,$A108,'10j'!$K$5:$K$100)+SUMIF('10k'!H$5:H$100,$A108,'10k'!$K$5:$K$100)+SUMIF('10l'!H$5:H$100,$A108,'10l'!$K$5:$K$100)+SUMIF('10m'!H$5:H$100,$A108,'10m'!$K$5:$K$100)+SUMIF('10 TOTAL'!H$5:H$100,$A108,'10 TOTAL'!$K$5:$K$100) -> 0 | D108: =SUMIF('4'!H$5:H$100,$A108,'4'!$I$5:$I$100)+SUMIF('4a'!H$5:H$100,$A108,'4a'!$I$5:$I$100)+SUMIF('4b'!H$5:H$100,$A108,'4b'!$I$5:$I$100)+SUMIF('4c'!H$5:H$100,$A108,'4c'!$I$5:$I$100)+SUMIF('5'!H$5:H$100,$A108,'5'!$I$5:$I$100)+SUMIF('6'!H$5:H$100,$A108,'6'!$I$5:$I$100)+SUMIF('7'!H$5:H$100,$A108,'7'!$I$5:$I$100)+SUMIF('7a'!H$5:H$100,$A108,'7a'!$I$5:$I$100)+SUMIF('7b'!H$5:H$100,$A108,'7b'!$I$5:$I$100)+SUMIF('8'!H$5:H$100,$A108,'8'!$I$5:$I$100)+SUMIF('9'!H$5:H$100,$A108,'9'!$I$5:$I$100)+SUMIF('9a'!H$5:H$100,$A108,'9a'!$I$5:$I$100)+SUMIF('9b'!H$5:H$100,$A108,'9b'!$I$5:$I$100)+SUMIF('9c'!H$5:H$100,$A108,'9c'!$I$5:$I$100)+SUMIF('9d'!H$5:H$100,$A108,'9d'!$I$5:$I$100)+SUMIF('9e'!H$5:H$100,$A108,'9e'!$I$5:$I$100)+SUMIF('9f'!H$5:H$100,$A108,'9f'!$I$5:$I$100)+SUMIF('9g'!H$5:H$100,$A108,'9g'!$I$5:$I$100)+SUMIF('9h'!H$5:H$100,$A108,'9h'!$I$5:$I$100)+SUMIF('9 TOTAL'!H$5:H$100,$A108,'9 TOTAL'!$I$5:$I$100) +SUMIF('10'!H$5:H$100,$A108,'10'!$I$5:$I$100)+SUMIF('10a'!H$5:H$100,$A108,'10a'!$I$5:$I$100)+SUMIF('10b'!H$5:H$100,$A108,'10b'!$I$5:$I$100)+SUMIF('10c'!H$5:H$100,$A108,'10c'!$I$5:$I$100)+SUMIF('10d'!H$5:H$100,$A108,'10d'!$I$5:$I$100)+SUMIF('10e'!H$5:H$100,$A108,'10e'!$I$5:$I$100)+SUMIF('10f'!H$5:H$100,$A108,'10f'!$I$5:$I$100)+SUMIF('10g'!H$5:H$100,$A108,'10g'!$I$5:$I$100)+SUMIF('10h'!H$5:H$100,$A108,'10h'!$I$5:$I$100)+SUMIF('10i'!H$5:H$100,$A108,'10i'!$I$5:$I$100)+SUMIF('10j'!H$5:H$100,$A108,'10j'!$I$5:$I$100)+SUMIF('10k'!H$5:H$100,$A108,'10k'!$I$5:$I$100)+SUMIF('10l'!H$5:H$100,$A108,'10l'!$I$5:$I$100)+SUMIF('10m'!H$5:H$100,$A108,'10m'!$I$5:$I$100)+SUMIF('10 TOTAL'!H$5:H$100,$A108,'10 TOTAL'!$I$5:$I$100) -> 0 | S108: 0
A109: 11-114 | B109: Shared Services - Health Services | C109: =SUMIF('4'!H$5:H$100,$A109,'4'!$K$5:$K$100)+SUMIF('4a'!H$5:H$100,$A109,'4a'!$K$5:$K$100)+SUMIF('4b'!H$5:H$100,$A109,'4b'!$K$5:$K$100)+SUMIF('4c'!H$5:H$100,$A109,'4c'!$K$5:$K$100)+SUMIF('5'!H$5:H$100,$A109,'5'!$K$5:$K$100)+SUMIF('6'!H$5:H$100,$A109,'6'!$K$5:$K$100)+SUMIF('7'!H$5:H$100,$A109,'7'!$K$5:$K$100)+SUMIF('7a'!H$5:H$100,$A109,'7a'!$K$5:$K$100)+SUMIF('7b'!H$5:H$100,$A109,'7b'!$K$5:$K$100)+SUMIF('8'!H$5:H$100,$A109,'8'!$K$5:$K$100)+SUMIF('9'!H$5:H$100,$A109,'9'!$K$5:$K$100)+SUMIF('9a'!H$5:H$100,$A109,'9a'!$K$5:$K$100)+SUMIF('9b'!H$5:H$100,$A109,'9b'!$K$5:$K$100)+SUMIF('9c'!H$5:H$100,$A109,'9c'!$K$5:$K$100)+SUMIF('9d'!H$5:H$100,$A109,'9d'!$K$5:$K$100)+SUMIF('9e'!H$5:H$100,$A109,'9e'!$K$5:$K$100)+SUMIF('9f'!H$5:H$100,$A109,'9f'!$K$5:$K$100)+SUMIF('9g'!H$5:H$100,$A109,'9g'!$K$5:$K$100)+SUMIF('9h'!H$5:H$100,$A109,'9h'!$K$5:$K$100)+SUMIF('9 TOTAL'!H$5:H$100,$A109,'9 TOTAL'!$K$5:$K$100) +SUMIF('10'!H$5:H$100,$A109,'10'!$K$5:$K$100)+SUMIF('10a'!H$5:H$100,$A109,'10a'!$K$5:$K$100)+SUMIF('10b'!H$5:H$100,$A109,'10b'!$K$5:$K$100)+SUMIF('10c'!H$5:H$100,$A109,'10c'!$K$5:$K$100)+SUMIF('10d'!H$5:H$100,$A109,'10d'!$K$5:$K$100)+SUMIF('10e'!H$5:H$100,$A109,'10e'!$K$5:$K$100)+SUMIF('10f'!H$5:H$100,$A109,'10f'!$K$5:$K$100)+SUMIF('10g'!H$5:H$100,$A109,'10g'!$K$5:$K$100)+SUMIF('10h'!H$5:H$100,$A109,'10h'!$K$5:$K$100)+SUMIF('10i'!H$5:H$100,$A109,'10i'!$K$5:$K$100)+SUMIF('10j'!H$5:H$100,$A109,'10j'!$K$5:$K$100)+SUMIF('10k'!H$5:H$100,$A109,'10k'!$K$5:$K$100)+SUMIF('10l'!H$5:H$100,$A109,'10l'!$K$5:$K$100)+SUMIF('10m'!H$5:H$100,$A109,'10m'!$K$5:$K$100)+SUMIF('10 TOTAL'!H$5:H$100,$A109,'10 TOTAL'!$K$5:$K$100) -> 0 | D109: =SUMIF('4'!H$5:H$100,$A109,'4'!$I$5:$I$100)+SUMIF('4a'!H$5:H$100,$A109,'4a'!$I$5:$I$100)+SUMIF('4b'!H$5:H$100,$A109,'4b'!$I$5:$I$100)+SUMIF('4c'!H$5:H$100,$A109,'4c'!$I$5:$I$100)+SUMIF('5'!H$5:H$100,$A109,'5'!$I$5:$I$100)+SUMIF('6'!H$5:H$100,$A109,'6'!$I$5:$I$100)+SUMIF('7'!H$5:H$100,$A109,'7'!$I$5:$I$100)+SUMIF('7a'!H$5:H$100,$A109,'7a'!$I$5:$I$100)+SUMIF('7b'!H$5:H$100,$A109,'7b'!$I$5:$I$100)+SUMIF('8'!H$5:H$100,$A109,'8'!$I$5:$I$100)+SUMIF('9'!H$5:H$100,$A109,'9'!$I$5:$I$100)+SUMIF('9a'!H$5:H$100,$A109,'9a'!$I$5:$I$100)+SUMIF('9b'!H$5:H$100,$A109,'9b'!$I$5:$I$100)+SUMIF('9c'!H$5:H$100,$A109,'9c'!$I$5:$I$100)+SUMIF('9d'!H$5:H$100,$A109,'9d'!$I$5:$I$100)+SUMIF('9e'!H$5:H$100,$A109,'9e'!$I$5:$I$100)+SUMIF('9f'!H$5:H$100,$A109,'9f'!$I$5:$I$100)+SUMIF('9g'!H$5:H$100,$A109,'9g'!$I$5:$I$100)+SUMIF('9h'!H$5:H$100,$A109,'9h'!$I$5:$I$100)+SUMIF('9 TOTAL'!H$5:H$100,$A109,'9 TOTAL'!$I$5:$I$100) +SUMIF('10'!H$5:H$100,$A109,'10'!$I$5:$I$100)+SUMIF('10a'!H$5:H$100,$A109,'10a'!$I$5:$I$100)+SUMIF('10b'!H$5:H$100,$A109,'10b'!$I$5:$I$100)+SUMIF('10c'!H$5:H$100,$A109,'10c'!$I$5:$I$100)+SUMIF('10d'!H$5:H$100,$A109,'10d'!$I$5:$I$100)+SUMIF('10e'!H$5:H$100,$A109,'10e'!$I$5:$I$100)+SUMIF('10f'!H$5:H$100,$A109,'10f'!$I$5:$I$100)+SUMIF('10g'!H$5:H$100,$A109,'10g'!$I$5:$I$100)+SUMIF('10h'!H$5:H$100,$A109,'10h'!$I$5:$I$100)+SUMIF('10i'!H$5:H$100,$A109,'10i'!$I$5:$I$100)+SUMIF('10j'!H$5:H$100,$A109,'10j'!$I$5:$I$100)+SUMIF('10k'!H$5:H$100,$A109,'10k'!$I$5:$I$100)+SUMIF('10l'!H$5:H$100,$A109,'10l'!$I$5:$I$100)+SUMIF('10m'!H$5:H$100,$A109,'10m'!$I$5:$I$100)+SUMIF('10 TOTAL'!H$5:H$100,$A109,'10 TOTAL'!$I$5:$I$100) -> 0 | S109: 0
A110: 11-115 | B110: Shared Services - Dispatch / 911 | C110: =SUMIF('4'!H$5:H$100,$A110,'4'!$K$5:$K$100)+SUMIF('4a'!H$5:H$100,$A110,'4a'!$K$5:$K$100)+SUMIF('4b'!H$5:H$100,$A110,'4b'!$K$5:$K$100)+SUMIF('4c'!H$5:H$100,$A110,'4c'!$K$5:$K$100)+SUMIF('5'!H$5:H$100,$A110,'5'!$K$5:$K$100)+SUMIF('6'!H$5:H$100,$A110,'6'!$K$5:$K$100)+SUMIF('7'!H$5:H$100,$A110,'7'!$K$5:$K$100)+SUMIF('7a'!H$5:H$100,$A110,'7a'!$K$5:$K$100)+SUMIF('7b'!H$5:H$100,$A110,'7b'!$K$5:$K$100)+SUMIF('8'!H$5:H$100,$A110,'8'!$K$5:$K$100)+SUMIF('9'!H$5:H$100,$A110,'9'!$K$5:$K$100)+SUMIF('9a'!H$5:H$100,$A110,'9a'!$K$5:$K$100)+SUMIF('9b'!H$5:H$100,$A110,'9b'!$K$5:$K$100)+SUMIF('9c'!H$5:H$100,$A110,'9c'!$K$5:$K$100)+SUMIF('9d'!H$5:H$100,$A110,'9d'!$K$5:$K$100)+SUMIF('9e'!H$5:H$100,$A110,'9e'!$K$5:$K$100)+SUMIF('9f'!H$5:H$100,$A110,'9f'!$K$5:$K$100)+SUMIF('9g'!H$5:H$100,$A110,'9g'!$K$5:$K$100)+SUMIF('9h'!H$5:H$100,$A110,'9h'!$K$5:$K$100)+SUMIF('9 TOTAL'!H$5:H$100,$A110,'9 TOTAL'!$K$5:$K$100) +SUMIF('10'!H$5:H$100,$A110,'10'!$K$5:$K$100)+SUMIF('10a'!H$5:H$100,$A110,'10a'!$K$5:$K$100)+SUMIF('10b'!H$5:H$100,$A110,'10b'!$K$5:$K$100)+SUMIF('10c'!H$5:H$100,$A110,'10c'!$K$5:$K$100)+SUMIF('10d'!H$5:H$100,$A110,'10d'!$K$5:$K$100)+SUMIF('10e'!H$5:H$100,$A110,'10e'!$K$5:$K$100)+SUMIF('10f'!H$5:H$100,$A110,'10f'!$K$5:$K$100)+SUMIF('10g'!H$5:H$100,$A110,'10g'!$K$5:$K$100)+SUMIF('10h'!H$5:H$100,$A110,'10h'!$K$5:$K$100)+SUMIF('10i'!H$5:H$100,$A110,'10i'!$K$5:$K$100)+SUMIF('10j'!H$5:H$100,$A110,'10j'!$K$5:$K$100)+SUMIF('10k'!H$5:H$100,$A110,'10k'!$K$5:$K$100)+SUMIF('10l'!H$5:H$100,$A110,'10l'!$K$5:$K$100)+SUMIF('10m'!H$5:H$100,$A110,'10m'!$K$5:$K$100)+SUMIF('10 TOTAL'!H$5:H$100,$A110,'10 TOTAL'!$K$5:$K$100) -> 0 | D110: =SUMIF('4'!H$5:H$100,$A110,'4'!$I$5:$I$100)+SUMIF('4a'!H$5:H$100,$A110,'4a'!$I$5:$I$100)+SUMIF('4b'!H$5:H$100,$A110,'4b'!$I$5:$I$100)+SUMIF('4c'!H$5:H$100,$A110,'4c'!$I$5:$I$100)+SUMIF('5'!H$5:H$100,$A110,'5'!$I$5:$I$100)+SUMIF('6'!H$5:H$100,$A110,'6'!$I$5:$I$100)+SUMIF('7'!H$5:H$100,$A110,'7'!$I$5:$I$100)+SUMIF('7a'!H$5:H$100,$A110,'7a'!$I$5:$I$100)+SUMIF('7b'!H$5:H$100,$A110,'7b'!$I$5:$I$100)+SUMIF('8'!H$5:H$100,$A110,'8'!$I$5:$I$100)+SUMIF('9'!H$5:H$100,$A110,'9'!$I$5:$I$100)+SUMIF('9a'!H$5:H$100,$A110,'9a'!$I$5:$I$100)+SUMIF('9b'!H$5:H$100,$A110,'9b'!$I$5:$I$100)+SUMIF('9c'!H$5:H$100,$A110,'9c'!$I$5:$I$100)+SUMIF('9d'!H$5:H$100,$A110,'9d'!$I$5:$I$100)+SUMIF('9e'!H$5:H$100,$A110,'9e'!$I$5:$I$100)+SUMIF('9f'!H$5:H$100,$A110,'9f'!$I$5:$I$100)+SUMIF('9g'!H$5:H$100,$A110,'9g'!$I$5:$I$100)+SUMIF('9h'!H$5:H$100,$A110,'9h'!$I$5:$I$100)+SUMIF('9 TOTAL'!H$5:H$100,$A110,'9 TOTAL'!$I$5:$I$100) +SUMIF('10'!H$5:H$100,$A110,'10'!$I$5:$I$100)+SUMIF('10a'!H$5:H$100,$A110,'10a'!$I$5:$I$100)+SUMIF('10b'!H$5:H$100,$A110,'10b'!$I$5:$I$100)+SUMIF('10c'!H$5:H$100,$A110,'10c'!$I$5:$I$100)+SUMIF('10d'!H$5:H$100,$A110,'10d'!$I$5:$I$100)+SUMIF('10e'!H$5:H$100,$A110,'10e'!$I$5:$I$100)+SUMIF('10f'!H$5:H$100,$A110,'10f'!$I$5:$I$100)+SUMIF('10g'!H$5:H$100,$A110,'10g'!$I$5:$I$100)+SUMIF('10h'!H$5:H$100,$A110,'10h'!$I$5:$I$100)+SUMIF('10i'!H$5:H$100,$A110,'10i'!$I$5:$I$100)+SUMIF('10j'!H$5:H$100,$A110,'10j'!$I$5:$I$100)+SUMIF('10k'!H$5:H$100,$A110,'10k'!$I$5:$I$100)+SUMIF('10l'!H$5:H$100,$A110,'10l'!$I$5:$I$100)+SUMIF('10m'!H$5:H$100,$A110,'10m'!$I$5:$I$100)+SUMIF('10 TOTAL'!H$5:H$100,$A110,'10 TOTAL'!$I$5:$I$100) -> 0 | S110: 0
A111: 11-116 | B111: Shared Services - County | C111: =SUMIF('4'!H$5:H$100,$A111,'4'!$K$5:$K$100)+SUMIF('4a'!H$5:H$100,$A111,'4a'!$K$5:$K$100)+SUMIF('4b'!H$5:H$100,$A111,'4b'!$K$5:$K$100)+SUMIF('4c'!H$5:H$100,$A111,'4c'!$K$5:$K$100)+SUMIF('5'!H$5:H$100,$A111,'5'!$K$5:$K$100)+SUMIF('6'!H$5:H$100,$A111,'6'!$K$5:$K$100)+SUMIF('7'!H$5:H$100,$A111,'7'!$K$5:$K$100)+SUMIF('7a'!H$5:H$100,$A111,'7a'!$K$5:$K$100)+SUMIF('7b'!H$5:H$100,$A111,'7b'!$K$5:$K$100)+SUMIF('8'!H$5:H$100,$A111,'8'!$K$5:$K$100)+SUMIF('9'!H$5:H$100,$A111,'9'!$K$5:$K$100)+SUMIF('9a'!H$5:H$100,$A111,'9a'!$K$5:$K$100)+SUMIF('9b'!H$5:H$100,$A111,'9b'!$K$5:$K$100)+SUMIF('9c'!H$5:H$100,$A111,'9c'!$K$5:$K$100)+SUMIF('9d'!H$5:H$100,$A111,'9d'!$K$5:$K$100)+SUMIF('9e'!H$5:H$100,$A111,'9e'!$K$5:$K$100)+SUMIF('9f'!H$5:H$100,$A111,'9f'!$K$5:$K$100)+SUMIF('9g'!H$5:H$100,$A111,'9g'!$K$5:$K$100)+SUMIF('9h'!H$5:H$100,$A111,'9h'!$K$5:$K$100)+SUMIF('9 TOTAL'!H$5:H$100,$A111,'9 TOTAL'!$K$5:$K$100) +SUMIF('10'!H$5:H$100,$A111,'10'!$K$5:$K$100)+SUMIF('10a'!H$5:H$100,$A111,'10a'!$K$5:$K$100)+SUMIF('10b'!H$5:H$100,$A111,'10b'!$K$5:$K$100)+SUMIF('10c'!H$5:H$100,$A111,'10c'!$K$5:$K$100)+SUMIF('10d'!H$5:H$100,$A111,'10d'!$K$5:$K$100)+SUMIF('10e'!H$5:H$100,$A111,'10e'!$K$5:$K$100)+SUMIF('10f'!H$5:H$100,$A111,'10f'!$K$5:$K$100)+SUMIF('10g'!H$5:H$100,$A111,'10g'!$K$5:$K$100)+SUMIF('10h'!H$5:H$100,$A111,'10h'!$K$5:$K$100)+SUMIF('10i'!H$5:H$100,$A111,'10i'!$K$5:$K$100)+SUMIF('10j'!H$5:H$100,$A111,'10j'!$K$5:$K$100)+SUMIF('10k'!H$5:H$100,$A111,'10k'!$K$5:$K$100)+SUMIF('10l'!H$5:H$100,$A111,'10l'!$K$5:$K$100)+SUMIF('10m'!H$5:H$100,$A111,'10m'!$K$5:$K$100)+SUMIF('10 TOTAL'!H$5:H$100,$A111,'10 TOTAL'!$K$5:$K$100) -> 0 | D111: =SUMIF('4'!H$5:H$100,$A111,'4'!$I$5:$I$100)+SUMIF('4a'!H$5:H$100,$A111,'4a'!$I$5:$I$100)+SUMIF('4b'!H$5:H$100,$A111,'4b'!$I$5:$I$100)+SUMIF('4c'!H$5:H$100,$A111,'4c'!$I$5:$I$100)+SUMIF('5'!H$5:H$100,$A111,'5'!$I$5:$I$100)+SUMIF('6'!H$5:H$100,$A111,'6'!$I$5:$I$100)+SUMIF('7'!H$5:H$100,$A111,'7'!$I$5:$I$100)+SUMIF('7a'!H$5:H$100,$A111,'7a'!$I$5:$I$100)+SUMIF('7b'!H$5:H$100,$A111,'7b'!$I$5:$I$100)+SUMIF('8'!H$5:H$100,$A111,'8'!$I$5:$I$100)+SUMIF('9'!H$5:H$100,$A111,'9'!$I$5:$I$100)+SUMIF('9a'!H$5:H$100,$A111,'9a'!$I$5:$I$100)+SUMIF('9b'!H$5:H$100,$A111,'9b'!$I$5:$I$100)+SUMIF('9c'!H$5:H$100,$A111,'9c'!$I$5:$I$100)+SUMIF('9d'!H$5:H$100,$A111,'9d'!$I$5:$I$100)+SUMIF('9e'!H$5:H$100,$A111,'9e'!$I$5:$I$100)+SUMIF('9f'!H$5:H$100,$A111,'9f'!$I$5:$I$100)+SUMIF('9g'!H$5:H$100,$A111,'9g'!$I$5:$I$100)+SUMIF('9h'!H$5:H$100,$A111,'9h'!$I$5:$I$100)+SUMIF('9 TOTAL'!H$5:H$100,$A111,'9 TOTAL'!$I$5:$I$100) +SUMIF('10'!H$5:H$100,$A111,'10'!$I$5:$I$100)+SUMIF('10a'!H$5:H$100,$A111,'10a'!$I$5:$I$100)+SUMIF('10b'!H$5:H$100,$A111,'10b'!$I$5:$I$100)+SUMIF('10c'!H$5:H$100,$A111,'10c'!$I$5:$I$100)+SUMIF('10d'!H$5:H$100,$A111,'10d'!$I$5:$I$100)+SUMIF('10e'!H$5:H$100,$A111,'10e'!$I$5:$I$100)+SUMIF('10f'!H$5:H$100,$A111,'10f'!$I$5:$I$100)+SUMIF('10g'!H$5:H$100,$A111,'10g'!$I$5:$I$100)+SUMIF('10h'!H$5:H$100,$A111,'10h'!$I$5:$I$100)+SUMIF('10i'!H$5:H$100,$A111,'10i'!$I$5:$I$100)+SUMIF('10j'!H$5:H$100,$A111,'10j'!$I$5:$I$100)+SUMIF('10k'!H$5:H$100,$A111,'10k'!$I$5:$I$100)+SUMIF('10l'!H$5:H$100,$A111,'10l'!$I$5:$I$100)+SUMIF('10m'!H$5:H$100,$A111,'10m'!$I$5:$I$100)+SUMIF('10 TOTAL'!H$5:H$100,$A111,'10 TOTAL'!$I$5:$I$100) -> 0 | S111: 0
A112: 11-117 | B112: Shared Services - Transportation Services | C112: =SUMIF('4'!H$5:H$100,$A112,'4'!$K$5:$K$100)+SUMIF('4a'!H$5:H$100,$A112,'4a'!$K$5:$K$100)+SUMIF('4b'!H$5:H$100,$A112,'4b'!$K$5:$K$100)+SUMIF('4c'!H$5:H$100,$A112,'4c'!$K$5:$K$100)+SUMIF('5'!H$5:H$100,$A112,'5'!$K$5:$K$100)+SUMIF('6'!H$5:H$100,$A112,'6'!$K$5:$K$100)+SUMIF('7'!H$5:H$100,$A112,'7'!$K$5:$K$100)+SUMIF('7a'!H$5:H$100,$A112,'7a'!$K$5:$K$100)+SUMIF('7b'!H$5:H$100,$A112,'7b'!$K$5:$K$100)+SUMIF('8'!H$5:H$100,$A112,'8'!$K$5:$K$100)+SUMIF('9'!H$5:H$100,$A112,'9'!$K$5:$K$100)+SUMIF('9a'!H$5:H$100,$A112,'9a'!$K$5:$K$100)+SUMIF('9b'!H$5:H$100,$A112,'9b'!$K$5:$K$100)+SUMIF('9c'!H$5:H$100,$A112,'9c'!$K$5:$K$100)+SUMIF('9d'!H$5:H$100,$A112,'9d'!$K$5:$K$100)+SUMIF('9e'!H$5:H$100,$A112,'9e'!$K$5:$K$100)+SUMIF('9f'!H$5:H$100,$A112,'9f'!$K$5:$K$100)+SUMIF('9g'!H$5:H$100,$A112,'9g'!$K$5:$K$100)+SUMIF('9h'!H$5:H$100,$A112,'9h'!$K$5:$K$100)+SUMIF('9 TOTAL'!H$5:H$100,$A112,'9 TOTAL'!$K$5:$K$100) +SUMIF('10'!H$5:H$100,$A112,'10'!$K$5:$K$100)+SUMIF('10a'!H$5:H$100,$A112,'10a'!$K$5:$K$100)+SUMIF('10b'!H$5:H$100,$A112,'10b'!$K$5:$K$100)+SUMIF('10c'!H$5:H$100,$A112,'10c'!$K$5:$K$100)+SUMIF('10d'!H$5:H$100,$A112,'10d'!$K$5:$K$100)+SUMIF('10e'!H$5:H$100,$A112,'10e'!$K$5:$K$100)+SUMIF('10f'!H$5:H$100,$A112,'10f'!$K$5:$K$100)+SUMIF('10g'!H$5:H$100,$A112,'10g'!$K$5:$K$100)+SUMIF('10h'!H$5:H$100,$A112,'10h'!$K$5:$K$100)+SUMIF('10i'!H$5:H$100,$A112,'10i'!$K$5:$K$100)+SUMIF('10j'!H$5:H$100,$A112,'10j'!$K$5:$K$100)+SUMIF('10k'!H$5:H$100,$A112,'10k'!$K$5:$K$100)+SUMIF('10l'!H$5:H$100,$A112,'10l'!$K$5:$K$100)+SUMIF('10m'!H$5:H$100,$A112,'10m'!$K$5:$K$100)+SUMIF('10 TOTAL'!H$5:H$100,$A112,'10 TOTAL'!$K$5:$K$100) -> 0 | D112: =SUMIF('4'!H$5:H$100,$A112,'4'!$I$5:$I$100)+SUMIF('4a'!H$5:H$100,$A112,'4a'!$I$5:$I$100)+SUMIF('4b'!H$5:H$100,$A112,'4b'!$I$5:$I$100)+SUMIF('4c'!H$5:H$100,$A112,'4c'!$I$5:$I$100)+SUMIF('5'!H$5:H$100,$A112,'5'!$I$5:$I$100)+SUMIF('6'!H$5:H$100,$A112,'6'!$I$5:$I$100)+SUMIF('7'!H$5:H$100,$A112,'7'!$I$5:$I$100)+SUMIF('7a'!H$5:H$100,$A112,'7a'!$I$5:$I$100)+SUMIF('7b'!H$5:H$100,$A112,'7b'!$I$5:$I$100)+SUMIF('8'!H$5:H$100,$A112,'8'!$I$5:$I$100)+SUMIF('9'!H$5:H$100,$A112,'9'!$I$5:$I$100)+SUMIF('9a'!H$5:H$100,$A112,'9a'!$I$5:$I$100)+SUMIF('9b'!H$5:H$100,$A112,'9b'!$I$5:$I$100)+SUMIF('9c'!H$5:H$100,$A112,'9c'!$I$5:$I$100)+SUMIF('9d'!H$5:H$100,$A112,'9d'!$I$5:$I$100)+SUMIF('9e'!H$5:H$100,$A112,'9e'!$I$5:$I$100)+SUMIF('9f'!H$5:H$100,$A112,'9f'!$I$5:$I$100)+SUMIF('9g'!H$5:H$100,$A112,'9g'!$I$5:$I$100)+SUMIF('9h'!H$5:H$100,$A112,'9h'!$I$5:$I$100)+SUMIF('9 TOTAL'!H$5:H$100,$A112,'9 TOTAL'!$I$5:$I$100) +SUMIF('10'!H$5:H$100,$A112,'10'!$I$5:$I$100)+SUMIF('10a'!H$5:H$100,$A112,'10a'!$I$5:$I$100)+SUMIF('10b'!H$5:H$100,$A112,'10b'!$I$5:$I$100)+SUMIF('10c'!H$5:H$100,$A112,'10c'!$I$5:$I$100)+SUMIF('10d'!H$5:H$100,$A112,'10d'!$I$5:$I$100)+SUMIF('10e'!H$5:H$100,$A112,'10e'!$I$5:$I$100)+SUMIF('10f'!H$5:H$100,$A112,'10f'!$I$5:$I$100)+SUMIF('10g'!H$5:H$100,$A112,'10g'!$I$5:$I$100)+SUMIF('10h'!H$5:H$100,$A112,'10h'!$I$5:$I$100)+SUMIF('10i'!H$5:H$100,$A112,'10i'!$I$5:$I$100)+SUMIF('10j'!H$5:H$100,$A112,'10j'!$I$5:$I$100)+SUMIF('10k'!H$5:H$100,$A112,'10k'!$I$5:$I$100)+SUMIF('10l'!H$5:H$100,$A112,'10l'!$I$5:$I$100)+SUMIF('10m'!H$5:H$100,$A112,'10m'!$I$5:$I$100)+SUMIF('10 TOTAL'!H$5:H$100,$A112,'10 TOTAL'!$I$5:$I$100) -> 0 | S112: 0
A113: 11-118 | B113: Shared Services - Construction Office | C113: =SUMIF('4'!H$5:H$100,$A113,'4'!$K$5:$K$100)+SUMIF('4a'!H$5:H$100,$A113,'4a'!$K$5:$K$100)+SUMIF('4b'!H$5:H$100,$A113,'4b'!$K$5:$K$100)+SUMIF('4c'!H$5:H$100,$A113,'4c'!$K$5:$K$100)+SUMIF('5'!H$5:H$100,$A113,'5'!$K$5:$K$100)+SUMIF('6'!H$5:H$100,$A113,'6'!$K$5:$K$100)+SUMIF('7'!H$5:H$100,$A113,'7'!$K$5:$K$100)+SUMIF('7a'!H$5:H$100,$A113,'7a'!$K$5:$K$100)+SUMIF('7b'!H$5:H$100,$A113,'7b'!$K$5:$K$100)+SUMIF('8'!H$5:H$100,$A113,'8'!$K$5:$K$100)+SUMIF('9'!H$5:H$100,$A113,'9'!$K$5:$K$100)+SUMIF('9a'!H$5:H$100,$A113,'9a'!$K$5:$K$100)+SUMIF('9b'!H$5:H$100,$A113,'9b'!$K$5:$K$100)+SUMIF('9c'!H$5:H$100,$A113,'9c'!$K$5:$K$100)+SUMIF('9d'!H$5:H$100,$A113,'9d'!$K$5:$K$100)+SUMIF('9e'!H$5:H$100,$A113,'9e'!$K$5:$K$100)+SUMIF('9f'!H$5:H$100,$A113,'9f'!$K$5:$K$100)+SUMIF('9g'!H$5:H$100,$A113,'9g'!$K$5:$K$100)+SUMIF('9h'!H$5:H$100,$A113,'9h'!$K$5:$K$100)+SUMIF('9 TOTAL'!H$5:H$100,$A113,'9 TOTAL'!$K$5:$K$100) +SUMIF('10'!H$5:H$100,$A113,'10'!$K$5:$K$100)+SUMIF('10a'!H$5:H$100,$A113,'10a'!$K$5:$K$100)+SUMIF('10b'!H$5:H$100,$A113,'10b'!$K$5:$K$100)+SUMIF('10c'!H$5:H$100,$A113,'10c'!$K$5:$K$100)+SUMIF('10d'!H$5:H$100,$A113,'10d'!$K$5:$K$100)+SUMIF('10e'!H$5:H$100,$A113,'10e'!$K$5:$K$100)+SUMIF('10f'!H$5:H$100,$A113,'10f'!$K$5:$K$100)+SUMIF('10g'!H$5:H$100,$A113,'10g'!$K$5:$K$100)+SUMIF('10h'!H$5:H$100,$A113,'10h'!$K$5:$K$100)+SUMIF('10i'!H$5:H$100,$A113,'10i'!$K$5:$K$100)+SUMIF('10j'!H$5:H$100,$A113,'10j'!$K$5:$K$100)+SUMIF('10k'!H$5:H$100,$A113,'10k'!$K$5:$K$100)+SUMIF('10l'!H$5:H$100,$A113,'10l'!$K$5:$K$100)+SUMIF('10m'!H$5:H$100,$A113,'10m'!$K$5:$K$100)+SUMIF('10 TOTAL'!H$5:H$100,$A113,'10 TOTAL'!$K$5:$K$100) -> 0 | D113: =SUMIF('4'!H$5:H$100,$A113,'4'!$I$5:$I$100)+SUMIF('4a'!H$5:H$100,$A113,'4a'!$I$5:$I$100)+SUMIF('4b'!H$5:H$100,$A113,'4b'!$I$5:$I$100)+SUMIF('4c'!H$5:H$100,$A113,'4c'!$I$5:$I$100)+SUMIF('5'!H$5:H$100,$A113,'5'!$I$5:$I$100)+SUMIF('6'!H$5:H$100,$A113,'6'!$I$5:$I$100)+SUMIF('7'!H$5:H$100,$A113,'7'!$I$5:$I$100)+SUMIF('7a'!H$5:H$100,$A113,'7a'!$I$5:$I$100)+SUMIF('7b'!H$5:H$100,$A113,'7b'!$I$5:$I$100)+SUMIF('8'!H$5:H$100,$A113,'8'!$I$5:$I$100)+SUMIF('9'!H$5:H$100,$A113,'9'!$I$5:$I$100)+SUMIF('9a'!H$5:H$100,$A113,'9a'!$I$5:$I$100)+SUMIF('9b'!H$5:H$100,$A113,'9b'!$I$5:$I$100)+SUMIF('9c'!H$5:H$100,$A113,'9c'!$I$5:$I$100)+SUMIF('9d'!H$5:H$100,$A113,'9d'!$I$5:$I$100)+SUMIF('9e'!H$5:H$100,$A113,'9e'!$I$5:$I$100)+SUMIF('9f'!H$5:H$100,$A113,'9f'!$I$5:$I$100)+SUMIF('9g'!H$5:H$100,$A113,'9g'!$I$5:$I$100)+SUMIF('9h'!H$5:H$100,$A113,'9h'!$I$5:$I$100)+SUMIF('9 TOTAL'!H$5:H$100,$A113,'9 TOTAL'!$I$5:$I$100) +SUMIF('10'!H$5:H$100,$A113,'10'!$I$5:$I$100)+SUMIF('10a'!H$5:H$100,$A113,'10a'!$I$5:$I$100)+SUMIF('10b'!H$5:H$100,$A113,'10b'!$I$5:$I$100)+SUMIF('10c'!H$5:H$100,$A113,'10c'!$I$5:$I$100)+SUMIF('10d'!H$5:H$100,$A113,'10d'!$I$5:$I$100)+SUMIF('10e'!H$5:H$100,$A113,'10e'!$I$5:$I$100)+SUMIF('10f'!H$5:H$100,$A113,'10f'!$I$5:$I$100)+SUMIF('10g'!H$5:H$100,$A113,'10g'!$I$5:$I$100)+SUMIF('10h'!H$5:H$100,$A113,'10h'!$I$5:$I$100)+SUMIF('10i'!H$5:H$100,$A113,'10i'!$I$5:$I$100)+SUMIF('10j'!H$5:H$100,$A113,'10j'!$I$5:$I$100)+SUMIF('10k'!H$5:H$100,$A113,'10k'!$I$5:$I$100)+SUMIF('10l'!H$5:H$100,$A113,'10l'!$I$5:$I$100)+SUMIF('10m'!H$5:H$100,$A113,'10m'!$I$5:$I$100)+SUMIF('10 TOTAL'!H$5:H$100,$A113,'10 TOTAL'!$I$5:$I$100) -> 0 | S113: 0
B114: Other Shared Services | C114: =SUM(C115:C121) -> 0 | D114: =SUM(D115:D121) -> 0 | S114: 0
A115: 11-119 | B115: "User Defined" Shared Services | C115: =SUMIF('4'!H$5:H$100,$A115,'4'!$K$5:$K$100)+SUMIF('4a'!H$5:H$100,$A115,'4a'!$K$5:$K$100)+SUMIF('4b'!H$5:H$100,$A115,'4b'!$K$5:$K$100)+SUMIF('4c'!H$5:H$100,$A115,'4c'!$K$5:$K$100)+SUMIF('5'!H$5:H$100,$A115,'5'!$K$5:$K$100)+SUMIF('6'!H$5:H$100,$A115,'6'!$K$5:$K$100)+SUMIF('7'!H$5:H$100,$A115,'7'!$K$5:$K$100)+SUMIF('7a'!H$5:H$100,$A115,'7a'!$K$5:$K$100)+SUMIF('7b'!H$5:H$100,$A115,'7b'!$K$5:$K$100)+SUMIF('8'!H$5:H$100,$A115,'8'!$K$5:$K$100)+SUMIF('9'!H$5:H$100,$A115,'9'!$K$5:$K$100)+SUMIF('9a'!H$5:H$100,$A115,'9a'!$K$5:$K$100)+SUMIF('9b'!H$5:H$100,$A115,'9b'!$K$5:$K$100)+SUMIF('9c'!H$5:H$100,$A115,'9c'!$K$5:$K$100)+SUMIF('9d'!H$5:H$100,$A115,'9d'!$K$5:$K$100)+SUMIF('9e'!H$5:H$100,$A115,'9e'!$K$5:$K$100)+SUMIF('9f'!H$5:H$100,$A115,'9f'!$K$5:$K$100)+SUMIF('9g'!H$5:H$100,$A115,'9g'!$K$5:$K$100)+SUMIF('9h'!H$5:H$100,$A115,'9h'!$K$5:$K$100)+SUMIF('9 TOTAL'!H$5:H$100,$A115,'9 TOTAL'!$K$5:$K$100) +SUMIF('10'!H$5:H$100,$A115,'10'!$K$5:$K$100)+SUMIF('10a'!H$5:H$100,$A115,'10a'!$K$5:$K$100)+SUMIF('10b'!H$5:H$100,$A115,'10b'!$K$5:$K$100)+SUMIF('10c'!H$5:H$100,$A115,'10c'!$K$5:$K$100)+SUMIF('10d'!H$5:H$100,$A115,'10d'!$K$5:$K$100)+SUMIF('10e'!H$5:H$100,$A115,'10e'!$K$5:$K$100)+SUMIF('10f'!H$5:H$100,$A115,'10f'!$K$5:$K$100)+SUMIF('10g'!H$5:H$100,$A115,'10g'!$K$5:$K$100)+SUMIF('10h'!H$5:H$100,$A115,'10h'!$K$5:$K$100)+SUMIF('10i'!H$5:H$100,$A115,'10i'!$K$5:$K$100)+SUMIF('10j'!H$5:H$100,$A115,'10j'!$K$5:$K$100)+SUMIF('10k'!H$5:H$100,$A115,'10k'!$K$5:$K$100)+SUMIF('10l'!H$5:H$100,$A115,'10l'!$K$5:$K$100)+SUMIF('10m'!H$5:H$100,$A115,'10m'!$K$5:$K$100)+SUMIF('10 TOTAL'!H$5:H$100,$A115,'10 TOTAL'!$K$5:$K$100) -> 0 | D115: =SUMIF('4'!H$5:H$100,$A115,'4'!$I$5:$I$100)+SUMIF('4a'!H$5:H$100,$A115,'4a'!$I$5:$I$100)+SUMIF('4b'!H$5:H$100,$A115,'4b'!$I$5:$I$100)+SUMIF('4c'!H$5:H$100,$A115,'4c'!$I$5:$I$100)+SUMIF('5'!H$5:H$100,$A115,'5'!$I$5:$I$100)+SUMIF('6'!H$5:H$100,$A115,'6'!$I$5:$I$100)+SUMIF('7'!H$5:H$100,$A115,'7'!$I$5:$I$100)+SUMIF('7a'!H$5:H$100,$A115,'7a'!$I$5:$I$100)+SUMIF('7b'!H$5:H$100,$A115,'7b'!$I$5:$I$100)+SUMIF('8'!H$5:H$100,$A115,'8'!$I$5:$I$100)+SUMIF('9'!H$5:H$100,$A115,'9'!$I$5:$I$100)+SUMIF('9a'!H$5:H$100,$A115,'9a'!$I$5:$I$100)+SUMIF('9b'!H$5:H$100,$A115,'9b'!$I$5:$I$100)+SUMIF('9c'!H$5:H$100,$A115,'9c'!$I$5:$I$100)+SUMIF('9d'!H$5:H$100,$A115,'9d'!$I$5:$I$100)+SUMIF('9e'!H$5:H$100,$A115,'9e'!$I$5:$I$100)+SUMIF('9f'!H$5:H$100,$A115,'9f'!$I$5:$I$100)+SUMIF('9g'!H$5:H$100,$A115,'9g'!$I$5:$I$100)+SUMIF('9h'!H$5:H$100,$A115,'9h'!$I$5:$I$100)+SUMIF('9 TOTAL'!H$5:H$100,$A115,'9 TOTAL'!$I$5:$I$100) +SUMIF('10'!H$5:H$100,$A115,'10'!$I$5:$I$100)+SUMIF('10a'!H$5:H$100,$A115,'10a'!$I$5:$I$100)+SUMIF('10b'!H$5:H$100,$A115,'10b'!$I$5:$I$100)+SUMIF('10c'!H$5:H$100,$A115,'10c'!$I$5:$I$100)+SUMIF('10d'!H$5:H$100,$A115,'10d'!$I$5:$I$100)+SUMIF('10e'!H$5:H$100,$A115,'10e'!$I$5:$I$100)+SUMIF('10f'!H$5:H$100,$A115,'10f'!$I$5:$I$100)+SUMIF('10g'!H$5:H$100,$A115,'10g'!$I$5:$I$100)+SUMIF('10h'!H$5:H$100,$A115,'10h'!$I$5:$I$100)+SUMIF('10i'!H$5:H$100,$A115,'10i'!$I$5:$I$100)+SUMIF('10j'!H$5:H$100,$A115,'10j'!$I$5:$I$100)+SUMIF('10k'!H$5:H$100,$A115,'10k'!$I$5:$I$100)+SUMIF('10l'!H$5:H$100,$A115,'10l'!$I$5:$I$100)+SUMIF('10m'!H$5:H$100,$A115,'10m'!$I$5:$I$100)+SUMIF('10 TOTAL'!H$5:H$100,$A115,'10 TOTAL'!$I$5:$I$100) -> 0 | S115: 0
